Workbook

Sheet Principal
J6: Cálculo de Esforços Mecânicos
G29: Formulários de cálculos | R29: Materiais | AA29: Outros
R43: Configurações

Sheet Estai_Resultante
C1: ângulo | D1: Resultante - kgf | G1: Ângulo estai | J1: ALTURA POSTE (m) | K1: 11 | L1: =K1-(K1*0.1+0.6) -> 9.3 | U1: REDUZIR T PRI | AA1: 2 | AB1: 2 | AC1: 2 | AD1: 2 | AE1: 2 | AF1: 2 | AG1: 2 | AH1: dsd
C2: =ROUND(IF(D2>0.001,E21),0) -> 255 | D2: =ROUND(D10,0) -> 1,489 | G2: =ROUND(IF(D2>0.001,E22),0) -> 75 | J2: DISTANCIA DO TOPO (cm) | K2: 20 | N2: 1 | U2: RED TENSAO SEC | X2: 1/0 CA VÃO 40m | Y2: 230 | Z2: 90 | AA2: =IF(ISERROR(VLOOKUP($Z2,Table444,AA$1,FALSE)),0,VLOOKUP($Z2,Table444,AA$1,FALSE)) -> 0 | AB2: =IF(ISERROR(VLOOKUP($Z2,Table555,AB$1,FALSE)),0,VLOOKUP($Z2,Table555,AB$1,FALSE)) -> 0 | AC2: =IF(ISERROR(VLOOKUP($Z2,Table666,AC$1,FALSE)),0,VLOOKUP($Z2,Table666,AC$1,FALSE)) -> 0 | AD2: =IF(ISERROR(VLOOKUP($Z2,Table888,AD$1,FALSE)),0,VLOOKUP($Z2,Table888,AD$1,FALSE)) -> 0 | AE2: =IF(ISERROR(VLOOKUP($Z2,Table999,AE$1,FALSE)),0,VLOOKUP($Z2,Table999,AE$1,FALSE)) -> 0 | AF2: =IF(ISERROR(VLOOKUP($Z2,Table222,AF$1,FALSE)),0,VLOOKUP($Z2,Table222,AF$1,FALSE)) -> 0 | AG2: =IF(ISERROR(VLOOKUP($Z2,Table333,AG$1,FALSE)),0,VLOOKUP($Z2,Table333,AG$1,FALSE)) -> 0 | AH2: 90 | AI2: 1 | AL2: =ROUND(IF(Estai_Resultante!M14>0.001,Estai_Resultante!M14,3500),0) -> 180 | AM2: 1
J3: AFASTAMENTO BT (cm) | K3: 40 | X3: 4/0 CA VÃO 40m | Y3: 460 | Z3: =Z2-1 -> 89 | AA3: 0 | AB3: 0 | AC3: =IF(ISERROR(VLOOKUP($Z3,Table666,AB$1,FALSE)),0,VLOOKUP($Z3,Table666,AB$1,FALSE)) -> 0 | AD3: 0 | AE3: 0 | AF3: 0 | AG3: 0 | AH3: 45 | AI3: 1 | AL3: =ROUND(IF(Estai_Resultante!M25>0.001,Estai_Resultante!M25,3500),0) -> 315 | AM3: 1
D4: =M14+180 -> 360 | E4: =M25+180 -> 495 | F4: =M36+180 -> 230 | G4: =M47+180 -> 180 | H4: =M58+180 -> 180 | J4: VÃO REGULADOR (m) | K4: 80 | X4: 336,4 CA VÃO 40m | Y4: 735 | Z4: 88 | AA4: 0 | AB4: 0 | AC4: 0 | AD4: 0 | AE4: 0 | AF4: 0 | AG4: 0 | AH4: 0 | AI4: 1 | AL4: =ROUND(IF(Estai_Resultante!M36>0.001,Estai_Resultante!M36,3500),0) -> 50 | AM4: 1
D5: =RADIANS(D4) -> 6.28 | E5: =RADIANS(E4) -> 8.64 | F5: =RADIANS(F4) -> 4.01 | G5: =RADIANS(G4) -> 3.14 | H5: =RADIANS(H4) -> 3.14 | J5: DISTÂNCIA SECUNDÁRIA SOLO (cm) | L5: =IF(K5>0,K5,720) -> 720 | Z5: 87 | AA5: 0 | AB5: 0 | AC5: 0 | AD5: 0 | AE5: 0 | AF5: 0 | AG5: 0 | AH5: 315 | AI5: 1 | AL5: =ROUND(IF(Estai_Resultante!M47>0.001,Estai_Resultante!M47,3500),0) -> 3500 | AM5: 1
C6: COSENO | D6: =COS(D5)*W17 -> 2,694.77 | E6: =COS(E5)*W28 -> -1,905.49 | F6: =COS(F5)*W39 -> -394.36 | G6: =COS(G5)*W50 -> 0.00 | H6: =COS(H5)*W61 -> 0.00 | J6: DISTÂNCIA TELEFONE/CABO SOLO (cm) | L6: =IF(K6>0,K6,550) -> 550 | Z6: 86 | AA6: 0 | AB6: 0 | AC6: 0 | AD6: 0 | AE6: 0 | AF6: 0 | AG6: 0 | AH6: 270 | AI6: 1 | AL6: =ROUND(IF(Estai_Resultante!M58>0.001,Estai_Resultante!M58,3500),0) -> 3500 | AM6: 1
C7: SENO | D7: =SIN(D5)*W17 -> -0.00 | E7: =SIN(E5)*W28 -> 1,905.49 | F7: =SIN(F5)*W39 -> -469.98 | G7: =SIN(G5)*W50 -> 0.00 | H7: =SIN(H5)*W61 -> 0.00 | Z7: 85 | AA7: 0 | AB7: 0 | AC7: 0 | AD7: 0 | AE7: 0 | AF7: 0 | AG7: 0 | AH7: 225 | AI7: 1 | AM7: 1 | AN7: =IF(Estai_Resultante!G2>0.001,Estai_Resultante!G2,3500) -> 75 | AO7: 1
J8: FORÇA 01 | L8: BITOLA | M8: FORMAÇÃO | W8: kgf | X8: 35mm² Cabo Coberto VÃO 40m | Y8: 190 | Z8: 84 | AA8: 0 | AB8: 0 | AC8: 0 | AD8: 0 | AE8: 0 | AF8: 0 | AG8: 0 | AH8: 180 | AI8: 1 | AM8: 1 | AN8: =IF(Estai_Resultante!C2>0.001,Estai_Resultante!C2,3500) -> 255 | AO8: 1
C9: COSENO | D9: =SUM(D6:H6) -> 394.92 | E9: =D9*D9 -> 155,962.22 | J9: Nº FASES MT | K9: 3 | L9: 4/0 | M9: CAA | N9: =IF(L9="","0",CONCATENATE(L9," ",M9," VÃO ",$K$4,"m")) -> 4/0 CAA VÃO 80m | O9: =IF(ISERROR(VLOOKUP(N9,$X$1:$Y$105,2,FALSE)),"",VLOOKUP(N9,$X$1:$Y$105,2,FALSE)) -> 918 | P9: =IF(M9="multiplexado",(O9*1)) -> FALSE | Q9: =IF(M9="Cabo Coberto",(O9*1)) -> FALSE | R9: =IF(M9="CAA",(O9*K9)) -> 2754 | S9: =IF(M9="CA",(O9*K9)) -> FALSE | T9: =IF(M9="CAZ",(O9*K9)) -> FALSE | U9: =IF(O9="","0",MAX(P9:T9)) -> 2754 | V9: =IF(N9>0,U9-(U9*$V$1/100),0) -> 2,754.0 | W9: =V9*($L$1-($K$2/100))/$L$1 -> 2,694.8 | X9: 50mm² Cabo Coberto VÃO 40m | Y9: 270 | Z9: 83 | AA9: 0 | AB9: 0 | AC9: 0 | AD9: 0 | AE9: 0 | AF9: 0 | AG9: 0 | AH9: 135 | AI9: 1 | AM9: 1
C10: RAIZ | D10: =SQRT(D9*D9+D11*D11) -> 1,488.84 | E10: =D10*D10 -> 2,216,658.31 | J10: NEUTRO MT | N10: =IF(L10="","0",CONCATENATE(L10," ",M10," VÃO ",$K$4,"m")) -> 0 | O10: =IF(ISERROR(VLOOKUP(N10,$X$1:$Y$105,2,FALSE)),"",VLOOKUP(N10,$X$1:$Y$105,2,FALSE)) ->  | P10: =IF(M10="multiplexado",(O10*1)) -> FALSE | Q10: =IF(M10="Cabo Coberto",(O10*1)) -> FALSE | R10: =IF(M10="CAA",(O10*K10)) -> FALSE | S10: =IF(M10="CA",(O10*K10)) -> FALSE | T10: =IF(M10="CAZ",(O10*K10)) -> FALSE | U10: =IF(O10="","0",MAX(P10:S10)) -> 0 | V10: =IF(N10>0,U10-(U10*$V$1/100),0) -> 0.0 | W10: =V10*($L$1-($K$2/100))/$L$1 -> 0.0 | X10: 95mm² Cabo Coberto VÃO 40m | Y10: 390 | Z10: 82 | AA10: 0 | AB10: 0 | AC10: 0 | AD10: 0 | AE10: 0 | AF10: 0 | AG10: 0 | AI10: FORÇA 01 | AM10: 1
C11: SENO | D11: =SUM(D7:H7) -> 1,435.51 | E11: =D11*D11 -> 2,060,696.09 | J11: Nº FASES BT | N11: =IF(L11="","0",CONCATENATE(L11," ",M11," VÃO ",$K$4,"m")) -> 0 | O11: =IF(ISERROR(VLOOKUP(N11,$X$1:$Y$105,2,FALSE)),"",VLOOKUP(N11,$X$1:$Y$105,2,FALSE)) ->  | P11: =IF(M11="multiplexado",(O11*1)) -> FALSE | Q11: =IF(M11="Cabo Coberto",(O11*1)) -> FALSE | R11: =IF(M11="CAA",(O11*K11)) -> FALSE | S11: =IF(M11="CA",(O11*K11)) -> FALSE | T11: =IF(M11="CAZ",(O11*K11)) -> FALSE | U11: =IF(O11="","0",MAX(P11:S11)) -> 0 | W11: =IF(N11>0,((U11)-(U11*$V$2/100))*($L$5/100)/$L$1,0) -> 0.0 | X11: 150mm² Cabo Coberto VÃO 40m | Y11: 450 | Z11: 81 | AA11: 0 | AB11: 0 | AC11: 0 | AD11: 0 | AE11: 0 | AF11: 0 | AG11: 0 | AI11: FORÇA 02 | AM11: 1
J12: NEUTRO BT | N12: =IF(L12="","0",CONCATENATE(L12," ",M12," VÃO ",$K$4,"m")) -> 0 | O12: =IF(ISERROR(VLOOKUP(N12,$X$1:$Y$105,2,FALSE)),"",VLOOKUP(N12,$X$1:$Y$105,2,FALSE)) ->  | P12: =IF(M12="multiplexado",(O12*1)) -> FALSE | Q12: =IF(M12="Cabo Coberto",(O12*1)) -> FALSE | R12: =IF(M12="CAA",(O12*K12)) -> FALSE | S12: =IF(M12="CA",(O12*K12)) -> FALSE | T12: =IF(M12="CAZ",(O12*K12)) -> FALSE | U12: =IF(O12="","0",MAX(P12:S12)) -> 0 | W12: =IF(N12>0,((U12)-(U12*$V$2/100))*($L$5/100)/$L$1,0) -> 0.0 | X12: 3 (35 + 35)mm² multiplexado VÃO 40m | Y12: 280 | Z12: 80 | AA12: 0 | AB12: 0 | AC12: 0 | AD12: 0 | AE12: 0 | AF12: 0 | AG12: 0 | AI12: FORÇA 03 | AM12: 1
E13: =E9+E10-E11 -> 311,924.44 | J13: FIO PILOTO IP | N13: =IF(L13="","0",CONCATENATE(L13," ",M13," VÃO ",$K$4,"m")) -> 0 | O13: =IF(ISERROR(VLOOKUP(N13,$X$1:$Y$105,2,FALSE)),"",VLOOKUP(N13,$X$1:$Y$105,2,FALSE)) ->  | P13: =IF(M13="multiplexado",(O13*1)) -> FALSE | Q13: =IF(M13="Cabo Coberto",(O13*1)) -> FALSE | R13: =IF(M13="CAA",(O13*K13)) -> FALSE | S13: =IF(M13="CA",(O13*K13)) -> FALSE | T13: =IF(M13="CAZ",(O13*K13)) -> FALSE | U13: =IF(O13="","0",MAX(P13:S13)) -> 0 | W13: =IF(N13>0,((U13)-(U13*V2/100))*($L$5/100)/$L$1,0) -> 0.0 | X13: 3 (50 + 50)mm² multiplexado VÃO 40m | Y13: 280 | Z13: 79 | AA13: 0 | AB13: 0 | AC13: 0 | AD13: 0 | AE13: 0 | AF13: 0 | AG13: 0 | AI13: FORÇA 04 | AM13: 1
E14: =(2*D9*D10) -> 1,175,950.59 | J14: TELEFONE N° PARES | L14: ÂNGULO | M14: 180 | N14: =IF(ISERROR(VLOOKUP(K14,$M$66:$N$76,2,FALSE)),"0",VLOOKUP(K14,$M$66:$N$76,2,FALSE)) -> 0 | O14: =IF($N$2>0,N14,0) -> 0 | W14: =N14*($L$6/100)/($L$1-0.2) -> 0.0 | X14: 3 (70 + 70)mm² multiplexado VÃO 40m | Y14: 280 | Z14: 78 | AA14: 0 | AB14: 0 | AC14: 0 | AD14: 0 | AE14: 0 | AF14: 0 | AG14: 0 | AI14: FORÇA 05 | AM14: 1
E15: =E13/E14 -> 0.27 | J15: TV CABO - kgf | O15: =IF($N$2>0,K15,0) -> 0 | W15: =O15*($L$6/100)/($L$1-0.2) -> 0.0 | X15: 3 (120 + 70)mm² multiplexado VÃO 40m | Y15: 400 | Z15: 77 | AA15: 0 | AB15: 0 | AC15: 0 | AD15: 0 | AE15: 0 | AF15: 0 | AG15: 0 | AI15: ESFORÇO RESULTANTE | AM15: 1
E16: =-(E15) -> -0.27 | J16: FIBRA OPTICA - kgf | O16: =IF($N$2>0,K16,0) -> 0 | W16: =O16*($L$6/100)/($L$1-0.2) -> 0.0 | X16: 4 CAA VÃO 40m | Y16: 207 | Z16: 76 | AA16: 0 | AB16: 0 | AC16: 0 | AD16: 0 | AE16: 0 | AF16: 0 | AG16: 0 | AI16: ÂNGULO ESTAI | AM16: 1
E17: =COSH(E15)*360/PI() -> 118.65 | W17: =IF(N2>0,SUM(W9:W16),0) -> 2,694.8 | X17: 2 CAA VÃO 40m | Y17: 317 | Z17: 75 | AA17: 0 | AB17: 0 | AC17: 0 | AD17: 0 | AE17: 0 | AF17: 1 | AG17: 0 | AM17: 1
E18: =ACOS(E15)*180/PI() -> 74.62 | F18: =360+E19 -> 285.38 | X18: 1/0 CAA VÃO 40m | Y18: 492 | Z18: 74 | AA18: 0 | AB18: 0 | AC18: 0 | AD18: 0 | AE18: 0 | AF18: 0 | AG18: 0 | AM18: 1
E19: =ACOS(E15)*-180/PI() -> -74.62 | F19: =180-E19 -> 254.62 | J19: FORÇA 02 | L19: BITOLA | M19: FORMAÇÃO | W19: kgf | X19: 2/0 CAA VÃO 40m | Y19: 588 | Z19: 73 | AA19: 0 | AB19: 0 | AC19: 0 | AD19: 0 | AE19: 0 | AF19: 0 | AG19: 0 | AM19: 1
J20: Nº FASES MT | K20: 3 | L20: 4/0 | M20: CAA | N20: =IF(L20="","0",CONCATENATE(L20," ",M20," VÃO ",$K$4,"m")) -> 4/0 CAA VÃO 80m | O20: =IF(ISERROR(VLOOKUP(N20,$X$1:$Y$105,2,FALSE)),"",VLOOKUP(N20,$X$1:$Y$105,2,FALSE)) -> 918 | P20: =IF(M20="multiplexado",(O20*1)) -> FALSE | Q20: =IF(M20="Cabo Coberto",(O20*1)) -> FALSE | R20: =IF(M20="CAA",(O20*K20)) -> 2754 | S20: =IF(M20="CA",(O20*K20)) -> FALSE | T20: =IF(M20="CAZ",(O20*K20)) -> FALSE | U20: =IF(O20="","0",MAX(P20:T20)) -> 2754 | V20: =IF(N20>0,U20-(U20*$V$1/100),0) -> 2,754.0 | W20: =V20*($L$1-($K$2/100))/$L$1 -> 2,694.8 | X20: 3/0 CAA VÃO 40m | Y20: 750 | Z20: 72 | AA20: 0 | AB20: 0 | AC20: 0 | AD20: 0 | AE20: 0 | AF20: 0 | AG20: 0 | AM20: 1
A21: Esforço Resultante - kgf | E21: =IF(E22>180,E22-180,E22+180) -> 254.62 | J21: NEUTRO MT | N21: =IF(L21="","0",CONCATENATE(L21," ",M21," VÃO ",$K$4,"m")) -> 0 | O21: =IF(ISERROR(VLOOKUP(N21,$X$1:$Y$105,2,FALSE)),"",VLOOKUP(N21,$X$1:$Y$105,2,FALSE)) ->  | P21: =IF(M21="multiplexado",(O21*1)) -> FALSE | Q21: =IF(M21="Cabo Coberto",(O21*1)) -> FALSE | R21: =IF(M21="CAA",(O21*K21)) -> FALSE | S21: =IF(M21="CA",(O21*K21)) -> FALSE | T21: =IF(M21="CAZ",(O21*K21)) -> FALSE | U21: =IF(O21="","0",MAX(P21:S21)) -> 0 | V21: =IF(N21>0,U21-(U21*$V$1/100),0) -> 0.0 | W21: =V21*($L$1-($K$2/100))/$L$1 -> 0.0 | X21: 4/0 CAA VÃO 40m | Y21: 945 | Z21: 71 | AA21: 0 | AB21: 0 | AC21: 0 | AD21: 0 | AE21: 0 | AF21: 0 | AG21: 0 | AM21: 1
A22: Posição do Estai - Ângulo | E22: =IF(D11>0,E18,F18) -> 74.62 | J22: Nº FASES BT | N22: =IF(L22="","0",CONCATENATE(L22," ",M22," VÃO ",$K$4,"m")) -> 0 | O22: =IF(ISERROR(VLOOKUP(N22,$X$1:$Y$105,2,FALSE)),"",VLOOKUP(N22,$X$1:$Y$105,2,FALSE)) ->  | P22: =IF(M22="multiplexado",(O22*1)) -> FALSE | Q22: =IF(M22="Cabo Coberto",(O22*1)) -> FALSE | R22: =IF(M22="CAA",(O22*K22)) -> FALSE | S22: =IF(M22="CA",(O22*K22)) -> FALSE | T22: =IF(M22="CAZ",(O22*K22)) -> FALSE | U22: =IF(O22="","0",MAX(P22:S22)) -> 0 | W22: =IF(N22>0,((U22)-(U22*$V$2/100))*($L$5/100)/$L$1,0) -> 0.0 | X22: 4 CAA VÃO 60m | Y22: 207 | Z22: 70 | AA22: 0 | AB22: 0 | AC22: 0 | AD22: 0 | AE22: 0 | AF22: 0 | AG22: 0 | AM22: 1
J23: NEUTRO BT | N23: =IF(L23="","0",CONCATENATE(L23," ",M23," VÃO ",$K$4,"m")) -> 0 | O23: =IF(ISERROR(VLOOKUP(N23,$X$1:$Y$105,2,FALSE)),"",VLOOKUP(N23,$X$1:$Y$105,2,FALSE)) ->  | P23: =IF(M23="multiplexado",(O23*1)) -> FALSE | Q23: =IF(M23="Cabo Coberto",(O23*1)) -> FALSE | R23: =IF(M23="CAA",(O23*K23)) -> FALSE | S23: =IF(M23="CA",(O23*K23)) -> FALSE | T23: =IF(M23="CAZ",(O23*K23)) -> FALSE | U23: =IF(O23="","0",MAX(P23:S23)) -> 0 | W23: =IF(N23>0,((U23)-(U23*$V$2/100))*($L$5/100)/$L$1,0) -> 0.0 | X23: 2 CAA VÃO 60m | Y23: 317 | Z23: 69 | AA23: 0 | AB23: 0 | AC23: 0 | AD23: 0 | AE23: 0 | AF23: 0 | AG23: 0 | AM23: 1
J24: FIO PILOTO IP | N24: =IF(L24="","0",CONCATENATE(L24," ",M24," VÃO ",$K$4,"m")) -> 0 | O24: =IF(ISERROR(VLOOKUP(N24,$X$1:$Y$105,2,FALSE)),"",VLOOKUP(N24,$X$1:$Y$105,2,FALSE)) ->  | P24: =IF(M24="multiplexado",(O24*1)) -> FALSE | Q24: =IF(M24="Cabo Coberto",(O24*1)) -> FALSE | R24: =IF(M24="CAA",(O24*K24)) -> FALSE | S24: =IF(M24="CA",(O24*K24)) -> FALSE | T24: =IF(M24="CAZ",(O24*K24)) -> FALSE | U24: =IF(O24="","0",MAX(P24:S24)) -> 0 | W24: =IF(N24>0,((U24)-(U24*V13/100))*($L$5/100)/$L$1,0) -> 0.0 | X24: 1/0 CAA VÃO 60m | Y24: 488 | Z24: 68 | AA24: 0 | AB24: 0 | AC24: 0 | AD24: 0 | AE24: 0 | AF24: 0 | AG24: 0 | AM24: 1
J25: TELEFONE N° PARES | L25: ÂNGULO | M25: 315 | N25: =IF(ISERROR(VLOOKUP(K25,$M$66:$N$76,2,FALSE)),"0",VLOOKUP(K25,$M$66:$N$76,2,FALSE)) -> 0 | O25: =IF($N$2>0,N25,0) -> 0 | W25: =N25*($L$6/100)/($L$1-0.2) -> 0.0 | X25: 2/0 CAA VÃO 60m | Y25: 588 | Z25: 67 | AA25: 0 | AB25: 0 | AC25: 0 | AD25: 0 | AE25: 0 | AF25: 0 | AG25: 0 | AM25: 1
J26: TV CABO - kgf | O26: =IF($N$2>0,K26,0) -> 0 | W26: =O26*($L$6/100)/($L$1-0.2) -> 0.0 | X26: 3/0 CAA VÃO 60m | Y26: 741 | Z26: 66 | AA26: 0 | AB26: 0 | AC26: 0 | AD26: 0 | AE26: 0 | AF26: 0 | AG26: 0
J27: FIBRA OPTICA - kgf | O27: =IF($N$2>0,K27,0) -> 0 | W27: =O27*($L$6/100)/($L$1-0.2) -> 0.0 | X27: 4/0 CAA VÃO 60m | Y27: 933 | Z27: 65 | AA27: 0 | AB27: 0 | AC27: 0 | AD27: 0 | AE27: 0 | AF27: 0 | AG27: 0
W28: =IF(N13>0,SUM(W20:W27),0) -> 2,694.8 | X28: 4 CAA VÃO 80m | Y28: 209 | Z28: 64 | AA28: 0 | AB28: 0 | AC28: 0 | AD28: 0 | AE28: 0 | AF28: 0 | AG28: 0
X29: 2 CAA VÃO 80m | Y29: 316 | Z29: 63 | AA29: 0 | AB29: 0 | AC29: 0 | AD29: 0 | AE29: 0 | AF29: 0 | AG29: 0
J30: FORÇA 03 | L30: BITOLA | M30: FORMAÇÃO | W30: kgf | X30: 1/0 CAA VÃO 80m | Y30: 484 | Z30: 62 | AA30: 0 | AB30: 0 | AC30: 0 | AD30: 0 | AE30: 0 | AF30: 0 | AG30: 0
J31: Nº FASES MT | K31: 3 | L31: 4 | M31: CAA | N31: =IF(L31="","0",CONCATENATE(L31," ",M31," VÃO ",$K$4,"m")) -> 4 CAA VÃO 80m | O31: =IF(ISERROR(VLOOKUP(N31,$X$1:$Y$105,2,FALSE)),"",VLOOKUP(N31,$X$1:$Y$105,2,FALSE)) -> 209 | P31: =IF(M31="multiplexado",(O31*1)) -> FALSE | Q31: =IF(M31="Cabo Coberto",(O31*1)) -> FALSE | R31: =IF(M31="CAA",(O31*K31)) -> 627 | S31: =IF(M31="CA",(O31*K31)) -> FALSE | T31: =IF(M31="CAZ",(O31*K31)) -> FALSE | U31: =IF(O31="","0",MAX(P31:T31)) -> 627 | V31: =IF(N31>0,U31-(U31*$V$1/100),0) -> 627.0 | W31: =V31*($L$1-($K$2/100))/$L$1 -> 613.5 | X31: 2/0 CAA VÃO 80m | Y31: 580 | Z31: 61 | AA31: 0 | AB31: 0 | AC31: 0 | AD31: 0 | AE31: 0 | AF31: 0 | AG31: 0
J32: NEUTRO MT | N32: =IF(L32="","0",CONCATENATE(L32," ",M32," VÃO ",$K$4,"m")) -> 0 | O32: =IF(ISERROR(VLOOKUP(N32,$X$1:$Y$105,2,FALSE)),"",VLOOKUP(N32,$X$1:$Y$105,2,FALSE)) ->  | P32: =IF(M32="multiplexado",(O32*1)) -> FALSE | Q32: =IF(M32="Cabo Coberto",(O32*1)) -> FALSE | R32: =IF(M32="CAA",(O32*K32)) -> FALSE | S32: =IF(M32="CA",(O32*K32)) -> FALSE | T32: =IF(M32="CAZ",(O32*K32)) -> FALSE | U32: =IF(O32="","0",MAX(P32:S32)) -> 0 | V32: =IF(N32>0,U32-(U32*$V$1/100),0) -> 0.0 | W32: =V32*($L$1-($K$2/100))/$L$1 -> 0.0 | X32: 3/0 CAA VÃO 80m | Y32: 730 | Z32: 60 | AA32: 0 | AB32: 0 | AC32: 0 | AD32: 0 | AE32: 0 | AF32: 0 | AG32: 0
J33: Nº FASES BT | N33: =IF(L33="","0",CONCATENATE(L33," ",M33," VÃO ",$K$4,"m")) -> 0 | O33: =IF(ISERROR(VLOOKUP(N33,$X$1:$Y$105,2,FALSE)),"",VLOOKUP(N33,$X$1:$Y$105,2,FALSE)) ->  | P33: =IF(M33="multiplexado",(O33*1)) -> FALSE | Q33: =IF(M33="Cabo Coberto",(O33*1)) -> FALSE | R33: =IF(M33="CAA",(O33*K33)) -> FALSE | S33: =IF(M33="CA",(O33*K33)) -> FALSE | T33: =IF(M33="CAZ",(O33*K33)) -> FALSE | U33: =IF(O33="","0",MAX(P33:S33)) -> 0 | W33: =IF(N33>0,((U33)-(U33*$V$2/100))*($L$5/100)/$L$1,0) -> 0.0 | X33: 4/0 CAA VÃO 80m | Y33: 918 | Z33: 59 | AA33: 0 | AB33: 0 | AC33: 0 | AD33: 0 | AE33: 0 | AF33: 0 | AG33: 0
J34: NEUTRO BT | N34: =IF(L34="","0",CONCATENATE(L34," ",M34," VÃO ",$K$4,"m")) -> 0 | O34: =IF(ISERROR(VLOOKUP(N34,$X$1:$Y$105,2,FALSE)),"",VLOOKUP(N34,$X$1:$Y$105,2,FALSE)) ->  | P34: =IF(M34="multiplexado",(O34*1)) -> FALSE | Q34: =IF(M34="Cabo Coberto",(O34*1)) -> FALSE | R34: =IF(M34="CAA",(O34*K34)) -> FALSE | S34: =IF(M34="CA",(O34*K34)) -> FALSE | T34: =IF(M34="CAZ",(O34*K34)) -> FALSE | U34: =IF(O34="","0",MAX(P34:S34)) -> 0 | W34: =IF(N34>0,((U34)-(U34*$V$2/100))*($L$5/100)/$L$1,0) -> 0.0 | X34: 4 CAA VÃO 100m | Y34: 312 | Z34: 58 | AA34: 0 | AB34: 0 | AC34: 0 | AD34: 0 | AE34: 0 | AF34: 0 | AG34: 0
J35: FIO PILOTO IP | N35: =IF(L35="","0",CONCATENATE(L35," ",M35," VÃO ",$K$4,"m")) -> 0 | O35: =IF(ISERROR(VLOOKUP(N35,$X$1:$Y$105,2,FALSE)),"",VLOOKUP(N35,$X$1:$Y$105,2,FALSE)) ->  | P35: =IF(M35="multiplexado",(O35*1)) -> FALSE | Q35: =IF(M35="Cabo Coberto",(O35*1)) -> FALSE | R35: =IF(M35="CAA",(O35*K35)) -> FALSE | S35: =IF(M35="CA",(O35*K35)) -> FALSE | T35: =IF(M35="CAZ",(O35*K35)) -> FALSE | U35: =IF(O35="","0",MAX(P35:S35)) -> 0 | W35: =IF(N35>0,((U35)-(U35*V24/100))*($L$5/100)/$L$1,0) -> 0.0 | X35: 2 CAA VÃO 100m | Y35: 315 | Z35: =Z34-1 -> 57 | AA35: 0 | AB35: 0 | AC35: 0 | AD35: 0 | AE35: 0 | AF35: 0 | AG35: 0
J36: TELEFONE N° PARES | L36: ÂNGULO | M36: 50 | N36: =IF(ISERROR(VLOOKUP(K36,$M$66:$N$76,2,FALSE)),"0",VLOOKUP(K36,$M$66:$N$76,2,FALSE)) -> 0 | O36: =IF($N$2>0,N36,0) -> 0 | W36: =N36*($L$6/100)/($L$1-0.2) -> 0.0 | X36: 1/0 CAA VÃO 100m | Y36: 479 | Z36: 56 | AA36: 0 | AB36: 0 | AC36: 0 | AD36: 0 | AE36: 0 | AF36: 0 | AG36: 0
J37: TV CABO - kgf | O37: =IF($N$2>0,K37,0) -> 0 | W37: =O37*($L$6/100)/($L$1-0.2) -> 0.0 | X37: 2/0 CAA VÃO 100m | Y37: 575 | Z37: 55 | AA37: 0 | AB37: 0 | AC37: 0 | AD37: 0 | AE37: 0 | AF37: 0 | AG37: 0
J38: FIBRA OPTICA - kgf | O38: =IF($N$2>0,K38,0) -> 0 | W38: =O38*($L$6/100)/($L$1-0.2) -> 0.0 | X38: 3/0 CAA VÃO 100m | Y38: 718 | Z38: 54 | AA38: 0 | AB38: 0 | AC38: 0 | AD38: 0 | AE38: 0 | AF38: 0 | AG38: 0
W39: =IF(N24>0,SUM(W31:W38),0) -> 613.5 | X39: 4/0 CAA VÃO 100m | Y39: 902 | Z39: 53 | AA39: 0 | AB39: 0 | AC39: 0 | AD39: 0 | AE39: 0 | AF39: 0 | AG39: 0
X40: 4 CAA VÃO 120m | Y40: 330 | Z40: 52 | AA40: 0 | AB40: 0 | AC40: 0 | AD40: 0 | AE40: 0 | AF40: 0 | AG40: 0
J41: FORÇA 04 | L41: BITOLA | M41: FORMAÇÃO | W41: kgf | X41: 2 CAA VÃO 120m | Y41: 470 | Z41: 51 | AA41: 0 | AB41: 0 | AC41: 0 | AD41: 0 | AE41: 0 | AF41: 0 | AG41: 0
J42: Nº FASES MT | N42: =IF(L42="","0",CONCATENATE(L42," ",M42," VÃO ",$K$4,"m")) -> 0 | O42: =IF(ISERROR(VLOOKUP(N42,$X$1:$Y$105,2,FALSE)),"",VLOOKUP(N42,$X$1:$Y$105,2,FALSE)) ->  | P42: =IF(M42="multiplexado",(O42*1)) -> FALSE | Q42: =IF(M42="Cabo Coberto",(O42*1)) -> FALSE | R42: =IF(M42="CAA",(O42*K42)) -> FALSE | S42: =IF(M42="CA",(O42*K42)) -> FALSE | T42: =IF(M42="CAZ",(O42*K42)) -> FALSE | U42: =IF(O42="","0",MAX(P42:T42)) -> 0 | V42: =IF(N42>0,U42-(U42*$V$1/100),0) -> 0.0 | W42: =V42*($L$1-($K$2/100))/$L$1 -> 0.0 | X42: 1/0 CAA VÃO 120m | Y42: 474 | Z42: 50 | AA42: 0 | AB42: 0 | AC42: 1 | AD42: 0 | AE42: 0 | AF42: 0 | AG42: 0
J43: NEUTRO MT | N43: =IF(L43="","0",CONCATENATE(L43," ",M43," VÃO ",$K$4,"m")) -> 0 | O43: =IF(ISERROR(VLOOKUP(N43,$X$1:$Y$105,2,FALSE)),"",VLOOKUP(N43,$X$1:$Y$105,2,FALSE)) ->  | P43: =IF(M43="multiplexado",(O43*1)) -> FALSE | Q43: =IF(M43="Cabo Coberto",(O43*1)) -> FALSE | R43: =IF(M43="CAA",(O43*K43)) -> FALSE | S43: =IF(M43="CA",(O43*K43)) -> FALSE | T43: =IF(M43="CAZ",(O43*K43)) -> FALSE | U43: =IF(O43="","0",MAX(P43:S43)) -> 0 | V43: =IF(N43>0,U43-(U43*$V$1/100),0) -> 0.0 | W43: =V43*($L$1-($K$2/100))/$L$1 -> 0.0 | X43: 2/0 CAA VÃO 120m | Y43: 569 | Z43: 49 | AA43: 0 | AB43: 0 | AC43: 0 | AD43: 0 | AE43: 0 | AF43: 0 | AG43: 0
J44: Nº FASES BT | N44: =IF(L44="","0",CONCATENATE(L44," ",M44," VÃO ",$K$4,"m")) -> 0 | O44: =IF(ISERROR(VLOOKUP(N44,$X$1:$Y$105,2,FALSE)),"",VLOOKUP(N44,$X$1:$Y$105,2,FALSE)) ->  | P44: =IF(M44="multiplexado",(O44*1)) -> FALSE | Q44: =IF(M44="Cabo Coberto",(O44*1)) -> FALSE | R44: =IF(M44="CAA",(O44*K44)) -> FALSE | S44: =IF(M44="CA",(O44*K44)) -> FALSE | T44: =IF(M44="CAZ",(O44*K44)) -> FALSE | U44: =IF(O44="","0",MAX(P44:S44)) -> 0 | W44: =IF(N44>0,((U44)-(U44*$V$2/100))*($L$5/100)/$L$1,0) -> 0.0 | X44: 3/0 CAA VÃO 120m | Y44: 706 | Z44: 48 | AA44: 0 | AB44: 0 | AC44: 0 | AD44: 0 | AE44: 0 | AF44: 0 | AG44: 0
J45: NEUTRO BT | N45: =IF(L45="","0",CONCATENATE(L45," ",M45," VÃO ",$K$4,"m")) -> 0 | O45: =IF(ISERROR(VLOOKUP(N45,$X$1:$Y$105,2,FALSE)),"",VLOOKUP(N45,$X$1:$Y$105,2,FALSE)) ->  | P45: =IF(M45="multiplexado",(O45*1)) -> FALSE | Q45: =IF(M45="Cabo Coberto",(O45*1)) -> FALSE | R45: =IF(M45="CAA",(O45*K45)) -> FALSE | S45: =IF(M45="CA",(O45*K45)) -> FALSE | T45: =IF(M45="CAZ",(O45*K45)) -> FALSE | U45: =IF(O45="","0",MAX(P45:S45)) -> 0 | W45: =IF(N45>0,((U45)-(U45*$V$2/100))*($L$5/100)/$L$1,0) -> 0.0 | X45: 4/0 CAA VÃO 120m | Y45: 885 | Z45: 47 | AA45: 0 | AB45: 0 | AC45: 0 | AD45: 0 | AE45: 0 | AF45: 0 | AG45: 0
J46: FIO PILOTO IP | N46: =IF(L46="","0",CONCATENATE(L46," ",M46," VÃO ",$K$4,"m")) -> 0 | O46: =IF(ISERROR(VLOOKUP(N46,$X$1:$Y$105,2,FALSE)),"",VLOOKUP(N46,$X$1:$Y$105,2,FALSE)) ->  | P46: =IF(M46="multiplexado",(O46*1)) -> FALSE | Q46: =IF(M46="Cabo Coberto",(O46*1)) -> FALSE | R46: =IF(M46="CAA",(O46*K46)) -> FALSE | S46: =IF(M46="CA",(O46*K46)) -> FALSE | T46: =IF(M46="CAZ",(O46*K46)) -> FALSE | U46: =IF(O46="","0",MAX(P46:S46)) -> 0 | W46: =IF(N46>0,((U46)-(U46*V35/100))*($L$5/100)/$L$1,0) -> 0.0 | X46: 3,09 CAZ VÃO 40m | Y46: 443 | Z46: 46 | AA46: 0 | AB46: 0 | AC46: 0 | AD46: 0 | AE46: 0 | AF46: 0 | AG46: 0
J47: TELEFONE N° PARES | L47: ÂNGULO | N47: =IF(ISERROR(VLOOKUP(K47,$M$66:$N$76,2,FALSE)),"0",VLOOKUP(K47,$M$66:$N$76,2,FALSE)) -> 0 | O47: =IF($N$2>0,N47,0) -> 0 | W47: =N47*($L$6/100)/($L$1-0.2) -> 0.0 | X47: 4,17 CAZ VÃO 40m | Y47: 443.22 | Z47: 45 | AA47: 0 | AB47: 0 | AC47: 0 | AD47: 0 | AE47: 0 | AF47: 0 | AG47: 0
J48: TV CABO - kgf | O48: =IF($N$2>0,K48,0) -> 0 | W48: =O48*($L$6/100)/($L$1-0.2) -> 0.0 | X48: 4 CA VÃO 40m | Y48: 116.22 | Z48: 44 | AA48: 0 | AB48: 0 | AC48: 0 | AD48: 0 | AE48: 0 | AF48: 0 | AG48: 0
J49: FIBRA OPTICA - kgf | O49: =IF($N$2>0,K49,0) -> 0 | W49: =O49*($L$6/100)/($L$1-0.2) -> 0.0 | X49: 2 CA VÃO 40m | Y49: 178.08 | Z49: 43 | AA49: 0 | AB49: 0 | AC49: 0 | AD49: 0 | AE49: 0 | AF49: 0 | AG49: 0
W50: =IF(N35>0,SUM(W42:W49),0) -> 0.0 | X50: 1/0 CA VÃO 40m | Y50: 265.89 | Z50: 42 | AA50: 0 | AB50: 0 | AC50: 0 | AD50: 0 | AE50: 0 | AF50: 0 | AG50: 0
X51: 2/0 CA VÃO 40m | Y51: 579.33 | Z51: 41 | AA51: 0 | AB51: 0 | AC51: 0 | AD51: 0 | AE51: 0 | AF51: 0 | AG51: 0
J52: FORÇA 05 | L52: BITOLA | M52: FORMAÇÃO | W52: kgf | X52: 3/0 CA VÃO 40m | Y52: 407.23 | Z52: 40 | AA52: 0 | AB52: 0 | AC52: 0 | AD52: 0 | AE52: 0 | AF52: 0 | AG52: 0
J53: Nº FASES MT | N53: =IF(L53="","0",CONCATENATE(L53," ",M53," VÃO ",$K$4,"m")) -> 0 | O53: =IF(ISERROR(VLOOKUP(N53,$X$1:$Y$105,2,FALSE)),"",VLOOKUP(N53,$X$1:$Y$105,2,FALSE)) ->  | P53: =IF(M53="multiplexado",(O53*1)) -> FALSE | Q53: =IF(M53="Cabo Coberto",(O53*1)) -> FALSE | R53: =IF(M53="CAA",(O53*K53)) -> FALSE | S53: =IF(M53="CA",(O53*K53)) -> FALSE | T53: =IF(M53="CAZ",(O53*K53)) -> FALSE | U53: =IF(O53="","0",MAX(P53:T53)) -> 0 | V53: =IF(N53>0,U53-(U53*$V$1/100),0) -> 0.0 | W53: =V53*($L$1-($K$2/100))/$L$1 -> 0.0 | X53: 4/0 CA VÃO 40m | Y53: 512.53 | Z53: 39 | AA53: 0 | AB53: 0 | AC53: 0 | AD53: 0 | AE53: 0 | AF53: 0 | AG53: 0
J54: NEUTRO MT | N54: =IF(L54="","0",CONCATENATE(L54," ",M54," VÃO ",$K$4,"m")) -> 0 | O54: =IF(ISERROR(VLOOKUP(N54,$X$1:$Y$105,2,FALSE)),"",VLOOKUP(N54,$X$1:$Y$105,2,FALSE)) ->  | P54: =IF(M54="multiplexado",(O54*1)) -> FALSE | Q54: =IF(M54="Cabo Coberto",(O54*1)) -> FALSE | R54: =IF(M54="CAA",(O54*K54)) -> FALSE | S54: =IF(M54="CA",(O54*K54)) -> FALSE | T54: =IF(M54="CAZ",(O54*K54)) -> FALSE | U54: =IF(O54="","0",MAX(P54:S54)) -> 0 | V54: =IF(N54>0,U54-(U54*$V$1/100),0) -> 0.0 | W54: =V54*($L$1-($K$2/100))/$L$1 -> 0.0 | X54: 336,4 CA VÃO 40m | Y54: 801.36 | Z54: 38 | AA54: 0 | AB54: 0 | AC54: 0 | AD54: 0 | AE54: 0 | AF54: 0 | AG54: 0
J55: Nº FASES BT | N55: =IF(L55="","0",CONCATENATE(L55," ",M55," VÃO ",$K$4,"m")) -> 0 | O55: =IF(ISERROR(VLOOKUP(N55,$X$1:$Y$105,2,FALSE)),"",VLOOKUP(N55,$X$1:$Y$105,2,FALSE)) ->  | P55: =IF(M55="multiplexado",(O55*1)) -> FALSE | Q55: =IF(M55="Cabo Coberto",(O55*1)) -> FALSE | R55: =IF(M55="CAA",(O55*K55)) -> FALSE | S55: =IF(M55="CA",(O55*K55)) -> FALSE | T55: =IF(M55="CAZ",(O55*K55)) -> FALSE | U55: =IF(O55="","0",MAX(P55:S55)) -> 0 | W55: =IF(N55>0,((U55)-(U55*$V$2/100))*($L$5/100)/$L$1,0) -> 0.0 | X55: 3,09 CAZ VÃO 60m | Y55: 286.49 | Z55: 37 | AA55: 0 | AB55: 0 | AC55: 0 | AD55: 0 | AE55: 0 | AF55: 0 | AG55: 0
J56: NEUTRO BT | N56: =IF(L56="","0",CONCATENATE(L56," ",M56," VÃO ",$K$4,"m")) -> 0 | O56: =IF(ISERROR(VLOOKUP(N56,$X$1:$Y$105,2,FALSE)),"",VLOOKUP(N56,$X$1:$Y$105,2,FALSE)) ->  | P56: =IF(M56="multiplexado",(O56*1)) -> FALSE | Q56: =IF(M56="Cabo Coberto",(O56*1)) -> FALSE | R56: =IF(M56="CAA",(O56*K56)) -> FALSE | S56: =IF(M56="CA",(O56*K56)) -> FALSE | T56: =IF(M56="CAZ",(O56*K56)) -> FALSE | U56: =IF(O56="","0",MAX(P56:S56)) -> 0 | W56: =IF(N56>0,((U56)-(U56*$V$2/100))*($L$5/100)/$L$1,0) -> 0.0 | X56: 4,17 CAZ VÃO 60m | Y56: 443.55 | Z56: 36 | AA56: 0 | AB56: 0 | AC56: 0 | AD56: 0 | AE56: 0 | AF56: 0 | AG56: 0
J57: FIO PILOTO IP | N57: =IF(L57="","0",CONCATENATE(L57," ",M57," VÃO ",$K$4,"m")) -> 0 | O57: =IF(ISERROR(VLOOKUP(N57,$X$1:$Y$105,2,FALSE)),"",VLOOKUP(N57,$X$1:$Y$105,2,FALSE)) ->  | P57: =IF(M57="multiplexado",(O57*1)) -> FALSE | Q57: =IF(M57="Cabo Coberto",(O57*1)) -> FALSE | R57: =IF(M57="CAA",(O57*K57)) -> FALSE | S57: =IF(M57="CA",(O57*K57)) -> FALSE | T57: =IF(M57="CAZ",(O57*K57)) -> FALSE | U57: =IF(O57="","0",MAX(P57:S57)) -> 0 | W57: =IF(N57>0,((U57)-(U57*V46/100))*($L$5/100)/$L$1,0) -> 0.0 | X57: 4 CA VÃO 60m | Y57: 145.86 | Z57: 35 | AA57: 0 | AB57: 0 | AC57: 0 | AD57: 0 | AE57: 0 | AF57: 0 | AG57: 0
J58: TELEFONE N° PARES | L58: ÂNGULO | N58: =IF(ISERROR(VLOOKUP(K58,$M$66:$N$76,2,FALSE)),"0",VLOOKUP(K58,$M$66:$N$76,2,FALSE)) -> 0 | O58: =IF($N$2>0,N58,0) -> 0 | W58: =N58*($L$6/100)/($L$1-0.2) -> 0.0 | X58: 2 CA VÃO 60m | Y58: 223.43 | Z58: 34 | AA58: 0 | AB58: 0 | AC58: 0 | AD58: 0 | AE58: 0 | AF58: 0 | AG58: 0
J59: TV CABO - kgf | O59: =IF($N$2>0,K59,0) -> 0 | W59: =O59*($L$6/100)/($L$1-0.2) -> 0.0 | X59: 1/0 CA VÃO 60m | Y59: 259.98 | Z59: 33 | AA59: 0 | AB59: 0 | AC59: 0 | AD59: 0 | AE59: 0 | AF59: 0 | AG59: 0
J60: FIBRA OPTICA - kgf | O60: =IF($N$2>0,K60,0) -> 0 | W60: =O60*($L$6/100)/($L$1-0.2) -> 0.0 | X60: 2/0 CA VÃO 60m | Y60: 579.82 | Z60: 32 | AA60: 0 | AB60: 0 | AC60: 0 | AD60: 0 | AE60: 0 | AF60: 0 | AG60: 0
W61: =IF(N46>0,SUM(W53:W60),0) -> 0.0 | X61: 3/0 CA VÃO 60m | Y61: 392.58 | Z61: 31 | AA61: 0 | AB61: 0 | AC61: 0 | AD61: 0 | AE61: 0 | AF61: 0 | AG61: 0
X62: 4/0 CA VÃO 60m | Y62: 492.18 | Z62: 30 | AA62: 0 | AB62: 0 | AC62: 0 | AD62: 0 | AE62: 0 | AF62: 0 | AG62: 0
K63: CONFIGURAÇÃO | X63: 336,4 CA VÃO 60m | Y63: 767.88 | Z63: 29 | AA63: 0 | AB63: 0 | AC63: 0 | AD63: 0 | AE63: 0 | AF63: 0 | AG63: 0
J64: ALTURA POSTE (m) | K64: DISTANCIA DO TOPO | L64: AFASTAMENTO BT | M64: N° Pares | N64: Brasil Telecom | O64: VÃO REGULADOR | P64: Nº FASES | Q64: BITOLA | R64: FORMAÇÃO | X64: 3,09 CAZ VÃO 80m | Y64: 286.81 | Z64: 28 | AA64: 0 | AB64: 0 | AC64: 0 | AD64: 0 | AE64: 0 | AF64: 0 | AG64: 0
J65: 9 | K65: 20 | L65: 20 | O65: 0 | X65: 4,17 CAZ VÃO 80m | Y65: 444.22 | Z65: 27 | AA65: 0 | AB65: 0 | AC65: 0 | AD65: 0 | AE65: 0 | AF65: 0 | AG65: 0
J66: 10 | K66: 40 | L66: 40 | M66: 10 | N66: 385 | O66: 40 | P66: 1 | Q66: 4 | R66: CAA | X66: 4 CA VÃO 80m | Y66: 141.26 | Z66: 26 | AA66: =IF(ISERROR(VLOOKUP($Z66,Table444,AA$1,FALSE)),0,VLOOKUP($Z66,Table444,AA$1,FALSE)) -> 0 | AB66: =IF(ISERROR(VLOOKUP($Z66,Table555,AB$1,FALSE)),0,VLOOKUP($Z66,Table555,AB$1,FALSE)) -> 0 | AC66: 0 | AD66: =IF(ISERROR(VLOOKUP($Z66,Table888,AD$1,FALSE)),0,VLOOKUP($Z66,Table888,AD$1,FALSE)) -> 0 | AE66: =IF(ISERROR(VLOOKUP($Z66,Table999,AE$1,FALSE)),0,VLOOKUP($Z66,Table999,AE$1,FALSE)) -> 0 | AF66: =IF(ISERROR(VLOOKUP($Z66,Table222,AF$1,FALSE)),0,VLOOKUP($Z66,Table222,AF$1,FALSE)) -> 0 | AG66: =IF(ISERROR(VLOOKUP($Z66,Table333,AG$1,FALSE)),0,VLOOKUP($Z66,Table333,AG$1,FALSE)) -> 0
J67: 11 | L67: 60 | M67: 20 | N67: 385 | O67: 60 | P67: 2 | Q67: 2 | R67: CA | X67: 2 CA VÃO 80m | Y67: 226.96 | Z67: =Z66-1 -> 25 | AA67: 0 | AB67: 0 | AC67: =IF(ISERROR(VLOOKUP($Z67,Table666,AB$1,FALSE)),0,VLOOKUP($Z67,Table666,AB$1,FALSE)) -> 0 | AD67: 0 | AE67: 0 | AF67: 0 | AG67: 0
J68: 12 | L68: 80 | M68: 30 | N68: 385 | O68: 80 | P68: 3 | Q68: 1/0 | R68: CAZ | X68: 1/0 CA VÃO 80m | Y68: 329.23 | Z68: 24 | AA68: 0 | AB68: 0 | AC68: 0 | AD68: 0 | AE68: 0 | AF68: 0 | AG68: 0
J69: 13 | M69: 50 | N69: 379 | O69: 100 | Q69: 2/0 | R69: Cabo Coberto | X69: 2/0 CA VÃO 80m | Y69: 580.30 | Z69: 23 | AA69: 0 | AB69: 0 | AC69: 0 | AD69: 0 | AE69: 0 | AF69: 0 | AG69: 0
M70: 75 | N70: 379 | O70: 120 | Q70: 3/0 | R70: multiplexado | X70: 3/0 CA VÃO 80m | Y70: 376.59 | Z70: 22 | AA70: 0 | AB70: 0 | AC70: 0 | AD70: 0 | AE70: 0 | AF70: 0 | AG70: 0
M71: 100 | N71: 397 | Q71: 4/0 | X71: 4/0 CA VÃO 80m | Y71: 470.13 | Z71: 21 | AA71: 0 | AB71: 0 | AC71: 0 | AD71: 0 | AE71: 0 | AF71: 0 | AG71: 0
M72: 150 | N72: 397 | Q72: 336.4 | X72: 336,4 CA VÃO 80m | Y72: 731.13 | Z72: 20 | AA72: 0 | AB72: 0 | AC72: 0 | AD72: 0 | AE72: 0 | AF72: 0 | AG72: 0
M73: 200 | N73: 417 | Q73: 3.09 | X73: 3,09 CAZ VÃO 100m | Y73: 287.35 | Z73: 19 | AA73: 0 | AB73: 0 | AC73: 0 | AD73: 0 | AE73: 0 | AF73: 0 | AG73: 0
M74: 300 | N74: 460 | Q74: 4.17 | X74: 4,17 CAZ VÃO 100m | Y74: 444.89 | Z74: 18 | AA74: 0 | AB74: 0 | AC74: 0 | AD74: 0 | AE74: 0 | AF74: 0 | AG74: 0
M75: 400 | N75: 482 | Q75: 35mm² | X75: 4 CA VÃO 100m | Y75: 148.12 | Z75: 17 | AA75: 0 | AB75: 0 | AC75: 0 | AD75: 0 | AE75: 0 | AF75: 0 | AG75: 0
M76: 600 | N76: 546 | Q76: 50mm² | X76: 2 CA VÃO 100m | Y76: 227.02 | Z76: 16 | AA76: 0 | AB76: 0 | AC76: 0 | AD76: 0 | AE76: 0 | AF76: 0 | AG76: 0
Q77: 95mm² | X77: 1/0 CA VÃO 100m | Y77: 330.11 | Z77: 15 | AA77: 0 | AB77: 0 | AC77: 0 | AD77: 0 | AE77: 0 | AF77: 0 | AG77: 0
Q78: 150mm² | X78: 2/0 CA VÃO 100m | Y78: 580.79 | Z78: 14 | AA78: 0 | AB78: 0 | AC78: 0 | AD78: 0 | AE78: 0 | AF78: 0 | AG78: 0
Q79: 3 (35 + 35)mm² | X79: 3/0 CA VÃO 100m | Y79: 508.84 | Z79: 13 | AA79: 0 | AB79: 0 | AC79: 0 | AD79: 0 | AE79: 0 | AF79: 0 | AG79: 0
Q80: 3 (50 + 50)mm² | X80: 4/0 CA VÃO 100m | Y80: 627.18 | Z80: 12 | AA80: 0 | AB80: 0 | AC80: 0 | AD80: 0 | AE80: 0 | AF80: 0 | AG80: 0
Q81: 3 (70 + 70)mm² | X81: 336,4 CA VÃO 100m | Y81: 696.56 | Z81: 11 | AA81: 0 | AB81: 0 | AC81: 0 | AD81: 0 | AE81: 0 | AF81: 0 | AG81: 0
Q82: 3 (120 + 70)mm² | X82: 3,09 CAZ VÃO 120m | Y82: 287.89 | Z82: 10 | AA82: 0 | AB82: 0 | AC82: 0 | AD82: 0 | AE82: 0 | AF82: 0 | AG82: 0
X83: 4,17 CAZ VÃO 120m | Y83: 445.72 | Z83: 9 | AA83: 0 | AB83: 0 | AC83: 0 | AD83: 0 | AE83: 0 | AF83: 0 | AG83: 0
X84: 4 CA VÃO 120m | Y84: 152.92 | Z84: 8 | AA84: 0 | AB84: 0 | AC84: 0 | AD84: 0 | AE84: 0 | AF84: 0 | AG84: 0
X85: 2 CA VÃO 120m | Y85: 152.92 | Z85: 7 | AA85: 0 | AB85: 0 | AC85: 0 | AD85: 0 | AE85: 0 | AF85: 0 | AG85: 0
X86: 1/0 CA VÃO 120m | Y86: 341.65 | Z86: 6 | AA86: 0 | AB86: 0 | AC86: 0 | AD86: 0 | AE86: 0 | AF86: 0 | AG86: 0
X87: 2/0 CA VÃO 120m | Y87: 581.52 | Z87: 5 | AA87: 0 | AB87: 0 | AC87: 0 | AD87: 0 | AE87: 0 | AF87: 0 | AG87: 0
X88: 3/0 CA VÃO 120m | Y88: 501.18 | Z88: 4 | AA88: 0 | AB88: 0 | AC88: 0 | AD88: 0 | AE88: 0 | AF88: 0 | AG88: 0
X89: 4/0 CA VÃO 120m | Y89: 647.02 | Z89: 3 | AA89: 0 | AB89: 0 | AC89: 0 | AD89: 0 | AE89: 0 | AF89: 0 | AG89: 0
X90: 336,4 CA VÃO 120m | Y90: 1018.03 | Z90: 2 | AA90: 0 | AB90: 0 | AC90: 0 | AD90: 0 | AE90: 0 | AF90: 0 | AG90: 0
X91: 336,4 CAA (LINNET) VÃO 40m | Y91: 1570 | Z91: 1 | AA91: 0 | AB91: 0 | AC91: 0 | AD91: 0 | AE91: 0 | AF91: 0 | AG91: 0
X92: 336,4 CAA (MERLIN) VÃO 40m | Y92: 1058.05 | Z92: 0 | AA92: 0 | AB92: 0 | AC92: 0 | AD92: 0 | AE92: 0 | AF92: 0 | AG92: 0
X93: 336,4 CAA (ORIOLE) VÃO 40m | Y93: 1838.11 | Z93: 360 | AA93: 0 | AB93: 0 | AC93: 0 | AD93: 0 | AE93: 0 | AF93: 0 | AG93: 0
X94: 336,4 CAA (LINNET) VÃO 60m | Y94: 1552 | Z94: 359 | AA94: 0 | AB94: 0 | AC94: 0 | AD94: 0 | AE94: 0 | AF94: 0 | AG94: 0
X95: 336,4 CAA (MERLIN) VÃO 60m | Y95: 1029.20 | Z95: =Z94-1 -> 358 | AA95: 0 | AB95: 0 | AC95: 0 | AD95: 0 | AE95: 0 | AF95: 0 | AG95: 0
X96: 336,4 CAA (ORIOLE) VÃO 60m | Y96: 1824.10 | Z96: 357 | AA96: 0 | AB96: 0 | AC96: 0 | AD96: 0 | AE96: 0 | AF96: 0 | AG96: 0
X97: 336,4 CAA (LINNET) VÃO 80m | Y97: 1530 | Z97: 356 | AA97: 0 | AB97: 0 | AC97: 0 | AD97: 0 | AE97: 0 | AF97: 0 | AG97: 0
X98: 336,4 CAA (MERLIN) VÃO 80m | Y98: 995.05 | Z98: 355 | AA98: 0 | AB98: 0 | AC98: 0 | AD98: 0 | AE98: 0 | AF98: 0 | AG98: 0
X99: 336,4 CAA (ORIOLE) VÃO 80m | Y99: 1942.39 | Z99: 354 | AA99: 0 | AB99: 0 | AC99: 0 | AD99: 0 | AE99: 0 | AF99: 0 | AG99: 0
X100: 336,4 CAA (LINNET) VÃO 100m | Y100: 1504 | Z100: 353 | AA100: 0 | AB100: 0 | AC100: 0 | AD100: 0 | AE100: 0 | AF100: 0 | AG100: 0
X101: 336,4 CAA (MERLIN) VÃO 100m | Y101: 959.76 | Z101: 352 | AA101: 0 | AB101: 0 | AC101: 0 | AD101: 0 | AE101: 0 | AF101: 0 | AG101: 0
X102: 336,4 CAA (ORIOLE) VÃO 100m | Y102: 1784.41 | Z102: 351 | AA102: 0 | AB102: 0 | AC102: 0 | AD102: 0 | AE102: 0 | AF102: 0 | AG102: 0
X103: 336,4 CAA (LINNET) VÃO 120m | Y103: 1477 | Z103: 350 | AA103: 0 | AB103: 0 | AC103: 0 | AD103: 0 | AE103: 0 | AF103: 0 | AG103: 0
X104: 336,4 CAA (MERLIN) VÃO 120m | Y104: 927.12 | Z104: 349 | AA104: 0 | AB104: 0 | AC104: 0 | AD104: 0 | AE104: 0 | AF104: 0 | AG104: 0
X105: 336,4 CAA (ORIOLE) VÃO 120m | Y105: 1761.07 | Z105: 348 | AA105: 0 | AB105: 0 | AC105: 0 | AD105: 0 | AE105: 0 | AF105: 0 | AG105: 0
Z106: 347 | AA106: 0 | AB106: 0 | AC106: 0 | AD106: 0 | AE106: 0 | AF106: 0 | AG106: 0
Z107: 346 | AA107: 0 | AB107: 0 | AC107: 0 | AD107: 0 | AE107: 0 | AF107: 0 | AG107: 0
Z108: 345 | AA108: 0 | AB108: 0 | AC108: 0 | AD108: 0 | AE108: 0 | AF108: 0 | AG108: 0
Z109: 344 | AA109: 0 | AB109: 0 | AC109: 0 | AD109: 0 | AE109: 0 | AF109: 0 | AG109: 0
Z110: 343 | AA110: 0 | AB110: 0 | AC110: 0 | AD110: 0 | AE110: 0 | AF110: 0 | AG110: 0
Z111: 342 | AA111: 0 | AB111: 0 | AC111: 0 | AD111: 0 | AE111: 0 | AF111: 0 | AG111: 0
Z112: 341 | AA112: 0 | AB112: 0 | AC112: 0 | AD112: 0 | AE112: 0 | AF112: 0 | AG112: 0
Z113: 340 | AA113: 0 | AB113: 0 | AC113: 0 | AD113: 0 | AE113: 0 | AF113: 0 | AG113: 0
Z114: 339 | AA114: 0 | AB114: 0 | AC114: 0 | AD114: 0 | AE114: 0 | AF114: 0 | AG114: 0
Z115: 338 | AA115: 0 | AB115: 0 | AC115: 0 | AD115: 0 | AE115: 0 | AF115: 0 | AG115: 0
Z116: 337 | AA116: 0 | AB116: 0 | AC116: 0 | AD116: 0 | AE116: 0 | AF116: 0 | AG116: 0
Z117: 336 | AA117: 0 | AB117: 0 | AC117: 0 | AD117: 0 | AE117: 0 | AF117: 0 | AG117: 0
Z118: 335 | AA118: 0 | AB118: 0 | AC118: 0 | AD118: 0 | AE118: 0 | AF118: 0 | AG118: 0
Z119: 334 | AA119: 0 | AB119: 0 | AC119: 0 | AD119: 0 | AE119: 0 | AF119: 0 | AG119: 0
Z120: 333 | AA120: 0 | AB120: 0 | AC120: 0 | AD120: 0 | AE120: 0 | AF120: 0 | AG120: 0
Z121: 332 | AA121: 0 | AB121: 0 | AC121: 0 | AD121: 0 | AE121: 0 | AF121: 0 | AG121: 0
Z122: 331 | AA122: 0 | AB122: 0 | AC122: 0 | AD122: 0 | AE122: 0 | AF122: 0 | AG122: 0
Z123: 330 | AA123: 0 | AB123: 0 | AC123: 0 | AD123: 0 | AE123: 0 | AF123: 0 | AG123: 0
Z124: 329 | AA124: 0 | AB124: 0 | AC124: 0 | AD124: 0 | AE124: 0 | AF124: 0 | AG124: 0
Z125: 328 | AA125: 0 | AB125: 0 | AC125: 0 | AD125: 0 | AE125: 0 | AF125: 0 | AG125: 0
Z126: 327 | AA126: 0 | AB126: 0 | AC126: 0 | AD126: 0 | AE126: 0 | AF126: 0 | AG126: 0
Z127: 326 | AA127: 0 | AB127: 0 | AC127: 0 | AD127: 0 | AE127: 0 | AF127: 0 | AG127: 0
Z128: 325 | AA128: 0 | AB128: 0 | AC128: 0 | AD128: 0 | AE128: 0 | AF128: 0 | AG128: 0
Z129: 324 | AA129: 0 | AB129: 0 | AC129: 0 | AD129: 0 | AE129: 0 | AF129: 0 | AG129: 0
Z130: 323 | AA130: =IF(ISERROR(VLOOKUP($Z130,Table444,AA$1,FALSE)),0,VLOOKUP($Z130,Table444,AA$1,FALSE)) -> 0 | AB130: =IF(ISERROR(VLOOKUP($Z130,Table555,AB$1,FALSE)),0,VLOOKUP($Z130,Table555,AB$1,FALSE)) -> 0 | AC130: 0 | AD130: =IF(ISERROR(VLOOKUP($Z130,Table888,AD$1,FALSE)),0,VLOOKUP($Z130,Table888,AD$1,FALSE)) -> 0 | AE130: =IF(ISERROR(VLOOKUP($Z130,Table999,AE$1,FALSE)),0,VLOOKUP($Z130,Table999,AE$1,FALSE)) -> 0 | AF130: =IF(ISERROR(VLOOKUP($Z130,Table222,AF$1,FALSE)),0,VLOOKUP($Z130,Table222,AF$1,FALSE)) -> 0 | AG130: =IF(ISERROR(VLOOKUP($Z130,Table333,AG$1,FALSE)),0,VLOOKUP($Z130,Table333,AG$1,FALSE)) -> 0
Z131: 322 | AA131: 0 | AB131: 0 | AC131: =IF(ISERROR(VLOOKUP($Z131,Table666,AB$1,FALSE)),0,VLOOKUP($Z131,Table666,AB$1,FALSE)) -> 0 | AD131: 0 | AE131: 0 | AF131: 0 | AG131: 0
Z132: 321 | AA132: 0 | AB132: 0 | AC132: 0 | AD132: 0 | AE132: 0 | AF132: 0 | AG132: 0
Z133: 320 | AA133: 0 | AB133: 0 | AC133: 0 | AD133: 0 | AE133: 0 | AF133: 0 | AG133: 0
Z134: 319 | AA134: 0 | AB134: 0 | AC134: 0 | AD134: 0 | AE134: 0 | AF134: 0 | AG134: 0
Z135: 318 | AA135: 0 | AB135: 0 | AC135: 0 | AD135: 0 | AE135: 0 | AF135: 0 | AG135: 0
Z136: 317 | AA136: 0 | AB136: 0 | AC136: 0 | AD136: 0 | AE136: 0 | AF136: 0 | AG136: 0
Z137: 316 | AA137: 0 | AB137: 0 | AC137: 0 | AD137: 0 | AE137: 0 | AF137: 0 | AG137: 0
Z138: 315 | AA138: 0 | AB138: 1 | AC138: 0 | AD138: 0 | AE138: 0 | AF138: 0 | AG138: 0
Z139: 314 | AA139: 0 | AB139: 0 | AC139: 0 | AD139: 0 | AE139: 0 | AF139: 0 | AG139: 0
Z140: 313 | AA140: 0 | AB140: 0 | AC140: 0 | AD140: 0 | AE140: 0 | AF140: 0 | AG140: 0
Z141: 312 | AA141: 0 | AB141: 0 | AC141: 0 | AD141: 0 | AE141: 0 | AF141: 0 | AG141: 0
Z142: 311 | AA142: 0 | AB142: 0 | AC142: 0 | AD142: 0 | AE142: 0 | AF142: 0 | AG142: 0
Z143: 310 | AA143: 0 | AB143: 0 | AC143: 0 | AD143: 0 | AE143: 0 | AF143: 0 | AG143: 0
Z144: 309 | AA144: 0 | AB144: 0 | AC144: 0 | AD144: 0 | AE144: 0 | AF144: 0 | AG144: 0
Z145: 308 | AA145: 0 | AB145: 0 | AC145: 0 | AD145: 0 | AE145: 0 | AF145: 0 | AG145: 0
Z146: 307 | AA146: 0 | AB146: 0 | AC146: 0 | AD146: 0 | AE146: 0 | AF146: 0 | AG146: 0
Z147: 306 | AA147: 0 | AB147: 0 | AC147: 0 | AD147: 0 | AE147: 0 | AF147: 0 | AG147: 0
Z148: 305 | AA148: 0 | AB148: 0 | AC148: 0 | AD148: 0 | AE148: 0 | AF148: 0 | AG148: 0
Z149: 304 | AA149: 0 | AB149: 0 | AC149: 0 | AD149: 0 | AE149: 0 | AF149: 0 | AG149: 0
Z150: 303 | AA150: 0 | AB150: 0 | AC150: 0 | AD150: 0 | AE150: 0 | AF150: 0 | AG150: 0
Z151: 302 | AA151: 0 | AB151: 0 | AC151: 0 | AD151: 0 | AE151: 0 | AF151: 0 | AG151: 0
Z152: 301 | AA152: 0 | AB152: 0 | AC152: 0 | AD152: 0 | AE152: 0 | AF152: 0 | AG152: 0
Z153: 300 | AA153: 0 | AB153: 0 | AC153: 0 | AD153: 0 | AE153: 0 | AF153: 0 | AG153: 0
Z154: 299 | AA154: 0 | AB154: 0 | AC154: 0 | AD154: 0 | AE154: 0 | AF154: 0 | AG154: 0
Z155: 298 | AA155: 0 | AB155: 0 | AC155: 0 | AD155: 0 | AE155: 0 | AF155: 0 | AG155: 0
Z156: 297 | AA156: 0 | AB156: 0 | AC156: 0 | AD156: 0 | AE156: 0 | AF156: 0 | AG156: 0
Z157: 296 | AA157: 0 | AB157: 0 | AC157: 0 | AD157: 0 | AE157: 0 | AF157: 0 | AG157: 0
Z158: 295 | AA158: 0 | AB158: 0 | AC158: 0 | AD158: 0 | AE158: 0 | AF158: 0 | AG158: 0
Z159: =Z158-1 -> 294 | AA159: 0 | AB159: 0 | AC159: 0 | AD159: 0 | AE159: 0 | AF159: 0 | AG159: 0
Z160: 293 | AA160: 0 | AB160: 0 | AC160: 0 | AD160: 0 | AE160: 0 | AF160: 0 | AG160: 0
Z161: 292 | AA161: 0 | AB161: 0 | AC161: 0 | AD161: 0 | AE161: 0 | AF161: 0 | AG161: 0
Z162: 291 | AA162: 0 | AB162: 0 | AC162: 0 | AD162: 0 | AE162: 0 | AF162: 0 | AG162: 0
Z163: 290 | AA163: 0 | AB163: 0 | AC163: 0 | AD163: 0 | AE163: 0 | AF163: 0 | AG163: 0
Z164: 289 | AA164: 0 | AB164: 0 | AC164: 0 | AD164: 0 | AE164: 0 | AF164: 0 | AG164: 0
Z165: 288 | AA165: 0 | AB165: 0 | AC165: 0 | AD165: 0 | AE165: 0 | AF165: 0 | AG165: 0
Z166: 287 | AA166: 0 | AB166: 0 | AC166: 0 | AD166: 0 | AE166: 0 | AF166: 0 | AG166: 0
Z167: 286 | AA167: 0 | AB167: 0 | AC167: 0 | AD167: 0 | AE167: 0 | AF167: 0 | AG167: 0
Z168: 285 | AA168: 0 | AB168: 0 | AC168: 0 | AD168: 0 | AE168: 0 | AF168: 0 | AG168: 0
Z169: 284 | AA169: 0 | AB169: 0 | AC169: 0 | AD169: 0 | AE169: 0 | AF169: 0 | AG169: 0
Z170: 283 | AA170: 0 | AB170: 0 | AC170: 0 | AD170: 0 | AE170: 0 | AF170: 0 | AG170: 0
Z171: 282 | AA171: 0 | AB171: 0 | AC171: 0 | AD171: 0 | AE171: 0 | AF171: 0 | AG171: 0
Z172: 281 | AA172: 0 | AB172: 0 | AC172: 0 | AD172: 0 | AE172: 0 | AF172: 0 | AG172: 0
Z173: 280 | AA173: 0 | AB173: 0 | AC173: 0 | AD173: 0 | AE173: 0 | AF173: 0 | AG173: 0
Z174: 279 | AA174: 0 | AB174: 0 | AC174: 0 | AD174: 0 | AE174: 0 | AF174: 0 | AG174: 0
Z175: 278 | AA175: 0 | AB175: 0 | AC175: 0 | AD175: 0 | AE175: 0 | AF175: 0 | AG175: 0
Z176: 277 | AA176: 0 | AB176: 0 | AC176: 0 | AD176: 0 | AE176: 0 | AF176: 0 | AG176: 0
Z177: 276 | AA177: 0 | AB177: 0 | AC177: 0 | AD177: 0 | AE177: 0 | AF177: 0 | AG177: 0
Z178: 275 | AA178: 0 | AB178: 0 | AC178: 0 | AD178: 0 | AE178: 0 | AF178: 0 | AG178: 0
Z179: 274 | AA179: 0 | AB179: 0 | AC179: 0 | AD179: 0 | AE179: 0 | AF179: 0 | AG179: 0
Z180: 273 | AA180: 0 | AB180: 0 | AC180: 0 | AD180: 0 | AE180: 0 | AF180: 0 | AG180: 0
Z181: 272 | AA181: 0 | AB181: 0 | AC181: 0 | AD181: 0 | AE181: 0 | AF181: 0 | AG181: 0
Z182: 271 | AA182: 0 | AB182: 0 | AC182: 0 | AD182: 0 | AE182: 0 | AF182: 0 | AG182: 0
Z183: 270 | AA183: 0 | AB183: 0 | AC183: 0 | AD183: 0 | AE183: 0 | AF183: 0 | AG183: 0
Z184: 269 | AA184: 0 | AB184: 0 | AC184: 0 | AD184: 0 | AE184: 0 | AF184: 0 | AG184: 0
Z185: 268 | AA185: 0 | AB185: 0 | AC185: 0 | AD185: 0 | AE185: 0 | AF185: 0 | AG185: 0
Z186: 267 | AA186: 0 | AB186: 0 | AC186: 0 | AD186: 0 | AE186: 0 | AF186: 0 | AG186: 0
Z187: 266 | AA187: 0 | AB187: 0 | AC187: 0 | AD187: 0 | AE187: 0 | AF187: 0 | AG187: 0
Z188: 265 | AA188: 0 | AB188: 0 | AC188: 0 | AD188: 0 | AE188: 0 | AF188: 0 | AG188: 0
Z189: 264 | AA189: 0 | AB189: 0 | AC189: 0 | AD189: 0 | AE189: 0 | AF189: 0 | AG189: 0
Z190: 263 | AA190: 0 | AB190: 0 | AC190: 0 | AD190: 0 | AE190: 0 | AF190: 0 | AG190: 0
Z191: 262 | AA191: 0 | AB191: 0 | AC191: 0 | AD191: 0 | AE191: 0 | AF191: 0 | AG191: 0
Z192: 261 | AA192: 0 | AB192: 0 | AC192: 0 | AD192: 0 | AE192: 0 | AF192: 0 | AG192: 0
Z193: 260 | AA193: 0 | AB193: 0 | AC193: 0 | AD193: 0 | AE193: 0 | AF193: 0 | AG193: 0
Z194: 259 | AA194: =IF(ISERROR(VLOOKUP($Z194,Table444,AA$1,FALSE)),0,VLOOKUP($Z194,Table444,AA$1,FALSE)) -> 0 | AB194: =IF(ISERROR(VLOOKUP($Z194,Table555,AB$1,FALSE)),0,VLOOKUP($Z194,Table555,AB$1,FALSE)) -> 0 | AC194: 0 | AD194: =IF(ISERROR(VLOOKUP($Z194,Table888,AD$1,FALSE)),0,VLOOKUP($Z194,Table888,AD$1,FALSE)) -> 0 | AE194: =IF(ISERROR(VLOOKUP($Z194,Table999,AE$1,FALSE)),0,VLOOKUP($Z194,Table999,AE$1,FALSE)) -> 0 | AF194: =IF(ISERROR(VLOOKUP($Z194,Table222,AF$1,FALSE)),0,VLOOKUP($Z194,Table222,AF$1,FALSE)) -> 0 | AG194: =IF(ISERROR(VLOOKUP($Z194,Table333,AG$1,FALSE)),0,VLOOKUP($Z194,Table333,AG$1,FALSE)) -> 0
Z195: 258 | AA195: 0 | AB195: 0 | AC195: =IF(ISERROR(VLOOKUP($Z195,Table666,AB$1,FALSE)),0,VLOOKUP($Z195,Table666,AB$1,FALSE)) -> 0 | AD195: 0 | AE195: 0 | AF195: 0 | AG195: 0
Z196: 257 | AA196: 0 | AB196: 0 | AC196: 0 | AD196: 0 | AE196: 0 | AF196: 0 | AG196: 0
Z197: 256 | AA197: 0 | AB197: 0 | AC197: 0 | AD197: 0 | AE197: 0 | AF197: 0 | AG197: 0
Z198: 255 | AA198: 0 | AB198: 0 | AC198: 0 | AD198: 0 | AE198: 0 | AF198: 0 | AG198: 1
Z199: 254 | AA199: 0 | AB199: 0 | AC199: 0 | AD199: 0 | AE199: 0 | AF199: 0 | AG199: 0
Z200: 253 | AA200: 0 | AB200: 0 | AC200: 0 | AD200: 0 | AE200: 0 | AF200: 0 | AG200: 0
... 162 more rows

Sheet Relat_Flechas
C1: CÁLCULO DE TRAÇÕES E FLECHAS DE MONTAGEM
C3: Elaborado por: | E3: Eleandro Luis Marques da Silva | H3: CREA: | I3: 127488
C4: Função: | D4: Eletrotécnico | H4: Data
A9: Dados do condutor
A10: Cabo | B10: Diâmetro | C10: Secção | D10: Peso (kg / m) | E10: Mod. Elasti. (kg / m) | F10: Coef. Dilatação ( / º C) | G10: T. de Ruptura (kgf)
A12: 3#50(50CAL)CA-XLPE | B12: 0,0279 | C12: 6.11E+10 | D12: 0,6690 | E12: 6600000000 | F12: 0,00002304 | G12: 1640
A15: Vão de cálculo | C15: 27,5 | E15: Võa Crítico (m) | G15: 57,24
A16: Projeto nº | E16: Estrutura | G16: EM NIVEL
A17: Tipo de rede | C17: RURAL | E17: Desnível de:(m)
A20: Condição de Maior duração | E20: Pior condição | G20: Inverno
A21: Temperatura (º C) | C21: Tração máxima (%) | E21: Vão ficticio (a") em (m)
A22: 20 | C22: 7 | E22: Trecho
A23: OBS:. A Flecha f deve ser medida a uma distância (a'' / 2) de A, ou em alguns casos pode se medir f - h a uma distância (a - (a'' / 2 ) de B.
A25: Hipótese | B25: Descrição | C25: Temperatura | D25: Pressão | E25: Tração de projeto | G25: Tração de montagem | I25: Flecha | J25: % T. RUP | K25: T. RUP (kgf) | L25: iterações
D26: do vento | E26: % Máx. T rup. | F26: kgf | G26: % T. RUP | H26: (kgf) | I26: (m) | J26: c / vento | K26: c / vento | L26: neces.
A27: 55 | B27: Temper. mínima | C27: -5 | D27: 0 | E27: 12 | F27: 196,80 | G27: 10,17 | H27: 166,79 | I27: 0,38 | J27: 10,17 | K27: 166,79 | L27: 6
A28: 56 | B28: - | C28: 0 | D28: 0 | E28: 12 | F28: 196,80 | G28: 9,21 | H28: 151,03 | I28: 0,42 | J28: 9,21 | K28: 151,04 | L28: 6
A29: 57 | B29: - | C29: 5 | D29: 0 | E29: 12 | F29: 196,80 | G29: 8,47 | H29: 138,95 | I29: 0,46 | J29: 8,47 | K29: 138,91 | L29: 6
A30: 58 | B30: - | C30: 10 | D30: 0 | E30: 12 | F30: 196,80 | G30: 7,89 | H30: 129,32 | I30: 0,49 | J30: 7,89 | K30: 129,40 | L30: 6
A31: 59 | B31: Vento máximo | C31: 15 | D31: 0 | E31: 12 | F31: 196,80 | G31: 7,40 | H31: 121,42 | I31: 0,52 | J31: 7,40 | K31: 121,36 | L31: 6
A32: 60 | B32: Maior duração | C32: 20 | D32: 0 | E32: 12 | F32: 196,80 | G32: 7,00 | H32: 114,80 | I32: 0,55 | J32: 7,00 | K32: 114,80 | L32: 6
A33: 61 | B33: - | C33: 25 | D33: 0 | E33: 12 | F33: 196,80 | G33: 6,66 | H33: 109,14 | I33: 0,58 | J33: 6,66 | K33: 109,22 | L33: 6
A34: 62 | B34: - | C34: 30 | D34: 0 | E34: 12 | F34: 196,80 | G34: 6,36 | H34: 104,24 | I34: 0,61 | J34: 6,36 | K34: 104,30 | L34: 6
A35: 63 | B35: - | C35: 35 | D35: 0 | E35: 12 | F35: 196,80 | G35: 6,09 | H35: 99,94 | I35: 0,63 | J35: 6,09 | K35: 99,88 | L35: 6
A36: 64 | B36: - | C36: 40 | D36: 0 | E36: 12 | F36: 196,80 | G36: 5,86 | H36: 96,13 | I36: 0,66 | J36: 5,86 | K36: 96,10 | L36: 7
A37: 65 | B37: - | C37: 45 | D37: 0 | E37: 12 | F37: 196,80 | G37: 5,65 | H37: 92,71 | I37: 0,68 | J37: 5,65 | K37: 92,66 | L37: 7
A38: 66 | B38: Flecha Máxima | C38: 50 | D38: 0 | E38: 12 | F38: 196,80 | G38: 5,47 | H38: 89,64 | I38: 0,71 | J38: 5,47 | K38: 89,71 | L38: 7
F41: =G12*0.2 -> 328

Sheet Tabelas_de_Flexas
B1: TABELA DE TRAÇÕES E FLECHAS DE MONTAGEM
B3: CONDUTOR: cobertos
B4: Condições:
B5: Temperatura mínima de – 5 °C com 33,33 % da tração de ruptura
B6: Vento máximo de 130 km/h a 15 °C | G6: 0
B7: Vento reduzido a 15 °C com 40,00 % da tração de ruptura
B8: ="Maior duração com temperatura de "&Relat_Flechas!A22&" °C com "&Relat_Flechas!C22&" % da tração de ruptura" -> Maior duração com temperatura de 20 °C com 7 % da tração de ruptura
B9: Flecha máxima com 50 °C | N9: =((Relat_Flechas!$D$12)*(Tabelas_de_Flexas!F$14^2))/(8*C16)
B10: Flechas em metros
B13: =VLOOKUP(Relat_Flechas!A12,Caracteristica_CABO!A:AH,31,FALSE)&" - Vão básico "&Relat_Flechas!C15&" m" -> Cabo Multiplexado 3#50(50CAL)CA-XLPE - Vão básico 27,5 m
B14: Temp º | C14: Tração daN | D14: 30 | E14: 35 | F14: 40 | G14: 45 | H14: 50 | I14: 55 | J14: 60 | K14: 65 | L14: 70 | M14: 75 | N14: 80 | O14: 85 | P14: 90 | Q14: 95 | R14: 100 | S14: 105 | T14: 110 | U14: 115 | V14: 120 | W14: 125 | X14: 130 | Y14: 135 | Z14: 140 | AA14: 145 | AB14: 150 | AC14: 155
B15: -5 | C15: =Relat_Flechas!H27 -> 166,79 | D15: =((Relat_Flechas!$D$12)*(Tabelas_de_Flexas!D$14^2))/(8*C15) -> 0.45 | E15: =((Relat_Flechas!$D$12)*(Tabelas_de_Flexas!E$14^2))/(8*C15) -> 0.61 | F15: =((Relat_Flechas!$D$12)*(Tabelas_de_Flexas!F$14^2))/(8*C15) -> 0.80 | G15: =((Relat_Flechas!$D$12)*(Tabelas_de_Flexas!G$14^2))/(8*C15) -> 1.02 | H15: =((Relat_Flechas!$D$12)*(Tabelas_de_Flexas!H$14^2))/(8*C15) -> 1.25 | I15: =((Relat_Flechas!$D$12)*(Tabelas_de_Flexas!I$14^2))/(8*C15) -> 1.52 | J15: =((Relat_Flechas!$D$12)*(Tabelas_de_Flexas!J$14^2))/(8*C15) -> 1.80 | K15: =((Relat_Flechas!$D$12)*(Tabelas_de_Flexas!K$14^2))/(8*C15) -> 2.12 | L15: =((Relat_Flechas!$D$12)*(Tabelas_de_Flexas!L$14^2))/(8*C15) -> 2.46 | M15: =((Relat_Flechas!$D$12)*(Tabelas_de_Flexas!M$14^2))/(8*C15) -> 2.82 | N15: =((Relat_Flechas!$D$12)*(Tabelas_de_Flexas!N$14^2))/(8*C15) -> 3.21 | O15: =((Relat_Flechas!$D$12)*(Tabelas_de_Flexas!O$14^2))/(8*C15) -> 3.62 | P15: =((Relat_Flechas!$D$12)*(Tabelas_de_Flexas!P$14^2))/(8*C15) -> 4.06 | Q15: =((Relat_Flechas!$D$12)*(Tabelas_de_Flexas!Q$14^2))/(8*C15) -> 4.52 | R15: =((Relat_Flechas!$D$12)*(Tabelas_de_Flexas!R$14^2))/(8*C15) -> 5.01 | S15: =((Relat_Flechas!$D$12)*(Tabelas_de_Flexas!S$14^2))/(8*C15) -> 5.53 | T15: =((Relat_Flechas!$D$12)*(Tabelas_de_Flexas!T$14^2))/(8*C15) -> 6.07 | U15: =((Relat_Flechas!$D$12)*(Tabelas_de_Flexas!U$14^2))/(8*C15) -> 6.63 | V15: =((Relat_Flechas!$D$12)*(Tabelas_de_Flexas!V$14^2))/(8*C15) -> 7.22 | W15: =((Relat_Flechas!$D$12)*(Tabelas_de_Flexas!W$14^2))/(8*C15) -> 7.83 | X15: =((Relat_Flechas!$D$12)*(Tabelas_de_Flexas!X$14^2))/(8*C15) -> 8.47 | Y15: =((Relat_Flechas!$D$12)*(Tabelas_de_Flexas!Y$14^2))/(8*C15) -> 9.14 | Z15: =((Relat_Flechas!$D$12)*(Tabelas_de_Flexas!Z$14^2))/(8*C15) -> 9.83 | AA15: =((Relat_Flechas!$D$12)*(Tabelas_de_Flexas!AA$14^2))/(8*C15) -> 10.54 | AB15: =((Relat_Flechas!$D$12)*(Tabelas_de_Flexas!AB$14^2))/(8*C15) -> 11.28 | AC15: =((Relat_Flechas!$D$12)*(Tabelas_de_Flexas!AC$14^2))/(8*C15) -> 12.05
B16: 0 | C16: =Relat_Flechas!H28 -> 151,03 | D16: =((Relat_Flechas!$D$12)*(Tabelas_de_Flexas!D$14^2))/(8*C16) -> 0.50 | E16: =((Relat_Flechas!$D$12)*(Tabelas_de_Flexas!E$14^2))/(8*C16) -> 0.68 | F16: =((Relat_Flechas!$D$12)*(Tabelas_de_Flexas!F$14^2))/(8*C16) -> 0.89 | G16: =((Relat_Flechas!$D$12)*(Tabelas_de_Flexas!G$14^2))/(8*C16) -> 1.12 | H16: =((Relat_Flechas!$D$12)*(Tabelas_de_Flexas!H$14^2))/(8*C16) -> 1.38 | I16: =((Relat_Flechas!$D$12)*(Tabelas_de_Flexas!I$14^2))/(8*C16) -> 1.67 | J16: =((Relat_Flechas!$D$12)*(Tabelas_de_Flexas!J$14^2))/(8*C16) -> 1.99 | K16: =((Relat_Flechas!$D$12)*(Tabelas_de_Flexas!K$14^2))/(8*C16) -> 2.34 | L16: =((Relat_Flechas!$D$12)*(Tabelas_de_Flexas!L$14^2))/(8*C16) -> 2.71 | M16: =((Relat_Flechas!$D$12)*(Tabelas_de_Flexas!M$14^2))/(8*C16) -> 3.11 | N16: =((Relat_Flechas!$D$12)*(Tabelas_de_Flexas!N$14^2))/(8*C16) -> 3.54 | O16: =((Relat_Flechas!$D$12)*(Tabelas_de_Flexas!O$14^2))/(8*C16) -> 4.00 | P16: =((Relat_Flechas!$D$12)*(Tabelas_de_Flexas!P$14^2))/(8*C16) -> 4.48 | Q16: =((Relat_Flechas!$D$12)*(Tabelas_de_Flexas!Q$14^2))/(8*C16) -> 5.00 | R16: =((Relat_Flechas!$D$12)*(Tabelas_de_Flexas!R$14^2))/(8*C16) -> 5.54 | S16: =((Relat_Flechas!$D$12)*(Tabelas_de_Flexas!S$14^2))/(8*C16) -> 6.10 | T16: =((Relat_Flechas!$D$12)*(Tabelas_de_Flexas!T$14^2))/(8*C16) -> 6.70 | U16: =((Relat_Flechas!$D$12)*(Tabelas_de_Flexas!U$14^2))/(8*C16) -> 7.32 | V16: =((Relat_Flechas!$D$12)*(Tabelas_de_Flexas!V$14^2))/(8*C16) -> 7.97 | W16: =((Relat_Flechas!$D$12)*(Tabelas_de_Flexas!W$14^2))/(8*C16) -> 8.65 | X16: =((Relat_Flechas!$D$12)*(Tabelas_de_Flexas!X$14^2))/(8*C16) -> 9.36 | Y16: =((Relat_Flechas!$D$12)*(Tabelas_de_Flexas!Y$14^2))/(8*C16) -> 10.09 | Z16: =((Relat_Flechas!$D$12)*(Tabelas_de_Flexas!Z$14^2))/(8*C16) -> 10.85 | AA16: =((Relat_Flechas!$D$12)*(Tabelas_de_Flexas!AA$14^2))/(8*C16) -> 11.64 | AB16: =((Relat_Flechas!$D$12)*(Tabelas_de_Flexas!AB$14^2))/(8*C16) -> 12.46 | AC16: =((Relat_Flechas!$D$12)*(Tabelas_de_Flexas!AC$14^2))/(8*C16) -> 13.30
B17: 5 | C17: =Relat_Flechas!H29 -> 138,95 | D17: =((Relat_Flechas!$D$12)*(Tabelas_de_Flexas!D$14^2))/(8*C17) -> 0.54 | E17: =((Relat_Flechas!$D$12)*(Tabelas_de_Flexas!E$14^2))/(8*C17) -> 0.74 | F17: =((Relat_Flechas!$D$12)*(Tabelas_de_Flexas!F$14^2))/(8*C17) -> 0.96 | G17: =((Relat_Flechas!$D$12)*(Tabelas_de_Flexas!G$14^2))/(8*C17) -> 1.22 | H17: =((Relat_Flechas!$D$12)*(Tabelas_de_Flexas!H$14^2))/(8*C17) -> 1.50 | I17: =((Relat_Flechas!$D$12)*(Tabelas_de_Flexas!I$14^2))/(8*C17) -> 1.82 | J17: =((Relat_Flechas!$D$12)*(Tabelas_de_Flexas!J$14^2))/(8*C17) -> 2.17 | K17: =((Relat_Flechas!$D$12)*(Tabelas_de_Flexas!K$14^2))/(8*C17) -> 2.54 | L17: =((Relat_Flechas!$D$12)*(Tabelas_de_Flexas!L$14^2))/(8*C17) -> 2.95 | M17: =((Relat_Flechas!$D$12)*(Tabelas_de_Flexas!M$14^2))/(8*C17) -> 3.39 | N17: =((Relat_Flechas!$D$12)*(Tabelas_de_Flexas!N$14^2))/(8*C17) -> 3.85 | O17: =((Relat_Flechas!$D$12)*(Tabelas_de_Flexas!O$14^2))/(8*C17) -> 4.35 | P17: =((Relat_Flechas!$D$12)*(Tabelas_de_Flexas!P$14^2))/(8*C17) -> 4.87 | Q17: =((Relat_Flechas!$D$12)*(Tabelas_de_Flexas!Q$14^2))/(8*C17) -> 5.43 | R17: =((Relat_Flechas!$D$12)*(Tabelas_de_Flexas!R$14^2))/(8*C17) -> 6.02 | S17: =((Relat_Flechas!$D$12)*(Tabelas_de_Flexas!S$14^2))/(8*C17) -> 6.64 | T17: =((Relat_Flechas!$D$12)*(Tabelas_de_Flexas!T$14^2))/(8*C17) -> 7.28 | U17: =((Relat_Flechas!$D$12)*(Tabelas_de_Flexas!U$14^2))/(8*C17) -> 7.96 | V17: =((Relat_Flechas!$D$12)*(Tabelas_de_Flexas!V$14^2))/(8*C17) -> 8.67 | W17: =((Relat_Flechas!$D$12)*(Tabelas_de_Flexas!W$14^2))/(8*C17) -> 9.40 | X17: =((Relat_Flechas!$D$12)*(Tabelas_de_Flexas!X$14^2))/(8*C17) -> 10.17 | Y17: =((Relat_Flechas!$D$12)*(Tabelas_de_Flexas!Y$14^2))/(8*C17) -> 10.97 | Z17: =((Relat_Flechas!$D$12)*(Tabelas_de_Flexas!Z$14^2))/(8*C17) -> 11.80 | AA17: =((Relat_Flechas!$D$12)*(Tabelas_de_Flexas!AA$14^2))/(8*C17) -> 12.65 | AB17: =((Relat_Flechas!$D$12)*(Tabelas_de_Flexas!AB$14^2))/(8*C17) -> 13.54 | AC17: =((Relat_Flechas!$D$12)*(Tabelas_de_Flexas!AC$14^2))/(8*C17) -> 14.46
B18: 10 | C18: =Relat_Flechas!H30 -> 129,32 | D18: =((Relat_Flechas!$D$12)*(Tabelas_de_Flexas!D$14^2))/(8*C18) -> 0.58 | E18: =((Relat_Flechas!$D$12)*(Tabelas_de_Flexas!E$14^2))/(8*C18) -> 0.79 | F18: =((Relat_Flechas!$D$12)*(Tabelas_de_Flexas!F$14^2))/(8*C18) -> 1.03 | G18: =((Relat_Flechas!$D$12)*(Tabelas_de_Flexas!G$14^2))/(8*C18) -> 1.31 | H18: =((Relat_Flechas!$D$12)*(Tabelas_de_Flexas!H$14^2))/(8*C18) -> 1.62 | I18: =((Relat_Flechas!$D$12)*(Tabelas_de_Flexas!I$14^2))/(8*C18) -> 1.96 | J18: =((Relat_Flechas!$D$12)*(Tabelas_de_Flexas!J$14^2))/(8*C18) -> 2.33 | K18: =((Relat_Flechas!$D$12)*(Tabelas_de_Flexas!K$14^2))/(8*C18) -> 2.73 | L18: =((Relat_Flechas!$D$12)*(Tabelas_de_Flexas!L$14^2))/(8*C18) -> 3.17 | M18: =((Relat_Flechas!$D$12)*(Tabelas_de_Flexas!M$14^2))/(8*C18) -> 3.64 | N18: =((Relat_Flechas!$D$12)*(Tabelas_de_Flexas!N$14^2))/(8*C18) -> 4.14 | O18: =((Relat_Flechas!$D$12)*(Tabelas_de_Flexas!O$14^2))/(8*C18) -> 4.67 | P18: =((Relat_Flechas!$D$12)*(Tabelas_de_Flexas!P$14^2))/(8*C18) -> 5.24 | Q18: =((Relat_Flechas!$D$12)*(Tabelas_de_Flexas!Q$14^2))/(8*C18) -> 5.84 | R18: =((Relat_Flechas!$D$12)*(Tabelas_de_Flexas!R$14^2))/(8*C18) -> 6.47 | S18: =((Relat_Flechas!$D$12)*(Tabelas_de_Flexas!S$14^2))/(8*C18) -> 7.13 | T18: =((Relat_Flechas!$D$12)*(Tabelas_de_Flexas!T$14^2))/(8*C18) -> 7.82 | U18: =((Relat_Flechas!$D$12)*(Tabelas_de_Flexas!U$14^2))/(8*C18) -> 8.55 | V18: =((Relat_Flechas!$D$12)*(Tabelas_de_Flexas!V$14^2))/(8*C18) -> 9.31 | W18: =((Relat_Flechas!$D$12)*(Tabelas_de_Flexas!W$14^2))/(8*C18) -> 10.10 | X18: =((Relat_Flechas!$D$12)*(Tabelas_de_Flexas!X$14^2))/(8*C18) -> 10.93 | Y18: =((Relat_Flechas!$D$12)*(Tabelas_de_Flexas!Y$14^2))/(8*C18) -> 11.79 | Z18: =((Relat_Flechas!$D$12)*(Tabelas_de_Flexas!Z$14^2))/(8*C18) -> 12.67 | AA18: =((Relat_Flechas!$D$12)*(Tabelas_de_Flexas!AA$14^2))/(8*C18) -> 13.60 | AB18: =((Relat_Flechas!$D$12)*(Tabelas_de_Flexas!AB$14^2))/(8*C18) -> 14.55 | AC18: =((Relat_Flechas!$D$12)*(Tabelas_de_Flexas!AC$14^2))/(8*C18) -> 15.54
B19: 15 | C19: =Relat_Flechas!H31 -> 121,42 | D19: =((Relat_Flechas!$D$12)*(Tabelas_de_Flexas!D$14^2))/(8*C19) -> 0.62 | E19: =((Relat_Flechas!$D$12)*(Tabelas_de_Flexas!E$14^2))/(8*C19) -> 0.84 | F19: =((Relat_Flechas!$D$12)*(Tabelas_de_Flexas!F$14^2))/(8*C19) -> 1.10 | G19: =((Relat_Flechas!$D$12)*(Tabelas_de_Flexas!G$14^2))/(8*C19) -> 1.39 | H19: =((Relat_Flechas!$D$12)*(Tabelas_de_Flexas!H$14^2))/(8*C19) -> 1.72 | I19: =((Relat_Flechas!$D$12)*(Tabelas_de_Flexas!I$14^2))/(8*C19) -> 2.08 | J19: =((Relat_Flechas!$D$12)*(Tabelas_de_Flexas!J$14^2))/(8*C19) -> 2.48 | K19: =((Relat_Flechas!$D$12)*(Tabelas_de_Flexas!K$14^2))/(8*C19) -> 2.91 | L19: =((Relat_Flechas!$D$12)*(Tabelas_de_Flexas!L$14^2))/(8*C19) -> 3.37 | M19: =((Relat_Flechas!$D$12)*(Tabelas_de_Flexas!M$14^2))/(8*C19) -> 3.87 | N19: =((Relat_Flechas!$D$12)*(Tabelas_de_Flexas!N$14^2))/(8*C19) -> 4.41 | O19: =((Relat_Flechas!$D$12)*(Tabelas_de_Flexas!O$14^2))/(8*C19) -> 4.98 | P19: =((Relat_Flechas!$D$12)*(Tabelas_de_Flexas!P$14^2))/(8*C19) -> 5.58 | Q19: =((Relat_Flechas!$D$12)*(Tabelas_de_Flexas!Q$14^2))/(8*C19) -> 6.22 | R19: =((Relat_Flechas!$D$12)*(Tabelas_de_Flexas!R$14^2))/(8*C19) -> 6.89 | S19: =((Relat_Flechas!$D$12)*(Tabelas_de_Flexas!S$14^2))/(8*C19) -> 7.59 | T19: =((Relat_Flechas!$D$12)*(Tabelas_de_Flexas!T$14^2))/(8*C19) -> 8.33 | U19: =((Relat_Flechas!$D$12)*(Tabelas_de_Flexas!U$14^2))/(8*C19) -> 9.11 | V19: =((Relat_Flechas!$D$12)*(Tabelas_de_Flexas!V$14^2))/(8*C19) -> 9.92 | W19: =((Relat_Flechas!$D$12)*(Tabelas_de_Flexas!W$14^2))/(8*C19) -> 10.76 | X19: =((Relat_Flechas!$D$12)*(Tabelas_de_Flexas!X$14^2))/(8*C19) -> 11.64 | Y19: =((Relat_Flechas!$D$12)*(Tabelas_de_Flexas!Y$14^2))/(8*C19) -> 12.55 | Z19: =((Relat_Flechas!$D$12)*(Tabelas_de_Flexas!Z$14^2))/(8*C19) -> 13.50 | AA19: =((Relat_Flechas!$D$12)*(Tabelas_de_Flexas!AA$14^2))/(8*C19) -> 14.48 | AB19: =((Relat_Flechas!$D$12)*(Tabelas_de_Flexas!AB$14^2))/(8*C19) -> 15.50 | AC19: =((Relat_Flechas!$D$12)*(Tabelas_de_Flexas!AC$14^2))/(8*C19) -> 16.55
B20: 20 | C20: =Relat_Flechas!H32 -> 114,80 | D20: =((Relat_Flechas!$D$12)*(Tabelas_de_Flexas!D$14^2))/(8*C20) -> 0.66 | E20: =((Relat_Flechas!$D$12)*(Tabelas_de_Flexas!E$14^2))/(8*C20) -> 0.89 | F20: =((Relat_Flechas!$D$12)*(Tabelas_de_Flexas!F$14^2))/(8*C20) -> 1.17 | G20: =((Relat_Flechas!$D$12)*(Tabelas_de_Flexas!G$14^2))/(8*C20) -> 1.48 | H20: =((Relat_Flechas!$D$12)*(Tabelas_de_Flexas!H$14^2))/(8*C20) -> 1.82 | I20: =((Relat_Flechas!$D$12)*(Tabelas_de_Flexas!I$14^2))/(8*C20) -> 2.20 | J20: =((Relat_Flechas!$D$12)*(Tabelas_de_Flexas!J$14^2))/(8*C20) -> 2.62 | K20: =((Relat_Flechas!$D$12)*(Tabelas_de_Flexas!K$14^2))/(8*C20) -> 3.08 | L20: =((Relat_Flechas!$D$12)*(Tabelas_de_Flexas!L$14^2))/(8*C20) -> 3.57 | M20: =((Relat_Flechas!$D$12)*(Tabelas_de_Flexas!M$14^2))/(8*C20) -> 4.10 | N20: =((Relat_Flechas!$D$12)*(Tabelas_de_Flexas!N$14^2))/(8*C20) -> 4.66 | O20: =((Relat_Flechas!$D$12)*(Tabelas_de_Flexas!O$14^2))/(8*C20) -> 5.26 | P20: =((Relat_Flechas!$D$12)*(Tabelas_de_Flexas!P$14^2))/(8*C20) -> 5.90 | Q20: =((Relat_Flechas!$D$12)*(Tabelas_de_Flexas!Q$14^2))/(8*C20) -> 6.57 | R20: =((Relat_Flechas!$D$12)*(Tabelas_de_Flexas!R$14^2))/(8*C20) -> 7.28 | S20: =((Relat_Flechas!$D$12)*(Tabelas_de_Flexas!S$14^2))/(8*C20) -> 8.03 | T20: =((Relat_Flechas!$D$12)*(Tabelas_de_Flexas!T$14^2))/(8*C20) -> 8.81 | U20: =((Relat_Flechas!$D$12)*(Tabelas_de_Flexas!U$14^2))/(8*C20) -> 9.63 | V20: =((Relat_Flechas!$D$12)*(Tabelas_de_Flexas!V$14^2))/(8*C20) -> 10.49 | W20: =((Relat_Flechas!$D$12)*(Tabelas_de_Flexas!W$14^2))/(8*C20) -> 11.38 | X20: =((Relat_Flechas!$D$12)*(Tabelas_de_Flexas!X$14^2))/(8*C20) -> 12.31 | Y20: =((Relat_Flechas!$D$12)*(Tabelas_de_Flexas!Y$14^2))/(8*C20) -> 13.28 | Z20: =((Relat_Flechas!$D$12)*(Tabelas_de_Flexas!Z$14^2))/(8*C20) -> 14.28 | AA20: =((Relat_Flechas!$D$12)*(Tabelas_de_Flexas!AA$14^2))/(8*C20) -> 15.32 | AB20: =((Relat_Flechas!$D$12)*(Tabelas_de_Flexas!AB$14^2))/(8*C20) -> 16.39 | AC20: =((Relat_Flechas!$D$12)*(Tabelas_de_Flexas!AC$14^2))/(8*C20) -> 17.50
B21: 25 | C21: =Relat_Flechas!H33 -> 109,14 | D21: =((Relat_Flechas!$D$12)*(Tabelas_de_Flexas!D$14^2))/(8*C21) -> 0.69 | E21: =((Relat_Flechas!$D$12)*(Tabelas_de_Flexas!E$14^2))/(8*C21) -> 0.94 | F21: =((Relat_Flechas!$D$12)*(Tabelas_de_Flexas!F$14^2))/(8*C21) -> 1.23 | G21: =((Relat_Flechas!$D$12)*(Tabelas_de_Flexas!G$14^2))/(8*C21) -> 1.55 | H21: =((Relat_Flechas!$D$12)*(Tabelas_de_Flexas!H$14^2))/(8*C21) -> 1.92 | I21: =((Relat_Flechas!$D$12)*(Tabelas_de_Flexas!I$14^2))/(8*C21) -> 2.32 | J21: =((Relat_Flechas!$D$12)*(Tabelas_de_Flexas!J$14^2))/(8*C21) -> 2.76 | K21: =((Relat_Flechas!$D$12)*(Tabelas_de_Flexas!K$14^2))/(8*C21) -> 3.24 | L21: =((Relat_Flechas!$D$12)*(Tabelas_de_Flexas!L$14^2))/(8*C21) -> 3.75 | M21: =((Relat_Flechas!$D$12)*(Tabelas_de_Flexas!M$14^2))/(8*C21) -> 4.31 | N21: =((Relat_Flechas!$D$12)*(Tabelas_de_Flexas!N$14^2))/(8*C21) -> 4.90 | O21: =((Relat_Flechas!$D$12)*(Tabelas_de_Flexas!O$14^2))/(8*C21) -> 5.54 | P21: =((Relat_Flechas!$D$12)*(Tabelas_de_Flexas!P$14^2))/(8*C21) -> 6.21 | Q21: =((Relat_Flechas!$D$12)*(Tabelas_de_Flexas!Q$14^2))/(8*C21) -> 6.92 | R21: =((Relat_Flechas!$D$12)*(Tabelas_de_Flexas!R$14^2))/(8*C21) -> 7.66 | S21: =((Relat_Flechas!$D$12)*(Tabelas_de_Flexas!S$14^2))/(8*C21) -> 8.45 | T21: =((Relat_Flechas!$D$12)*(Tabelas_de_Flexas!T$14^2))/(8*C21) -> 9.27 | U21: =((Relat_Flechas!$D$12)*(Tabelas_de_Flexas!U$14^2))/(8*C21) -> 10.13 | V21: =((Relat_Flechas!$D$12)*(Tabelas_de_Flexas!V$14^2))/(8*C21) -> 11.03 | W21: =((Relat_Flechas!$D$12)*(Tabelas_de_Flexas!W$14^2))/(8*C21) -> 11.97 | X21: =((Relat_Flechas!$D$12)*(Tabelas_de_Flexas!X$14^2))/(8*C21) -> 12.95 | Y21: =((Relat_Flechas!$D$12)*(Tabelas_de_Flexas!Y$14^2))/(8*C21) -> 13.96 | Z21: =((Relat_Flechas!$D$12)*(Tabelas_de_Flexas!Z$14^2))/(8*C21) -> 15.02 | AA21: =((Relat_Flechas!$D$12)*(Tabelas_de_Flexas!AA$14^2))/(8*C21) -> 16.11 | AB21: =((Relat_Flechas!$D$12)*(Tabelas_de_Flexas!AB$14^2))/(8*C21) -> 17.24 | AC21: =((Relat_Flechas!$D$12)*(Tabelas_de_Flexas!AC$14^2))/(8*C21) -> 18.41
B22: 30 | C22: =Relat_Flechas!H34 -> 104,24 | D22: =((Relat_Flechas!$D$12)*(Tabelas_de_Flexas!D$14^2))/(8*C22) -> 0.72 | E22: =((Relat_Flechas!$D$12)*(Tabelas_de_Flexas!E$14^2))/(8*C22) -> 0.98 | F22: =((Relat_Flechas!$D$12)*(Tabelas_de_Flexas!F$14^2))/(8*C22) -> 1.28 | G22: =((Relat_Flechas!$D$12)*(Tabelas_de_Flexas!G$14^2))/(8*C22) -> 1.62 | H22: =((Relat_Flechas!$D$12)*(Tabelas_de_Flexas!H$14^2))/(8*C22) -> 2.01 | I22: =((Relat_Flechas!$D$12)*(Tabelas_de_Flexas!I$14^2))/(8*C22) -> 2.43 | J22: =((Relat_Flechas!$D$12)*(Tabelas_de_Flexas!J$14^2))/(8*C22) -> 2.89 | K22: =((Relat_Flechas!$D$12)*(Tabelas_de_Flexas!K$14^2))/(8*C22) -> 3.39 | L22: =((Relat_Flechas!$D$12)*(Tabelas_de_Flexas!L$14^2))/(8*C22) -> 3.93 | M22: =((Relat_Flechas!$D$12)*(Tabelas_de_Flexas!M$14^2))/(8*C22) -> 4.51 | N22: =((Relat_Flechas!$D$12)*(Tabelas_de_Flexas!N$14^2))/(8*C22) -> 5.13 | O22: =((Relat_Flechas!$D$12)*(Tabelas_de_Flexas!O$14^2))/(8*C22) -> 5.80 | P22: =((Relat_Flechas!$D$12)*(Tabelas_de_Flexas!P$14^2))/(8*C22) -> 6.50 | Q22: =((Relat_Flechas!$D$12)*(Tabelas_de_Flexas!Q$14^2))/(8*C22) -> 7.24 | R22: =((Relat_Flechas!$D$12)*(Tabelas_de_Flexas!R$14^2))/(8*C22) -> 8.02 | S22: =((Relat_Flechas!$D$12)*(Tabelas_de_Flexas!S$14^2))/(8*C22) -> 8.84 | T22: =((Relat_Flechas!$D$12)*(Tabelas_de_Flexas!T$14^2))/(8*C22) -> 9.71 | U22: =((Relat_Flechas!$D$12)*(Tabelas_de_Flexas!U$14^2))/(8*C22) -> 10.61 | V22: =((Relat_Flechas!$D$12)*(Tabelas_de_Flexas!V$14^2))/(8*C22) -> 11.55 | W22: =((Relat_Flechas!$D$12)*(Tabelas_de_Flexas!W$14^2))/(8*C22) -> 12.53 | X22: =((Relat_Flechas!$D$12)*(Tabelas_de_Flexas!X$14^2))/(8*C22) -> 13.56 | Y22: =((Relat_Flechas!$D$12)*(Tabelas_de_Flexas!Y$14^2))/(8*C22) -> 14.62 | Z22: =((Relat_Flechas!$D$12)*(Tabelas_de_Flexas!Z$14^2))/(8*C22) -> 15.72 | AA22: =((Relat_Flechas!$D$12)*(Tabelas_de_Flexas!AA$14^2))/(8*C22) -> 16.87 | AB22: =((Relat_Flechas!$D$12)*(Tabelas_de_Flexas!AB$14^2))/(8*C22) -> 18.05 | AC22: =((Relat_Flechas!$D$12)*(Tabelas_de_Flexas!AC$14^2))/(8*C22) -> 19.27
B23: 35 | C23: =Relat_Flechas!H35 -> 99,94 | D23: =((Relat_Flechas!$D$12)*(Tabelas_de_Flexas!D$14^2))/(8*C23) -> 0.75 | E23: =((Relat_Flechas!$D$12)*(Tabelas_de_Flexas!E$14^2))/(8*C23) -> 1.03 | F23: =((Relat_Flechas!$D$12)*(Tabelas_de_Flexas!F$14^2))/(8*C23) -> 1.34 | G23: =((Relat_Flechas!$D$12)*(Tabelas_de_Flexas!G$14^2))/(8*C23) -> 1.69 | H23: =((Relat_Flechas!$D$12)*(Tabelas_de_Flexas!H$14^2))/(8*C23) -> 2.09 | I23: =((Relat_Flechas!$D$12)*(Tabelas_de_Flexas!I$14^2))/(8*C23) -> 2.53 | J23: =((Relat_Flechas!$D$12)*(Tabelas_de_Flexas!J$14^2))/(8*C23) -> 3.01 | K23: =((Relat_Flechas!$D$12)*(Tabelas_de_Flexas!K$14^2))/(8*C23) -> 3.54 | L23: =((Relat_Flechas!$D$12)*(Tabelas_de_Flexas!L$14^2))/(8*C23) -> 4.10 | M23: =((Relat_Flechas!$D$12)*(Tabelas_de_Flexas!M$14^2))/(8*C23) -> 4.71 | N23: =((Relat_Flechas!$D$12)*(Tabelas_de_Flexas!N$14^2))/(8*C23) -> 5.36 | O23: =((Relat_Flechas!$D$12)*(Tabelas_de_Flexas!O$14^2))/(8*C23) -> 6.05 | P23: =((Relat_Flechas!$D$12)*(Tabelas_de_Flexas!P$14^2))/(8*C23) -> 6.78 | Q23: =((Relat_Flechas!$D$12)*(Tabelas_de_Flexas!Q$14^2))/(8*C23) -> 7.55 | R23: =((Relat_Flechas!$D$12)*(Tabelas_de_Flexas!R$14^2))/(8*C23) -> 8.37 | S23: =((Relat_Flechas!$D$12)*(Tabelas_de_Flexas!S$14^2))/(8*C23) -> 9.23 | T23: =((Relat_Flechas!$D$12)*(Tabelas_de_Flexas!T$14^2))/(8*C23) -> 10.12 | U23: =((Relat_Flechas!$D$12)*(Tabelas_de_Flexas!U$14^2))/(8*C23) -> 11.07 | V23: =((Relat_Flechas!$D$12)*(Tabelas_de_Flexas!V$14^2))/(8*C23) -> 12.05 | W23: =((Relat_Flechas!$D$12)*(Tabelas_de_Flexas!W$14^2))/(8*C23) -> 13.07 | X23: =((Relat_Flechas!$D$12)*(Tabelas_de_Flexas!X$14^2))/(8*C23) -> 14.14 | Y23: =((Relat_Flechas!$D$12)*(Tabelas_de_Flexas!Y$14^2))/(8*C23) -> 15.25 | Z23: =((Relat_Flechas!$D$12)*(Tabelas_de_Flexas!Z$14^2))/(8*C23) -> 16.40 | AA23: =((Relat_Flechas!$D$12)*(Tabelas_de_Flexas!AA$14^2))/(8*C23) -> 17.59 | AB23: =((Relat_Flechas!$D$12)*(Tabelas_de_Flexas!AB$14^2))/(8*C23) -> 18.83 | AC23: =((Relat_Flechas!$D$12)*(Tabelas_de_Flexas!AC$14^2))/(8*C23) -> 20.10
B24: 40 | C24: =Relat_Flechas!H36 -> 96,13 | D24: =((Relat_Flechas!$D$12)*(Tabelas_de_Flexas!D$14^2))/(8*C24) -> 0.78 | E24: =((Relat_Flechas!$D$12)*(Tabelas_de_Flexas!E$14^2))/(8*C24) -> 1.07 | F24: =((Relat_Flechas!$D$12)*(Tabelas_de_Flexas!F$14^2))/(8*C24) -> 1.39 | G24: =((Relat_Flechas!$D$12)*(Tabelas_de_Flexas!G$14^2))/(8*C24) -> 1.76 | H24: =((Relat_Flechas!$D$12)*(Tabelas_de_Flexas!H$14^2))/(8*C24) -> 2.17 | I24: =((Relat_Flechas!$D$12)*(Tabelas_de_Flexas!I$14^2))/(8*C24) -> 2.63 | J24: =((Relat_Flechas!$D$12)*(Tabelas_de_Flexas!J$14^2))/(8*C24) -> 3.13 | K24: =((Relat_Flechas!$D$12)*(Tabelas_de_Flexas!K$14^2))/(8*C24) -> 3.68 | L24: =((Relat_Flechas!$D$12)*(Tabelas_de_Flexas!L$14^2))/(8*C24) -> 4.26 | M24: =((Relat_Flechas!$D$12)*(Tabelas_de_Flexas!M$14^2))/(8*C24) -> 4.89 | N24: =((Relat_Flechas!$D$12)*(Tabelas_de_Flexas!N$14^2))/(8*C24) -> 5.57 | O24: =((Relat_Flechas!$D$12)*(Tabelas_de_Flexas!O$14^2))/(8*C24) -> 6.29 | P24: =((Relat_Flechas!$D$12)*(Tabelas_de_Flexas!P$14^2))/(8*C24) -> 7.05 | Q24: =((Relat_Flechas!$D$12)*(Tabelas_de_Flexas!Q$14^2))/(8*C24) -> 7.85 | R24: =((Relat_Flechas!$D$12)*(Tabelas_de_Flexas!R$14^2))/(8*C24) -> 8.70 | S24: =((Relat_Flechas!$D$12)*(Tabelas_de_Flexas!S$14^2))/(8*C24) -> 9.59 | T24: =((Relat_Flechas!$D$12)*(Tabelas_de_Flexas!T$14^2))/(8*C24) -> 10.53 | U24: =((Relat_Flechas!$D$12)*(Tabelas_de_Flexas!U$14^2))/(8*C24) -> 11.50 | V24: =((Relat_Flechas!$D$12)*(Tabelas_de_Flexas!V$14^2))/(8*C24) -> 12.53 | W24: =((Relat_Flechas!$D$12)*(Tabelas_de_Flexas!W$14^2))/(8*C24) -> 13.59 | X24: =((Relat_Flechas!$D$12)*(Tabelas_de_Flexas!X$14^2))/(8*C24) -> 14.70 | Y24: =((Relat_Flechas!$D$12)*(Tabelas_de_Flexas!Y$14^2))/(8*C24) -> 15.85 | Z24: =((Relat_Flechas!$D$12)*(Tabelas_de_Flexas!Z$14^2))/(8*C24) -> 17.05 | AA24: =((Relat_Flechas!$D$12)*(Tabelas_de_Flexas!AA$14^2))/(8*C24) -> 18.29 | AB24: =((Relat_Flechas!$D$12)*(Tabelas_de_Flexas!AB$14^2))/(8*C24) -> 19.57 | AC24: =((Relat_Flechas!$D$12)*(Tabelas_de_Flexas!AC$14^2))/(8*C24) -> 20.90
B25: 45 | C25: =Relat_Flechas!H37 -> 92,71 | D25: =((Relat_Flechas!$D$12)*(Tabelas_de_Flexas!D$14^2))/(8*C25) -> 0.81 | E25: =((Relat_Flechas!$D$12)*(Tabelas_de_Flexas!E$14^2))/(8*C25) -> 1.10 | F25: =((Relat_Flechas!$D$12)*(Tabelas_de_Flexas!F$14^2))/(8*C25) -> 1.44 | G25: =((Relat_Flechas!$D$12)*(Tabelas_de_Flexas!G$14^2))/(8*C25) -> 1.83 | H25: =((Relat_Flechas!$D$12)*(Tabelas_de_Flexas!H$14^2))/(8*C25) -> 2.26 | I25: =((Relat_Flechas!$D$12)*(Tabelas_de_Flexas!I$14^2))/(8*C25) -> 2.73 | J25: =((Relat_Flechas!$D$12)*(Tabelas_de_Flexas!J$14^2))/(8*C25) -> 3.25 | K25: =((Relat_Flechas!$D$12)*(Tabelas_de_Flexas!K$14^2))/(8*C25) -> 3.81 | L25: =((Relat_Flechas!$D$12)*(Tabelas_de_Flexas!L$14^2))/(8*C25) -> 4.42 | M25: =((Relat_Flechas!$D$12)*(Tabelas_de_Flexas!M$14^2))/(8*C25) -> 5.07 | N25: =((Relat_Flechas!$D$12)*(Tabelas_de_Flexas!N$14^2))/(8*C25) -> 5.77 | O25: =((Relat_Flechas!$D$12)*(Tabelas_de_Flexas!O$14^2))/(8*C25) -> 6.52 | P25: =((Relat_Flechas!$D$12)*(Tabelas_de_Flexas!P$14^2))/(8*C25) -> 7.31 | Q25: =((Relat_Flechas!$D$12)*(Tabelas_de_Flexas!Q$14^2))/(8*C25) -> 8.14 | R25: =((Relat_Flechas!$D$12)*(Tabelas_de_Flexas!R$14^2))/(8*C25) -> 9.02 | S25: =((Relat_Flechas!$D$12)*(Tabelas_de_Flexas!S$14^2))/(8*C25) -> 9.94 | T25: =((Relat_Flechas!$D$12)*(Tabelas_de_Flexas!T$14^2))/(8*C25) -> 10.91 | U25: =((Relat_Flechas!$D$12)*(Tabelas_de_Flexas!U$14^2))/(8*C25) -> 11.93 | V25: =((Relat_Flechas!$D$12)*(Tabelas_de_Flexas!V$14^2))/(8*C25) -> 12.99 | W25: =((Relat_Flechas!$D$12)*(Tabelas_de_Flexas!W$14^2))/(8*C25) -> 14.09 | X25: =((Relat_Flechas!$D$12)*(Tabelas_de_Flexas!X$14^2))/(8*C25) -> 15.24 | Y25: =((Relat_Flechas!$D$12)*(Tabelas_de_Flexas!Y$14^2))/(8*C25) -> 16.44 | Z25: =((Relat_Flechas!$D$12)*(Tabelas_de_Flexas!Z$14^2))/(8*C25) -> 17.68 | AA25: =((Relat_Flechas!$D$12)*(Tabelas_de_Flexas!AA$14^2))/(8*C25) -> 18.96 | AB25: =((Relat_Flechas!$D$12)*(Tabelas_de_Flexas!AB$14^2))/(8*C25) -> 20.30 | AC25: =((Relat_Flechas!$D$12)*(Tabelas_de_Flexas!AC$14^2))/(8*C25) -> 21.67
B26: 50 | C26: =Relat_Flechas!H38 -> 89,64 | D26: =((Relat_Flechas!$D$12)*(Tabelas_de_Flexas!D$14^2))/(8*C26) -> 0.84 | E26: =((Relat_Flechas!$D$12)*(Tabelas_de_Flexas!E$14^2))/(8*C26) -> 1.14 | F26: =((Relat_Flechas!$D$12)*(Tabelas_de_Flexas!F$14^2))/(8*C26) -> 1.49 | G26: =((Relat_Flechas!$D$12)*(Tabelas_de_Flexas!G$14^2))/(8*C26) -> 1.89 | H26: =((Relat_Flechas!$D$12)*(Tabelas_de_Flexas!H$14^2))/(8*C26) -> 2.33 | I26: =((Relat_Flechas!$D$12)*(Tabelas_de_Flexas!I$14^2))/(8*C26) -> 2.82 | J26: =((Relat_Flechas!$D$12)*(Tabelas_de_Flexas!J$14^2))/(8*C26) -> 3.36 | K26: =((Relat_Flechas!$D$12)*(Tabelas_de_Flexas!K$14^2))/(8*C26) -> 3.94 | L26: =((Relat_Flechas!$D$12)*(Tabelas_de_Flexas!L$14^2))/(8*C26) -> 4.57 | M26: =((Relat_Flechas!$D$12)*(Tabelas_de_Flexas!M$14^2))/(8*C26) -> 5.25 | N26: =((Relat_Flechas!$D$12)*(Tabelas_de_Flexas!N$14^2))/(8*C26) -> 5.97 | O26: =((Relat_Flechas!$D$12)*(Tabelas_de_Flexas!O$14^2))/(8*C26) -> 6.74 | P26: =((Relat_Flechas!$D$12)*(Tabelas_de_Flexas!P$14^2))/(8*C26) -> 7.56 | Q26: =((Relat_Flechas!$D$12)*(Tabelas_de_Flexas!Q$14^2))/(8*C26) -> 8.42 | R26: =((Relat_Flechas!$D$12)*(Tabelas_de_Flexas!R$14^2))/(8*C26) -> 9.33 | S26: =((Relat_Flechas!$D$12)*(Tabelas_de_Flexas!S$14^2))/(8*C26) -> 10.29 | T26: =((Relat_Flechas!$D$12)*(Tabelas_de_Flexas!T$14^2))/(8*C26) -> 11.29 | U26: =((Relat_Flechas!$D$12)*(Tabelas_de_Flexas!U$14^2))/(8*C26) -> 12.34 | V26: =((Relat_Flechas!$D$12)*(Tabelas_de_Flexas!V$14^2))/(8*C26) -> 13.43 | W26: =((Relat_Flechas!$D$12)*(Tabelas_de_Flexas!W$14^2))/(8*C26) -> 14.58 | X26: =((Relat_Flechas!$D$12)*(Tabelas_de_Flexas!X$14^2))/(8*C26) -> 15.77 | Y26: =((Relat_Flechas!$D$12)*(Tabelas_de_Flexas!Y$14^2))/(8*C26) -> 17.00 | Z26: =((Relat_Flechas!$D$12)*(Tabelas_de_Flexas!Z$14^2))/(8*C26) -> 18.28 | AA26: =((Relat_Flechas!$D$12)*(Tabelas_de_Flexas!AA$14^2))/(8*C26) -> 19.61 | AB26: =((Relat_Flechas!$D$12)*(Tabelas_de_Flexas!AB$14^2))/(8*C26) -> 20.99 | AC26: =((Relat_Flechas!$D$12)*(Tabelas_de_Flexas!AC$14^2))/(8*C26) -> 22.41
B30: =VLOOKUP(Relat_Flechas!A12,Caracteristica_CABO!A:AH,31,FALSE)&" - Vão básico "&Relat_Flechas!C15&" m" -> Cabo Multiplexado 3#50(50CAL)CA-XLPE - Vão básico 27,5 m
B31: Temp º | C31: Tração daN | D31: 160 | E31: 165 | F31: 170 | G31: 175 | H31: 180 | I31: 185 | J31: 190 | K31: 195 | L31: 200 | M31: 205 | N31: 210 | O31: 215 | P31: 220 | Q31: 225 | R31: 230 | S31: 235 | T31: 240 | U31: 245 | V31: 250 | W31: 255 | X31: 260 | Y31: 265 | Z31: 270
B32: -5 | C32: =C15 -> 166,79 | D32: =((Relat_Flechas!$D$12)*(Tabelas_de_Flexas!D$31^2))/(8*C32) -> 12.84 | E32: =((Relat_Flechas!$D$12)*(Tabelas_de_Flexas!E$31^2))/(8*C32) -> 13.65 | F32: =((Relat_Flechas!$D$12)*(Tabelas_de_Flexas!F$31^2))/(8*C32) -> 14.49 | G32: =((Relat_Flechas!$D$12)*(Tabelas_de_Flexas!G$31^2))/(8*C32) -> 15.35 | H32: =((Relat_Flechas!$D$12)*(Tabelas_de_Flexas!H$31^2))/(8*C32) -> 16.24 | I32: =((Relat_Flechas!$D$12)*(Tabelas_de_Flexas!I$31^2))/(8*C32) -> 17.16 | J32: =((Relat_Flechas!$D$12)*(Tabelas_de_Flexas!J$31^2))/(8*C32) -> 18.10 | K32: =((Relat_Flechas!$D$12)*(Tabelas_de_Flexas!K$31^2))/(8*C32) -> 19.06 | L32: =((Relat_Flechas!$D$12)*(Tabelas_de_Flexas!L$31^2))/(8*C32) -> 20.06 | M32: =((Relat_Flechas!$D$12)*(Tabelas_de_Flexas!M$31^2))/(8*C32) -> 21.07 | N32: =((Relat_Flechas!$D$12)*(Tabelas_de_Flexas!N$31^2))/(8*C32) -> 22.11 | O32: =((Relat_Flechas!$D$12)*(Tabelas_de_Flexas!O$31^2))/(8*C32) -> 23.18 | P32: =((Relat_Flechas!$D$12)*(Tabelas_de_Flexas!P$31^2))/(8*C32) -> 24.27 | Q32: =((Relat_Flechas!$D$12)*(Tabelas_de_Flexas!Q$31^2))/(8*C32) -> 25.38 | R32: =((Relat_Flechas!$D$12)*(Tabelas_de_Flexas!R$31^2))/(8*C32) -> 26.52 | S32: =((Relat_Flechas!$D$12)*(Tabelas_de_Flexas!S$31^2))/(8*C32) -> 27.69 | T32: =((Relat_Flechas!$D$12)*(Tabelas_de_Flexas!T$31^2))/(8*C32) -> 28.88 | U32: =((Relat_Flechas!$D$12)*(Tabelas_de_Flexas!U$31^2))/(8*C32) -> 30.10 | V32: =((Relat_Flechas!$D$12)*(Tabelas_de_Flexas!V$31^2))/(8*C32) -> 31.34 | W32: =((Relat_Flechas!$D$12)*(Tabelas_de_Flexas!W$31^2))/(8*C32) -> 32.60 | X32: =((Relat_Flechas!$D$12)*(Tabelas_de_Flexas!X$31^2))/(8*C32) -> 33.89 | Y32: =((Relat_Flechas!$D$12)*(Tabelas_de_Flexas!Y$31^2))/(8*C32) -> 35.21 | Z32: =((Relat_Flechas!$D$12)*(Tabelas_de_Flexas!Z$31^2))/(8*C32) -> 36.55
B33: 0 | C33: =C16 -> 151,03 | D33: =((Relat_Flechas!$D$12)*(Tabelas_de_Flexas!D$31^2))/(8*C33) -> 14.17 | E33: =((Relat_Flechas!$D$12)*(Tabelas_de_Flexas!E$31^2))/(8*C33) -> 15.07 | F33: =((Relat_Flechas!$D$12)*(Tabelas_de_Flexas!F$31^2))/(8*C33) -> 16.00 | G33: =((Relat_Flechas!$D$12)*(Tabelas_de_Flexas!G$31^2))/(8*C33) -> 16.96 | H33: =((Relat_Flechas!$D$12)*(Tabelas_de_Flexas!H$31^2))/(8*C33) -> 17.94 | I33: =((Relat_Flechas!$D$12)*(Tabelas_de_Flexas!I$31^2))/(8*C33) -> 18.95 | J33: =((Relat_Flechas!$D$12)*(Tabelas_de_Flexas!J$31^2))/(8*C33) -> 19.99 | K33: =((Relat_Flechas!$D$12)*(Tabelas_de_Flexas!K$31^2))/(8*C33) -> 21.05 | L33: =((Relat_Flechas!$D$12)*(Tabelas_de_Flexas!L$31^2))/(8*C33) -> 22.15 | M33: =((Relat_Flechas!$D$12)*(Tabelas_de_Flexas!M$31^2))/(8*C33) -> 23.27 | N33: =((Relat_Flechas!$D$12)*(Tabelas_de_Flexas!N$31^2))/(8*C33) -> 24.42 | O33: =((Relat_Flechas!$D$12)*(Tabelas_de_Flexas!O$31^2))/(8*C33) -> 25.59 | P33: =((Relat_Flechas!$D$12)*(Tabelas_de_Flexas!P$31^2))/(8*C33) -> 26.80 | Q33: =((Relat_Flechas!$D$12)*(Tabelas_de_Flexas!Q$31^2))/(8*C33) -> 28.03 | R33: =((Relat_Flechas!$D$12)*(Tabelas_de_Flexas!R$31^2))/(8*C33) -> 29.29 | S33: =((Relat_Flechas!$D$12)*(Tabelas_de_Flexas!S$31^2))/(8*C33) -> 30.58 | T33: =((Relat_Flechas!$D$12)*(Tabelas_de_Flexas!T$31^2))/(8*C33) -> 31.89 | U33: =((Relat_Flechas!$D$12)*(Tabelas_de_Flexas!U$31^2))/(8*C33) -> 33.24 | V33: =((Relat_Flechas!$D$12)*(Tabelas_de_Flexas!V$31^2))/(8*C33) -> 34.61 | W33: =((Relat_Flechas!$D$12)*(Tabelas_de_Flexas!W$31^2))/(8*C33) -> 36.00 | X33: =((Relat_Flechas!$D$12)*(Tabelas_de_Flexas!X$31^2))/(8*C33) -> 37.43 | Y33: =((Relat_Flechas!$D$12)*(Tabelas_de_Flexas!Y$31^2))/(8*C33) -> 38.88 | Z33: =((Relat_Flechas!$D$12)*(Tabelas_de_Flexas!Z$31^2))/(8*C33) -> 40.36
B34: 5 | C34: 138,95 | D34: =((Relat_Flechas!$D$12)*(Tabelas_de_Flexas!D$31^2))/(8*C34) -> 15.41 | E34: =((Relat_Flechas!$D$12)*(Tabelas_de_Flexas!E$31^2))/(8*C34) -> 16.38 | F34: =((Relat_Flechas!$D$12)*(Tabelas_de_Flexas!F$31^2))/(8*C34) -> 17.39 | G34: =((Relat_Flechas!$D$12)*(Tabelas_de_Flexas!G$31^2))/(8*C34) -> 18.43 | H34: =((Relat_Flechas!$D$12)*(Tabelas_de_Flexas!H$31^2))/(8*C34) -> 19.50 | I34: =((Relat_Flechas!$D$12)*(Tabelas_de_Flexas!I$31^2))/(8*C34) -> 20.60 | J34: =((Relat_Flechas!$D$12)*(Tabelas_de_Flexas!J$31^2))/(8*C34) -> 21.73 | K34: =((Relat_Flechas!$D$12)*(Tabelas_de_Flexas!K$31^2))/(8*C34) -> 22.88 | L34: =((Relat_Flechas!$D$12)*(Tabelas_de_Flexas!L$31^2))/(8*C34) -> 24.07 | M34: =((Relat_Flechas!$D$12)*(Tabelas_de_Flexas!M$31^2))/(8*C34) -> 25.29 | N34: =((Relat_Flechas!$D$12)*(Tabelas_de_Flexas!N$31^2))/(8*C34) -> 26.54 | O34: =((Relat_Flechas!$D$12)*(Tabelas_de_Flexas!O$31^2))/(8*C34) -> 27.82 | P34: =((Relat_Flechas!$D$12)*(Tabelas_de_Flexas!P$31^2))/(8*C34) -> 29.13 | Q34: =((Relat_Flechas!$D$12)*(Tabelas_de_Flexas!Q$31^2))/(8*C34) -> 30.47 | R34: =((Relat_Flechas!$D$12)*(Tabelas_de_Flexas!R$31^2))/(8*C34) -> 31.84 | S34: =((Relat_Flechas!$D$12)*(Tabelas_de_Flexas!S$31^2))/(8*C34) -> 33.24 | T34: =((Relat_Flechas!$D$12)*(Tabelas_de_Flexas!T$31^2))/(8*C34) -> 34.67 | U34: =((Relat_Flechas!$D$12)*(Tabelas_de_Flexas!U$31^2))/(8*C34) -> 36.13 | V34: =((Relat_Flechas!$D$12)*(Tabelas_de_Flexas!V$31^2))/(8*C34) -> 37.61 | W34: =((Relat_Flechas!$D$12)*(Tabelas_de_Flexas!W$31^2))/(8*C34) -> 39.13 | X34: =((Relat_Flechas!$D$12)*(Tabelas_de_Flexas!X$31^2))/(8*C34) -> 40.68 | Y34: =((Relat_Flechas!$D$12)*(Tabelas_de_Flexas!Y$31^2))/(8*C34) -> 42.26 | Z34: =((Relat_Flechas!$D$12)*(Tabelas_de_Flexas!Z$31^2))/(8*C34) -> 43.87
B35: 10 | C35: 129,32 | D35: =((Relat_Flechas!$D$12)*(Tabelas_de_Flexas!D$31^2))/(8*C35) -> 16.55 | E35: =((Relat_Flechas!$D$12)*(Tabelas_de_Flexas!E$31^2))/(8*C35) -> 17.61 | F35: =((Relat_Flechas!$D$12)*(Tabelas_de_Flexas!F$31^2))/(8*C35) -> 18.69 | G35: =((Relat_Flechas!$D$12)*(Tabelas_de_Flexas!G$31^2))/(8*C35) -> 19.80 | H35: =((Relat_Flechas!$D$12)*(Tabelas_de_Flexas!H$31^2))/(8*C35) -> 20.95 | I35: =((Relat_Flechas!$D$12)*(Tabelas_de_Flexas!I$31^2))/(8*C35) -> 22.13 | J35: =((Relat_Flechas!$D$12)*(Tabelas_de_Flexas!J$31^2))/(8*C35) -> 23.34 | K35: =((Relat_Flechas!$D$12)*(Tabelas_de_Flexas!K$31^2))/(8*C35) -> 24.59 | L35: =((Relat_Flechas!$D$12)*(Tabelas_de_Flexas!L$31^2))/(8*C35) -> 25.87 | M35: =((Relat_Flechas!$D$12)*(Tabelas_de_Flexas!M$31^2))/(8*C35) -> 27.18 | N35: =((Relat_Flechas!$D$12)*(Tabelas_de_Flexas!N$31^2))/(8*C35) -> 28.52 | O35: =((Relat_Flechas!$D$12)*(Tabelas_de_Flexas!O$31^2))/(8*C35) -> 29.89 | P35: =((Relat_Flechas!$D$12)*(Tabelas_de_Flexas!P$31^2))/(8*C35) -> 31.30 | Q35: =((Relat_Flechas!$D$12)*(Tabelas_de_Flexas!Q$31^2))/(8*C35) -> 32.74 | R35: =((Relat_Flechas!$D$12)*(Tabelas_de_Flexas!R$31^2))/(8*C35) -> 34.21 | S35: =((Relat_Flechas!$D$12)*(Tabelas_de_Flexas!S$31^2))/(8*C35) -> 35.71 | T35: =((Relat_Flechas!$D$12)*(Tabelas_de_Flexas!T$31^2))/(8*C35) -> 37.25 | U35: =((Relat_Flechas!$D$12)*(Tabelas_de_Flexas!U$31^2))/(8*C35) -> 38.82 | V35: =((Relat_Flechas!$D$12)*(Tabelas_de_Flexas!V$31^2))/(8*C35) -> 40.42 | W35: =((Relat_Flechas!$D$12)*(Tabelas_de_Flexas!W$31^2))/(8*C35) -> 42.05 | X35: =((Relat_Flechas!$D$12)*(Tabelas_de_Flexas!X$31^2))/(8*C35) -> 43.71 | Y35: =((Relat_Flechas!$D$12)*(Tabelas_de_Flexas!Y$31^2))/(8*C35) -> 45.41 | Z35: =((Relat_Flechas!$D$12)*(Tabelas_de_Flexas!Z$31^2))/(8*C35) -> 47.14
B36: 15 | C36: 121,42 | D36: =((Relat_Flechas!$D$12)*(Tabelas_de_Flexas!D$31^2))/(8*C36) -> 17.63 | E36: =((Relat_Flechas!$D$12)*(Tabelas_de_Flexas!E$31^2))/(8*C36) -> 18.75 | F36: =((Relat_Flechas!$D$12)*(Tabelas_de_Flexas!F$31^2))/(8*C36) -> 19.90 | G36: =((Relat_Flechas!$D$12)*(Tabelas_de_Flexas!G$31^2))/(8*C36) -> 21.09 | H36: =((Relat_Flechas!$D$12)*(Tabelas_de_Flexas!H$31^2))/(8*C36) -> 22.31 | I36: =((Relat_Flechas!$D$12)*(Tabelas_de_Flexas!I$31^2))/(8*C36) -> 23.57 | J36: =((Relat_Flechas!$D$12)*(Tabelas_de_Flexas!J$31^2))/(8*C36) -> 24.86 | K36: =((Relat_Flechas!$D$12)*(Tabelas_de_Flexas!K$31^2))/(8*C36) -> 26.19 | L36: =((Relat_Flechas!$D$12)*(Tabelas_de_Flexas!L$31^2))/(8*C36) -> 27.55 | M36: =((Relat_Flechas!$D$12)*(Tabelas_de_Flexas!M$31^2))/(8*C36) -> 28.94 | N36: =((Relat_Flechas!$D$12)*(Tabelas_de_Flexas!N$31^2))/(8*C36) -> 30.37 | O36: =((Relat_Flechas!$D$12)*(Tabelas_de_Flexas!O$31^2))/(8*C36) -> 31.84 | P36: =((Relat_Flechas!$D$12)*(Tabelas_de_Flexas!P$31^2))/(8*C36) -> 33.33 | Q36: =((Relat_Flechas!$D$12)*(Tabelas_de_Flexas!Q$31^2))/(8*C36) -> 34.87 | R36: =((Relat_Flechas!$D$12)*(Tabelas_de_Flexas!R$31^2))/(8*C36) -> 36.43 | S36: =((Relat_Flechas!$D$12)*(Tabelas_de_Flexas!S$31^2))/(8*C36) -> 38.03 | T36: =((Relat_Flechas!$D$12)*(Tabelas_de_Flexas!T$31^2))/(8*C36) -> 39.67 | U36: =((Relat_Flechas!$D$12)*(Tabelas_de_Flexas!U$31^2))/(8*C36) -> 41.34 | V36: =((Relat_Flechas!$D$12)*(Tabelas_de_Flexas!V$31^2))/(8*C36) -> 43.05 | W36: =((Relat_Flechas!$D$12)*(Tabelas_de_Flexas!W$31^2))/(8*C36) -> 44.78 | X36: =((Relat_Flechas!$D$12)*(Tabelas_de_Flexas!X$31^2))/(8*C36) -> 46.56 | Y36: =((Relat_Flechas!$D$12)*(Tabelas_de_Flexas!Y$31^2))/(8*C36) -> 48.37 | Z36: =((Relat_Flechas!$D$12)*(Tabelas_de_Flexas!Z$31^2))/(8*C36) -> 50.21
B37: 20 | C37: 114,80 | D37: =((Relat_Flechas!$D$12)*(Tabelas_de_Flexas!D$31^2))/(8*C37) -> 18.65 | E37: =((Relat_Flechas!$D$12)*(Tabelas_de_Flexas!E$31^2))/(8*C37) -> 19.83 | F37: =((Relat_Flechas!$D$12)*(Tabelas_de_Flexas!F$31^2))/(8*C37) -> 21.05 | G37: =((Relat_Flechas!$D$12)*(Tabelas_de_Flexas!G$31^2))/(8*C37) -> 22.31 | H37: =((Relat_Flechas!$D$12)*(Tabelas_de_Flexas!H$31^2))/(8*C37) -> 23.60 | I37: =((Relat_Flechas!$D$12)*(Tabelas_de_Flexas!I$31^2))/(8*C37) -> 24.93 | J37: =((Relat_Flechas!$D$12)*(Tabelas_de_Flexas!J$31^2))/(8*C37) -> 26.30 | K37: =((Relat_Flechas!$D$12)*(Tabelas_de_Flexas!K$31^2))/(8*C37) -> 27.70 | L37: =((Relat_Flechas!$D$12)*(Tabelas_de_Flexas!L$31^2))/(8*C37) -> 29.14 | M37: =((Relat_Flechas!$D$12)*(Tabelas_de_Flexas!M$31^2))/(8*C37) -> 30.61 | N37: =((Relat_Flechas!$D$12)*(Tabelas_de_Flexas!N$31^2))/(8*C37) -> 32.12 | O37: =((Relat_Flechas!$D$12)*(Tabelas_de_Flexas!O$31^2))/(8*C37) -> 33.67 | P37: =((Relat_Flechas!$D$12)*(Tabelas_de_Flexas!P$31^2))/(8*C37) -> 35.26 | Q37: =((Relat_Flechas!$D$12)*(Tabelas_de_Flexas!Q$31^2))/(8*C37) -> 36.88 | R37: =((Relat_Flechas!$D$12)*(Tabelas_de_Flexas!R$31^2))/(8*C37) -> 38.53 | S37: =((Relat_Flechas!$D$12)*(Tabelas_de_Flexas!S$31^2))/(8*C37) -> 40.23 | T37: =((Relat_Flechas!$D$12)*(Tabelas_de_Flexas!T$31^2))/(8*C37) -> 41.96 | U37: =((Relat_Flechas!$D$12)*(Tabelas_de_Flexas!U$31^2))/(8*C37) -> 43.72 | V37: =((Relat_Flechas!$D$12)*(Tabelas_de_Flexas!V$31^2))/(8*C37) -> 45.53 | W37: =((Relat_Flechas!$D$12)*(Tabelas_de_Flexas!W$31^2))/(8*C37) -> 47.37 | X37: =((Relat_Flechas!$D$12)*(Tabelas_de_Flexas!X$31^2))/(8*C37) -> 49.24 | Y37: =((Relat_Flechas!$D$12)*(Tabelas_de_Flexas!Y$31^2))/(8*C37) -> 51.15 | Z37: =((Relat_Flechas!$D$12)*(Tabelas_de_Flexas!Z$31^2))/(8*C37) -> 53.10
B38: 25 | C38: 109,14 | D38: =((Relat_Flechas!$D$12)*(Tabelas_de_Flexas!D$31^2))/(8*C38) -> 19.62 | E38: =((Relat_Flechas!$D$12)*(Tabelas_de_Flexas!E$31^2))/(8*C38) -> 20.86 | F38: =((Relat_Flechas!$D$12)*(Tabelas_de_Flexas!F$31^2))/(8*C38) -> 22.14 | G38: =((Relat_Flechas!$D$12)*(Tabelas_de_Flexas!G$31^2))/(8*C38) -> 23.47 | H38: =((Relat_Flechas!$D$12)*(Tabelas_de_Flexas!H$31^2))/(8*C38) -> 24.83 | I38: =((Relat_Flechas!$D$12)*(Tabelas_de_Flexas!I$31^2))/(8*C38) -> 26.22 | J38: =((Relat_Flechas!$D$12)*(Tabelas_de_Flexas!J$31^2))/(8*C38) -> 27.66 | K38: =((Relat_Flechas!$D$12)*(Tabelas_de_Flexas!K$31^2))/(8*C38) -> 29.14 | L38: =((Relat_Flechas!$D$12)*(Tabelas_de_Flexas!L$31^2))/(8*C38) -> 30.65 | M38: =((Relat_Flechas!$D$12)*(Tabelas_de_Flexas!M$31^2))/(8*C38) -> 32.20 | N38: =((Relat_Flechas!$D$12)*(Tabelas_de_Flexas!N$31^2))/(8*C38) -> 33.79 | O38: =((Relat_Flechas!$D$12)*(Tabelas_de_Flexas!O$31^2))/(8*C38) -> 35.42 | P38: =((Relat_Flechas!$D$12)*(Tabelas_de_Flexas!P$31^2))/(8*C38) -> 37.08 | Q38: =((Relat_Flechas!$D$12)*(Tabelas_de_Flexas!Q$31^2))/(8*C38) -> 38.79 | R38: =((Relat_Flechas!$D$12)*(Tabelas_de_Flexas!R$31^2))/(8*C38) -> 40.53 | S38: =((Relat_Flechas!$D$12)*(Tabelas_de_Flexas!S$31^2))/(8*C38) -> 42.31 | T38: =((Relat_Flechas!$D$12)*(Tabelas_de_Flexas!T$31^2))/(8*C38) -> 44.13 | U38: =((Relat_Flechas!$D$12)*(Tabelas_de_Flexas!U$31^2))/(8*C38) -> 45.99 | V38: =((Relat_Flechas!$D$12)*(Tabelas_de_Flexas!V$31^2))/(8*C38) -> 47.89 | W38: =((Relat_Flechas!$D$12)*(Tabelas_de_Flexas!W$31^2))/(8*C38) -> 49.82 | X38: =((Relat_Flechas!$D$12)*(Tabelas_de_Flexas!X$31^2))/(8*C38) -> 51.80 | Y38: =((Relat_Flechas!$D$12)*(Tabelas_de_Flexas!Y$31^2))/(8*C38) -> 53.81 | Z38: =((Relat_Flechas!$D$12)*(Tabelas_de_Flexas!Z$31^2))/(8*C38) -> 55.86
B39: 30 | C39: 104,24 | D39: =((Relat_Flechas!$D$12)*(Tabelas_de_Flexas!D$31^2))/(8*C39) -> 20.54 | E39: =((Relat_Flechas!$D$12)*(Tabelas_de_Flexas!E$31^2))/(8*C39) -> 21.84 | F39: =((Relat_Flechas!$D$12)*(Tabelas_de_Flexas!F$31^2))/(8*C39) -> 23.18 | G39: =((Relat_Flechas!$D$12)*(Tabelas_de_Flexas!G$31^2))/(8*C39) -> 24.57 | H39: =((Relat_Flechas!$D$12)*(Tabelas_de_Flexas!H$31^2))/(8*C39) -> 25.99 | I39: =((Relat_Flechas!$D$12)*(Tabelas_de_Flexas!I$31^2))/(8*C39) -> 27.46 | J39: =((Relat_Flechas!$D$12)*(Tabelas_de_Flexas!J$31^2))/(8*C39) -> 28.96 | K39: =((Relat_Flechas!$D$12)*(Tabelas_de_Flexas!K$31^2))/(8*C39) -> 30.50 | L39: =((Relat_Flechas!$D$12)*(Tabelas_de_Flexas!L$31^2))/(8*C39) -> 32.09 | M39: =((Relat_Flechas!$D$12)*(Tabelas_de_Flexas!M$31^2))/(8*C39) -> 33.71 | N39: =((Relat_Flechas!$D$12)*(Tabelas_de_Flexas!N$31^2))/(8*C39) -> 35.38 | O39: =((Relat_Flechas!$D$12)*(Tabelas_de_Flexas!O$31^2))/(8*C39) -> 37.08 | P39: =((Relat_Flechas!$D$12)*(Tabelas_de_Flexas!P$31^2))/(8*C39) -> 38.83 | Q39: =((Relat_Flechas!$D$12)*(Tabelas_de_Flexas!Q$31^2))/(8*C39) -> 40.61 | R39: =((Relat_Flechas!$D$12)*(Tabelas_de_Flexas!R$31^2))/(8*C39) -> 42.44 | S39: =((Relat_Flechas!$D$12)*(Tabelas_de_Flexas!S$31^2))/(8*C39) -> 44.30 | T39: =((Relat_Flechas!$D$12)*(Tabelas_de_Flexas!T$31^2))/(8*C39) -> 46.21 | U39: =((Relat_Flechas!$D$12)*(Tabelas_de_Flexas!U$31^2))/(8*C39) -> 48.15 | V39: =((Relat_Flechas!$D$12)*(Tabelas_de_Flexas!V$31^2))/(8*C39) -> 50.14 | W39: =((Relat_Flechas!$D$12)*(Tabelas_de_Flexas!W$31^2))/(8*C39) -> 52.17 | X39: =((Relat_Flechas!$D$12)*(Tabelas_de_Flexas!X$31^2))/(8*C39) -> 54.23 | Y39: =((Relat_Flechas!$D$12)*(Tabelas_de_Flexas!Y$31^2))/(8*C39) -> 56.34 | Z39: =((Relat_Flechas!$D$12)*(Tabelas_de_Flexas!Z$31^2))/(8*C39) -> 58.48
B40: 35 | C40: 99,94 | D40: =((Relat_Flechas!$D$12)*(Tabelas_de_Flexas!D$31^2))/(8*C40) -> 21.42 | E40: =((Relat_Flechas!$D$12)*(Tabelas_de_Flexas!E$31^2))/(8*C40) -> 22.78 | F40: =((Relat_Flechas!$D$12)*(Tabelas_de_Flexas!F$31^2))/(8*C40) -> 24.18 | G40: =((Relat_Flechas!$D$12)*(Tabelas_de_Flexas!G$31^2))/(8*C40) -> 25.63 | H40: =((Relat_Flechas!$D$12)*(Tabelas_de_Flexas!H$31^2))/(8*C40) -> 27.11 | I40: =((Relat_Flechas!$D$12)*(Tabelas_de_Flexas!I$31^2))/(8*C40) -> 28.64 | J40: =((Relat_Flechas!$D$12)*(Tabelas_de_Flexas!J$31^2))/(8*C40) -> 30.21 | K40: =((Relat_Flechas!$D$12)*(Tabelas_de_Flexas!K$31^2))/(8*C40) -> 31.82 | L40: =((Relat_Flechas!$D$12)*(Tabelas_de_Flexas!L$31^2))/(8*C40) -> 33.47 | M40: =((Relat_Flechas!$D$12)*(Tabelas_de_Flexas!M$31^2))/(8*C40) -> 35.16 | N40: =((Relat_Flechas!$D$12)*(Tabelas_de_Flexas!N$31^2))/(8*C40) -> 36.90 | O40: =((Relat_Flechas!$D$12)*(Tabelas_de_Flexas!O$31^2))/(8*C40) -> 38.68 | P40: =((Relat_Flechas!$D$12)*(Tabelas_de_Flexas!P$31^2))/(8*C40) -> 40.50 | Q40: =((Relat_Flechas!$D$12)*(Tabelas_de_Flexas!Q$31^2))/(8*C40) -> 42.36 | R40: =((Relat_Flechas!$D$12)*(Tabelas_de_Flexas!R$31^2))/(8*C40) -> 44.26 | S40: =((Relat_Flechas!$D$12)*(Tabelas_de_Flexas!S$31^2))/(8*C40) -> 46.21 | T40: =((Relat_Flechas!$D$12)*(Tabelas_de_Flexas!T$31^2))/(8*C40) -> 48.20 | U40: =((Relat_Flechas!$D$12)*(Tabelas_de_Flexas!U$31^2))/(8*C40) -> 50.23 | V40: =((Relat_Flechas!$D$12)*(Tabelas_de_Flexas!V$31^2))/(8*C40) -> 52.30 | W40: =((Relat_Flechas!$D$12)*(Tabelas_de_Flexas!W$31^2))/(8*C40) -> 54.41 | X40: =((Relat_Flechas!$D$12)*(Tabelas_de_Flexas!X$31^2))/(8*C40) -> 56.56 | Y40: =((Relat_Flechas!$D$12)*(Tabelas_de_Flexas!Y$31^2))/(8*C40) -> 58.76 | Z40: =((Relat_Flechas!$D$12)*(Tabelas_de_Flexas!Z$31^2))/(8*C40) -> 61.00
B41: 40 | C41: 96,13 | D41: =((Relat_Flechas!$D$12)*(Tabelas_de_Flexas!D$31^2))/(8*C41) -> 22.27 | E41: =((Relat_Flechas!$D$12)*(Tabelas_de_Flexas!E$31^2))/(8*C41) -> 23.68 | F41: =((Relat_Flechas!$D$12)*(Tabelas_de_Flexas!F$31^2))/(8*C41) -> 25.14 | G41: =((Relat_Flechas!$D$12)*(Tabelas_de_Flexas!G$31^2))/(8*C41) -> 26.64 | H41: =((Relat_Flechas!$D$12)*(Tabelas_de_Flexas!H$31^2))/(8*C41) -> 28.19 | I41: =((Relat_Flechas!$D$12)*(Tabelas_de_Flexas!I$31^2))/(8*C41) -> 29.77 | J41: =((Relat_Flechas!$D$12)*(Tabelas_de_Flexas!J$31^2))/(8*C41) -> 31.40 | K41: =((Relat_Flechas!$D$12)*(Tabelas_de_Flexas!K$31^2))/(8*C41) -> 33.08 | L41: =((Relat_Flechas!$D$12)*(Tabelas_de_Flexas!L$31^2))/(8*C41) -> 34.80 | M41: =((Relat_Flechas!$D$12)*(Tabelas_de_Flexas!M$31^2))/(8*C41) -> 36.56 | N41: =((Relat_Flechas!$D$12)*(Tabelas_de_Flexas!N$31^2))/(8*C41) -> 38.36 | O41: =((Relat_Flechas!$D$12)*(Tabelas_de_Flexas!O$31^2))/(8*C41) -> 40.21 | P41: =((Relat_Flechas!$D$12)*(Tabelas_de_Flexas!P$31^2))/(8*C41) -> 42.10 | Q41: =((Relat_Flechas!$D$12)*(Tabelas_de_Flexas!Q$31^2))/(8*C41) -> 44.04 | R41: =((Relat_Flechas!$D$12)*(Tabelas_de_Flexas!R$31^2))/(8*C41) -> 46.02 | S41: =((Relat_Flechas!$D$12)*(Tabelas_de_Flexas!S$31^2))/(8*C41) -> 48.04 | T41: =((Relat_Flechas!$D$12)*(Tabelas_de_Flexas!T$31^2))/(8*C41) -> 50.11 | U41: =((Relat_Flechas!$D$12)*(Tabelas_de_Flexas!U$31^2))/(8*C41) -> 52.22 | V41: =((Relat_Flechas!$D$12)*(Tabelas_de_Flexas!V$31^2))/(8*C41) -> 54.37 | W41: =((Relat_Flechas!$D$12)*(Tabelas_de_Flexas!W$31^2))/(8*C41) -> 56.57 | X41: =((Relat_Flechas!$D$12)*(Tabelas_de_Flexas!X$31^2))/(8*C41) -> 58.81 | Y41: =((Relat_Flechas!$D$12)*(Tabelas_de_Flexas!Y$31^2))/(8*C41) -> 61.09 | Z41: =((Relat_Flechas!$D$12)*(Tabelas_de_Flexas!Z$31^2))/(8*C41) -> 63.42
B42: 45 | C42: 92,71 | D42: =((Relat_Flechas!$D$12)*(Tabelas_de_Flexas!D$31^2))/(8*C42) -> 23.09 | E42: =((Relat_Flechas!$D$12)*(Tabelas_de_Flexas!E$31^2))/(8*C42) -> 24.56 | F42: =((Relat_Flechas!$D$12)*(Tabelas_de_Flexas!F$31^2))/(8*C42) -> 26.07 | G42: =((Relat_Flechas!$D$12)*(Tabelas_de_Flexas!G$31^2))/(8*C42) -> 27.62 | H42: =((Relat_Flechas!$D$12)*(Tabelas_de_Flexas!H$31^2))/(8*C42) -> 29.23 | I42: =((Relat_Flechas!$D$12)*(Tabelas_de_Flexas!I$31^2))/(8*C42) -> 30.87 | J42: =((Relat_Flechas!$D$12)*(Tabelas_de_Flexas!J$31^2))/(8*C42) -> 32.56 | K42: =((Relat_Flechas!$D$12)*(Tabelas_de_Flexas!K$31^2))/(8*C42) -> 34.30 | L42: =((Relat_Flechas!$D$12)*(Tabelas_de_Flexas!L$31^2))/(8*C42) -> 36.08 | M42: =((Relat_Flechas!$D$12)*(Tabelas_de_Flexas!M$31^2))/(8*C42) -> 37.91 | N42: =((Relat_Flechas!$D$12)*(Tabelas_de_Flexas!N$31^2))/(8*C42) -> 39.78 | O42: =((Relat_Flechas!$D$12)*(Tabelas_de_Flexas!O$31^2))/(8*C42) -> 41.70 | P42: =((Relat_Flechas!$D$12)*(Tabelas_de_Flexas!P$31^2))/(8*C42) -> 43.66 | Q42: =((Relat_Flechas!$D$12)*(Tabelas_de_Flexas!Q$31^2))/(8*C42) -> 45.66 | R42: =((Relat_Flechas!$D$12)*(Tabelas_de_Flexas!R$31^2))/(8*C42) -> 47.72 | S42: =((Relat_Flechas!$D$12)*(Tabelas_de_Flexas!S$31^2))/(8*C42) -> 49.81 | T42: =((Relat_Flechas!$D$12)*(Tabelas_de_Flexas!T$31^2))/(8*C42) -> 51.96 | U42: =((Relat_Flechas!$D$12)*(Tabelas_de_Flexas!U$31^2))/(8*C42) -> 54.14 | V42: =((Relat_Flechas!$D$12)*(Tabelas_de_Flexas!V$31^2))/(8*C42) -> 56.38 | W42: =((Relat_Flechas!$D$12)*(Tabelas_de_Flexas!W$31^2))/(8*C42) -> 58.65 | X42: =((Relat_Flechas!$D$12)*(Tabelas_de_Flexas!X$31^2))/(8*C42) -> 60.98 | Y42: =((Relat_Flechas!$D$12)*(Tabelas_de_Flexas!Y$31^2))/(8*C42) -> 63.34 | Z42: =((Relat_Flechas!$D$12)*(Tabelas_de_Flexas!Z$31^2))/(8*C42) -> 65.76
B43: 50 | C43: 89,64 | D43: =((Relat_Flechas!$D$12)*(Tabelas_de_Flexas!D$31^2))/(8*C43) -> 23.88 | E43: =((Relat_Flechas!$D$12)*(Tabelas_de_Flexas!E$31^2))/(8*C43) -> 25.40 | F43: =((Relat_Flechas!$D$12)*(Tabelas_de_Flexas!F$31^2))/(8*C43) -> 26.96 | G43: =((Relat_Flechas!$D$12)*(Tabelas_de_Flexas!G$31^2))/(8*C43) -> 28.57 | H43: =((Relat_Flechas!$D$12)*(Tabelas_de_Flexas!H$31^2))/(8*C43) -> 30.23 | I43: =((Relat_Flechas!$D$12)*(Tabelas_de_Flexas!I$31^2))/(8*C43) -> 31.93 | J43: =((Relat_Flechas!$D$12)*(Tabelas_de_Flexas!J$31^2))/(8*C43) -> 33.68 | K43: =((Relat_Flechas!$D$12)*(Tabelas_de_Flexas!K$31^2))/(8*C43) -> 35.47 | L43: =((Relat_Flechas!$D$12)*(Tabelas_de_Flexas!L$31^2))/(8*C43) -> 37.32 | M43: =((Relat_Flechas!$D$12)*(Tabelas_de_Flexas!M$31^2))/(8*C43) -> 39.21 | N43: =((Relat_Flechas!$D$12)*(Tabelas_de_Flexas!N$31^2))/(8*C43) -> 41.14 | O43: =((Relat_Flechas!$D$12)*(Tabelas_de_Flexas!O$31^2))/(8*C43) -> 43.12 | P43: =((Relat_Flechas!$D$12)*(Tabelas_de_Flexas!P$31^2))/(8*C43) -> 45.15 | Q43: =((Relat_Flechas!$D$12)*(Tabelas_de_Flexas!Q$31^2))/(8*C43) -> 47.23 | R43: =((Relat_Flechas!$D$12)*(Tabelas_de_Flexas!R$31^2))/(8*C43) -> 49.35 | S43: =((Relat_Flechas!$D$12)*(Tabelas_de_Flexas!S$31^2))/(8*C43) -> 51.52 | T43: =((Relat_Flechas!$D$12)*(Tabelas_de_Flexas!T$31^2))/(8*C43) -> 53.73 | U43: =((Relat_Flechas!$D$12)*(Tabelas_de_Flexas!U$31^2))/(8*C43) -> 56.00 | V43: =((Relat_Flechas!$D$12)*(Tabelas_de_Flexas!V$31^2))/(8*C43) -> 58.31 | W43: =((Relat_Flechas!$D$12)*(Tabelas_de_Flexas!W$31^2))/(8*C43) -> 60.66 | X43: =((Relat_Flechas!$D$12)*(Tabelas_de_Flexas!X$31^2))/(8*C43) -> 63.06 | Y43: =((Relat_Flechas!$D$12)*(Tabelas_de_Flexas!Y$31^2))/(8*C43) -> 65.51 | Z43: =((Relat_Flechas!$D$12)*(Tabelas_de_Flexas!Z$31^2))/(8*C43) -> 68.01

Sheet Caracteristica_CABO
O5: equação dos dois estados
A6: BITOLAS | B6: DIÂMETRO | C6: SEÇÃO | D6: PESO | E6: Mod. DA | G6: COEF. | H6: TRAÇÃO DE | I6: TRAÇÃO MÁXIMA DE | J6: TRAÇÃO MÁXIMA DE | K6: TRUP. EDS | L6: TRUP.EDS | M6: TRAÇÃO MÁXIMA DE RUP. | N6: TRAÇÃO MÁXIMA DE rup. | O6: Temperatura / velocidade deo vento | S6: temperatura / velocidade deo vento | W6: TEMP EDS | X6: TEMP .EDS | Y6: VENTO EDS | Z6: VENTO EDS | AA6: Encordoamento
E7: ELAST. | G7: DE DILAT. | H7: RUPTURA | I7: RUPT. Urbano | J7: RUPT. Rural | K7: Urbano | L7: Rural | M7: ancorado | N7: ancorado | O7: temp. urbano | P7: temp .urbano | Q7: vento urbana | R7: vento urbana | S7: temp. rural | T7: temp . Rural | U7: vento rural | V7: vento rural | W7: Urbano | X7: Rural | Y7: Urbano | Z7: Rural
B8: D (m) | C8: S (m²) | D8: P (kg/m) | E8: E (kg/mm²) | G8: F (°C-¹ x 10-6 | H8: T (kgf) | I8: continuo (%) | J8: continuo (%) | M8: Urbano | N8: Rural | O8: verão | P8: inverno | Q8: verão | R8: inverno | S8: verão | T8: inverno | U8: verão | V8: inverno
A9: Cabo | E9: inicial | F9: final
A10: 4 CAA | B10: 0.00635 | C10: 2.466e-05 | D10: 0.0854 | E10: 8000000000 | F10: 8,000 | G10: 1.91e-05 | H10: 829 | I10: 40 | J10: 40 | K10: 18 | L10: 18 | M10: 33.33 | N10: 33.33 | O10: 15 | P10: 0 | Q10: 60 | R10: 0 | S10: 15 | T10: -5 | U10: 130 | V10: 65 | W10: 20 | X10: 20 | AB10: =RIGHT(A10,3) -> CAA | AC10: AWG | AD10: 4 | AE10: =VLOOKUP(AB10,Parametros!$E$44:$F$55,2,FALSE)&" "&AD10& " "&AC10 -> Cabo de Alumínio com Alma de Aço - CAA 4 AWG
A11: 2 CAA | B11: 0.00802 | C11: 3.925e-05 | D11: 0.1359 | E11: 8000000000 | F11: 8,000 | G11: 1.91e-05 | H11: 1263 | I11: 40 | J11: 40 | K11: 18 | L11: 18 | M11: 33.33 | N11: 33.33 | O11: 15 | P11: 0 | Q11: 60 | R11: 0 | S11: 15 | T11: -5 | U11: 130 | V11: 65 | W11: 20 | X11: 20 | AB11: CAA | AC11: AWG | AD11: 2 | AE11: =VLOOKUP(AB11,Parametros!$E$44:$F$55,2,FALSE)&" "&AD11& " "&AC11 -> Cabo de Alumínio com Alma de Aço - CAA 2 AWG
A12: 1/0 CAA | B12: 0.01011 | C12: 6.247e-05 | D12: 0.2163 | E12: 8000000000 | F12: 8,000 | G12: 1.91e-05 | H12: 1949 | I12: 40 | J12: 40 | K12: 18 | L12: 18 | M12: 33.33 | N12: 33.33 | O12: 15 | P12: 0 | Q12: 60 | R12: 0 | S12: 15 | T12: -5 | U12: 130 | V12: 65 | W12: 20 | X12: 20 | AB12: CAA | AC12: AWG | AD12: 1/0 | AE12: =VLOOKUP(AB12,Parametros!$E$44:$F$55,2,FALSE)&" "&AD12& " "&AC12 -> Cabo de Alumínio com Alma de Aço - CAA 1/0 AWG
A13: 2/0 CAA | B13: 0.01134 | C13: 6.743e-05 | D13: 0.2721 | E13: 8000000000 | F13: 8,000 | G13: 1.91e-05 | H13: 2425 | I13: 40 | J13: 40 | K13: 18 | L13: 18 | M13: 33.33 | N13: 33.33 | O13: 15 | P13: 0 | Q13: 60 | R13: 0 | S13: 15 | T13: -5 | U13: 130 | V13: 65 | W13: 20 | X13: 20 | AB13: CAA | AC13: AWG | AD13: 2/0 | AE13: =VLOOKUP(AB13,Parametros!$E$44:$F$55,2,FALSE)&" "&AD13& " "&AC13 -> Cabo de Alumínio com Alma de Aço - CAA 2/0 AWG
A14: 3/0 CAA | B14: 0.01274 | C14: 9.916e-05 | D14: 0.3434 | E14: 8000000000 | F14: 8,000 | G14: 1.91e-05 | H14: 2945 | I14: 40 | J14: 40 | K14: 18 | L14: 18 | M14: 33.33 | N14: 33.33 | O14: 15 | P14: 0 | Q14: 60 | R14: 0 | S14: 15 | T14: -5 | U14: 130 | V14: 65 | W14: 20 | X14: 20 | AB14: CAA | AC14: AWG | AD14: 3/0 | AE14: =VLOOKUP(AB14,Parametros!$E$44:$F$55,2,FALSE)&" "&AD14& " "&AC14 -> Cabo de Alumínio com Alma de Aço - CAA 3/0 AWG | AG14: Dados das NBRs 7270 e 7271.
A15: 4/0 CAA | B15: 0.01431 | C15: 0.0001251 | D15: 0.4322 | E15: 8000000000 | F15: 8,000 | G15: 1.91e-05 | H15: 3714 | I15: 40 | J15: 40 | K15: 18 | L15: 18 | M15: 33.33 | N15: 33.33 | O15: 15 | P15: 0 | Q15: 60 | R15: 0 | S15: 15 | T15: -5 | U15: 130 | V15: 65 | W15: 20 | X15: 20 | AB15: CAA | AC15: AWG | AD15: 4/0 | AE15: =VLOOKUP(AB15,Parametros!$E$44:$F$55,2,FALSE)&" "&AD15& " "&AC15 -> Cabo de Alumínio com Alma de Aço - CAA 4/0 AWG
A16: 336,4 CAA (LINNET) | B16: 0.01829 | C16: 0.00019803 | D16: 0.6873 | E16: 8000000000 | F16: 8,000 | G16: 1.89e-05 | H16: 6310 | I16: 40 | J16: 40 | K16: 18 | L16: 18 | M16: 33.33 | N16: 33.33 | O16: 15 | P16: 0 | Q16: 60 | R16: 0 | S16: 15 | T16: -5 | U16: 130 | V16: 65 | W16: 20 | X16: 20 | AB16: CAA | AC16: MCM | AD16: 336,4 (LINNET) | AE16: =VLOOKUP(AB16,Parametros!$E$44:$F$55,2,FALSE)&" "&AD16& " "&AC16 -> Cabo de Alumínio com Alma de Aço - CAA 336,4 (LINNET) MCM
A17: 336,4 CAA (MERLIN) | B17: 0.01736 | C17: 0.00017989 | D17: 0.5425 | E17: 7000000000 | F17: 8,000 | G17: 2.12e-05 | H17: 3795 | I17: 40 | J17: 40 | K17: 18 | L17: 18 | M17: 33.33 | N17: 33.33 | O17: 15 | P17: 0 | Q17: 60 | R17: 0 | S17: 15 | T17: -5 | U17: 130 | V17: 65 | W17: 20 | X17: 20 | AB17: CAA | AC17: MCM | AD17: 336,4 (MERLIN) | AE17: =VLOOKUP(AB17,Parametros!$E$44:$F$55,2,FALSE)&" "&AD17& " "&AC17 -> Cabo de Alumínio com Alma de Aço - CAA 336,4 (MERLIN) MCM
A18: 336,4 CAA (ORIOLE) | B18: 0.01883 | C18: 0.00021028 | D18: 0.7821 | E18: 8000000000 | F18: 8,000 | G18: 1.78e-05 | H18: 7782 | I18: 40 | J18: 40 | K18: 18 | L18: 18 | M18: 33.33 | N18: 33.33 | O18: 15 | P18: 0 | Q18: 60 | R18: 0 | S18: 15 | T18: -5 | U18: 130 | V18: 65 | W18: 20 | X18: 20 | AB18: CAA | AC18: MCM | AD18: 336,4 (ORIOLE) | AE18: =VLOOKUP(AB18,Parametros!$E$44:$F$55,2,FALSE)&" "&AD18& " "&AC18 -> Cabo de Alumínio com Alma de Aço - CAA 336,4 (ORIOLE) MCM
A19: 4 CA | B19: 0.00588 | C19: 2.114e-05 | D19: 0.0584 | E19: 6118000000 | F19: 6,180 | G19: 2.304e-05 | H19: 390 | I19: 40 | J19: 40 | K19: 18 | L19: 18 | M19: 33.33 | N19: 33.33 | O19: 15 | P19: 0 | Q19: 60 | R19: 0 | S19: 15 | T19: -5 | U19: 130 | V19: 65 | W19: 20 | X19: 20 | AB19: =RIGHT(A19,2) -> CA | AC19: AWG | AD19: 4 | AE19: =VLOOKUP(AB19,Parametros!$E$44:$F$55,2,FALSE)&" "&AD19& " "&AC19 -> Cabo de Alumínio - CA 4 AWG
A20: 2 CA | B20: 0.00742 | C20: 3.365e-05 | D20: 0.0923 | E20: 6118000000 | F20: 6,180 | G20: 2.304e-05 | H20: 599 | I20: 40 | J20: 40 | K20: 18 | L20: 18 | M20: 33.33 | N20: 33.33 | O20: 15 | P20: 0 | Q20: 60 | R20: 0 | S20: 15 | T20: -5 | U20: 130 | V20: 65 | W20: 20 | X20: 20 | AB20: =RIGHT(A20,2) -> CA | AC20: AWG | AD20: 2 | AE20: =VLOOKUP(AB20,Parametros!$E$44:$F$55,2,FALSE)&" "&AD20& " "&AC20 -> Cabo de Alumínio - CA 2 AWG
A21: 1/0 CA | B21: 0.00936 | C21: 5.348e-05 | D21: 0.1467 | E21: 6118000000 | F21: 6,180 | G21: 2.304e-05 | H21: 881 | I21: 40 | J21: 40 | K21: 18 | L21: 18 | M21: 33.33 | N21: 33.33 | O21: 15 | P21: 0 | Q21: 60 | R21: 0 | S21: 15 | T21: -5 | U21: 130 | V21: 65 | W21: 20 | X21: 20 | AB21: CA | AC21: AWG | AD21: 1/0 | AE21: =VLOOKUP(AB21,Parametros!$E$44:$F$55,2,FALSE)&" "&AD21& " "&AC21 -> Cabo de Alumínio - CA 1/0 AWG
A22: 2/0 CA | B22: 0.01134 | C22: 6.743e-05 | D22: 0.1844 | E22: 6118000000 | F22: 8,000 | G22: 2.304e-05 | H22: 1139 | I22: 40 | J22: 40 | K22: 18 | L22: 18 | M22: 33.33 | N22: 33.33 | O22: 15 | P22: 0 | Q22: 60 | R22: 0 | S22: 15 | T22: -5 | U22: 130 | V22: 65 | W22: 20 | X22: 20 | AB22: CA | AC22: AWG | AD22: 2/0 | AE22: =VLOOKUP(AB22,Parametros!$E$44:$F$55,2,FALSE)&" "&AD22& " "&AC22 -> Cabo de Alumínio - CA 2/0 AWG | AG22: Dados das NBRs 7270 e 7271.
A23: 3/0 CA | B23: 0.0118 | C23: 8.499e-05 | D23: 0.2344 | E23: 6118000000 | F23: 6,180 | G23: 2.304e-05 | H23: 1344 | I23: 40 | J23: 40 | K23: 18 | L23: 18 | M23: 33.33 | N23: 33.33 | O23: 15 | P23: 0 | Q23: 60 | R23: 0 | S23: 15 | T23: -5 | U23: 130 | V23: 65 | W23: 20 | X23: 20 | AB23: CA | AC23: AWG | AD23: 3/0 | AE23: =VLOOKUP(AB23,Parametros!$E$44:$F$55,2,FALSE)&" "&AD23& " "&AC23 -> Cabo de Alumínio - CA 3/0 AWG
A24: 4/0 CA | B24: 0.01325 | C24: 0.00010725 | D24: 0.2943 | E24: 6118000000 | F24: 6,180 | G24: 2.304e-05 | H24: 1696 | I24: 40 | J24: 40 | K24: 18 | L24: 18 | M24: 33.33 | N24: 33.33 | O24: 15 | P24: 0 | Q24: 60 | R24: 0 | S24: 15 | T24: -5 | U24: 130 | V24: 65 | W24: 20 | X24: 20 | AB24: CA | AC24: AWG | AD24: 4/0 | AE24: =VLOOKUP(AB24,Parametros!$E$44:$F$55,2,FALSE)&" "&AD24& " "&AC24 -> Cabo de Alumínio - CA 4/0 AWG
A25: 336,4 CA | B25: 0.0169 | C25: 0.00017057 | D25: 0.4703 | E25: 5812000000 | F25: 6,180 | G25: 2.304e-05 | H25: 2722 | I25: 40 | J25: 40 | K25: 18 | L25: 18 | M25: 33.33 | N25: 33.33 | O25: 15 | P25: 0 | Q25: 60 | R25: 0 | S25: 15 | T25: -5 | U25: 130 | V25: 65 | W25: 20 | X25: 20 | AB25: CA | AC25: AWG | AD25: 336.4 | AE25: =VLOOKUP(AB25,Parametros!$E$44:$F$55,2,FALSE)&" "&AD25& " "&AC25 -> Cabo de Alumínio - CA 336,4 AWG
A26: 6 CC | B26: 0.00411 | C26: 1.33e-05 | D26: 0.118 | E26: 9800000000 | F26: 12,000 | G26: 1.6e-05 | H26: 459 | I26: 50 | J26: 50 | K26: 20 | L26: 20 | M26: 33.33 | N26: 33.33 | O26: 15 | P26: 0 | Q26: 60 | R26: 0 | S26: 15 | T26: -5 | U26: 130 | V26: 65 | W26: 20 | X26: 20 | AB26: CC | AC26: AWG | AD26: 6 | AE26: =VLOOKUP(AB26,Parametros!$E$44:$F$55,2,FALSE)&" "&AD26& " "&AC26 -> Cabo de cobre - CC 6 AWG
A27: 4 CC | B27: 0.00519 | C27: 2.115e-05 | D27: 0.188 | E27: 9800000000 | F27: 12,000 | G27: 1.6e-05 | H27: 715 | I27: 50 | J27: 50 | K27: 20 | L27: 20 | M27: 33.33 | N27: 33.33 | O27: 15 | P27: 0 | Q27: 60 | R27: 0 | S27: 15 | T27: -5 | U27: 130 | V27: 65 | W27: 20 | X27: 20 | AB27: CC | AC27: AWG | AD27: 4 | AE27: =VLOOKUP(AB27,Parametros!$E$44:$F$55,2,FALSE)&" "&AD27& " "&AC27 -> Cabo de cobre - CC 4 AWG
A28: 2 CC | B28: 0.00742 | C28: 3.363e-05 | D28: 0.305 | E28: 9800000000 | F28: 12,000 | G28: 1.6e-05 | H28: 1074 | I28: 50 | J28: 50 | K28: 20 | L28: 20 | M28: 33.33 | N28: 33.33 | O28: 15 | P28: 0 | Q28: 60 | R28: 0 | S28: 15 | T28: -5 | U28: 130 | V28: 65 | W28: 20 | X28: 20 | AB28: CC | AC28: AWG | AD28: 2 | AE28: =VLOOKUP(AB28,Parametros!$E$44:$F$55,2,FALSE)&" "&AD28& " "&AC28 -> Cabo de cobre - CC 2 AWG
A29: 1/0 CC | B29: 0.00936 | C29: 5.346e-05 | D29: 0.485 | E29: 9800000000 | F29: 12,000 | G29: 1.6e-05 | H29: 1684 | I29: 50 | J29: 50 | K29: 20 | L29: 20 | M29: 33.33 | N29: 33.33 | O29: 15 | P29: 0 | Q29: 60 | R29: 0 | S29: 15 | T29: -5 | U29: 130 | V29: 65 | W29: 20 | X29: 20 | AB29: CC | AC29: AWG | AD29: 1/0 | AE29: =VLOOKUP(AB29,Parametros!$E$44:$F$55,2,FALSE)&" "&AD29& " "&AC29 -> Cabo de cobre - CC 1/0 AWG
A30: 2/0 CC | B30: 0.01051 | C30: 6.744e-05 | D30: 0.611 | E30: 9800000000 | F30: 12,000 | G30: 1.6e-05 | H30: 2094 | I30: 50 | J30: 50 | K30: 20 | L30: 20 | M30: 33.33 | N30: 33.33 | O30: 15 | P30: 0 | Q30: 60 | R30: 0 | S30: 15 | T30: -5 | U30: 130 | V30: 65 | W30: 20 | X30: 20 | AB30: CC | AC30: AWG | AD30: 2/0 | AE30: =VLOOKUP(AB30,Parametros!$E$44:$F$55,2,FALSE)&" "&AD30& " "&AC30 -> Cabo de cobre - CC 2/0 AWG
A31: 3/0 CC | B31: 0.0118 | C31: 8.502e-05 | D31: 0.771 | E31: 9800000000 | F31: 12,000 | G31: 1.6e-05 | H31: 2640 | I31: 50 | J31: 50 | K31: 20 | L31: 20 | M31: 33.33 | N31: 33.33 | O31: 15 | P31: 0 | Q31: 60 | R31: 0 | S31: 15 | T31: -5 | U31: 130 | V31: 65 | W31: 20 | X31: 20 | AB31: CC | AC31: AWG | AD31: 3/0 | AE31: =VLOOKUP(AB31,Parametros!$E$44:$F$55,2,FALSE)&" "&AD31& " "&AC31 -> Cabo de cobre - CC 3/0 AWG | AG31: Dados das NT - Tabelas Praticas, CEE/1975
A32: 4/0 CC | B32: 0.01325 | C32: 0.0001072 | D32: 0.972 | E32: 9800000000 | F32: 12,000 | G32: 1.6e-05 | H32: 3280 | I32: 50 | J32: 50 | K32: 20 | L32: 20 | M32: 33.33 | N32: 33.33 | O32: 15 | P32: 0 | Q32: 60 | R32: 0 | S32: 15 | T32: -5 | U32: 130 | V32: 65 | W32: 20 | X32: 20 | AB32: CC | AC32: AWG | AD32: 4/0 | AE32: =VLOOKUP(AB32,Parametros!$E$44:$F$55,2,FALSE)&" "&AD32& " "&AC32 -> Cabo de cobre - CC 4/0 AWG
A33: CAZ 3,09 | B33: 0.00309 | C33: 7.5e-06 | D33: 0.059 | E33: 20000000000 | F33: 20,000 | G33: 1.15e-05 | H33: 1075 | I33: 40 | J33: 40 | K33: 25 | L33: 25 | M33: 33.33 | N33: 33.33 | O33: 15 | P33: 0 | Q33: 60 | R33: 0 | S33: 15 | T33: 5 | U33: 130 | V33: 65 | W33: 15 | X33: 15 | AB33: CAZ | AC33: mm² | AD33: 3.09 | AE33: =VLOOKUP(AB33,Parametros!$E$44:$F$55,2,FALSE)&" "&AD33& " "&AC33 -> Cabo de Aço Zincado - CAZ 3,09 mm²
A34: CAZ 4,17 | B34: 0.00487 | C34: 1.193e-05 | D34: 0.096 | E34: 18500000000 | F34: 16,000 | G34: 1.15e-05 | H34: 1670 | I34: 40 | J34: 40 | K34: 25 | L34: 25 | M34: 33.33 | N34: 33.33 | O34: 15 | P34: 0 | Q34: 60 | R34: 0 | S34: 15 | T34: 5 | U34: 130 | V34: 65 | W34: 15 | X34: 15 | AB34: CAZ | AC34: mm² | AD34: 4.17 | AE34: =VLOOKUP(AB34,Parametros!$E$44:$F$55,2,FALSE)&" "&AD34& " "&AC34 -> Cabo de Aço Zincado - CAZ 4,17 mm²
A35: 4 CAL | B35: 0.00588 | C35: 2.114e-05 | D35: 0.05789 | E35: 7000000000 | F35: 7,000 | G35: 2.304e-05 | H35: 671 | I35: 40 | J35: 40 | K35: 18 | L35: 18 | M35: 33.33 | N35: 33.33 | O35: 15 | P35: 0 | Q35: 60 | R35: 0 | S35: 15 | T35: -5 | U35: 130 | V35: 65 | W35: 20 | X35: 20 | AB35: =RIGHT(A35,3) -> CAL | AC35: AWG | AD35: 4 | AE35: =VLOOKUP(AB35,Parametros!$E$44:$F$55,2,FALSE)&" "&AD35& " "&AC35 -> Cabo de Liga de Alumínio - CAL 4 AWG | AG35: Nota: ELETROBRAS - DEER
A36: 2 CAL | B36: 0.00742 | C36: 3.365e-05 | D36: 0.09214 | E36: 7000000000 | F36: 7,000 | G36: 2.304e-05 | H36: 1066 | I36: 40 | J36: 40 | K36: 18 | L36: 18 | M36: 33.33 | N36: 33.33 | O36: 15 | P36: 0 | Q36: 60 | R36: 0 | S36: 15 | T36: -5 | U36: 130 | V36: 65 | W36: 20 | X36: 20 | AB36: CAL | AC36: AWG | AD36: 2 | AE36: =VLOOKUP(AB36,Parametros!$E$44:$F$55,2,FALSE)&" "&AD36& " "&AC36 -> Cabo de Liga de Alumínio - CAL 2 AWG
A37: 1/0 CAL | B37: 0.00936 | C37: 5.348e-05 | D37: 0.1465 | E37: 7000000000 | F37: 7,000 | G37: 2.304e-05 | H37: 1701 | I37: 40 | J37: 40 | K37: 18 | L37: 18 | M37: 33.33 | N37: 33.33 | O37: 15 | P37: 0 | Q37: 60 | R37: 0 | S37: 15 | T37: -5 | U37: 130 | V37: 65 | W37: 20 | X37: 20 | AB37: CAL | AC37: AWG | AD37: 1/0 | AE37: =VLOOKUP(AB37,Parametros!$E$44:$F$55,2,FALSE)&" "&AD37& " "&AC37 -> Cabo de Liga de Alumínio - CAL 1/0 AWG
A38: 2/0 CAL | B38: 0.0105 | C38: 6.743e-05 | D38: 0.1847 | E38: 7000000000 | F38: 7,000 | G38: 2.304e-05 | H38: 2050 | I38: 40 | J38: 40 | K38: 18 | L38: 18 | M38: 33.33 | N38: 33.33 | O38: 15 | P38: 0 | Q38: 60 | R38: 0 | S38: 15 | T38: -5 | U38: 130 | V38: 65 | W38: 20 | X38: 20 | AB38: CAL | AC38: AWG | AD38: 2/0 | AE38: =VLOOKUP(AB38,Parametros!$E$44:$F$55,2,FALSE)&" "&AD38& " "&AC38 -> Cabo de Liga de Alumínio - CAL 2/0 AWG
A39: 3/0 CAL | B39: 0.0118 | C39: 8.499e-05 | D39: 0.2327 | E39: 7000000000 | F39: 7,000 | G39: 2.304e-05 | H39: 2584 | I39: 40 | J39: 40 | K39: 18 | L39: 18 | M39: 33.33 | N39: 33.33 | O39: 15 | P39: 0 | Q39: 60 | R39: 0 | S39: 15 | T39: -5 | U39: 130 | V39: 65 | W39: 20 | X39: 20 | AB39: CAL | AC39: AWG | AD39: 3/0 | AE39: =VLOOKUP(AB39,Parametros!$E$44:$F$55,2,FALSE)&" "&AD39& " "&AC39 -> Cabo de Liga de Alumínio - CAL 3/0 AWG
A40: 4/0 CAL | B40: 0.01325 | C40: 0.00010725 | D40: 0.2937 | E40: 5600000000 | F40: 7,000 | G40: 2.304e-05 | H40: 3269 | I40: 40 | J40: 40 | K40: 18 | L40: 18 | M40: 33.33 | N40: 33.33 | O40: 15 | P40: 0 | Q40: 60 | R40: 0 | S40: 15 | T40: -5 | U40: 130 | V40: 65 | W40: 20 | X40: 20 | AB40: CAL | AC40: AWG | AD40: 4/0 | AE40: =VLOOKUP(AB40,Parametros!$E$44:$F$55,2,FALSE)&" "&AD40& " "&AC40 -> Cabo de Liga de Alumínio - CAL 4/0 AWG
A41: 250 CAL | B41: 0.01455 | C41: 0.0001267 | D41: 0.3469 | E41: 5600000000 | F41: 7,000 | G41: 2.304e-05 | H41: 3890 | I41: 40 | J41: 40 | K41: 18 | L41: 18 | M41: 33.33 | N41: 33.33 | O41: 15 | P41: 0 | Q41: 60 | R41: 0 | S41: 15 | T41: -5 | U41: 130 | V41: 65 | W41: 20 | X41: 20 | AB41: CAL | AC41: AWG | AD41: 250 | AE41: =VLOOKUP(AB41,Parametros!$E$44:$F$55,2,FALSE)&" "&AD41& " "&AC41 -> Cabo de Liga de Alumínio - CAL 250 AWG
A42: 300 CAL | B42: 0.01595 | C42: 0.000152 | D42: 0.4166 | E42: 6500000000 | F42: 7,000 | G42: 2.304e-05 | H42: 4674 | I42: 40 | J42: 40 | K42: 18 | L42: 18 | M42: 33.33 | N42: 33.33 | O42: 15 | P42: 0 | Q42: 60 | R42: 0 | S42: 15 | T42: -5 | U42: 130 | V42: 65 | W42: 20 | X42: 20 | AB42: CAL | AC42: AWG | AD42: 300 | AE42: =VLOOKUP(AB42,Parametros!$E$44:$F$55,2,FALSE)&" "&AD42& " "&AC42 -> Cabo de Liga de Alumínio - CAL 300 AWG
A43: 350 CAL | B43: 0.01725 | C43: 0.0001773 | D43: 0.4855 | E43: 6500000000 | F43: 7,000 | G43: 2.304e-05 | H43: 5236 | I43: 40 | J43: 40 | K43: 18 | L43: 18 | M43: 33.33 | N43: 33.33 | O43: 15 | P43: 0 | Q43: 60 | R43: 0 | S43: 15 | T43: -5 | U43: 130 | V43: 65 | W43: 20 | X43: 20 | AB43: CAL | AC43: AWG | AD43: 350 | AE43: =VLOOKUP(AB43,Parametros!$E$44:$F$55,2,FALSE)&" "&AD43& " "&AC43 -> Cabo de Liga de Alumínio - CAL 350 AWG
A44: 400 CAL | B44: 0.01845 | C44: 0.0002027 | D44: 0.5551 | E44: 6500000000 | F44: 7,000 | G44: 2.304e-05 | H44: 5990 | I44: 40 | J44: 40 | K44: 18 | L44: 18 | M44: 33.33 | N44: 33.33 | O44: 15 | P44: 0 | Q44: 60 | R44: 0 | S44: 15 | T44: -5 | U44: 130 | V44: 65 | W44: 20 | X44: 20 | AB44: CAL | AC44: AWG | AD44: 400 | AE44: =VLOOKUP(AB44,Parametros!$E$44:$F$55,2,FALSE)&" "&AD44& " "&AC44 -> Cabo de Liga de Alumínio - CAL 400 AWG
A45: 450 CAL | B45: 0.01955 | C45: 0.000228 | D45: 0.6244 | E45: 6500000000 | F45: 7,000 | G45: 2.304e-05 | H45: 6726 | I45: 40 | J45: 40 | K45: 18 | L45: 18 | M45: 33.33 | N45: 33.33 | O45: 15 | P45: 0 | Q45: 60 | R45: 0 | S45: 15 | T45: -5 | U45: 130 | V45: 65 | W45: 20 | X45: 20 | AB45: CAL | AC45: AWG | AD45: 450 | AE45: =VLOOKUP(AB45,Parametros!$E$44:$F$55,2,FALSE)&" "&AD45& " "&AC45 -> Cabo de Liga de Alumínio - CAL 450 AWG
A46: 6,35 AÇO | B46: 0.006365 | C46: 2.115e-05 | D46: 0.1804 | E46: 18500000000 | F46: 16,000 | G46: 1.89e-05 | H46: 1430 | I46: 22 | J46: 22 | K46: 4.6 | L46: 4.6 | M46: 10 | N46: 10 | O46: 15 | P46: 0 | Q46: 60 | R46: 0 | S46: 15 | T46: -5 | U46: 130 | V46: 65 | W46: 20 | X46: 20 | AB46: AÇO | AC46: AWG | AD46: 6.35 | AE46: =VLOOKUP(AB46,Parametros!$E$44:$F$55,2,FALSE)&" "&AD46& " "&AC46 -> Cabo de Aço 6,35 AWG
A47: 7,94 AÇO | B47: 0.00794 | C47: 4.215e-05 | D47: 0.3051 | E47: 18500000000 | F47: 16,000 | G47: 1.89e-05 | H47: 3620 | I47: 22 | J47: 22 | K47: 4.6 | L47: 4.6 | M47: 10 | N47: 10 | O47: 15 | P47: 0 | Q47: 60 | R47: 0 | S47: 15 | T47: -5 | U47: 130 | V47: 65 | W47: 20 | X47: 20 | AB47: AÇO | AC47: AWG | AD47: 7.94 | AE47: =VLOOKUP(AB47,Parametros!$E$44:$F$55,2,FALSE)&" "&AD47& " "&AC47 -> Cabo de Aço 7,94 AWG
A48: 9,53 AÇO | B48: 0.00953 | C48: 5.114e-05 | D48: =0.4068 -> 0.4068 | E48: 18500000000 | F48: 16,000 | G48: 1.15e-05 | H48: 4900 | I48: 22 | J48: 22 | K48: 4.6 | L48: 4.6 | M48: 10 | N48: 10 | O48: 15 | P48: 0 | Q48: 60 | R48: 0 | S48: 15 | T48: -5 | U48: 60 | V48: 0 | W48: 20 | X48: 20 | AB48: AÇO | AC48: AWG | AD48: 9.53 | AE48: =VLOOKUP(AB48,Parametros!$E$44:$F$55,2,FALSE)&" "&AD48& " "&AC48 -> Cabo de Aço 9,53 AWG
A49: 35 mm² 15kV | B49: =13.6/1000 -> 0.0136 | C49: =33.65/10^6 -> 3.365e-05 | D49: 0.19 | E49: 6118000000 | F49: 6,180 | G49: 2.304e-05 | H49: 464 | I49: 10 | J49: 10 | K49: 2.3 | L49: 2.3 | M49: 10 | N49: 10 | O49: 15 | P49: 0 | Q49: 60 | R49: 0 | S49: 15 | T49: -5 | U49: 60 | V49: 0 | W49: 20 | X49: 20 | AB49: XLPE | AC49: ="mm² "&RIGHT(A49,4) -> mm² 15kV | AD49: 35 | AE49: =VLOOKUP(AB49,Parametros!$E$44:$F$55,2,FALSE)&" "&AD49& " "&AC49 -> Cabo Protegido - XLPE 35 mm² 15kV
A50: 50 mm² 15kV | B50: =14.7/1000 -> 0.0147 | C50: =50/10^6 -> 5e-05 | D50: 0.235 | E50: 6118000000 | F50: 6,180 | G50: 2.304e-05 | H50: 663 | I50: 10 | J50: 10 | K50: 2.3 | L50: 2.3 | M50: 10 | N50: 10 | O50: 15 | P50: 0 | Q50: 60 | R50: 0 | S50: 15 | T50: -5 | U50: 60 | V50: 0 | W50: 20 | X50: 20 | AB50: XLPE | AC50: ="mm² "&RIGHT(A50,4) -> mm² 15kV | AD50: 50 | AE50: =VLOOKUP(AB50,Parametros!$E$44:$F$55,2,FALSE)&" "&AD50& " "&AC50 -> Cabo Protegido - XLPE 50 mm² 15kV
A51: 70 mm² 15kV | B51: =16/1000 -> 0.016 | C51: =70/10^6 -> 7e-05 | D51: 0.315 | E51: 8000000000 | F51: 8,000 | G51: 1.91e-05 | H51: 928 | I51: 10 | J51: 10 | K51: 2.3 | L51: 2.3 | M51: 10 | N51: 10 | O51: 15 | P51: 0 | Q51: 60 | R51: 0 | S51: 15 | T51: -5 | U51: 60 | V51: 0 | W51: 20 | X51: 20 | AB51: XLPE | AC51: mm² 15kV | AD51: 70 | AE51: =VLOOKUP(AB51,Parametros!$E$44:$F$55,2,FALSE)&" "&AD51& " "&AC51 -> Cabo Protegido - XLPE 70 mm² 15kV
A52: 95 mm² 15kV | B52: =18/1000 -> 0.018 | C52: =95/10^6 -> 9.5e-05 | D52: 0.4 | E52: 8000000000 | F52: 8,000 | G52: 1.91e-05 | H52: 1259 | I52: 10 | J52: 10 | K52: 2.3 | L52: 2.3 | M52: 10 | N52: 10 | O52: 15 | P52: 0 | Q52: 60 | R52: 0 | S52: 15 | T52: -5 | U52: 60 | V52: 0 | W52: 20 | X52: 20 | AB52: XLPE | AC52: mm² 15kV | AD52: 95 | AE52: =VLOOKUP(AB52,Parametros!$E$44:$F$55,2,FALSE)&" "&AD52& " "&AC52 -> Cabo Protegido - XLPE 95 mm² 15kV
A53: 120 mm² 15kV | B53: =19.4/1000 -> 0.0194 | C53: =120/10^6 -> 0.00012 | D53: 0.5 | E53: 8000000000 | F53: 8,000 | G53: 1.91e-05 | H53: 1591 | I53: 10 | J53: 10 | K53: 2.3 | L53: 2.3 | M53: 10 | N53: 10 | O53: 15 | P53: 0 | Q53: 60 | R53: 0 | S53: 15 | T53: -5 | U53: 60 | V53: 0 | W53: 20 | X53: 20 | AB53: XLPE | AC53: mm² 15kV | AD53: 120 | AE53: =VLOOKUP(AB53,Parametros!$E$44:$F$55,2,FALSE)&" "&AD53& " "&AC53 -> Cabo Protegido - XLPE 120 mm² 15kV
A54: 150 mm² 15kV | B54: =20.7/1000 -> 0.0207 | C54: =150/10^6 -> 0.00015 | D54: 0.58 | E54: 8000000000 | F54: 8,000 | G54: 1.91e-05 | H54: 1988 | I54: 10 | J54: 10 | K54: 2.3 | L54: 2.3 | M54: 10 | N54: 10 | O54: 15 | P54: 0 | Q54: 60 | R54: 0 | S54: 15 | T54: -5 | U54: 60 | V54: 0 | W54: 20 | X54: 20 | AB54: XLPE | AC54: mm² 15kV | AD54: 150 | AE54: =VLOOKUP(AB54,Parametros!$E$44:$F$55,2,FALSE)&" "&AD54& " "&AC54 -> Cabo Protegido - XLPE 150 mm² 15kV
A55: 185 mm² 15kV | B55: =22.6/1000 -> 0.0226 | C55: =185/10^6 -> 0.000185 | D55: 0.695 | E55: 7000000000 | F55: 8,000 | G55: 2.12e-05 | H55: 2452 | I55: 10 | J55: 10 | K55: 2.3 | L55: 2.3 | M55: 10 | N55: 10 | O55: 15 | P55: 0 | Q55: 60 | R55: 0 | S55: 15 | T55: -5 | U55: 60 | V55: 0 | W55: 20 | X55: 20 | AB55: XLPE | AC55: mm² 15kV | AD55: 185 | AE55: =VLOOKUP(AB55,Parametros!$E$44:$F$55,2,FALSE)&" "&AD55& " "&AC55 -> Cabo Protegido - XLPE 185 mm² 15kV
A56: 35 mm² 25kV | B56: =15.7/1000 -> 0.0157 | C56: =33.65/10^6 -> 3.365e-05 | D56: 0.235 | E56: 6118000000 | F56: 6,180 | G56: 2.304e-05 | H56: 464 | I56: 10 | J56: 10 | K56: 2.3 | L56: 2.3 | M56: 10 | N56: 10 | O56: 15 | P56: 0 | Q56: 60 | R56: 0 | S56: 15 | T56: -5 | U56: 60 | V56: 0 | W56: 20 | X56: 20 | AB56: XLPE | AC56: mm² 25kV | AD56: 35 | AE56: =VLOOKUP(AB56,Parametros!$E$44:$F$55,2,FALSE)&" "&AD56& " "&AC56 -> Cabo Protegido - XLPE 35 mm² 25kV
A57: 50 mm² 25kV | B57: =16.8/1000 -> 0.0168 | C57: =50/10^6 -> 5e-05 | D57: 0.285 | E57: 6118000000 | F57: 6,180 | G57: 2.304e-05 | H57: 663 | I57: 10 | J57: 10 | K57: 2.3 | L57: 2.3 | M57: 10 | N57: 10 | O57: 15 | P57: 0 | Q57: 60 | R57: 0 | S57: 15 | T57: -5 | U57: 60 | V57: 0 | W57: 20 | X57: 20 | AB57: XLPE | AC57: mm² 25kV | AD57: 50 | AE57: =VLOOKUP(AB57,Parametros!$E$44:$F$55,2,FALSE)&" "&AD57& " "&AC57 -> Cabo Protegido - XLPE 50 mm² 25kV
A58: 70 mm² 25kV | B58: =18.3/1000 -> 0.0183 | C58: =70/10^6 -> 7e-05 | D58: 0.37 | E58: 8000000000 | F58: 8,000 | G58: 1.91e-05 | H58: 928 | I58: 10 | J58: 10 | K58: 2.3 | L58: 2.3 | M58: 10 | N58: 10 | O58: 15 | P58: 0 | Q58: 60 | R58: 0 | S58: 15 | T58: -5 | U58: 60 | V58: 0 | W58: 20 | X58: 20 | AB58: XLPE | AC58: mm² 25kV | AD58: 70 | AE58: =VLOOKUP(AB58,Parametros!$E$44:$F$55,2,FALSE)&" "&AD58& " "&AC58 -> Cabo Protegido - XLPE 70 mm² 25kV
A59: 95 mm² 25kV | B59: =20.1/1000 -> 0.0201 | C59: =95/10^6 -> 9.5e-05 | D59: 0.46 | E59: 8000000000 | F59: 8,000 | G59: 1.91e-05 | H59: 1259 | I59: 10 | J59: 10 | K59: 2.3 | L59: 2.3 | M59: 10 | N59: 10 | O59: 15 | P59: 0 | Q59: 60 | R59: 0 | S59: 15 | T59: -5 | U59: 60 | V59: 0 | W59: 20 | X59: 20 | AB59: XLPE | AC59: mm² 25kV | AD59: 95 | AE59: =VLOOKUP(AB59,Parametros!$E$44:$F$55,2,FALSE)&" "&AD59& " "&AC59 -> Cabo Protegido - XLPE 95 mm² 25kV
A60: 120 mm² 25kV | B60: =21.5/1000 -> 0.0215 | C60: =120/10^6 -> 0.00012 | D60: 0.65 | E60: 8000000000 | F60: 8,000 | G60: 1.91e-05 | H60: 1591 | I60: 10 | J60: 10 | K60: 2.3 | L60: 2.3 | M60: 10 | N60: 10 | O60: 15 | P60: 0 | Q60: 60 | R60: 0 | S60: 15 | T60: -5 | U60: 60 | V60: 0 | W60: 20 | X60: 20 | AB60: XLPE | AC60: mm² 25kV | AD60: 120 | AE60: =VLOOKUP(AB60,Parametros!$E$44:$F$55,2,FALSE)&" "&AD60& " "&AC60 -> Cabo Protegido - XLPE 120 mm² 25kV
A61: 150 mm² 25kV | B61: =22.8/1000 -> 0.0228 | C61: =150/10^6 -> 0.00015 | D61: 0.77 | E61: 8000000000 | F61: 8,000 | G61: 1.91e-05 | H61: 1988 | I61: 10 | J61: 10 | K61: 2.3 | L61: 2.3 | M61: 10 | N61: 10 | O61: 15 | P61: 0 | Q61: 60 | R61: 0 | S61: 15 | T61: -5 | U61: 60 | V61: 0 | W61: 20 | X61: 20 | AB61: XLPE | AC61: mm² 25kV | AD61: 150 | AE61: =VLOOKUP(AB61,Parametros!$E$44:$F$55,2,FALSE)&" "&AD61& " "&AC61 -> Cabo Protegido - XLPE 150 mm² 25kV
A62: 185 mm² 25kV | B62: =24.8/1000 -> 0.0248 | C62: =185/10^6 -> 0.000185 | D62: 0.663 | E62: 7000000000 | F62: 8,000 | G62: 2.12e-05 | H62: 2452 | I62: 10 | J62: 10 | K62: 2.3 | L62: 2.3 | M62: 10 | N62: 10 | O62: 15 | P62: 0 | Q62: 60 | R62: 0 | S62: 15 | T62: -5 | U62: 60 | V62: 0 | W62: 20 | X62: 20 | AB62: XLPE | AC62: mm² 25kV | AD62: 185 | AE62: =VLOOKUP(AB62,Parametros!$E$44:$F$55,2,FALSE)&" "&AD62& " "&AC62 -> Cabo Protegido - XLPE 185 mm² 25kV
A63: 1#35(35CAL)CA-XLPE | B63: =17.7/1000 -> 0.0177 | C63: =((B63/2)^2)*PI() -> 0.0002460573906 | D63: 0.235 | E63: 6600000000 | F63: 66,000 | G63: 2.304e-05 | H63: 1222 | I63: 20 | J63: 20 | K63: 12 | L63: 12 | M63: 20 | N63: 20 | O63: 15 | P63: 0 | Q63: 60 | R63: 0 | S63: 15 | T63: -5 | U63: 60 | V63: 0 | W63: 20 | X63: 20 | AB63: CA-XLPE | AC63: mm² | AD63: 35 | AE63: =VLOOKUP(AB63,Parametros!$E$44:$F$55,2,FALSE)& " "&A63 -> Cabo Multiplexado 1#35(35CAL)CA-XLPE
A64: 1#50(50CAL)CA-XLPE | B64: =20.4/1000 -> 0.0204 | C64: 0.0003268512997 | D64: 0.313 | E64: 6600000000 | F64: 66,000 | G64: 2.304e-05 | H64: 1640 | I64: 20 | J64: 20 | K64: 12 | L64: 12 | M64: 20 | N64: 20 | O64: 15 | P64: 0 | Q64: 60 | R64: 0 | S64: 15 | T64: -5 | U64: 60 | V64: 0 | W64: 20 | X64: 20 | AB64: CA-XLPE | AC64: mm² | AD64: 50 | AE64: =VLOOKUP(AB64,Parametros!$E$44:$F$55,2,FALSE)& " "&A64 -> Cabo Multiplexado 1#50(50CAL)CA-XLPE
A65: 2#35(35CAL)CA-XLPE | B65: =22.4/1000 -> 0.0224 | C65: 0.0003940813825 | D65: 0.375 | E65: 6600000000 | F65: 66,000 | G65: 2.304e-05 | H65: 1222 | I65: 20 | J65: 20 | K65: 12 | L65: 12 | M65: 20 | N65: 20 | O65: 15 | P65: 0 | Q65: 60 | R65: 0 | S65: 15 | T65: -5 | U65: 60 | V65: 0 | W65: 20 | X65: 20 | AB65: CA-XLPE | AC65: mm² | AD65: 35 | AE65: =VLOOKUP(AB65,Parametros!$E$44:$F$55,2,FALSE)& " "&A65 -> Cabo Multiplexado 2#35(35CAL)CA-XLPE
A66: 2#50(50CAL)CA-XLPE | B66: =24.9/1000 -> 0.0249 | C66: 0.0004869547153 | D66: 0.491 | E66: 6600000000 | F66: 66,000 | G66: 2.304e-05 | H66: 1640 | I66: 20 | J66: 20 | K66: 12 | L66: 12 | M66: 20 | N66: 20 | O66: 15 | P66: 0 | Q66: 60 | R66: 0 | S66: 15 | T66: -5 | U66: 60 | V66: 0 | W66: 20 | X66: 20 | AB66: CA-XLPE | AC66: mm² | AD66: 50 | AE66: =VLOOKUP(AB66,Parametros!$E$44:$F$55,2,FALSE)& " "&A66 -> Cabo Multiplexado 2#50(50CAL)CA-XLPE
A67: 3#35(35CAL)CA-XLPE | B67: =25.1/1000 -> 0.0251 | C67: 0.0004948086969 | D67: 0.515 | E67: 6600000000 | F67: 66,000 | G67: 2.304e-05 | H67: 1222 | I67: 20 | J67: 20 | K67: 12 | L67: 12 | M67: 20 | N67: 20 | O67: 15 | P67: 0 | Q67: 60 | R67: 0 | S67: 15 | T67: -5 | U67: 60 | V67: 0 | W67: 20 | X67: 20 | AB67: CA-XLPE | AC67: mm² | AD67: 35 | AE67: =VLOOKUP(AB67,Parametros!$E$44:$F$55,2,FALSE)& " "&A67 -> Cabo Multiplexado 3#35(35CAL)CA-XLPE
A68: 3#50(50CAL)CA-XLPE | B68: 0.0279 | C68: 0.0006113617844 | D68: 0.669 | E68: 6600000000 | F68: 66,000 | G68: 2.304e-05 | H68: 1640 | I68: 20 | J68: 20 | K68: 12 | L68: 12 | M68: 20 | N68: 20 | O68: 15 | P68: 0 | Q68: 60 | R68: 0 | S68: 15 | T68: -5 | U68: 60 | V68: 0 | W68: 20 | X68: 20 | AB68: CA-XLPE | AC68: mm² | AD68: 50 | AE68: =VLOOKUP(AB68,Parametros!$E$44:$F$55,2,FALSE)& " "&A68 -> Cabo Multiplexado 3#50(50CAL)CA-XLPE
A69: 3#70(70CAL)CA-XLPE | B69: 0.0327 | C69: 0.0008398184021 | D69: 0.931 | E69: 6600000000 | F69: 66,000 | G69: 2.304e-05 | H69: 2169 | I69: 20 | J69: 20 | K69: 12 | L69: 12 | M69: 20 | N69: 20 | O69: 15 | P69: 0 | Q69: 60 | R69: 0 | S69: 15 | T69: -5 | U69: 60 | V69: 0 | W69: 20 | X69: 20 | AB69: CA-XLPE | AC69: mm² | AD69: 70 | AE69: =VLOOKUP(AB69,Parametros!$E$44:$F$55,2,FALSE)& " "&A69 -> Cabo Multiplexado 3#70(70CAL)CA-XLPE
A70: 3#95(70CAL)CA-XLPE | B70: 0.03751 | C70: 0.001105055294 | D70: =1267/1000 -> 1.267 | E70: 6400000000 | F70: 64,000 | G70: 2.304e-05 | H70: 2169 | I70: 20 | J70: 20 | K70: 12 | L70: 12 | M70: 20 | N70: 20 | O70: 15 | P70: 0 | Q70: 60 | R70: 0 | S70: 15 | T70: -5 | U70: 60 | V70: 0 | W70: 20 | X70: 20 | AB70: CA-XLPE | AC70: mm² | AD70: 95 | AE70: =VLOOKUP(AB70,Parametros!$E$44:$F$55,2,FALSE)& " "&A70 -> Cabo Multiplexado 3#95(70CAL)CA-XLPE
A71: 3#120(70CAL)CA-XLPE | B71: 0.0411 | C71: 0.001326702432 | D71: =(1449/1000) -> 1.449 | E71: 6400000000 | F71: 64,000 | G71: 2.304e-05 | H71: 2169 | I71: 20 | J71: 20 | K71: 12 | L71: 12 | M71: 20 | N71: 20 | O71: 15 | P71: 0 | Q71: 60 | R71: 0 | S71: 15 | T71: -5 | U71: 60 | V71: 0 | W71: 20 | X71: 20 | AB71: CA-XLPE | AC71: mm² | AD71: 120 | AE71: =VLOOKUP(AB71,Parametros!$E$44:$F$55,2,FALSE)& " "&A71 -> Cabo Multiplexado 3#120(70CAL)CA-XLPE
A86: Método para descobrir a Sção

Sheet Engastamento (hidden)
AD2: 30
A3: CÁLCULO DO ENGASTAMENTO
A4: Poste de concreto Tronco Cônico | E4: DADOS DO POSTE | H4: dados escora | K4: dados da base concretada | O4: VALOR DA TRAÇÃO NO TOPO (daN) | S4: Poste | W4: Valores para Critários de Projetos
A5: Comprimento | C5: carga | D5: peso | E5: t | F5: h* | G5: b | H5: m | I5: n | J5: c | K5: d | L5: P | M5: q | N5: K | O5: SIMPLES | P5: ESCORA SIMPLES | Q5: ESCORA DUPLA | R5: CONCRETADO | T5: Tipo Poste | W5: SIMPLES | X5: ESCORA SIMPLES | Y5: ESCORA DUPLA | Z5: CONCRETADO
A6: =CONCATENATE(B6,C6) -> 9150 | B6: 9 | C6: =IF(Padroes!C10="","",Padroes!C10) -> 150 | D6: =IF(Padroes!D10="","",Padroes!D10) -> 670 | E6: =IF(D6="","",(0.6+0.1*B6)) -> 1.5 | F6: =IF(E6="","",(B6-E6-0.5)) -> 7.00 | G6: =IF(Padroes!E10="","",Padroes!E10) -> 0.32 | H6: =IF(E6="","",Padroes!S$8) -> 1.00 | I6: =IF(E6="","",Padroes!S$9) -> 0.20 | J6: =IF(E6="","",Padroes!S$10) -> 0.50 | K6: =IF(Padroes!AL13="","",Padroes!AL13) -> 0.60 | L6: =IF(D6="","",(D6+(3.1416*K6^2*M6/4*2400))) -> 1077 | M6: =Padroes!$AL$8 -> 0.60 | N6: =IF(E6="","",Padroes!$AL$23) -> 1.00 | O6: =IF(E6="","",($B$63*G6*E6^3)/(F6+E6)) -> 254 | P6: =IF(E6="","",(3*$B$63*(2*J6*I6 - I6^2)*(H6-G6))*(E6-J6+I6/2)/(F6+E6/2) + O6) -> 347 | Q6: =IF(E6="","",(3*$B$63 * (2*E6*I6-I6^2)*(H6-G6) ) * (I6/2) / (F6+E6) + P6) -> 374 | R6: =IF(E6="","",(N6*$B$63*K6*E6^3)/(F6+E6) + (K6*L6/(F6+E6)) * (0.5 - (2*L6/(3*$C$63*K6^2)))) -> 508 | S6: 9 | T6: =IF(Padroes!F10="","",Padroes!F10) -> C-14 | W6: =IF(O6="","",O6*Parametros!$I$26) -> 203 | X6: =IF(P6="","",P6*Parametros!$I$27) -> 277 | Y6: =IF(Q6="","",Q6*Parametros!$I$28) -> 299 | Z6: =IF(R6="","",R6*Parametros!$I$29) -> 407
A7: =CONCATENATE(B7,C7) -> 9200 | B7: 9 | C7: =IF(Padroes!C11="","",Padroes!C11) -> 200 | D7: =IF(Padroes!D11="","",Padroes!D11) -> 670 | E7: =IF(D7="","",(0.6+0.1*B7)) -> 1.5 | F7: =IF(E7="","",(B7-E7-0.5)) -> 7.00 | G7: =IF(Padroes!E11="","",Padroes!E11) -> 0.32 | H7: =IF(E7="","",Padroes!S$8) -> 1.00 | I7: =IF(E7="","",Padroes!S$9) -> 0.20 | J7: =IF(E7="","",Padroes!S$10) -> 0.50 | K7: =IF(Padroes!AL15="","",Padroes!AL15) -> 0.70 | L7: =IF(D7="","",(D7+(3.1416*K7^2*M7/4*2400))) -> 1224 | M7: =Padroes!$AL$8 -> 0.60 | N7: =IF(E7="","",Padroes!$AL$23) -> 1.00 | O7: 254 | P7: 347 | Q7: 374 | R7: 600 | T7: =IF(Padroes!F11="","",Padroes!F11) -> C-14 | W7: =IF(O7="","",O7*Parametros!$I$26) -> 203 | X7: =IF(P7="","",P7*Parametros!$I$27) -> 277 | Y7: =IF(Q7="","",Q7*Parametros!$I$28) -> 299 | Z7: =IF(R7="","",R7*Parametros!$I$29) -> 480
A8: 9300 | B8: 9 | C8: =IF(Padroes!C12="","",Padroes!C12) -> 300 | D8: =IF(Padroes!D12="","",Padroes!D12) -> 820 | E8: 1.5 | F8: 7.00 | G8: =IF(Padroes!E12="","",Padroes!E12) -> 0.35 | H8: =IF(E8="","",Padroes!S$8) -> 1.00 | I8: =IF(E8="","",Padroes!S$9) -> 0.20 | J8: =IF(E8="","",Padroes!S$10) -> 0.50 | K8: =IF(Padroes!AL16="","",Padroes!AL16) -> 0.90 | L8: 1736 | M8: =Padroes!$AL$8 -> 0.60 | N8: =IF(E8="","",Padroes!$AL$23) -> 1.00 | O8: 278 | P8: 367 | Q8: 392 | R8: 796 | T8: =IF(Padroes!F12="","",Padroes!F12) -> C-17 | W8: =IF(O8="","",O8*Parametros!$I$26) -> 222 | X8: =IF(P8="","",P8*Parametros!$I$27) -> 293 | Y8: =IF(Q8="","",Q8*Parametros!$I$28) -> 314 | Z8: =IF(R8="","",R8*Parametros!$I$29) -> 637
A9: 9400 | B9: 9 | C9: =IF(Padroes!C13="","",Padroes!C13) -> 400 | D9: =IF(Padroes!D13="","",Padroes!D13) -> 820 | E9: 1.5 | F9: 7.00 | G9: =IF(Padroes!E13="","",Padroes!E13) -> 0.35 | H9: =IF(E9="","",Padroes!S$8) -> 1.00 | I9: =IF(E9="","",Padroes!S$9) -> 0.20 | J9: =IF(E9="","",Padroes!S$10) -> 0.50 | K9: =IF(Padroes!AL17="","",Padroes!AL17) -> 1.30 | L9: 2731 | M9: =Padroes!$AL$8 -> 0.60 | N9: =IF(E9="","",Padroes!$AL$23) -> 1.00 | O9: 278 | P9: 367 | Q9: 392 | R9: 1223 | T9: =IF(Padroes!F13="","",Padroes!F13) -> C-17 | W9: =IF(O9="","",O9*Parametros!$I$26) -> 222 | X9: =IF(P9="","",P9*Parametros!$I$27) -> 293 | Y9: =IF(Q9="","",Q9*Parametros!$I$28) -> 314 | Z9: =IF(R9="","",R9*Parametros!$I$29) -> 979
A10: 9600 | B10: 9 | C10: =IF(Padroes!C14="","",Padroes!C14) -> 600 | D10: =IF(Padroes!D14="","",Padroes!D14) -> 1000 | E10: 1.5 | F10: 7.00 | G10: =IF(Padroes!E14="","",Padroes!E14) -> 0.37 | H10: =IF(E10="","",Padroes!S$8) -> 1.00 | I10: =IF(E10="","",Padroes!S$9) -> 0.20 | J10: =IF(E10="","",Padroes!S$10) -> 0.50 | K10: =IF(Padroes!AL18="","",Padroes!AL18) -> 1.60 | L10: 3895 | M10: =Padroes!$AL$8 -> 0.60 | N10: =IF(E10="","",Padroes!$AL$23) -> 1.00 | O10: 294 | P10: 380 | Q10: 405 | R10: 1607 | T10: =IF(Padroes!F14="","",Padroes!F14) -> C-19 | W10: =IF(O10="","",O10*Parametros!$I$26) -> 235 | X10: =IF(P10="","",P10*Parametros!$I$27) -> 304 | Y10: =IF(Q10="","",Q10*Parametros!$I$28) -> 324 | Z10: =IF(R10="","",R10*Parametros!$I$29) -> 1286
A11: 91000 | B11: 9 | C11: =IF(Padroes!C15="","",Padroes!C15) -> 1000 | D11: =IF(Padroes!D15="","",Padroes!D15) -> 1160 | E11: 1.5 | F11: 7.00 | G11: =IF(Padroes!E15="","",Padroes!E15) -> 0.41 | H11: =IF(E11="","",Padroes!S$8) -> 1.00 | I11: =IF(E11="","",Padroes!S$9) -> 0.20 | J11: =IF(E11="","",Padroes!S$10) -> 0.50 | K11: =IF(Padroes!AL19="","",Padroes!AL19) -> 1.60 | L11: 4055 | M11: =Padroes!$AL$8 -> 0.60 | N11: =IF(E11="","",Padroes!$AL$23) -> 1.00 | O11: 326 | P11: 406 | Q11: 429 | R11: 1620 | T11: =IF(Padroes!F15="","",Padroes!F15) -> C-23 | W11: =IF(O11="","",O11*Parametros!$I$26) -> 260 | X11: =IF(P11="","",P11*Parametros!$I$27) -> 325 | Y11: =IF(Q11="","",Q11*Parametros!$I$28) -> 343 | Z11: =IF(R11="","",R11*Parametros!$I$29) -> 1296
C12: =IF(Padroes!C16="","",Padroes!C16) ->  | D12: =IF(Padroes!D16="","",Padroes!D16) ->  | G12: =IF(Padroes!E16="","",Padroes!E16) ->  | H12: =IF(E12="","",Padroes!S$8) ->  | I12: =IF(E12="","",Padroes!S$9) ->  | J12: =IF(E12="","",Padroes!S$10) ->  | K12: =IF(Padroes!AL20="","",Padroes!AL20) -> 1.80 | M12: =Padroes!$AL$8 -> 0.60 | N12: =IF(E12="","",Padroes!$AL$23) ->  | T12: =IF(Padroes!F16="","",Padroes!F16) ->  | W12: =IF(O12="","",O12*Parametros!$I$26) ->  | X12: =IF(P12="","",P12*Parametros!$I$27) ->  | Y12: =IF(Q12="","",Q12*Parametros!$I$28) ->  | Z12: =IF(R12="","",R12*Parametros!$I$29) -> 
C13: =IF(Padroes!C17="","",Padroes!C17) ->  | D13: =IF(Padroes!D17="","",Padroes!D17) ->  | G13: =IF(Padroes!E17="","",Padroes!E17) ->  | H13: =IF(E13="","",Padroes!S$8) ->  | I13: =IF(E13="","",Padroes!S$9) ->  | J13: =IF(E13="","",Padroes!S$10) ->  | K13: =IF(Padroes!AL21="","",Padroes!AL21) -> 1.80 | M13: =Padroes!$AL$8 -> 0.60 | N13: =IF(E13="","",Padroes!$AL$23) ->  | T13: =IF(Padroes!F17="","",Padroes!F17) ->  | W13: =IF(O13="","",O13*Parametros!$I$26) ->  | X13: =IF(P13="","",P13*Parametros!$I$27) ->  | Y13: =IF(Q13="","",Q13*Parametros!$I$28) ->  | Z13: =IF(R13="","",R13*Parametros!$I$29) -> 
A14: 9 | B14: 9 | C14: =IF(Engastamento_Profundo!F$4=9,Engastamento_Profundo!F$5, 0) -> 0 | D14: =IF(Engastamento_Profundo!F$6="",VLOOKUP(C14,Padroes!$C$10:$D$17,2,FALSE),Engastamento_Profundo!$F$6 ) ->  | E14: =IF(Engastamento_Profundo!$F$8="",1.5,Engastamento_Profundo!$F8) -> 2.6 | F14: =IF(Engastamento_Profundo!F$17="",7,Engastamento_Profundo!F$17) -> 7.00 | G14: =IF(Engastamento_Profundo!F$7="",VLOOKUP(C14,Padroes!$C$10:$E$17,3,FALSE),Engastamento_Profundo!F$7) ->  | H14: =IF(Engastamento_Profundo!F$10="",Padroes!$S$8,Engastamento_Profundo!F$10) -> 1.00 | I14: =IF(Engastamento_Profundo!F$11="",Padroes!$S$9,Engastamento_Profundo!F$11) -> 0.20 | J14: =IF(Engastamento_Profundo!F$12="",Padroes!$S$10,Engastamento_Profundo!F$12) -> 0.50 | K14: =IF(Engastamento_Profundo!F$14="",VLOOKUP(C14,$C$6:$K$13,9,FALSE),Engastamento_Profundo!F$14) ->  | L14: =D14+(3.1416*K14^2*M14/4*2400) ->  | M14: =Padroes!$AL$8 -> 0.60 | N14: 1.00 | T14: =IF(Padroes!F18="","",Padroes!F18) -> C-14 | W14: =IF(O14="","",O14*Parametros!$I$26) ->  | X14: =IF(P14="","",P14*Parametros!$I$27) ->  | Y14: =IF(Q14="","",Q14*Parametros!$I$28) ->  | Z14: =IF(R14="","",R14*Parametros!$I$29) -> 
A15: 10150 | B15: 10 | C15: =IF(Padroes!C18="","",Padroes!C18) -> 150 | D15: =IF(Padroes!D18="","",Padroes!D18) -> 750 | E15: 1.6 | F15: =IF(E15="","",(B15-E15-0.2)) -> 8.20 | G15: =IF(Padroes!E18="","",Padroes!E18) -> 0.34 | H15: =IF(E15="","",Padroes!S$8) -> 1.00 | I15: =IF(E15="","",Padroes!S$9) -> 0.20 | J15: =IF(E15="","",Padroes!S$10) -> 0.50 | K15: =IF(Padroes!AL13="","",Padroes!AL13) -> 0.60 | L15: 1191 | M15: =Padroes!AL$9 -> 0.65 | N15: =IF(E15="","",Padroes!$AL$23) -> 1.00 | O15: 284 | P15: 369 | Q15: 393 | R15: 532 | S15: 10 | T15: =IF(Padroes!F19="","",Padroes!F19) -> C-17 | W15: =IF(O15="","",O15*Parametros!$I$26) -> 227 | X15: =IF(P15="","",P15*Parametros!$I$27) -> 295 | Y15: =IF(Q15="","",Q15*Parametros!$I$28) -> 314 | Z15: =IF(R15="","",R15*Parametros!$I$29) -> 425
A16: 10300 | B16: 10 | C16: =IF(Padroes!C19="","",Padroes!C19) -> 300 | D16: =IF(Padroes!D19="","",Padroes!D19) -> 910 | E16: 1.6 | F16: =IF(E16="","",(B16-E16-0.2)) -> 8.20 | G16: =IF(Padroes!E19="","",Padroes!E19) -> 0.37 | H16: =IF(E16="","",Padroes!S$8) -> 1.00 | I16: =IF(E16="","",Padroes!S$9) -> 0.20 | J16: =IF(E16="","",Padroes!S$10) -> 0.50 | K16: =IF(Padroes!AL15="","",Padroes!AL15) -> 0.70 | L16: 1510 | M16: =Padroes!AL$9 -> 0.65 | N16: =IF(E16="","",Padroes!$AL$23) -> 1.00 | O16: 309 | P16: 390 | Q16: 413 | R16: 630 | T16: =IF(Padroes!F20="","",Padroes!F20) -> C-17 | W16: =IF(O16="","",O16*Parametros!$I$26) -> 247 | X16: =IF(P16="","",P16*Parametros!$I$27) -> 312 | Y16: =IF(Q16="","",Q16*Parametros!$I$28) -> 330 | Z16: =IF(R16="","",R16*Parametros!$I$29) -> 504
A17: 10400 | B17: 10 | C17: =IF(Padroes!C20="","",Padroes!C20) -> 400 | D17: =IF(Padroes!D20="","",Padroes!D20) -> 910 | E17: 1.6 | F17: 8.20 | G17: =IF(Padroes!E20="","",Padroes!E20) -> 0.37 | H17: =IF(E17="","",Padroes!S$8) -> 1.00 | I17: =IF(E17="","",Padroes!S$9) -> 0.20 | J17: =IF(E17="","",Padroes!S$10) -> 0.50 | K17: =IF(Padroes!AL16="","",Padroes!AL16) -> 0.90 | L17: 1902 | M17: =Padroes!AL$9 -> 0.65 | N17: =IF(E17="","",Padroes!$AL$23) -> 1.00 | O17: 309 | P17: 390 | Q17: 413 | R17: 829 | T17: =IF(Padroes!F21="","",Padroes!F21) -> C-19 | W17: =IF(O17="","",O17*Parametros!$I$26) -> 247 | X17: =IF(P17="","",P17*Parametros!$I$27) -> 312 | Y17: =IF(Q17="","",Q17*Parametros!$I$28) -> 330 | Z17: =IF(R17="","",R17*Parametros!$I$29) -> 663
A18: 10600 | B18: 10 | C18: =IF(Padroes!C21="","",Padroes!C21) -> 600 | D18: =IF(Padroes!D21="","",Padroes!D21) -> 1090 | E18: 1.6 | F18: 8.20 | G18: =IF(Padroes!E21="","",Padroes!E21) -> 0.39 | H18: =IF(E18="","",Padroes!S$8) -> 1.00 | I18: =IF(E18="","",Padroes!S$9) -> 0.20 | J18: =IF(E18="","",Padroes!S$10) -> 0.50 | K18: =IF(Padroes!AL17="","",Padroes!AL17) -> 1.30 | L18: 3161 | M18: =Padroes!AL$9 -> 0.65 | N18: =IF(E18="","",Padroes!$AL$23) -> 1.00 | O18: 326 | P18: 404 | Q18: 426 | R18: 1275 | T18: =IF(Padroes!F22="","",Padroes!F22) -> C-23 | W18: =IF(O18="","",O18*Parametros!$I$26) -> 261 | X18: =IF(P18="","",P18*Parametros!$I$27) -> 323 | Y18: =IF(Q18="","",Q18*Parametros!$I$28) -> 341 | Z18: =IF(R18="","",R18*Parametros!$I$29) -> 1020
A19: 101000 | B19: 10 | C19: =IF(Padroes!C22="","",Padroes!C22) -> 1000 | D19: =IF(Padroes!D22="","",Padroes!D22) -> 1350 | E19: 1.6 | F19: 8.20 | G19: =IF(Padroes!E22="","",Padroes!E22) -> 0.43 | H19: =IF(E19="","",Padroes!S$8) -> 1.00 | I19: =IF(E19="","",Padroes!S$9) -> 0.20 | J19: =IF(E19="","",Padroes!S$10) -> 0.50 | K19: =IF(Padroes!AL18="","",Padroes!AL18) -> 1.60 | L19: 4487 | M19: =Padroes!AL$9 -> 0.65 | N19: =IF(E19="","",Padroes!$AL$23) -> 1.00 | O19: 359 | P19: 432 | Q19: 453 | R19: 1669 | T19: =IF(Padroes!F23="","",Padroes!F23) -> C-29 | W19: =IF(O19="","",O19*Parametros!$I$26) -> 288 | X19: =IF(P19="","",P19*Parametros!$I$27) -> 346 | Y19: =IF(Q19="","",Q19*Parametros!$I$28) -> 363 | Z19: =IF(R19="","",R19*Parametros!$I$29) -> 1336
A20: 101500 | B20: 10 | C20: =IF(Padroes!C23="","",Padroes!C23) -> 1500 | D20: =IF(Padroes!D23="","",Padroes!D23) -> 1900 | E20: 1.6 | F20: 8.20 | G20: =IF(Padroes!E23="","",Padroes!E23) -> 0.49 | H20: =IF(E20="","",Padroes!S$8) -> 1.00 | I20: =IF(E20="","",Padroes!S$9) -> 0.20 | J20: =IF(E20="","",Padroes!S$10) -> 0.50 | K20: =IF(Padroes!AL19="","",Padroes!AL19) -> 1.60 | L20: 5037 | M20: =Padroes!AL$9 -> 0.65 | N20: =IF(E20="","",Padroes!$AL$23) -> 1.00 | O20: 410 | P20: 475 | Q20: 494 | R20: 1705 | T20: =IF(Padroes!F24="","",Padroes!F24) ->  | W20: =IF(O20="","",O20*Parametros!$I$26) -> 328 | X20: =IF(P20="","",P20*Parametros!$I$27) -> 380 | Y20: =IF(Q20="","",Q20*Parametros!$I$28) -> 395 | Z20: =IF(R20="","",R20*Parametros!$I$29) -> 1364
C21: =IF(Padroes!C24="","",Padroes!C24) ->  | D21: =IF(Padroes!D24="","",Padroes!D24) ->  | G21: =IF(Padroes!E24="","",Padroes!E24) ->  | H21: =IF(E21="","",Padroes!S$8) ->  | I21: =IF(E21="","",Padroes!S$9) ->  | J21: =IF(E21="","",Padroes!S$10) ->  | K21: =IF(Padroes!AL20="","",Padroes!AL20) -> 1.80 | M21: =Padroes!AL$9 -> 0.65 | N21: =IF(E21="","",Padroes!$AL$23) ->  | T21: =IF(Padroes!F25="","",Padroes!F25) ->  | W21: =IF(O21="","",O21*Parametros!$I$26) ->  | X21: =IF(P21="","",P21*Parametros!$I$27) ->  | Y21: =IF(Q21="","",Q21*Parametros!$I$28) ->  | Z21: =IF(R21="","",R21*Parametros!$I$29) -> 
C22: =IF(Padroes!C25="","",Padroes!C25) ->  | D22: =IF(Padroes!D25="","",Padroes!D25) ->  | G22: =IF(Padroes!E25="","",Padroes!E25) ->  | H22: =IF(E22="","",Padroes!S$8) ->  | I22: =IF(E22="","",Padroes!S$9) ->  | J22: =IF(E22="","",Padroes!S$10) ->  | K22: =IF(Padroes!AL21="","",Padroes!AL21) -> 1.80 | M22: =Padroes!AL$9 -> 0.65 | N22: =IF(E22="","",Padroes!$AL$23) ->  | T22: =IF(Padroes!F26="","",Padroes!F26) -> C-14 | W22: =IF(O22="","",O22*Parametros!$I$26) ->  | X22: =IF(P22="","",P22*Parametros!$I$27) ->  | Y22: =IF(Q22="","",Q22*Parametros!$I$28) ->  | Z22: =IF(R22="","",R22*Parametros!$I$29) -> 
A23: 10 | B23: 10 | C23: =IF(Engastamento_Profundo!F$4=10,Engastamento_Profundo!F$5, 0) -> 0 | D23: =IF(Engastamento_Profundo!F$6="",VLOOKUP(C23,Padroes!$C$18:$E$25,2,FALSE),Engastamento_Profundo!$F$6 ) ->  | E23: =IF(Engastamento_Profundo!$F$8="",1.6,Engastamento_Profundo!$F$8) -> 2.6 | F23: =IF(Engastamento_Profundo!F$17="",8.2,Engastamento_Profundo!F$17) -> 8.20 | G23: =IF(Engastamento_Profundo!F$7="",VLOOKUP(C23,Padroes!$C$18:$E$25,3,FALSE),Engastamento_Profundo!F$7) ->  | H23: =IF(Engastamento_Profundo!F$10="",Padroes!$S$8,Engastamento_Profundo!F$10) -> 1.00 | I23: =IF(Engastamento_Profundo!F$11="",Padroes!$S$9,Engastamento_Profundo!F$11) -> 0.20 | J23: =IF(Engastamento_Profundo!F$12="",Padroes!$S$10,Engastamento_Profundo!F$12) -> 0.50 | K23: =IF(Engastamento_Profundo!F$14="",VLOOKUP(C23,$C$15:$K$22,9,FALSE),Engastamento_Profundo!F$14) ->  | L23: =D23+(3.1416*K23^2*M23/4*2400) ->  | M23: =Padroes!$AL$9 -> 0.65 | N23: 1.00 | T23: =IF(Padroes!F27="","",Padroes!F27) -> C-17 | W23: =IF(O23="","",O23*Parametros!$I$26) ->  | X23: =IF(P23="","",P23*Parametros!$I$27) ->  | Y23: =IF(Q23="","",Q23*Parametros!$I$28) ->  | Z23: =IF(R23="","",R23*Parametros!$I$29) -> 
A24: 11200 | B24: 11 | C24: =IF(Padroes!C26="","",Padroes!C26) -> 200 | D24: =IF(Padroes!D26="","",Padroes!D26) -> 870 | E24: 1.7 | F24: 9.10 | G24: =IF(Padroes!E26="","",Padroes!E26) -> 0.36 | H24: =IF(E24="","",Padroes!S$8) -> 1.00 | I24: =IF(E24="","",Padroes!S$9) -> 0.20 | J24: =IF(E24="","",Padroes!S$10) -> 0.50 | K24: =IF(Padroes!AL13="","",Padroes!AL13) -> 0.60 | L24: 1345 | M24: =Padroes!AL$10 -> 0.70 | N24: =IF(E24="","",Padroes!$AL$23) -> 1.00 | O24: 328 | P24: 408 | Q24: 431 | R24: 576 | S24: 11 | T24: =IF(Padroes!F28="","",Padroes!F28) -> C-17 | W24: =IF(O24="","",O24*Parametros!$I$26) -> 262 | X24: =IF(P24="","",P24*Parametros!$I$27) -> 326 | Y24: =IF(Q24="","",Q24*Parametros!$I$28) -> 344 | Z24: =IF(R24="","",R24*Parametros!$I$29) -> 461
A25: 11300 | B25: 11 | C25: =IF(Padroes!C27="","",Padroes!C27) -> 300 | D25: =IF(Padroes!D27="","",Padroes!D27) -> 1030 | E25: 1.7 | F25: 9.10 | G25: =IF(Padroes!E27="","",Padroes!E27) -> 0.39 | H25: =IF(E25="","",Padroes!S$8) -> 1.00 | I25: =IF(E25="","",Padroes!S$9) -> 0.20 | J25: =IF(E25="","",Padroes!S$10) -> 0.50 | K25: =IF(Padroes!AL15="","",Padroes!AL15) -> 0.70 | L25: 1677 | M25: =Padroes!AL$10 -> 0.70 | N25: =IF(E25="","",Padroes!$AL$23) -> 1.00 | O25: 355 | P25: 431 | Q25: 453 | R25: 681 | T25: =IF(Padroes!F29="","",Padroes!F29) -> C-19 | W25: =IF(O25="","",O25*Parametros!$I$26) -> 284 | X25: =IF(P25="","",P25*Parametros!$I$27) -> 345 | Y25: =IF(Q25="","",Q25*Parametros!$I$28) -> 362 | Z25: =IF(R25="","",R25*Parametros!$I$29) -> 545
A26: 11400 | B26: 11 | C26: =IF(Padroes!C28="","",Padroes!C28) -> 400 | D26: =IF(Padroes!D28="","",Padroes!D28) -> 1030 | E26: 1.7 | F26: 9.10 | G26: =IF(Padroes!E28="","",Padroes!E28) -> 0.39 | H26: =IF(E26="","",Padroes!S$8) -> 1.00 | I26: =IF(E26="","",Padroes!S$9) -> 0.20 | J26: =IF(E26="","",Padroes!S$10) -> 0.50 | K26: =IF(Padroes!AL16="","",Padroes!AL16) -> 0.90 | L26: 2099 | M26: =Padroes!AL$10 -> 0.70 | N26: =IF(E26="","",Padroes!$AL$23) -> 1.00 | O26: 355 | P26: 431 | Q26: 453 | R26: 894 | T26: =IF(Padroes!F30="","",Padroes!F30) -> C-23 | W26: =IF(O26="","",O26*Parametros!$I$26) -> 284 | X26: =IF(P26="","",P26*Parametros!$I$27) -> 345 | Y26: =IF(Q26="","",Q26*Parametros!$I$28) -> 362 | Z26: =IF(R26="","",R26*Parametros!$I$29) -> 715
A27: 11600 | B27: 11 | C27: =IF(Padroes!C29="","",Padroes!C29) -> 600 | D27: =IF(Padroes!D29="","",Padroes!D29) -> 1260 | E27: 1.7 | F27: 9.10 | G27: =IF(Padroes!E29="","",Padroes!E29) -> 0.41 | H27: =IF(E27="","",Padroes!S$8) -> 1.00 | I27: =IF(E27="","",Padroes!S$9) -> 0.20 | J27: =IF(E27="","",Padroes!S$10) -> 0.50 | K27: =IF(Padroes!AL17="","",Padroes!AL17) -> 1.30 | L27: 3490 | M27: =Padroes!AL$10 -> 0.70 | N27: =IF(E27="","",Padroes!$AL$23) -> 1.00 | O27: 373 | P27: 447 | Q27: 468 | R27: 1370 | T27: =IF(Padroes!F31="","",Padroes!F31) -> C-29 | W27: =IF(O27="","",O27*Parametros!$I$26) -> 298 | X27: =IF(P27="","",P27*Parametros!$I$27) -> 358 | Y27: =IF(Q27="","",Q27*Parametros!$I$28) -> 374 | Z27: =IF(R27="","",R27*Parametros!$I$29) -> 1096
A28: 111000 | B28: 11 | C28: =IF(Padroes!C30="","",Padroes!C30) -> 1000 | D28: =IF(Padroes!D30="","",Padroes!D30) -> 1600 | E28: 1.7 | F28: 9.10 | G28: =IF(Padroes!E30="","",Padroes!E30) -> 0.45 | H28: =IF(E28="","",Padroes!S$8) -> 1.00 | I28: =IF(E28="","",Padroes!S$9) -> 0.20 | J28: =IF(E28="","",Padroes!S$10) -> 0.50 | K28: =IF(Padroes!AL18="","",Padroes!AL18) -> 1.60 | L28: 4978 | M28: =Padroes!AL$10 -> 0.70 | N28: =IF(E28="","",Padroes!$AL$23) -> 1.00 | O28: 409 | P28: 478 | Q28: 498 | R28: 1786 | T28: =IF(Padroes!F32="","",Padroes!F32) ->  | W28: =IF(O28="","",O28*Parametros!$I$26) -> 328 | X28: =IF(P28="","",P28*Parametros!$I$27) -> 383 | Y28: =IF(Q28="","",Q28*Parametros!$I$28) -> 398 | Z28: =IF(R28="","",R28*Parametros!$I$29) -> 1429
A29: 111500 | B29: 11 | C29: =IF(Padroes!C31="","",Padroes!C31) -> 1500 | D29: =IF(Padroes!D31="","",Padroes!D31) -> 2100 | E29: 1.7 | F29: 9.10 | G29: =IF(Padroes!E31="","",Padroes!E31) -> 0.51 | H29: =IF(E29="","",Padroes!S$8) -> 1.00 | I29: =IF(E29="","",Padroes!S$9) -> 0.20 | J29: =IF(E29="","",Padroes!S$10) -> 0.50 | K29: =IF(Padroes!AL19="","",Padroes!AL19) -> 1.60 | L29: 5478 | M29: =Padroes!AL$10 -> 0.70 | N29: =IF(E29="","",Padroes!$AL$23) -> 1.00 | O29: 464 | P29: 525 | Q29: 543 | R29: 1815 | T29: =IF(Padroes!F33="","",Padroes!F33) ->  | W29: =IF(O29="","",O29*Parametros!$I$26) -> 371 | X29: =IF(P29="","",P29*Parametros!$I$27) -> 420 | Y29: =IF(Q29="","",Q29*Parametros!$I$28) -> 434 | Z29: =IF(R29="","",R29*Parametros!$I$29) -> 1452
C30: =IF(Padroes!C32="","",Padroes!C32) ->  | D30: =IF(Padroes!D32="","",Padroes!D32) ->  | G30: =IF(Padroes!E32="","",Padroes!E32) ->  | H30: =IF(E30="","",Padroes!S$8) ->  | I30: =IF(E30="","",Padroes!S$9) ->  | J30: =IF(E30="","",Padroes!S$10) ->  | K30: =IF(Padroes!AL20="","",Padroes!AL20) -> 1.80 | M30: =Padroes!AL$10 -> 0.70 | N30: =IF(E30="","",Padroes!$AL$23) ->  | T30: =IF(Padroes!F34="","",Padroes!F34) -> C-17 | W30: =IF(O30="","",O30*Parametros!$I$26) ->  | X30: =IF(P30="","",P30*Parametros!$I$27) ->  | Y30: =IF(Q30="","",Q30*Parametros!$I$28) ->  | Z30: =IF(R30="","",R30*Parametros!$I$29) -> 
C31: =IF(Padroes!C33="","",Padroes!C33) ->  | D31: =IF(Padroes!D33="","",Padroes!D33) ->  | G31: =IF(Padroes!E33="","",Padroes!E33) ->  | H31: =IF(E31="","",Padroes!S$8) ->  | I31: =IF(E31="","",Padroes!S$9) ->  | J31: =IF(E31="","",Padroes!S$10) ->  | K31: =IF(Padroes!AL21="","",Padroes!AL21) -> 1.80 | M31: =Padroes!AL$10 -> 0.70 | N31: =IF(E31="","",Padroes!$AL$23) ->  | T31: =IF(Padroes!F35="","",Padroes!F35) -> C-17 | W31: =IF(O31="","",O31*Parametros!$I$26) ->  | X31: =IF(P31="","",P31*Parametros!$I$27) ->  | Y31: =IF(Q31="","",Q31*Parametros!$I$28) ->  | Z31: =IF(R31="","",R31*Parametros!$I$29) -> 
A32: 11 | B32: 11 | C32: =IF(Engastamento_Profundo!F$4=11,Engastamento_Profundo!F$5, 0) -> 0 | D32: =IF(Engastamento_Profundo!F$6="",VLOOKUP(C32,Padroes!$C$26:$D$33,2,FALSE),Engastamento_Profundo!$F$6 ) ->  | E32: =IF(Engastamento_Profundo!$F$8="",1.7,Engastamento_Profundo!$F$8) -> 2.6 | F32: =IF(Engastamento_Profundo!F$17="",9.1,Engastamento_Profundo!F$17) -> 9.10 | G32: =IF(Engastamento_Profundo!F$7="",VLOOKUP(C32,Padroes!$C$26:$E$33,3,FALSE),Engastamento_Profundo!F$7) ->  | H32: =IF(Engastamento_Profundo!F$10="",Padroes!$S$8,Engastamento_Profundo!F$10) -> 1.00 | I32: =IF(Engastamento_Profundo!F$11="",Padroes!$S$9,Engastamento_Profundo!F$11) -> 0.20 | J32: =IF(Engastamento_Profundo!F$12="",Padroes!$S$10,Engastamento_Profundo!F$12) -> 0.50 | K32: =IF(Engastamento_Profundo!F$14="",VLOOKUP(C32,$C$24:$K$31,9,FALSE),Engastamento_Profundo!F$14) ->  | L32: =D32+(3.1416*K32^2*M32/4*2400) ->  | M32: =Padroes!$AL$10 -> 0.70 | N32: 1.00 | T32: =IF(Padroes!F36="","",Padroes!F36) -> C-19 | W32: =IF(O32="","",O32*Parametros!$I$26) ->  | X32: =IF(P32="","",P32*Parametros!$I$27) ->  | Y32: =IF(Q32="","",Q32*Parametros!$I$28) ->  | Z32: =IF(R32="","",R32*Parametros!$I$29) -> 
A33: 12300 | B33: 12 | C33: =IF(Padroes!C34="","",Padroes!C34) -> 300 | D33: =IF(Padroes!D34="","",Padroes!D34) -> 1130 | E33: 1.8 | F33: 10.00 | G33: =IF(Padroes!E34="","",Padroes!E34) -> 0.41 | H33: =IF(E33="","",Padroes!S$8) -> 1.00 | I33: =IF(E33="","",Padroes!S$9) -> 0.20 | J33: =IF(E33="","",Padroes!S$10) -> 0.50 | K33: =IF(Padroes!AL13="","",Padroes!AL13) -> 0.60 | L33: 1639 | M33: =Padroes!AL$11 -> 0.75 | N33: =IF(E33="","",Padroes!$AL$23) -> 1.00 | O33: 405 | P33: 478 | Q33: 498 | R33: 625 | S33: 12 | T33: =IF(Padroes!F37="","",Padroes!F37) -> C-23 | W33: =IF(O33="","",O33*Parametros!$I$26) -> 324 | X33: =IF(P33="","",P33*Parametros!$I$27) -> 382 | Y33: =IF(Q33="","",Q33*Parametros!$I$28) -> 399 | Z33: =IF(R33="","",R33*Parametros!$I$29) -> 500
A34: 12400 | B34: 12 | C34: =IF(Padroes!C35="","",Padroes!C35) -> 400 | D34: =IF(Padroes!D35="","",Padroes!D35) -> 1130 | E34: 1.8 | F34: 10.00 | G34: =IF(Padroes!E35="","",Padroes!E35) -> 0.41 | H34: =IF(E34="","",Padroes!S$8) -> 1.00 | I34: =IF(E34="","",Padroes!S$9) -> 0.20 | J34: =IF(E34="","",Padroes!S$10) -> 0.50 | K34: =IF(Padroes!AL15="","",Padroes!AL15) -> 0.70 | L34: 1823 | M34: =Padroes!AL$11 -> 0.75 | N34: =IF(E34="","",Padroes!$AL$23) -> 1.00 | O34: 405 | P34: 478 | Q34: 498 | R34: 735 | T34: =IF(Padroes!F38="","",Padroes!F38) -> C-29 | W34: =IF(O34="","",O34*Parametros!$I$26) -> 324 | X34: =IF(P34="","",P34*Parametros!$I$27) -> 382 | Y34: =IF(Q34="","",Q34*Parametros!$I$28) -> 399 | Z34: =IF(R34="","",R34*Parametros!$I$29) -> 588
A35: 12600 | B35: 12 | C35: =IF(Padroes!C36="","",Padroes!C36) -> 600 | D35: =IF(Padroes!D36="","",Padroes!D36) -> 1440 | E35: 1.8 | F35: 10.00 | G35: =IF(Padroes!E36="","",Padroes!E36) -> 0.43 | H35: =IF(E35="","",Padroes!S$8) -> 1.00 | I35: =IF(E35="","",Padroes!S$9) -> 0.20 | J35: =IF(E35="","",Padroes!S$10) -> 0.50 | K35: =IF(Padroes!AL16="","",Padroes!AL16) -> 0.90 | L35: 2585 | M35: =Padroes!AL$11 -> 0.75 | N35: =IF(E35="","",Padroes!$AL$23) -> 1.00 | O35: 425 | P35: 495 | Q35: 515 | R35: 971 | T35: =IF(Padroes!F39="","",Padroes!F39) -> C-33 | W35: =IF(O35="","",O35*Parametros!$I$26) -> 340 | X35: =IF(P35="","",P35*Parametros!$I$27) -> 396 | Y35: =IF(Q35="","",Q35*Parametros!$I$28) -> 412 | Z35: =IF(R35="","",R35*Parametros!$I$29) -> 777
A36: 121000 | B36: 12 | C36: =IF(Padroes!C37="","",Padroes!C37) -> 1000 | D36: =IF(Padroes!D37="","",Padroes!D37) -> 1770 | E36: 1.8 | F36: 10.00 | G36: =IF(Padroes!E37="","",Padroes!E37) -> 0.47 | H36: =IF(E36="","",Padroes!S$8) -> 1.00 | I36: =IF(E36="","",Padroes!S$9) -> 0.20 | J36: =IF(E36="","",Padroes!S$10) -> 0.50 | K36: =IF(Padroes!AL17="","",Padroes!AL17) -> 1.30 | L36: 4159 | M36: =Padroes!AL$11 -> 0.75 | N36: =IF(E36="","",Padroes!$AL$23) -> 1.00 | O36: 465 | P36: 530 | Q36: 548 | R36: 1484 | T36: =IF(Padroes!F40="","",Padroes!F40) -> C-43 | W36: =IF(O36="","",O36*Parametros!$I$26) -> 372 | X36: =IF(P36="","",P36*Parametros!$I$27) -> 424 | Y36: =IF(Q36="","",Q36*Parametros!$I$28) -> 439 | Z36: =IF(R36="","",R36*Parametros!$I$29) -> 1187
A37: 121500 | B37: 12 | C37: =IF(Padroes!C38="","",Padroes!C38) -> 1500 | D37: =IF(Padroes!D38="","",Padroes!D38) -> 2450 | E37: 1.8 | F37: 10.00 | G37: =IF(Padroes!E38="","",Padroes!E38) -> 0.53 | H37: =IF(E37="","",Padroes!S$8) -> 1.00 | I37: =IF(E37="","",Padroes!S$9) -> 0.20 | J37: =IF(E37="","",Padroes!S$10) -> 0.50 | K37: =IF(Padroes!AL18="","",Padroes!AL18) -> 1.60 | L37: 6069 | M37: =Padroes!AL$11 -> 0.75 | N37: =IF(E37="","",Padroes!$AL$23) -> 1.00 | O37: 524 | P37: 582 | Q37: 598 | R37: 1941 | T37: =IF(Padroes!F41="","",Padroes!F41) ->  | W37: =IF(O37="","",O37*Parametros!$I$26) -> 419 | X37: =IF(P37="","",P37*Parametros!$I$27) -> 465 | Y37: =IF(Q37="","",Q37*Parametros!$I$28) -> 478 | Z37: =IF(R37="","",R37*Parametros!$I$29) -> 1553
A38: 122000 | B38: 12 | C38: =IF(Padroes!C39="","",Padroes!C39) -> 2000 | D38: =IF(Padroes!D39="","",Padroes!D39) -> 3000 | E38: 1.8 | F38: 10.00 | G38: =IF(Padroes!E39="","",Padroes!E39) -> 0.57 | H38: =IF(E38="","",Padroes!S$8) -> 1.00 | I38: =IF(E38="","",Padroes!S$9) -> 0.20 | J38: =IF(E38="","",Padroes!S$10) -> 0.50 | K38: =IF(Padroes!AL19="","",Padroes!AL19) -> 1.60 | L38: 6619 | M38: =Padroes!AL$11 -> 0.75 | N38: =IF(E38="","",Padroes!$AL$23) -> 1.00 | O38: 563 | P38: 616 | Q38: 631 | R38: 1968 | T38: =IF(Padroes!F42="","",Padroes!F42) -> C-17 | W38: =IF(O38="","",O38*Parametros!$I$26) -> 451 | X38: =IF(P38="","",P38*Parametros!$I$27) -> 493 | Y38: =IF(Q38="","",Q38*Parametros!$I$28) -> 505 | Z38: =IF(R38="","",R38*Parametros!$I$29) -> 1575
A39: 123000 | B39: 12 | C39: =IF(Padroes!C40="","",Padroes!C40) -> 3000 | D39: =IF(Padroes!D40="","",Padroes!D40) -> 4150 | E39: 1.8 | F39: 10.00 | G39: =IF(Padroes!E40="","",Padroes!E40) -> 0.67 | H39: =IF(E39="","",Padroes!S$8) -> 1.00 | I39: =IF(E39="","",Padroes!S$9) -> 0.20 | J39: =IF(E39="","",Padroes!S$10) -> 0.50 | K39: =IF(Padroes!AL20="","",Padroes!AL20) -> 1.80 | L39: 8730 | M39: =Padroes!AL$11 -> 0.75 | N39: =IF(E39="","",Padroes!$AL$23) -> 1.00 | O39: 662 | P39: 703 | Q39: 714 | R39: 2349 | T39: =IF(Padroes!F43="","",Padroes!F43) -> C-17 | W39: =IF(O39="","",O39*Parametros!$I$26) -> 530 | X39: =IF(P39="","",P39*Parametros!$I$27) -> 562 | Y39: =IF(Q39="","",Q39*Parametros!$I$28) -> 572 | Z39: =IF(R39="","",R39*Parametros!$I$29) -> 1880
B40: =IF(Engastamento_Profundo!$F$4=12,Engastamento_Profundo!$F$4,"") ->  | C40: =IF(Padroes!C41="","",Padroes!C41) ->  | D40: =IF(Padroes!D41="","",Padroes!D41) ->  | G40: =IF(Padroes!E41="","",Padroes!E41) ->  | H40: =IF(E40="","",Padroes!S$8) ->  | I40: =IF(E40="","",Padroes!S$9) ->  | J40: =IF(E40="","",Padroes!S$10) ->  | K40: =IF(Padroes!AL21="","",Padroes!AL21) -> 1.80 | M40: =Padroes!AL$11 -> 0.75 | N40: =IF(E40="","",Padroes!$AL$23) ->  | T40: =IF(Padroes!F44="","",Padroes!F44) -> C-19 | W40: =IF(O40="","",O40*Parametros!$I$26) ->  | X40: =IF(P40="","",P40*Parametros!$I$27) ->  | Y40: =IF(Q40="","",Q40*Parametros!$I$28) ->  | Z40: =IF(R40="","",R40*Parametros!$I$29) -> 
A41: 12 | B41: 12 | C41: =IF(Engastamento_Profundo!F$4=12,Engastamento_Profundo!F$5, 0) -> 0 | D41: =IF(Engastamento_Profundo!F$6="",VLOOKUP(C41,Padroes!$C$34:$E$41,2,FALSE),Engastamento_Profundo!$F$6 ) ->  | E41: =IF(Engastamento_Profundo!$F$8="",1.8,Engastamento_Profundo!$F$8) -> 2.6 | F41: =IF(Engastamento_Profundo!F$17="",10,Engastamento_Profundo!F$17) -> 10.00 | G41: =IF(Engastamento_Profundo!F$7="",VLOOKUP(C41,Padroes!C34:E41,3,FALSE),Engastamento_Profundo!F$7) ->  | H41: =IF(Engastamento_Profundo!F$10="",Padroes!$S$8,Engastamento_Profundo!F$10) -> 1.00 | I41: =IF(Engastamento_Profundo!F$11="",Padroes!$S$9,Engastamento_Profundo!F$11) -> 0.20 | J41: =IF(Engastamento_Profundo!F$12="",Padroes!$S$10,Engastamento_Profundo!F$12) -> 0.50 | K41: =IF(Engastamento_Profundo!F$14="",VLOOKUP(C41,$C$33:$K$40,9,FALSE),Engastamento_Profundo!F$14) ->  | L41: =D41+(3.1416*K41^2*M41/4*2400) ->  | M41: =Padroes!$AL$11 -> 0.75 | N41: 1.00 | T41: =IF(Padroes!F45="","",Padroes!F45) -> C-23 | W41: =IF(O41="","",O41*Parametros!$I$26) ->  | X41: =IF(P41="","",P41*Parametros!$I$27) ->  | Y41: =IF(Q41="","",Q41*Parametros!$I$28) ->  | Z41: =IF(R41="","",R41*Parametros!$I$29) -> 
A42: 13300 | B42: 13 | C42: =IF(Padroes!C42="","",Padroes!C42) -> 300 | D42: =IF(Padroes!D42="","",Padroes!D42) -> 1280 | E42: 1.9 | F42: 10.90 | G42: =IF(Padroes!E42="","",Padroes!E42) -> 0.43 | H42: =IF(E42="","",Padroes!S$8) -> 1.00 | I42: =IF(E42="","",Padroes!S$9) -> 0.20 | J42: =IF(E42="","",Padroes!S$10) -> 0.50 | K42: =IF(Padroes!AL13="","",Padroes!AL13) -> 0.60 | L42: 1823 | M42: =Padroes!AL$12 -> 0.80 | N42: =IF(E42="","",Padroes!$AL$23) -> 1.00 | O42: 461 | P42: 530 | Q42: 549 | R42: 674 | S42: 13 | T42: =IF(Padroes!F46="","",Padroes!F46) -> C-29 | W42: =IF(O42="","",O42*Parametros!$I$26) -> 369 | X42: =IF(P42="","",P42*Parametros!$I$27) -> 424 | Y42: =IF(Q42="","",Q42*Parametros!$I$28) -> 439 | Z42: =IF(R42="","",R42*Parametros!$I$29) -> 539
A43: 13400 | B43: 13 | C43: =IF(Padroes!C43="","",Padroes!C43) -> 400 | D43: =IF(Padroes!D43="","",Padroes!D43) -> 1280 | E43: 1.9 | F43: 10.90 | G43: =IF(Padroes!E43="","",Padroes!E43) -> 0.43 | H43: =IF(E43="","",Padroes!S$8) -> 1.00 | I43: =IF(E43="","",Padroes!S$9) -> 0.20 | J43: =IF(E43="","",Padroes!S$10) -> 0.50 | K43: =IF(Padroes!AL15="","",Padroes!AL15) -> 0.70 | L43: 2019 | M43: =Padroes!AL$12 -> 0.80 | N43: =IF(E43="","",Padroes!$AL$23) -> 1.00 | O43: 461 | P43: 530 | Q43: 549 | R43: 793 | T43: =IF(Padroes!F47="","",Padroes!F47) -> C-33 | W43: =IF(O43="","",O43*Parametros!$I$26) -> 369 | X43: =IF(P43="","",P43*Parametros!$I$27) -> 424 | Y43: =IF(Q43="","",Q43*Parametros!$I$28) -> 439 | Z43: =IF(R43="","",R43*Parametros!$I$29) -> 635
A44: 13600 | B44: 13 | C44: =IF(Padroes!C44="","",Padroes!C44) -> 600 | D44: =IF(Padroes!D44="","",Padroes!D44) -> 1680 | E44: 1.9 | F44: 10.90 | G44: =IF(Padroes!E44="","",Padroes!E44) -> 0.45 | H44: =IF(E44="","",Padroes!S$8) -> 1.00 | I44: =IF(E44="","",Padroes!S$9) -> 0.20 | J44: =IF(E44="","",Padroes!S$10) -> 0.50 | K44: =IF(Padroes!AL16="","",Padroes!AL16) -> 0.90 | L44: 2901 | M44: =Padroes!AL$12 -> 0.80 | N44: =IF(E44="","",Padroes!$AL$23) -> 1.00 | O44: 482 | P44: 549 | Q44: 568 | R44: 1047 | T44: =IF(Padroes!F48="","",Padroes!F48) ->  | W44: =IF(O44="","",O44*Parametros!$I$26) -> 386 | X44: =IF(P44="","",P44*Parametros!$I$27) -> 439 | Y44: =IF(Q44="","",Q44*Parametros!$I$28) -> 454 | Z44: =IF(R44="","",R44*Parametros!$I$29) -> 838
A45: 131000 | B45: 13 | C45: =IF(Padroes!C45="","",Padroes!C45) -> 1000 | D45: =IF(Padroes!D45="","",Padroes!D45) -> 1920 | E45: 1.9 | F45: 10.90 | G45: =IF(Padroes!E45="","",Padroes!E45) -> 0.49 | H45: =IF(E45="","",Padroes!S$8) -> 1.00 | I45: =IF(E45="","",Padroes!S$9) -> 0.20 | J45: =IF(E45="","",Padroes!S$10) -> 0.50 | K45: =IF(Padroes!AL17="","",Padroes!AL17) -> 1.30 | L45: 4468 | M45: =Padroes!AL$12 -> 0.80 | N45: =IF(E45="","",Padroes!$AL$23) -> 1.00 | O45: 525 | P45: 587 | Q45: 604 | R45: 1588 | T45: =IF(Padroes!F49="","",Padroes!F49) ->  | W45: =IF(O45="","",O45*Parametros!$I$26) -> 420 | X45: =IF(P45="","",P45*Parametros!$I$27) -> 470 | Y45: =IF(Q45="","",Q45*Parametros!$I$28) -> 483 | Z45: =IF(R45="","",R45*Parametros!$I$29) -> 1271
A46: 131500 | B46: 13 | C46: =IF(Padroes!C46="","",Padroes!C46) -> 1500 | D46: =IF(Padroes!D46="","",Padroes!D46) -> 2700 | E46: 1.9 | F46: 10.90 | G46: =IF(Padroes!E46="","",Padroes!E46) -> 0.55 | H46: =IF(E46="","",Padroes!S$8) -> 1.00 | I46: =IF(E46="","",Padroes!S$9) -> 0.20 | J46: =IF(E46="","",Padroes!S$10) -> 0.50 | K46: =IF(Padroes!AL18="","",Padroes!AL18) -> 1.60 | L46: 6560 | M46: =Padroes!AL$12 -> 0.80 | N46: =IF(E46="","",Padroes!$AL$23) -> 1.00 | O46: 589 | P46: 644 | Q46: 659 | R46: 2069 | T46: =IF(Padroes!F50="","",Padroes!F50) ->  | W46: =IF(O46="","",O46*Parametros!$I$26) -> 472 | X46: =IF(P46="","",P46*Parametros!$I$27) -> 515 | Y46: =IF(Q46="","",Q46*Parametros!$I$28) -> 527 | Z46: =IF(R46="","",R46*Parametros!$I$29) -> 1655
A47: 132000 | B47: 13 | C47: =IF(Padroes!C47="","",Padroes!C47) -> 2000 | D47: =IF(Padroes!D47="","",Padroes!D47) -> 3500 | E47: 1.9 | F47: 10.90 | G47: =IF(Padroes!E47="","",Padroes!E47) -> 0.59 | H47: =IF(E47="","",Padroes!S$8) -> 1.00 | I47: =IF(E47="","",Padroes!S$9) -> 0.20 | J47: =IF(E47="","",Padroes!S$10) -> 0.50 | K47: =IF(Padroes!AL19="","",Padroes!AL19) -> 1.60 | L47: 7360 | M47: =Padroes!AL$12 -> 0.80 | N47: =IF(E47="","",Padroes!$AL$23) -> 1.00 | O47: 632 | P47: 682 | Q47: =IF(E47="","",(3*$B$63 * (2*E47*I47-I47^2)*(H47-G47) ) * (I47/2) / (F47+E47) + P47) -> 696 | R47: 2104 | T47: =IF(Padroes!F51="","",Padroes!F51) ->  | W47: =IF(O47="","",O47*Parametros!$I$26) -> 506 | X47: =IF(P47="","",P47*Parametros!$I$27) -> 546 | Y47: =IF(Q47="","",Q47*Parametros!$I$28) -> 557 | Z47: =IF(R47="","",R47*Parametros!$I$29) -> 1683
C48: =IF(Padroes!C48="","",Padroes!C48) ->  | D48: =IF(Padroes!D48="","",Padroes!D48) ->  | G48: =IF(Padroes!E48="","",Padroes!E48) ->  | H48: =IF(E48="","",Padroes!S$8) ->  | I48: =IF(E48="","",Padroes!S$9) ->  | J48: =IF(E48="","",Padroes!S$10) ->  | K48: =IF(Padroes!AL20="","",Padroes!AL20) -> 1.80 | M48: =Padroes!AL$12 -> 0.80 | N48: =IF(E48="","",Padroes!$AL$23) ->  | T48: =IF(Padroes!F52="","",Padroes!F52) ->  | W48: =IF(O48="","",O48*Parametros!$I$26) ->  | X48: =IF(P48="","",P48*Parametros!$I$27) ->  | Y48: =IF(Q48="","",Q48*Parametros!$I$28) ->  | Z48: =IF(R48="","",R48*Parametros!$I$29) -> 
C49: =IF(Padroes!C49="","",Padroes!C49) ->  | D49: =IF(Padroes!D49="","",Padroes!D49) ->  | G49: =IF(Padroes!E49="","",Padroes!E49) ->  | H49: =IF(E49="","",Padroes!S$8) ->  | I49: =IF(E49="","",Padroes!S$9) ->  | J49: =IF(E49="","",Padroes!S$10) ->  | K49: =IF(Padroes!AL21="","",Padroes!AL21) -> 1.80 | M49: =Padroes!AL$12 -> 0.80 | N49: =IF(E49="","",Padroes!$AL$23) ->  | T49: =IF(Padroes!F53="","",Padroes!F53) ->  | W49: =IF(O49="","",O49*Parametros!$I$26) ->  | X49: =IF(P49="","",P49*Parametros!$I$27) ->  | Y49: =IF(Q49="","",Q49*Parametros!$I$28) ->  | Z49: =IF(R49="","",R49*Parametros!$I$29) -> 
A50: 13 | B50: 13 | C50: =IF(Engastamento_Profundo!F$4=13,Engastamento_Profundo!F$5, 0) -> 1000 | D50: =IF(Engastamento_Profundo!F$6="",VLOOKUP(C50,Padroes!$C$42:$E$49,2,FALSE),Engastamento_Profundo!$F$6 ) -> 1920 | E50: =IF(Engastamento_Profundo!$F$8="",1.9,Engastamento_Profundo!$F$8) -> 2.6 | F50: =IF(Engastamento_Profundo!F$17="",10.9,Engastamento_Profundo!F$17) -> 10.90 | G50: =IF(Engastamento_Profundo!F$7="",VLOOKUP(C50,Padroes!$C$42:$E$49,3,FALSE),Engastamento_Profundo!F$7) -> 0.49 | H50: =IF(Engastamento_Profundo!F$10="",Padroes!$S$8,Engastamento_Profundo!F$10) -> 1.00 | I50: =IF(Engastamento_Profundo!F$11="",Padroes!$S$9,Engastamento_Profundo!F$11) -> 0.20 | J50: =IF(Engastamento_Profundo!F$12="",Padroes!$S$10,Engastamento_Profundo!F$12) -> 0.50 | K50: =IF(Engastamento_Profundo!F$14="",VLOOKUP(C50,C42:K49,9,FALSE),Engastamento_Profundo!F$14) -> 1.30 | L50: =D50+(3.1416*K50^2*M50/4*2400) -> 4468 | M50: =Padroes!$AL$12 -> 0.80 | N50: 1.00 | O50: 1300 | P50: 1389 | Q50: 1412 | R50: 3634 | T50: =IF(Padroes!F54="","",Padroes!F54) ->  | W50: =IF(O50="","",O50*Parametros!$I$26) -> 1,040 | X50: =IF(P50="","",P50*Parametros!$I$27) -> 1,111 | Y50: =IF(Q50="","",Q50*Parametros!$I$28) -> 1,129 | Z50: =IF(R50="","",R50*Parametros!$I$29) -> 2907
A52: * calculado a 0,20 m do topo do poste - para poste de 9 metros a 0,50 (0,20+0,30)
B53: Poste de Madeira
B54: comprimento | C54: carga | D54: peso | E54: t | F54: h | G54: b | H54: m | I54: n | J54: p | O54: SIMPLES | P54: ESCORA SIMPLES | Q54: ESCORA DUPLA
B55: 9 | C55: =Padroes!W10 -> 295 | D55: =Padroes!X10 -> 210 | E55: =0.6+0.1*B55 -> 1.5 | F55: =B55-0.5-E55 -> 7.00 | G55: =Padroes!Y10 -> 0.22 | H55: =Padroes!S$8 -> 1.00 | I55: =Padroes!S$9 -> 0.20 | J55: =Padroes!S$10 -> 0.50 | O55: =($B$63*G55*E55^3)/(F55+E55) -> 175 | P55: =($B$63*G55*E55^3)/(F55+E55)+ (3*$B$63*(2*J55*I55 - I55^2)*(H55-G55))*(E55-J55+I55/2)/(F55+E55/2) -> 281 | Q55: =($B$63*G55*E55^3)/(F55+E55)+ (6*$B$63*I55*J55*(H55-G55)) * (E55+I55-J55-(I55^2/H55)) / (F55+E55) -> 302
B56: 10 | C56: =Padroes!W11 -> 255 | D56: =Padroes!X11 -> 230 | E56: =0.6+0.1*B56 -> 1.6 | F56: =B56-0.2-E56 -> 8.20 | G56: =Padroes!Y11 -> 0.23 | H56: =Padroes!S$8 -> 1.00 | I56: =Padroes!S$9 -> 0.20 | J56: =Padroes!S$10 -> 0.50 | O56: =($B$63*G56*E56^3)/(F56+E56) -> 192 | P56: =($B$63*G56*E56^3)/(F56+E56)+ (3*$B$63*(2*J56*I56 - I56^2)*(H56-G56))*(E56-J56+I56/2)/(F56+E56/2) -> 291 | Q56: =($B$63*G56*E56^3)/(F56+E56)+ (6*$B$63*I56*J56*(H56-G56)) * (E56+I56-J56-(I56^2/H56)) / (F56+E56) -> 311
B57: 11 | C57: =Padroes!W12 -> 300 | D57: =Padroes!X12 -> 300 | E57: =0.6+0.1*B57 -> 1.7 | F57: =B57-0.2-E57 -> 9.10 | G57: =Padroes!Y12 -> 0.24 | H57: =Padroes!S$8 -> 1.00 | I57: =Padroes!S$9 -> 0.20 | J57: =Padroes!S$10 -> 0.50 | O57: =($B$63*G57*E57^3)/(F57+E57) -> 218 | P57: =($B$63*G57*E57^3)/(F57+E57)+ (3*$B$63*(2*J57*I57 - I57^2)*(H57-G57))*(E57-J57+I57/2)/(F57+E57/2) -> 314 | Q57: =($B$63*G57*E57^3)/(F57+E57)+ (6*$B$63*I57*J57*(H57-G57)) * (E57+I57-J57-(I57^2/H57)) / (F57+E57) -> 333
B58: 12 | C58: =Padroes!W13 -> 265 | D58: =Padroes!X13 -> 325 | E58: =0.6+0.1*B58 -> 1.8 | F58: =B58-0.2-E58 -> 10.00 | G58: =Padroes!Y13 -> 0.24 | H58: =Padroes!S$8 -> 1.00 | I58: =Padroes!S$9 -> 0.20 | J58: =Padroes!S$10 -> 0.50 | O58: =($B$63*G58*E58^3)/(F58+E58) -> 237 | P58: =($B$63*G58*E58^3)/(F58+E58)+ (3*$B$63*(2*J58*I58 - I58^2)*(H58-G58))*(E58-J58+I58/2)/(F58+E58/2) -> 331 | Q58: =($B$63*G58*E58^3)/(F58+E58)+ (6*$B$63*I58*J58*(H58-G58)) * (E58+I58-J58-(I58^2/H58)) / (F58+E58) -> 350
B59: 13 | C59: =Padroes!W14 -> 230 | D59: =Padroes!X14 -> 370 | E59: =0.6+0.1*B59 -> 1.9 | F59: =B59-0.2-E59 -> 10.90 | G59: =Padroes!Y14 -> 0.25 | H59: =Padroes!S$8 -> 1.00 | I59: =Padroes!S$9 -> 0.20 | J59: =Padroes!S$10 -> 0.50 | O59: =($B$63*G59*E59^3)/(F59+E59) -> 268 | P59: =($B$63*G59*E59^3)/(F59+E59)+ (3*$B$63*(2*J59*I59 - I59^2)*(H59-G59))*(E59-J59+I59/2)/(F59+E59/2) -> 359 | Q59: =($B$63*G59*E59^3)/(F59+E59)+ (6*$B$63*I59*J59*(H59-G59)) * (E59+I59-J59-(I59^2/H59)) / (F59+E59) -> 378
B61: terreno: | D61: Concreto
B62: C (kg/m3) | C62: s | D62: Peso específico | AQ62: VALOR MÁXIMO DE F (o menor entre R. V. U)
B63: =Tipo_Estai!$AA$9 -> 2000 | C63: 25000.0 | D63: 2400 kg/m3 | AH63: ESFORÇO MÁXIMO FUNÇÃO DO CABO DO ESTAI | AN63: ESFORÇO MÁXIMO FUNÇÃO DO BRAÇO
B64: CÁLCULO DO ESTAI VERTICAL | S64: ESFORÇOS NO CABO DO ESTAI - V e R | AD64: ESFORÇO NO BRAÇO DO ESTAI - U | AH64: COEFICIENTE DE SEGURANÇA DO CABO : | AM64: 1.50 | AN64: =Tipo_Estai!AA8 -> 2
B65: Poste de Concreto | D65: Braço: | F65: =AN64 -> 2.0 | G65: m | H65: dados da escora | K65: dados da base concretada | O65: FORÇA MÁXIMA NO TOPO NO TOPO FUNÇÃO DO TERRENO | S65: dados | V65: ESFORÇOS NO CABO DO ESTAI - V e R | AH65: R | AK65: V | AN65: U
B66: comprimento | C66: carga | D66: dados peso | E66: do t | F66: poste h* | G66: b | H66: m | I66: n | J66: p | K66: d | L66: P | M66: q | N66: K | O66: SIMPLES | P66: ESCORA SIMPLES | Q66: ESCORA DUPLA | R66: CONCRETADO | S66: H | T66: h' | U66: k | V66: SIMPLES R V | X66: ESCORA SIMPLES R V | Z66: ESCORA DUPLA R V | AB66: CONCRETAD0 R V | AD66: SIMPLES | AE66: ESCORA SIMPLES | AF66: ESCORA DUPLA | AG66: CONCRETADO | AH66: =Tabela_Esforco!W10/AM64 -> 1433 | AI66: =Tabela_Esforco!W11/AM64 -> 2413 | AJ66: =Tabela_Esforco!W12/AM64 -> 3267 | AK66: =Tabela_Esforco!W10/AM64 -> 1433 | AL66: =Tabela_Esforco!W11/AM64 -> 2413 | AM66: =Tabela_Esforco!W12/AM64 -> 3267 | AN66: -1000 | AO66: -1000 | AP66: -1000 | AQ66: ev 1 | AR66: ev 2 | AS66: ev 3
B67: 9 | C67: 200 | D67: =D6 -> 670 | E67: =0.6+0.1*B$67 -> 1.5 | F67: =B$67-E67-0.5 -> 7.0 | G67: =G6 -> 0.32 | H67: =Padroes!S$8 -> 1.00 | I67: =Padroes!S$9 -> 0.20 | J67: =Padroes!S$10 -> 0.50 | K67: =K6 -> 0.60 | L67: =L6 -> 1077 | M67: =M6 -> 0.60 | N67: =N6 -> 1.00 | O67: =($B$63*G67*E67^3) / ((2*$F$65+3*T67)/(2*$F$65+6*T67)*T67) -> 773 | P67: =(($B$63*G67*E67^3)+ (3*$B$63*(2*J67*I67 - I67^2)*(H67-G67))*( E67/2 - J67+I67/2)) / ((2*$F$65+3*T67)/(2*$F$65+6*T67)*T67) -> 855 | Q67: =(($B$63*G67*E67^3)+ (6*$B$63*I67*J67*(H67-G67)) * (E67+I67-J67-(I67^2/H67))) / ((2*$F$65+3*T67)/(2*$F$65+6*T67)*T67) -> 1112 | R67: =((N67*$B$63*K67*E67^3) + (K67*L67) * (0.5 - (2*L67/(3*$C$63*K67^2)))) / ((2*$F$65+3*T67)/(2*$F$65+6*T67)*T67) -> 1547 | S67: =F67 -> 7.00 | T67: =S67-$F$65 -> 5.00 | U67: =T67*(2*$F$65+3*T67)/(2*$F$65+6*T67) -> 2.79 | V67: =$O67* ($S67-$U67)/$F$65 -> 1626 | W67: =(1.414)*$O67*($S67-$U67)/$F$65 -> 2299 | X67: =$P67* ($S67-$U67)/$F$65 -> 1798 | Y67: =1.414*$P67*($S67-$U67)/$F$65 -> 2542 | Z67: =$Q67* ($S67-$U67)/$F$65 -> 2338 | AA67: =1.414*$Q67*($S67-$U67)/$F$65 -> 3306 | AB67: =$R67* ($S67-$U67)/$F$65 -> 3253 | AC67: =1.414*$R67*($S67-$U67)/$F$65 -> 4599 | AD67: =(U67-S67)*O67/F$65 -> -1626 | AE67: =(U67-S67)*P67/F$65 -> -1798 | AF67: =(U67-S67)*Q67/F$65 -> -2338 | AG67: =(U67-S67)*R67/F$65 -> -3253 | AH67: =AH$66*F$65/(S67-U67) -> 682 | AI67: =AI$66*F$65/(S67-U67) -> 1148 | AJ67: =AJ$66*F$65/ (S67-U67) -> 1553 | AK67: =AK$66*$F$65* 0.707 / ($S67-$U67) -> 482 | AL67: 811 | AM67: 1098 | AN67: =AN$66*( U67-S67)/F$65 -> 2103 | AO67: =AO$66*(U67-S67)/F$65 -> 2103 | AP67: =AP$66*(U67-S67)/F$65 -> 2103 | AQ67: =MIN(AH67,AK67,AN67) -> 482 | AR67: =MIN(AI67,AL67,AO67) -> 811 | AS67: =MIN(AJ67,AM67,AP67) -> 1098
B68: 9 | C68: 600 | D68: =D8 -> 820 | E68: =0.6+0.1*B$67 -> 1.5 | F68: =B$67-E68-0.5 -> 7.0 | G68: =G8 -> 0.35 | H68: =Padroes!S$8 -> 1.00 | I68: =Padroes!S$9 -> 0.20 | J68: =Padroes!S$10 -> 0.50 | K68: =K8 -> 0.90 | L68: 1736 | M68: 0.60 | N68: 1.00 | O68: 846 | P68: 924 | Q68: 1169 | R68: 2422 | S68: =F68 -> 7.00 | T68: =S68-$F$65 -> 5.00 | U68: =T68*(2*$F$65+3*T68)/(2*$F$65+6*T68) -> 2.79 | V68: =$O68* ($S68-$U68)/$F$65 -> 1778 | W68: =1.414*$O68*($S68-$U68)/$F$65 -> 2514 | X68: =$P68* ($S68-$U68)/$F$65 -> 1942 | Y68: =1.414*$P68*($S68-$U68)/$F$65 -> 2747 | Z68: =$Q68* ($S68-$U68)/$F$65 -> 2459 | AA68: =1.414*$Q68*($S68-$U68)/$F$65 -> 3477 | AB68: =$R68* ($S68-$U68)/$F$65 -> 5093 | AC68: =1.414*$R68*($S68-$U68)/$F$65 -> 7202 | AD68: =($U68-$S68)*$O68/F$65 -> -1778 | AE68: =(U68-S68)*P68/F$65 -> -1942 | AF68: =(U68-S68)*Q68/F$65 -> -2459 | AG68: =(U68-S68)*R68/F$65 -> -5093 | AH68: =AH$66*F$65/(S68-U68) -> 682 | AI68: =AI$66*F$65/(S68-U68) -> 1148 | AJ68: =AJ$66*F$65/ (S68-U68) -> 1553 | AK68: 482 | AL68: 811 | AM68: 1098 | AN68: =AN$66*( U68-S68)/F$65 -> 2103 | AO68: =AO$66*(U68-S68)/F$65 -> 2103 | AP68: =AP$66*(U68-S68)/F$65 -> 2103 | AQ68: =MIN(AH68,AK68,AN68) -> 482 | AR68: 811 | AS68: 1098
B69: 9 | C69: 1000 | D69: =D9 -> 820 | E69: =0.6+0.1*B$67 -> 1.5 | F69: =B$67-E69-0.5 -> 7.0 | G69: =G9 -> 0.35 | H69: =Padroes!S$8 -> 1.00 | I69: =Padroes!S$9 -> 0.20 | J69: =Padroes!S$10 -> 0.50 | K69: 1.30 | L69: 2731 | M69: 0.60 | N69: 1.00 | O69: =($B$63*G69*E69^3) / ((2*$F$65+3*T69)/(2*$F$65+6*T69)*T69) -> 846 | P69: =(($B$63*G69*E69^3)+ (3*$B$63*(2*J69*I69 - I69^2)*(H69-G69))*( E69/2 - J69+I69/2)) / ((2*$F$65+3*T69)/(2*$F$65+6*T69)*T69) -> 924 | Q69: =(($B$63*G69*E69^3)+ (6*$B$63*I69*J69*(H69-G69)) * (E69+I69-J69-(I69^2/H69))) / ((2*$F$65+3*T69)/(2*$F$65+6*T69)*T69) -> 1169 | R69: =((N69*$B$63*K69*E69^3) + (K69*L69) * (0.5 - (2*L69/(3*$C$63*K69^2)))) / ((2*$F$65+3*T69)/(2*$F$65+6*T69)*T69) -> 3721 | S69: =F69 -> 7.00 | T69: 5.00 | U69: 2.79 | V69: 1778 | W69: 2514 | X69: 1942 | Y69: 2747 | Z69: 2459 | AA69: 3477 | AB69: 7825 | AC69: 11065 | AD69: =($U69-$S69)*$O69/F$65 -> -1778 | AE69: =(U69-S69)*P69/F$65 -> -1942 | AF69: =(U69-S69)*Q69/F$65 -> -2459 | AG69: =(U69-S69)*R69/F$65 -> -7825 | AH69: =AH$66*F$65/(S69-U69) -> 682 | AI69: =AI$66*F$65/(S69-U69) -> 1148 | AJ69: =AJ$66*F$65/ (S69-U69) -> 1553 | AK69: 482 | AL69: 811 | AM69: 1098 | AN69: =AN$66*( U69-S69)/F$65 -> 2103 | AO69: =AO$66*(U69-S69)/F$65 -> 2103 | AP69: =AP$66*(U69-S69)/F$65 -> 2103 | AQ69: =MIN(AH69,AK69,AN69) -> 482 | AR69: =MIN(AI69,AL69,AO69) -> 811 | AS69: =MIN(AJ69,AM69,AP69) -> 1098
B70: 10 | C70: 200 | D70: =D15 -> 750 | E70: =0.6+0.1*B$70 -> 1.6 | F70: =B$70-E70-0.2 -> 8.2 | G70: =G15 -> 0.34 | H70: =Padroes!S$8 -> 1.00 | I70: =Padroes!S$9 -> 0.20 | J70: =Padroes!S$10 -> 0.50 | K70: =K15 -> 0.60 | L70: 1191 | M70: 0.65 | N70: 1.00 | O70: 851 | P70: 928 | Q70: 1155 | R70: 1591 | S70: =F70-0.25 -> 7.95 | T70: 5.95 | U70: 3.27 | V70: 1988 | W70: 2811 | X70: 2169 | Y70: 3067 | Z70: 2701 | AA70: 3819 | AB70: 3719 | AC70: 5258 | AD70: -1988 | AE70: -2169 | AF70: -2701 | AG70: -3719 | AH70: 613 | AI70: 1032 | AJ70: 1397 | AK70: 434 | AL70: 730 | AM70: 988 | AN70: 2338 | AO70: 2338 | AP70: 2338 | AQ70: 434 | AR70: 730 | AS70: 988
B71: 10 | C71: 400 | D71: =D16 -> 910 | E71: =0.6+0.1*B$70 -> 1.6 | F71: =B$70-E71-0.2 -> 8.2 | G71: =G16 -> 0.37 | H71: =Padroes!S$8 -> 1.00 | I71: =Padroes!S$9 -> 0.20 | J71: =Padroes!S$10 -> 0.50 | K71: 0.70 | L71: 1510 | M71: 0.65 | N71: 1.00 | O71: 926 | P71: 999 | Q71: 1216 | R71: 1886 | S71: =F71-0.25 -> 7.95 | T71: 5.95 | U71: 3.27 | V71: 2164 | W71: 3059 | X71: 2336 | Y71: 3304 | Z71: 2844 | AA71: 4021 | AB71: 4409 | AC71: 6234 | AD71: -2164 | AE71: -2336 | AF71: -2844 | AG71: -4409 | AH71: 613 | AI71: 1032 | AJ71: 1397 | AK71: 434 | AL71: 730 | AM71: 988 | AN71: 2338 | AO71: 2338 | AP71: 2338 | AQ71: 434 | AR71: 730 | AS71: 988
B72: 10 | C72: 600 | D72: =D17 -> 910 | E72: =0.6+0.1*B$70 -> 1.6 | F72: =B$70-E72-0.2 -> 8.2 | G72: =G17 -> 0.37 | H72: =Padroes!S$8 -> 1.00 | I72: =Padroes!S$9 -> 0.20 | J72: =Padroes!S$10 -> 0.50 | K72: 0.90 | L72: 1902 | M72: 0.65 | N72: 1.00 | O72: 926 | P72: 999 | Q72: 1216 | R72: 2480 | S72: 7.95 | T72: 5.95 | U72: 3.27 | V72: 2164 | W72: 3059 | X72: 2336 | Y72: 3304 | Z72: 2844 | AA72: 4021 | AB72: 5798 | AC72: 8198 | AD72: -2164 | AE72: -2336 | AF72: -2844 | AG72: -5798 | AH72: 613 | AI72: 1032 | AJ72: 1397 | AK72: 434 | AL72: 730 | AM72: 988 | AN72: 2338 | AO72: 2338 | AP72: 2338 | AQ72: 434 | AR72: 730 | AS72: 988
B73: 10 | C73: 1000 | D73: =D18 -> 1090 | E73: =0.6+0.1*B$70 -> 1.6 | F73: =B$70-E73-0.2 -> 8.2 | G73: =G18 -> 0.39 | H73: =Padroes!S$8 -> 1.00 | I73: =Padroes!S$9 -> 0.20 | J73: =Padroes!S$10 -> 0.50 | K73: =K18 -> 1.30 | L73: =L18 -> 3161 | M73: =M18 -> 0.65 | N73: =N18 -> 1.00 | O73: 976 | P73: 1047 | Q73: 1257 | R73: 3817 | S73: 7.95 | T73: 5.95 | U73: 3.27 | V73: 2281 | W73: 3225 | X73: 2448 | Y73: 3461 | Z73: 2939 | AA73: 4156 | AB73: 8922 | AC73: 12616 | AD73: -2281 | AE73: -2448 | AF73: -2939 | AG73: -8922 | AH73: 613 | AI73: 1032 | AJ73: 1397 | AK73: 434 | AL73: 730 | AM73: 988 | AN73: 2338 | AO73: 2338 | AP73: 2338 | AQ73: 434 | AR73: 730 | AS73: 988
B74: 11 | C74: 200 | D74: =D24 -> 870 | E74: =0.6+0.1*B$74 -> 1.7 | F74: =B$74-E74-0.2 -> 9.1 | G74: =G24 -> 0.36 | H74: =Padroes!S$8 -> 1.00 | I74: =Padroes!S$9 -> 0.20 | J74: =Padroes!S$10 -> 0.50 | K74: =K24 -> 0.60 | L74: =L24 -> 1345 | M74: =M24 -> 0.70 | N74: =N24 -> 1.00 | O74: 949 | P74: 1023 | Q74: 1229 | R74: 1668 | S74: 8.85 | T74: 6.85 | U74: 3.73 | V74: 2429 | W74: 3435 | X74: 2619 | Y74: 3703 | Z74: 3146 | AA74: 4449 | AB74: 4270 | AC74: 6038 | AD74: -2429 | AE74: -2619 | AF74: -3146 | AG74: -4270 | AH74: 560 | AI74: 942 | AJ74: 1276 | AK74: 396 | AL74: 666 | AM74: 902 | AN74: 2561 | AO74: 2561 | AP74: 2561 | AQ74: 396 | AR74: 666 | AS74: 902
B75: 11 | C75: 400 | D75: =D25 -> 1030 | E75: =0.6+0.1*B$74 -> 1.7 | F75: =B$74-E75-0.2 -> 9.1 | G75: =G25 -> 0.39 | H75: =Padroes!S$8 -> 1.00 | I75: =Padroes!S$9 -> 0.20 | J75: =Padroes!S$10 -> 0.50 | K75: =K25 -> 0.70 | L75: =L25 -> 1677 | M75: 0.70 | N75: 1.00 | O75: 1028 | P75: 1098 | Q75: 1295 | R75: 1973 | S75: 8.85 | T75: 6.85 | U75: 3.73 | V75: 2632 | W75: 3721 | X75: 2813 | Y75: 3977 | Z75: 3315 | AA75: 4688 | AB75: 5053 | AC75: 7145 | AD75: -2632 | AE75: -2813 | AF75: -3315 | AG75: -5053 | AH75: 560 | AI75: 942 | AJ75: 1276 | AK75: 396 | AL75: 666 | AM75: 902 | AN75: 2561 | AO75: 2561 | AP75: 2561 | AQ75: 396 | AR75: 666 | AS75: 902
B76: 11 | C76: 600 | D76: =D26 -> 1030 | E76: =0.6+0.1*B$74 -> 1.7 | F76: =B$74-E76-0.2 -> 9.1 | G76: =G26 -> 0.39 | H76: =Padroes!S$8 -> 1.00 | I76: =Padroes!S$9 -> 0.20 | J76: =Padroes!S$10 -> 0.50 | K76: =K26 -> 0.90 | L76: 2099 | M76: 0.70 | N76: 1.00 | O76: 1028 | P76: 1098 | Q76: 1295 | R76: 2590 | S76: 8.85 | T76: 6.85 | U76: 3.73 | V76: 2632 | W76: 3721 | X76: 2813 | Y76: 3977 | Z76: 3315 | AA76: 4688 | AB76: 6632 | AC76: 9377 | AD76: -2632 | AE76: -2813 | AF76: -3315 | AG76: -6632 | AH76: 560 | AI76: 942 | AJ76: 1276 | AK76: 396 | AL76: 666 | AM76: 902 | AN76: 2561 | AO76: 2561 | AP76: 2561 | AQ76: 396 | AR76: 666 | AS76: 902
B77: 11 | C77: 1000 | D77: =D27 -> 1260 | E77: =0.6+0.1*B$74 -> 1.7 | F77: =B$74-E77-0.2 -> 9.1 | G77: =G27 -> 0.41 | H77: =Padroes!S$8 -> 1.00 | I77: =Padroes!S$9 -> 0.20 | J77: =Padroes!S$10 -> 0.50 | K77: =K27 -> 1.30 | L77: 3490 | M77: 0.70 | N77: 1.00 | O77: 1080 | P77: 1149 | Q77: 1339 | R77: 3967 | S77: 8.85 | T77: 6.85 | U77: 3.73 | V77: 2767 | W77: 3912 | X77: 2942 | Y77: 4159 | Z77: 3428 | AA77: 4847 | AB77: 10158 | AC77: 14364 | AD77: -2767 | AE77: -2942 | AF77: -3428 | AG77: -10158 | AH77: 560 | AI77: 942 | AJ77: 1276 | AK77: 396 | AL77: 666 | AM77: 902 | AN77: 2561 | AO77: 2561 | AP77: 2561 | AQ77: 396 | AR77: 666 | AS77: 902
B78: 12 | C78: 200 | D78: =D33 -> 1130 | E78: =0.6+0.1*B$78 -> 1.8 | F78: =B$78-E78-0.2 -> 10 | G78: =G33 -> 0.41 | H78: =Padroes!S$8 -> 1.00 | I78: =Padroes!S$9 -> 0.20 | J78: =Padroes!S$10 -> 0.50 | K78: =K33 -> 0.60 | L78: =L33 -> 1639 | M78: =M33 -> 0.75 | N78: =N33 -> 1.00 | O78: 1144 | P78: 1211 | Q78: 1391 | R78: 1763 | S78: 9.75 | T78: 7.75 | U78: 4.18 | V78: 3184 | W78: 4502 | X78: 3372 | Y78: 4768 | Z78: 3872 | AA78: 5475 | AB78: 4907 | AC78: 6938 | AD78: -3184 | AE78: -3372 | AF78: -3872 | AG78: -4907 | AH78: 515 | AI78: 867 | AJ78: 1173 | AK78: 364 | AL78: 613 | AM78: 830 | AN78: 2784 | AO78: 2784 | AP78: 2784 | AQ78: 364 | AR78: 613 | AS78: 830
B79: 12 | C79: 400 | D79: =D34 -> 1130 | E79: =0.6+0.1*B$78 -> 1.8 | F79: =B$78-E79-0.2 -> 10 | G79: =G34 -> 0.41 | H79: =Padroes!S$8 -> 1.00 | I79: =Padroes!S$9 -> 0.20 | J79: =Padroes!S$10 -> 0.50 | K79: =K34 -> 0.70 | L79: =L34 -> 1823 | M79: 0.75 | N79: 1.00 | O79: 1144 | P79: 1211 | Q79: 1391 | R79: 2075 | S79: 9.75 | T79: 7.75 | U79: 4.18 | V79: 3184 | W79: 4502 | X79: 3372 | Y79: 4768 | Z79: 3872 | AA79: 5475 | AB79: 5776 | AC79: 8167 | AD79: -3184 | AE79: -3372 | AF79: -3872 | AG79: -5776 | AH79: 515 | AI79: 867 | AJ79: 1173 | AK79: 364 | AL79: 613 | AM79: 830 | AN79: 2784 | AO79: 2784 | AP79: 2784 | AQ79: 364 | AR79: 613 | AS79: 830
B80: 12 | C80: 600 | D80: =D35 -> 1440 | E80: =0.6+0.1*B$78 -> 1.8 | F80: =B$78-E80-0.2 -> 10 | G80: =G35 -> 0.43 | H80: =Padroes!S$8 -> 1.00 | I80: =Padroes!S$9 -> 0.20 | J80: =Padroes!S$10 -> 0.50 | K80: =K35 -> 0.90 | L80: 2585 | M80: 0.75 | N80: 1.00 | O80: 1199 | P80: 1265 | Q80: 1438 | R80: 2741 | S80: 9.75 | T80: 7.75 | U80: 4.18 | V80: 3339 | W80: 4721 | X80: 3521 | Y80: 4979 | Z80: 4004 | AA80: 5661 | AB80: 7631 | AC80: 10790 | AD80: -3339 | AE80: -3521 | AF80: -4004 | AG80: -7631 | AH80: 515 | AI80: 867 | AJ80: 1173 | AK80: 364 | AL80: 613 | AM80: 830 | AN80: 2784 | AO80: 2784 | AP80: 2784 | AQ80: 364 | AR80: 613 | AS80: 830
B81: 12 | C81: 1000 | D81: =D36 -> 1770 | E81: =0.6+0.1*B$78 -> 1.8 | F81: =B$78-E81-0.2 -> 10 | G81: =G36 -> 0.47 | H81: =Padroes!S$8 -> 1.00 | I81: =Padroes!S$9 -> 0.20 | J81: =Padroes!S$10 -> 0.50 | K81: =K36 -> 1.30 | L81: 4159 | M81: 0.75 | N81: 1.00 | O81: 1311 | P81: 1372 | Q81: 1533 | R81: 4187 | S81: 9.75 | T81: 7.75 | U81: 4.18 | V81: 3650 | W81: 5161 | X81: 3819 | Y81: 5400 | Z81: 4268 | AA81: 6035 | AB81: 11658 | AC81: 16485 | AD81: -3650 | AE81: -3819 | AF81: -4268 | AG81: -11658 | AH81: 515 | AI81: 867 | AJ81: 1173 | AK81: 364 | AL81: 613 | AM81: 830 | AN81: 2784 | AO81: 2784 | AP81: 2784 | AQ81: 364 | AR81: 613 | AS81: 830
B82: 13 | C82: 200 | D82: =D42 -> 1280 | E82: =0.6+0.1*B$82 -> 1.9 | F82: =B$82-E82-0.2 -> 10.9 | G82: =G42 -> 0.43 | H82: =Padroes!S$8 -> 1.00 | I82: =Padroes!S$9 -> 0.20 | J82: =Padroes!S$10 -> 0.50 | K82: =K42 -> 0.60 | L82: =L42 -> 1823 | M82: =M42 -> 0.80 | N82: =N42 -> 1.00 | O82: 1273 | P82: 1338 | Q82: 1503 | R82: 1862 | S82: =F82-0.25 -> 10.65 | T82: 8.65 | U82: 4.63 | V82: 3828 | W82: 5413 | X82: 4024 | Y82: 5689 | Z82: 4521 | AA82: 6392 | AB82: 5601 | AC82: 7920 | AD82: =($U82-$S82)*$O82/F$65 -> -3828 | AE82: =(U82-S82)*P82/F$65 -> -4024 | AF82: =(U82-S82)*Q82/F$65 -> -4521 | AG82: =(U82-S82)*R82/F$65 -> -5601 | AH82: 477 | AI82: 802 | AJ82: 1086 | AK82: 337 | AL82: 567 | AM82: 768 | AN82: 3008 | AO82: 3008 | AP82: 3008 | AQ82: 337 | AR82: 567 | AS82: 768
B83: 13 | C83: 400 | D83: =D43 -> 1280 | E83: =0.6+0.1*B$82 -> 1.9 | F83: =B$82-E83-0.2 -> 10.9 | G83: =G43 -> 0.43 | H83: =Padroes!S$8 -> 1.00 | I83: =Padroes!S$9 -> 0.20 | J83: =Padroes!S$10 -> 0.50 | K83: =K43 -> 0.70 | L83: =L43 -> 2019 | M83: 0.80 | N83: 1.00 | O83: 1273 | P83: 1338 | Q83: 1503 | R83: 2191 | S83: =F83-0.25 -> 10.65 | T83: 8.65 | U83: 4.63 | V83: 3828 | W83: 5413 | X83: 4024 | Y83: 5689 | Z83: 4521 | AA83: 6392 | AB83: 6590 | AC83: 9318 | AD83: =($U83-$S83)*$O83/F$65 -> -3828 | AE83: =(U83-S83)*P83/F$65 -> -4024 | AF83: =(U83-S83)*Q83/F$65 -> -4521 | AG83: =(U83-S83)*R83/F$65 -> -6590 | AH83: 477 | AI83: 802 | AJ83: 1086 | AK83: 337 | AL83: 567 | AM83: 768 | AN83: 3008 | AO83: 3008 | AP83: 3008 | AQ83: 337 | AR83: 567 | AS83: 768
B84: 13 | C84: 600 | D84: =D44 -> 1680 | E84: =0.6+0.1*B$82 -> 1.9 | F84: =B$82-E84-0.2 -> 10.9 | G84: =G44 -> 0.45 | H84: =Padroes!S$8 -> 1.00 | I84: =Padroes!S$9 -> 0.20 | J84: =Padroes!S$10 -> 0.50 | K84: =K44 -> 0.90 | L84: 2901 | M84: 0.80 | N84: 1.00 | O84: 1332 | P84: 1395 | Q84: 1554 | R84: 2892 | S84: =F84-0.25 -> 10.65 | T84: 8.65 | U84: 4.63 | V84: 4006 | W84: 5665 | X84: 4195 | Y84: 5931 | Z84: 4675 | AA84: 6610 | AB84: 8698 | AC84: 12299 | AD84: =($U84-$S84)*$O84/F$65 -> -4006 | AE84: =(U84-S84)*P84/F$65 -> -4195 | AF84: =(U84-S84)*Q84/F$65 -> -4675 | AG84: =(U84-S84)*R84/F$65 -> -8698 | AH84: 477 | AI84: 802 | AJ84: 1086 | AK84: 337 | AL84: 567 | AM84: 768 | AN84: 3008 | AO84: 3008 | AP84: 3008 | AQ84: 337 | AR84: 567 | AS84: 768
B85: 13 | C85: 1000 | D85: =D45 -> 1920 | E85: =0.6+0.1*B$82 -> 1.9 | F85: =B$82-E85-0.2 -> 10.9 | G85: =G45 -> 0.49 | H85: =Padroes!S$8 -> 1.00 | I85: =Padroes!S$9 -> 0.20 | J85: =Padroes!S$10 -> 0.50 | K85: =K45 -> 1.30 | L85: 4468 | M85: 0.80 | N85: 1.00 | O85: 1450 | P85: 1508 | Q85: 1656 | R85: 4386 | S85: =F85-0.25 -> 10.65 | T85: 8.65 | U85: 4.63 | V85: 4362 | W85: 6168 | X85: 4537 | Y85: 6416 | Z85: 4982 | AA85: 7045 | AB85: 13193 | AC85: 18655 | AD85: =($U85-$S85)*$O85/F$65 -> -4362 | AE85: =(U85-S85)*P85/F$65 -> -4537 | AF85: =(U85-S85)*Q85/F$65 -> -4982 | AG85: =(U85-S85)*R85/F$65 -> -13193 | AH85: 477 | AI85: 802 | AJ85: 1086 | AK85: 337 | AL85: 567 | AM85: 768 | AN85: 3008 | AO85: 3008 | AP85: 3008 | AQ85: 337 | AR85: 567 | AS85: 768
B86: Poste de Madeira
B87: comprimento | C87: carga | D87: peso | E87: t | F87: h * | G87: b | H87: m | I87: n | J87: p | O87: SIMPLES | P87: ESCORA SIMPLES | Q87: ESCORA DUPLA
B88: 9 | C88: =Padroes!W10 -> 295 | D88: 209 | E88: =0.6+0.1*B88 -> 1.5 | F88: =B88-0.2-E88 -> 7.3 | G88: =Padroes!Y10 -> 0.22 | H88: =Padroes!S$8 -> 1.00 | I88: =Padroes!S$9 -> 0.20 | J88: =Padroes!S$10 -> 0.50 | O88: =($B$63*G88*E88^3) / ((2*$F$65+3*T88)/(2*$F$65+6*T88)*T88) -> 531 | P88: =(($B$63*G88*E88^3)+ (3*$B$63*(2*J88*I88 - I88^2)*(H88-G88))*( E88/2 - J88+I88/2)) / ((2*$F$65+3*T88)/(2*$F$65+6*T88)*T88) -> 625 | Q88: =(($B$63*G88*E88^3)+ (6*$B$63*I88*J88*(H88-G88)) * (E88+I88-J88-(I88^2/H88))) / ((2*$F$65+3*T88)/(2*$F$65+6*T88)*T88) -> 920 | S88: =F88-0.3 -> 7.00 | T88: =S88-$F$65 -> 5.00 | U88: =T88*(2*$F$65+3*T88)/(2*$F$65+6*T88) -> 2.79 | V88: =$O88* ($S88-$U88)/$F$65 -> 1118 | W88: =1.414*$O88*($S88-$U88)/$F$65 -> 1580 | X88: =$P88* ($S88-$U88)/$F$65 -> 1315 | Y88: =1.414*$P88*($S88-$U88)/$F$65 -> 1859 | Z88: =$Q88* ($S88-$U88)/$F$65 -> 1935 | AA88: =1.414*$Q88*($S88-$U88)/$F$65 -> 2736 | AD88: =(U88-S88)*O88/F$65 -> -1118 | AE88: =(U88-S88)*P88/F$65 -> -1315 | AF88: =(U88-S88)*Q88/F$65 -> -1935 | AH88: =AH$66*F$65/(S88-U88) -> 682 | AI88: =AI$66*F$65/(S88-U88) -> 1148 | AJ88: =AJ$66*F$65/ (S88-U88) -> 1553 | AK88: =AK$66*$F$65* 0.707 / ($S88-$U88) -> 482 | AL88: 811 | AM88: 1098 | AN88: =AN$66*( U88-S88)/F$65 -> 2103 | AO88: =AO$66*(U88-S88)/F$65 -> 2103 | AP88: =AP$66*(U88-S88)/F$65 -> 2103 | AQ88: =MIN(AH88,AK88,AN88) -> 482 | AR88: 811 | AS88: 1098
B89: 10 | C89: =Padroes!W11 -> 255 | D89: 232 | E89: =0.6+0.1*B89 -> 1.6 | F89: =B89-0.2-E89 -> 8.2 | G89: =Padroes!Y11 -> 0.23 | H89: =Padroes!S$8 -> 1.00 | I89: =Padroes!S$9 -> 0.20 | J89: =Padroes!S$10 -> 0.50 | O89: =($B$63*G89*E89^3) / ((2*$F$65+3*T89)/(2*$F$65+6*T89)*T89) -> 575 | P89: =(($B$63*G89*E89^3)+ (3*$B$63*(2*J89*I89 - I89^2)*(H89-G89))*( E89/2 - J89+I89/2)) / ((2*$F$65+3*T89)/(2*$F$65+6*T89)*T89) -> 666 | Q89: =(($B$63*G89*E89^3)+ (6*$B$63*I89*J89*(H89-G89)) * (E89+I89-J89-(I89^2/H89))) / ((2*$F$65+3*T89)/(2*$F$65+6*T89)*T89) -> 931 | S89: =F89-0.25 -> 7.95 | T89: =S89-$F$65 -> 5.95 | U89: =T89*(2*$F$65+3*T89)/(2*$F$65+6*T89) -> 3.27 | V89: =$O89* ($S89-$U89)/$F$65 -> 1345 | W89: =1.414*$O89*($S89-$U89)/$F$65 -> 1902 | X89: =$P89/$F$65 * (($F89-0.25) - ((2*$F$65+3*($F89-0.25-$F$65))/(2*$F$65+6*($F89-0.25-$F$65))*($F89-0.25-$F$65))) -> 1556 | Y89: =($P89*1.414/$F$65) * (($F89-0.25) - ((2*$F$65+3*($F89-0.25-$F$65))/(2*$F$65+6*($F89-0.25-$F$65))*($F89-0.25-$F$65))) -> 2200 | Z89: =$Q89/$F$65 * (($F89-0.25) - ((2*$F$65+3*($F89-0.25-$F$65))/(2*$F$65+6*($F89-0.25-$F$65))*($F89-0.25-$F$65))) -> 2176 | AA89: =1.414*$Q89*($S89-$U89)/$F$65 -> 3077 | AD89: =(U89-S89)*O89/F$65 -> -1345 | AE89: =(U89-S89)*P89/F$65 -> -1556 | AF89: =(U89-S89)*Q89/F$65 -> -2176 | AH89: =AH$66*F$65/(S89-U89) -> 613 | AI89: =AI$66*F$65/(S89-U89) -> 1032 | AJ89: =AJ$66*F$65/ (S89-U89) -> 1397 | AK89: 434 | AL89: 730 | AM89: 988 | AN89: =AN$66*( U89-S89)/F$65 -> 2338 | AO89: =AO$66*(U89-S89)/F$65 -> 2338 | AP89: =AP$66*(U89-S89)/F$65 -> 2338 | AQ89: 434 | AR89: 730 | AS89: 988
B90: 11 | C90: =Padroes!W12 -> 300 | D90: 300 | E90: =0.6+0.1*B90 -> 1.7 | F90: =B90-0.2-E90 -> 9.1 | G90: =Padroes!Y12 -> 0.24 | H90: =Padroes!S$8 -> 1.00 | I90: =Padroes!S$9 -> 0.20 | J90: =Padroes!S$10 -> 0.50 | O90: =($B$63*G90*E90^3) / ((2*$F$65+3*T90)/(2*$F$65+6*T90)*T90) -> 632 | P90: =(($B$63*G90*E90^3)+ (3*$B$63*(2*J90*I90 - I90^2)*(H90-G90))*( E90/2 - J90+I90/2)) / ((2*$F$65+3*T90)/(2*$F$65+6*T90)*T90) -> 720 | Q90: =(($B$63*G90*E90^3)+ (6*$B$63*I90*J90*(H90-G90)) * (E90+I90-J90-(I90^2/H90))) / ((2*$F$65+3*T90)/(2*$F$65+6*T90)*T90) -> 965 | S90: =F90-0.25 -> 8.85 | T90: =S90-$F$65 -> 6.85 | U90: =T90*(2*$F$65+3*T90)/(2*$F$65+6*T90) -> 3.73 | V90: =$O90/$F$65 * (($F90-0.25) - ((2*$F$65+3*($F90-0.25-$F$65))/(2*$F$65+6*($F90-0.25-$F$65))*($F90-0.25-$F$65))) -> 1619 | W90: =1.414*$O90*($S90-$U90)/$F$65 -> 2290 | X90: =$P90/$F$65 * (($F90-0.25) - ((2*$F$65+3*($F90-0.25-$F$65))/(2*$F$65+6*($F90-0.25-$F$65))*($F90-0.25-$F$65))) -> 1845 | Y90: =($P90*1.414/$F$65) * (($F90-0.25) - ((2*$F$65+3*($F90-0.25-$F$65))/(2*$F$65+6*($F90-0.25-$F$65))*($F90-0.25-$F$65))) -> 2609 | Z90: =$Q90/$F$65 * (($F90-0.25) - ((2*$F$65+3*($F90-0.25-$F$65))/(2*$F$65+6*($F90-0.25-$F$65))*($F90-0.25-$F$65))) -> 2471 | AA90: =($Q90*1.414/$F$65) * (($F90-0.25) - ((2*$F$65+3*($F90-0.25-$F$65))/(2*$F$65+6*($F90-0.25-$F$65))*($F90-0.25-$F$65))) -> 3494 | AD90: =(U90-S90)*O90/F$65 -> -1619 | AE90: =(U90-S90)*P90/F$65 -> -1845 | AF90: =(U90-S90)*Q90/F$65 -> -2471 | AH90: =AH$66*F$65/(S90-U90) -> 560 | AI90: =AI$66*F$65/(S90-U90) -> 942 | AJ90: =AJ$66*F$65/ (S90-U90) -> 1276 | AK90: 396 | AL90: 666 | AM90: 902 | AN90: =AN$66*( U90-S90)/F$65 -> 2561 | AO90: =AO$66*(U90-S90)/F$65 -> 2561 | AP90: =AP$66*(U90-S90)/F$65 -> 2561 | AQ90: 396 | AR90: 666 | AS90: 902
B91: 12 | C91: =Padroes!W13 -> 265 | D91: 327 | E91: =0.6+0.1*B91 -> 1.8 | F91: =B91-0.2-E91 -> 10 | G91: =Padroes!Y13 -> 0.24 | H91: =Padroes!S$8 -> 1.00 | I91: =Padroes!S$9 -> 0.20 | J91: =Padroes!S$10 -> 0.50 | O91: =($B$63*G91*E91^3) / ((2*$F$65+3*T91)/(2*$F$65+6*T91)*T91) -> 669 | P91: =(($B$63*G91*E91^3)+ (3*$B$63*(2*J91*I91 - I91^2)*(H91-G91))*( E91/2 - J91+I91/2)) / ((2*$F$65+3*T91)/(2*$F$65+6*T91)*T91) -> 757 | Q91: =(($B$63*G91*E91^3)+ (6*$B$63*I91*J91*(H91-G91)) * (E91+I91-J91-(I91^2/H91))) / ((2*$F$65+3*T91)/(2*$F$65+6*T91)*T91) -> 988 | S91: =F91-0.25 -> 9.75 | T91: =S91-$F$65 -> 7.75 | U91: =T91*(2*$F$65+3*T91)/(2*$F$65+6*T91) -> 4.18 | V91: =$O91/$F$65 * (($F91-0.25) - ((2*$F$65+3*($F91-0.25-$F$65))/(2*$F$65+6*($F91-0.25-$F$65))*($F91-0.25-$F$65))) -> 1864 | W91: =1.414*$O91*($S91-$U91)/$F$65 -> 2635 | X91: =$P91/$F$65 * (($F91-0.25) - ((2*$F$65+3*($F91-0.25-$F$65))/(2*$F$65+6*($F91-0.25-$F$65))*($F91-0.25-$F$65))) -> 2106 | Y91: =($P91*1.414/$F$65) * (($F91-0.25) - ((2*$F$65+3*($F91-0.25-$F$65))/(2*$F$65+6*($F91-0.25-$F$65))*($F91-0.25-$F$65))) -> 2979 | Z91: =$Q91/$F$65 * (($F91-0.25) - ((2*$F$65+3*($F91-0.25-$F$65))/(2*$F$65+6*($F91-0.25-$F$65))*($F91-0.25-$F$65))) -> 2750 | AA91: =($Q91*1.414/$F$65) * (($F91-0.25) - ((2*$F$65+3*($F91-0.25-$F$65))/(2*$F$65+6*($F91-0.25-$F$65))*($F91-0.25-$F$65))) -> 3889 | AD91: =(U91-S91)*O91/F$65 -> -1864 | AE91: =(U91-S91)*P91/F$65 -> -2106 | AF91: =(U91-S91)*Q91/F$65 -> -2750 | AH91: =AH$66*F$65/(S91-U91) -> 515 | AI91: =AI$66*F$65/(S91-U91) -> 867 | AJ91: =AJ$66*F$65/ (S91-U91) -> 1173 | AK91: 364 | AL91: 613 | AM91: 830 | AN91: =AN$66*( U91-S91)/F$65 -> 2784 | AO91: =AO$66*(U91-S91)/F$65 -> 2784 | AP91: =AP$66*(U91-S91)/F$65 -> 2784 | AQ91: 364 | AR91: 613 | AS91: 830
B92: 13 | C92: =Padroes!W14 -> 230 | D92: 355 | E92: =0.6+0.1*B92 -> 1.9 | F92: =B92-0.2-E92 -> 10.9 | G92: =Padroes!Y14 -> 0.25 | H92: =Padroes!S$8 -> 1.00 | I92: =Padroes!S$9 -> 0.20 | J92: =Padroes!S$10 -> 0.50 | O92: =($B$63*G92*E92^3) / ((2*$F$65+3*T92)/(2*$F$65+6*T92)*T92) -> 740 | P92: =(($B$63*G92*E92^3)+ (3*$B$63*(2*J92*I92 - I92^2)*(H92-G92))*( E92/2 - J92+I92/2)) / ((2*$F$65+3*T92)/(2*$F$65+6*T92)*T92) -> 825 | Q92: =(($B$63*G92*E92^3)+ (6*$B$63*I92*J92*(H92-G92)) * (E92+I92-J92-(I92^2/H92))) / ((2*$F$65+3*T92)/(2*$F$65+6*T92)*T92) -> 1043 | S92: =F92-0.25 -> 10.65 | T92: =S92-$F$65 -> 8.65 | U92: =T92*(2*$F$65+3*T92)/(2*$F$65+6*T92) -> 4.63 | V92: =$O92/$F$65 * (($F92-0.25) - ((2*$F$65+3*($F92-0.25-$F$65))/(2*$F$65+6*($F92-0.25-$F$65))*($F92-0.25-$F$65))) -> 2226 | W92: =1.414*$O92*($S92-$U92)/$F$65 -> 3147 | X92: =$P92/$F$65 * (($F92-0.25) - ((2*$F$65+3*($F92-0.25-$F$65))/(2*$F$65+6*($F92-0.25-$F$65))*($F92-0.25-$F$65))) -> 2483 | Y92: =($P92*1.414/$F$65) * (($F92-0.25) - ((2*$F$65+3*($F92-0.25-$F$65))/(2*$F$65+6*($F92-0.25-$F$65))*($F92-0.25-$F$65))) -> 3511 | Z92: =$Q92/$F$65 * (($F92-0.25) - ((2*$F$65+3*($F92-0.25-$F$65))/(2*$F$65+6*($F92-0.25-$F$65))*($F92-0.25-$F$65))) -> 3137 | AA92: =($Q92*1.414/$F$65) * (($F92-0.25) - ((2*$F$65+3*($F92-0.25-$F$65))/(2*$F$65+6*($F92-0.25-$F$65))*($F92-0.25-$F$65))) -> 4436 | AD92: =(U92-S92)*O92/F$65 -> -2226 | AE92: =(U92-S92)*P92/F$65 -> -2483 | AF92: =(U92-S92)*Q92/F$65 -> -3137 | AH92: =AH$66*F$65/(S92-U92) -> 477 | AI92: =AI$66*F$65/(S92-U92) -> 802 | AJ92: =AJ$66*F$65/ (S92-U92) -> 1086 | AK92: 337 | AL92: 567 | AM92: 768 | AN92: =AN$66*( U92-S92)/F$65 -> 3008 | AO92: =AO$66*(U92-S92)/F$65 -> 3008 | AP92: =AP$66*(U92-S92)/F$65 -> 3008 | AQ92: =MIN(AH92,AK92,AN92) -> 337 | AR92: =MIN(AI92,AL92,AO92) -> 567 | AS92: =MIN(AJ92,AM92,AP92) -> 768
W96: Valores para Critários de Projetos
A97: Poste de concreto Duplo T | E97: DADOS DO POSTE | G97: Face A | H97: dados escora | K97: dados da base concretada | O97: VALOR DA TRAÇÃO NO TOPO (daN)
A98: comprimento | C98: carga | D98: peso | E98: t | F98: h* | G98: b | H98: m | I98: n | J98: c | K98: d | L98: P | M98: q | N98: K | O98: SIMPLES | P98: ESCORA SIMPLES | Q98: ESCORA DUPLA | R98: CONCRETADO | S98: 9 | W98: SIMPLES | X98: ESCORA SIMPLES | Y98: ESCORA DUPLA | Z98: CONCRETADO
A99: 9 | B99: 9 | C99: =IF(Padroes!H10="","",Padroes!H10) -> 150 | D99: =IF(Padroes!I10<>"",Padroes!I10,"") -> 470 | E99: =IF(D99="","",(0.6+0.1*B99)) -> 1.5 | F99: =IF(E99="","",(B99-E99-0.5)) -> 7.00 | G99: =IF(Padroes!J10="","",Padroes!J10) -> 0.26 | H99: =IF(E99="","",Padroes!S$8) -> 1.00 | I99: =IF(E99="","",Padroes!S$9) -> 0.20 | J99: =IF(E99="","",Padroes!S$10) -> 0.50 | K99: =IF(Padroes!L10="","",Padroes!L10) -> 0.63 | L99: =IF(D99="","",(D99+(3.1416*K99^2*M99/4*2400))) -> 912 | M99: =IF(E99="","",Padroes!$AI$8) -> 0.60 | N99: =IF(E99="","",Padroes!$AL$23) -> 1.00 | O99: =IF(E99="","",($B$63*G99*E99^3)/(F99+E99)) -> 210 | P99: =IF(E99="","",(3*$B$63*(2*J99*I99 - I99^2)*(H99-G99))*(E99-J99+I99/2)/(F99+E99/2) + O99) -> 310 | Q99: =IF(E99="","",(3*$B$63 * (2*E99*I99-I99^2)*(H99-G99) ) * (I99/2) / (F99+E99) + P99) -> 339 | R99: =IF(E99="","",(N99*$B$63*K99*E99^3)/(F99+E99) + (K99*L99/(F99+E99)) * (0.5 - (2*L99/(3*$C$63*K99^2)))) -> 526 | T99: =IF(Padroes!N10="","",Padroes!N10) -> D | W99: =IF(O99="","",O99*Parametros!$I$26) -> 168 | X99: =IF(P99="","",P99*Parametros!$I$27) -> 248 | Y99: =IF(Q99="","",Q99*Parametros!$I$28) -> 271 | Z99: =IF(R99="","",R99*Parametros!$I$29) -> 421
B100: 9 | C100: =IF(Padroes!H11="","",Padroes!H11) -> 200 | D100: =IF(Padroes!I11<>"",Padroes!I11,"") -> 470 | E100: =IF(D100="","",(0.6+0.1*B100)) -> 1.5 | F100: =IF(E100="","",(B100-E100-0.5)) -> 7.00 | G100: =IF(Padroes!J11="","",Padroes!J11) -> 0.26 | H100: =IF(E100="","",Padroes!S$8) -> 1.00 | I100: =IF(E100="","",Padroes!S$9) -> 0.20 | J100: =IF(E100="","",Padroes!S$10) -> 0.50 | K100: =IF(Padroes!L11="","",Padroes!L11) -> 0.63 | L100: =IF(D100="","",(D100+(3.1416*K100^2*M100/4*2400))) -> 912 | M100: =IF(E100="","",Padroes!$AI$8) -> 0.60 | N100: =IF(E100="","",Padroes!$AL$23) -> 1.00 | O100: 210 | P100: =IF(E100="","",(3*$B$63*(2*J100*I100 - I100^2)*(H100-G100))*(E100-J100+I100/2)/(F100+E100/2) + O100) -> 310 | Q100: =IF(E100="","",(3*$B$63 * (2*E100*I100-I100^2)*(H100-G100) ) * (I100/2) / (F100+E100) + P100) -> 339 | R100: =IF(E100="","",(N100*$B$63*K100*E100^3)/(F100+E100) + (K100*L100/(F100+E100)) * (0.5 - (2*L100/(3*$C$63*K100^2)))) -> 526 | T100: =IF(Padroes!N11="","",Padroes!N11) -> D | W100: =IF(O100="","",O100*Parametros!$I$26) -> 168 | X100: =IF(P100="","",P100*Parametros!$I$27) -> 248 | Y100: =IF(Q100="","",Q100*Parametros!$I$28) -> 271 | Z100: =IF(R100="","",R100*Parametros!$I$29) -> 421
B101: 9 | C101: =IF(Padroes!H12="","",Padroes!H12) -> 300 | D101: =IF(Padroes!I12<>"",Padroes!I12,"") -> 750 | E101: 1.5 | F101: 7.00 | G101: =IF(Padroes!J12="","",Padroes!J12) -> 0.39 | H101: =IF(E101="","",Padroes!S$8) -> 1.00 | I101: =IF(E101="","",Padroes!S$9) -> 0.20 | J101: =IF(E101="","",Padroes!S$10) -> 0.50 | K101: =IF(Padroes!L12="","",Padroes!L12) -> 0.79 | L101: =IF(D101="","",(D101+(3.1416*K101^2*M101/4*2400))) -> 1450 | M101: =IF(E101="","",Padroes!$AI$8) -> 0.60 | N101: =IF(E101="","",Padroes!$AL$23) -> 1.00 | O101: 311 | P101: =IF(E101="","",(3*$B$63*(2*J101*I101 - I101^2)*(H101-G101))*(E101-J101+I101/2)/(F101+E101/2) + O101) -> 394 | Q101: =IF(E101="","",(3*$B$63 * (2*E101*I101-I101^2)*(H101-G101) ) * (I101/2) / (F101+E101) + P101) -> 418 | R101: =IF(E101="","",(N101*$B$63*K101*E101^3)/(F101+E101) + (K101*L101/(F101+E101)) * (0.5 - (2*L101/(3*$C$63*K101^2)))) -> 684 | T101: =IF(Padroes!N12="","",Padroes!N12) -> B | W101: =IF(O101="","",O101*Parametros!$I$26) -> 249 | X101: =IF(P101="","",P101*Parametros!$I$27) -> 315 | Y101: =IF(Q101="","",Q101*Parametros!$I$28) -> 335 | Z101: =IF(R101="","",R101*Parametros!$I$29) -> 547
B102: 9 | C102: =IF(Padroes!H13="","",Padroes!H13) -> 400 | D102: =IF(Padroes!I13<>"",Padroes!I13,"") -> 750 | E102: 1.5 | F102: 7.00 | G102: =IF(Padroes!J13="","",Padroes!J13) -> 0.39 | H102: =IF(E102="","",Padroes!S$8) -> 1.00 | I102: =IF(E102="","",Padroes!S$9) -> 0.20 | J102: =IF(E102="","",Padroes!S$10) -> 0.50 | K102: =IF(Padroes!L13="","",Padroes!L13) -> 0.79 | L102: =IF(D102="","",(D102+(3.1416*K102^2*M102/4*2400))) -> 1450 | M102: =IF(E102="","",Padroes!$AI$8) -> 0.60 | N102: =IF(E102="","",Padroes!$AL$23) -> 1.00 | O102: 311 | P102: 394 | Q102: 418 | R102: 684 | T102: =IF(Padroes!N13="","",Padroes!N13) -> B | W102: =IF(O102="","",O102*Parametros!$I$26) -> 249 | X102: =IF(P102="","",P102*Parametros!$I$27) -> 315 | Y102: =IF(Q102="","",Q102*Parametros!$I$28) -> 335 | Z102: =IF(R102="","",R102*Parametros!$I$29) -> 547
B103: 9 | C103: =IF(Padroes!H14="","",Padroes!H14) -> 600 | D103: =IF(Padroes!I14<>"",Padroes!I14,"") -> 750 | E103: 1.5 | F103: 7.00 | G103: =IF(Padroes!J14="","",Padroes!J14) -> 0.39 | H103: =IF(E103="","",Padroes!S$8) -> 1.00 | I103: =IF(E103="","",Padroes!S$9) -> 0.20 | J103: =IF(E103="","",Padroes!S$10) -> 0.50 | K103: =IF(Padroes!L14="","",Padroes!L14) -> 0.79 | L103: =IF(D103="","",(D103+(3.1416*K103^2*M103/4*2400))) -> 1450 | M103: =IF(E103="","",Padroes!$AI$8) -> 0.60 | N103: =IF(E103="","",Padroes!$AL$23) -> 1.00 | O103: 311 | P103: 394 | Q103: 418 | R103: 684 | T103: =IF(Padroes!N14="","",Padroes!N14) -> B | W103: =IF(O103="","",O103*Parametros!$I$26) -> 249 | X103: =IF(P103="","",P103*Parametros!$I$27) -> 315 | Y103: =IF(Q103="","",Q103*Parametros!$I$28) -> 335 | Z103: =IF(R103="","",R103*Parametros!$I$29) -> 547
B104: 9 | C104: =IF(Padroes!H15="","",Padroes!H15) -> 1000 | D104: =IF(Padroes!I15<>"",Padroes!I15,"") -> 1026 | E104: 1.5 | F104: 7.00 | G104: =IF(Padroes!J15="","",Padroes!J15) -> 0.43 | H104: =IF(E104="","",Padroes!S$8) -> 1.00 | I104: =IF(E104="","",Padroes!S$9) -> 0.20 | J104: =IF(E104="","",Padroes!S$10) -> 0.50 | K104: =IF(Padroes!L15="","",Padroes!L15) -> 0.87 | L104: 1878 | M104: =IF(E104="","",Padroes!$AI$8) -> 0.60 | N104: =IF(E104="","",Padroes!$AL$23) -> 1.00 | O104: 345 | P104: 422 | Q104: 444 | R104: 772 | T104: =IF(Padroes!N15="","",Padroes!N15) -> B-1,5 | W104: =IF(O104="","",O104*Parametros!$I$26) -> 276 | X104: =IF(P104="","",P104*Parametros!$I$27) -> 337 | Y104: =IF(Q104="","",Q104*Parametros!$I$28) -> 355 | Z104: =IF(R104="","",R104*Parametros!$I$29) -> 618
B105: 9 | C105: =IF(Padroes!H16="","",Padroes!H16) ->  | D105: =IF(Padroes!I16<>"",Padroes!I16,"") ->  | G105: =IF(Padroes!J16="","",Padroes!J16) ->  | H105: =IF(E105="","",Padroes!S$8) ->  | I105: =IF(E105="","",Padroes!S$9) ->  | J105: =IF(E105="","",Padroes!S$10) ->  | K105: =IF(Padroes!L16="","",Padroes!L16) ->  | M105: =IF(E105="","",Padroes!$AI$8) ->  | N105: =IF(E105="","",Padroes!$AL$23) ->  | O105: =IF(E105="","",($B$63*G105*E105^3)/(F105+E105)) ->  | T105: =IF(Padroes!N16="","",Padroes!N16) ->  | W105: =IF(O105="","",O105*Parametros!$I$26) ->  | X105: =IF(P105="","",P105*Parametros!$I$27) ->  | Y105: =IF(Q105="","",Q105*Parametros!$I$28) ->  | Z105: =IF(R105="","",R105*Parametros!$I$29) -> 
B106: 9 | C106: =IF(Padroes!H17="","",Padroes!H17) ->  | D106: =IF(Padroes!I17<>"",Padroes!I17,"") ->  | G106: =IF(Padroes!J17="","",Padroes!J17) ->  | H106: =IF(E106="","",Padroes!S$8) ->  | I106: =IF(E106="","",Padroes!S$9) ->  | J106: =IF(E106="","",Padroes!S$10) ->  | K106: =IF(Padroes!L17="","",Padroes!L17) ->  | M106: =IF(E106="","",Padroes!$AI$8) ->  | N106: =IF(E106="","",Padroes!$AL$23) ->  | T106: =IF(Padroes!N17="","",Padroes!N17) ->  | W106: =IF(O106="","",O106*Parametros!$I$26) ->  | X106: =IF(P106="","",P106*Parametros!$I$27) ->  | Y106: =IF(Q106="","",Q106*Parametros!$I$28) ->  | Z106: =IF(R106="","",R106*Parametros!$I$29) -> 
B107: 9 | C107: =IF(Padroes!H18="","",Padroes!H18) ->  | D107: =IF(Padroes!I18<>"",Padroes!I18,"") ->  | G107: =IF(Padroes!J18="","",Padroes!J18) ->  | H107: =IF(E107="","",Padroes!S$8) ->  | I107: =IF(E107="","",Padroes!S$9) ->  | J107: =IF(E107="","",Padroes!S$10) ->  | K107: =IF(Padroes!L18="","",Padroes!L18) ->  | M107: =IF(E107="","",Padroes!$AI$8) ->  | N107: =IF(E107="","",Padroes!$AL$23) ->  | T107: =IF(Padroes!N18="","",Padroes!N18) ->  | W107: =IF(O107="","",O107*Parametros!$I$26) ->  | X107: =IF(P107="","",P107*Parametros!$I$27) ->  | Y107: =IF(Q107="","",Q107*Parametros!$I$28) ->  | Z107: =IF(R107="","",R107*Parametros!$I$29) -> 
A108: 10 | B108: 10 | C108: =IF(Padroes!H19="","",Padroes!H19) -> 150 | D108: =IF(Padroes!I19<>"",Padroes!I19,"") -> 550 | E108: 1.6 | F108: =IF(E108="","",(B108-E108-0.2)) -> 8.2 | G108: =IF(Padroes!J19="","",Padroes!J19) -> 0.28 | H108: =IF(E108="","",Padroes!S$8) -> 1.00 | I108: =IF(E108="","",Padroes!S$9) -> 0.20 | J108: =IF(E108="","",Padroes!S$10) -> 0.50 | K108: =IF(Padroes!L19="","",Padroes!L19) -> 0.66 | L108: 1089 | M108: =IF(E108="","",Padroes!$AI$9) -> 0.65 | N108: =IF(E108="","",Padroes!$AL$23) -> 1.00 | O108: 234 | P108: 326 | Q108: 353 | R108: 586 | S108: 10 | T108: =IF(Padroes!N19="","",Padroes!N19) -> D | W108: =IF(O108="","",O108*Parametros!$I$26) -> 187 | X108: =IF(P108="","",P108*Parametros!$I$27) -> 261 | Y108: =IF(Q108="","",Q108*Parametros!$I$28) -> 282 | Z108: =IF(R108="","",R108*Parametros!$I$29) -> 469
B109: 10 | C109: =IF(Padroes!H20="","",Padroes!H20) -> 200 | D109: =IF(Padroes!I20<>"",Padroes!I20,"") -> 550 | E109: 1.6 | F109: =IF(E109="","",(B109-E109-0.2)) -> 8.2 | G109: =IF(Padroes!J20="","",Padroes!J20) -> 0.28 | H109: =IF(E109="","",Padroes!S$8) -> 1.00 | I109: =IF(E109="","",Padroes!S$9) -> 0.20 | J109: =IF(E109="","",Padroes!S$10) -> 0.50 | K109: =IF(Padroes!L20="","",Padroes!L20) -> 0.66 | L109: 1089 | M109: =IF(E109="","",Padroes!$AI$9) -> 0.65 | N109: =IF(E109="","",Padroes!$AL$23) -> 1.00 | O109: 234 | P109: 326 | Q109: 353 | R109: 586 | T109: =IF(Padroes!N20="","",Padroes!N20) -> B | W109: =IF(O109="","",O109*Parametros!$I$26) -> 187 | X109: =IF(P109="","",P109*Parametros!$I$27) -> 261 | Y109: =IF(Q109="","",Q109*Parametros!$I$28) -> 282 | Z109: =IF(R109="","",R109*Parametros!$I$29) -> 469
B110: 10 | C110: =IF(Padroes!H21="","",Padroes!H21) -> 300 | D110: =IF(Padroes!I21<>"",Padroes!I21,"") -> 900 | E110: 1.6 | F110: 8.2 | G110: =IF(Padroes!J21="","",Padroes!J21) -> 0.42 | H110: =IF(E110="","",Padroes!S$8) -> 1.00 | I110: =IF(E110="","",Padroes!S$9) -> 0.20 | J110: =IF(E110="","",Padroes!S$10) -> 0.50 | K110: =IF(Padroes!L21="","",Padroes!L21) -> 0.86 | L110: 1798 | M110: =IF(E110="","",Padroes!$AI$9) -> 0.65 | N110: =IF(E110="","",Padroes!$AL$23) -> 1.00 | O110: 351 | P110: 425 | Q110: 447 | R110: 784 | T110: =IF(Padroes!N21="","",Padroes!N21) -> B | W110: =IF(O110="","",O110*Parametros!$I$26) -> 281 | X110: =IF(P110="","",P110*Parametros!$I$27) -> 340 | Y110: =IF(Q110="","",Q110*Parametros!$I$28) -> 357 | Z110: =IF(R110="","",R110*Parametros!$I$29) -> 627
B111: 10 | C111: =IF(Padroes!H22="","",Padroes!H22) -> 400 | D111: =IF(Padroes!I22<>"",Padroes!I22,"") -> 900 | E111: 1.6 | F111: 8.2 | G111: =IF(Padroes!J22="","",Padroes!J22) -> 0.42 | H111: =IF(E111="","",Padroes!S$8) -> 1.00 | I111: =IF(E111="","",Padroes!S$9) -> 0.20 | J111: =IF(E111="","",Padroes!S$10) -> 0.50 | K111: =IF(Padroes!L22="","",Padroes!L22) -> 0.86 | L111: 1798 | M111: =IF(E111="","",Padroes!$AI$9) -> 0.65 | N111: =IF(E111="","",Padroes!$AL$23) -> 1.00 | O111: 351 | P111: 425 | Q111: 447 | R111: 784 | T111: =IF(Padroes!N22="","",Padroes!N22) -> B | W111: =IF(O111="","",O111*Parametros!$I$26) -> 281 | X111: =IF(P111="","",P111*Parametros!$I$27) -> 340 | Y111: =IF(Q111="","",Q111*Parametros!$I$28) -> 357 | Z111: =IF(R111="","",R111*Parametros!$I$29) -> 627
B112: 10 | C112: =IF(Padroes!H23="","",Padroes!H23) -> 600 | D112: =IF(Padroes!I23<>"",Padroes!I23,"") -> 900 | E112: 1.6 | F112: 8.2 | G112: =IF(Padroes!J23="","",Padroes!J23) -> 0.42 | H112: =IF(E112="","",Padroes!S$8) -> 1.00 | I112: =IF(E112="","",Padroes!S$9) -> 0.20 | J112: =IF(E112="","",Padroes!S$10) -> 0.50 | K112: =IF(Padroes!L23="","",Padroes!L23) -> 0.86 | L112: 1798 | M112: =IF(E112="","",Padroes!$AI$9) -> 0.65 | N112: =IF(E112="","",Padroes!$AL$23) -> 1.00 | O112: 351 | P112: 425 | Q112: 447 | R112: 784 | T112: =IF(Padroes!N23="","",Padroes!N23) -> B | W112: =IF(O112="","",O112*Parametros!$I$26) -> 281 | X112: =IF(P112="","",P112*Parametros!$I$27) -> 340 | Y112: =IF(Q112="","",Q112*Parametros!$I$28) -> 357 | Z112: =IF(R112="","",R112*Parametros!$I$29) -> 627
B113: 10 | C113: =IF(Padroes!H24="","",Padroes!H24) -> 1000 | D113: =IF(Padroes!I24<>"",Padroes!I24,"") -> 1150 | E113: 1.6 | F113: 8.2 | G113: =IF(Padroes!J24="","",Padroes!J24) -> 0.46 | H113: =IF(E113="","",Padroes!S$8) -> 1.00 | I113: =IF(E113="","",Padroes!S$9) -> 0.20 | J113: =IF(E113="","",Padroes!S$10) -> 0.50 | K113: =IF(Padroes!L24="","",Padroes!L24) -> 0.86 | L113: 2048 | M113: =IF(E113="","",Padroes!$AI$9) -> 0.65 | N113: =IF(E113="","",Padroes!$AL$23) -> 1.00 | O113: 386 | P113: 455 | Q113: 475 | R113: 792 | T113: =IF(Padroes!N24="","",Padroes!N24) -> B-1,5 | W113: =IF(O113="","",O113*Parametros!$I$26) -> 309 | X113: =IF(P113="","",P113*Parametros!$I$27) -> 364 | Y113: =IF(Q113="","",Q113*Parametros!$I$28) -> 380 | Z113: =IF(R113="","",R113*Parametros!$I$29) -> 633
B114: 10 | C114: =IF(Padroes!H25="","",Padroes!H25) ->  | D114: =IF(Padroes!I25<>"",Padroes!I25,"") ->  | G114: =IF(Padroes!J25="","",Padroes!J25) ->  | H114: =IF(E114="","",Padroes!S$8) ->  | I114: =IF(E114="","",Padroes!S$9) ->  | J114: =IF(E114="","",Padroes!S$10) ->  | K114: =IF(Padroes!L25="","",Padroes!L25) ->  | M114: =IF(E114="","",Padroes!$AI$9) ->  | N114: =IF(E114="","",Padroes!$AL$23) ->  | T114: =IF(Padroes!N25="","",Padroes!N25) ->  | W114: =IF(O114="","",O114*Parametros!$I$26) ->  | X114: =IF(P114="","",P114*Parametros!$I$27) ->  | Y114: =IF(Q114="","",Q114*Parametros!$I$28) ->  | Z114: =IF(R114="","",R114*Parametros!$I$29) -> 
B115: 10 | C115: =IF(Padroes!H26="","",Padroes!H26) ->  | D115: =IF(Padroes!I26<>"",Padroes!I26,"") ->  | G115: =IF(Padroes!J26="","",Padroes!J26) ->  | H115: =IF(E115="","",Padroes!S$8) ->  | I115: =IF(E115="","",Padroes!S$9) ->  | J115: =IF(E115="","",Padroes!S$10) ->  | K115: =IF(Padroes!L26="","",Padroes!L26) ->  | M115: =IF(E115="","",Padroes!$AI$9) ->  | N115: =IF(E115="","",Padroes!$AL$23) ->  | T115: =IF(Padroes!N26="","",Padroes!N26) ->  | W115: =IF(O115="","",O115*Parametros!$I$26) ->  | X115: =IF(P115="","",P115*Parametros!$I$27) ->  | Y115: =IF(Q115="","",Q115*Parametros!$I$28) ->  | Z115: =IF(R115="","",R115*Parametros!$I$29) -> 
B116: 10 | C116: =IF(Padroes!H27="","",Padroes!H27) ->  | D116: =IF(Padroes!I27<>"",Padroes!I27,"") ->  | G116: =IF(Padroes!J27="","",Padroes!J27) ->  | H116: =IF(E116="","",Padroes!S$8) ->  | I116: =IF(E116="","",Padroes!S$9) ->  | J116: =IF(E116="","",Padroes!S$10) ->  | K116: =IF(Padroes!L27="","",Padroes!L27) ->  | M116: =IF(E116="","",Padroes!$AI$9) ->  | N116: =IF(E116="","",Padroes!$AL$23) ->  | T116: =IF(Padroes!N27="","",Padroes!N27) ->  | W116: =IF(O116="","",O116*Parametros!$I$26) ->  | X116: =IF(P116="","",P116*Parametros!$I$27) ->  | Y116: =IF(Q116="","",Q116*Parametros!$I$28) ->  | Z116: =IF(R116="","",R116*Parametros!$I$29) -> 
A117: 11 | B117: 11 | C117: =IF(Padroes!H28="","",Padroes!H28) -> 200 | D117: =IF(Padroes!I28<>"",Padroes!I28,"") -> 680 | E117: 1.7 | F117: 9.1 | G117: =IF(Padroes!J28="","",Padroes!J28) -> 0.30 | H117: =IF(E117="","",Padroes!S$8) -> 1.00 | I117: =IF(E117="","",Padroes!S$9) -> 0.20 | J117: =IF(E117="","",Padroes!S$10) -> 0.50 | K117: =IF(Padroes!L28="","",Padroes!L28) -> 0.66 | L117: 1260 | M117: =IF(E117="","",Padroes!$AI$10) -> 0.70 | N117: =IF(E117="","",Padroes!$AL$23) -> 1.00 | O117: 269 | P117: 358 | Q117: 383 | R117: 636 | S117: 11 | T117: =IF(Padroes!N28="","",Padroes!N28) -> D | W117: =IF(O117="","",O117*Parametros!$I$26) -> 215 | X117: =IF(P117="","",P117*Parametros!$I$27) -> 286 | Y117: =IF(Q117="","",Q117*Parametros!$I$28) -> 306 | Z117: =IF(R117="","",R117*Parametros!$I$29) -> 509
B118: 11 | C118: =IF(Padroes!H29="","",Padroes!H29) -> 300 | D118: =IF(Padroes!I29<>"",Padroes!I29,"") -> 1050 | E118: 1.7 | F118: 9.1 | G118: =IF(Padroes!J29="","",Padroes!J29) -> 0.45 | H118: =IF(E118="","",Padroes!S$8) -> 1.00 | I118: =IF(E118="","",Padroes!S$9) -> 0.20 | J118: =IF(E118="","",Padroes!S$10) -> 0.50 | K118: =IF(Padroes!L29="","",Padroes!L29) -> 0.86 | L118: 2017 | M118: =IF(E118="","",Padroes!$AI$10) -> 0.70 | N118: =IF(E118="","",Padroes!$AL$23) -> 1.00 | O118: 408 | P118: 477 | Q118: 496 | R118: 847 | T118: =IF(Padroes!N29="","",Padroes!N29) -> B | W118: =IF(O118="","",O118*Parametros!$I$26) -> 326 | X118: =IF(P118="","",P118*Parametros!$I$27) -> 381 | Y118: =IF(Q118="","",Q118*Parametros!$I$28) -> 397 | Z118: =IF(R118="","",R118*Parametros!$I$29) -> 678
B119: 11 | C119: =IF(Padroes!H30="","",Padroes!H30) -> 400 | D119: =IF(Padroes!I30<>"",Padroes!I30,"") -> 1050 | E119: 1.7 | F119: =IF(E119="","",(B119-E119-0.2)) -> 9.1 | G119: =IF(Padroes!J30="","",Padroes!J30) -> 0.45 | H119: =IF(E119="","",Padroes!S$8) -> 1.00 | I119: =IF(E119="","",Padroes!S$9) -> 0.20 | J119: =IF(E119="","",Padroes!S$10) -> 0.50 | K119: =IF(Padroes!L30="","",Padroes!L30) -> 0.86 | L119: 2017 | M119: =IF(E119="","",Padroes!$AI$10) -> 0.70 | N119: =IF(E119="","",Padroes!$AL$23) -> 1.00 | O119: 408 | P119: 477 | Q119: 496 | R119: 847 | T119: =IF(Padroes!N30="","",Padroes!N30) -> B | W119: =IF(O119="","",O119*Parametros!$I$26) -> 326 | X119: =IF(P119="","",P119*Parametros!$I$27) -> 381 | Y119: =IF(Q119="","",Q119*Parametros!$I$28) -> 397 | Z119: =IF(R119="","",R119*Parametros!$I$29) -> 678
B120: 11 | C120: =IF(Padroes!H31="","",Padroes!H31) -> 600 | D120: =IF(Padroes!I31<>"",Padroes!I31,"") -> 1050 | E120: 1.7 | F120: 9.1 | G120: =IF(Padroes!J31="","",Padroes!J31) -> 0.45 | H120: =IF(E120="","",Padroes!S$8) -> 1.00 | I120: =IF(E120="","",Padroes!S$9) -> 0.20 | J120: =IF(E120="","",Padroes!S$10) -> 0.50 | K120: =IF(Padroes!L31="","",Padroes!L31) -> 0.86 | L120: 2017 | M120: =IF(E120="","",Padroes!$AI$10) -> 0.70 | N120: =IF(E120="","",Padroes!$AL$23) -> 1.00 | O120: 408 | P120: 477 | Q120: 496 | R120: 847 | T120: =IF(Padroes!N31="","",Padroes!N31) -> B | W120: =IF(O120="","",O120*Parametros!$I$26) -> 326 | X120: =IF(P120="","",P120*Parametros!$I$27) -> 381 | Y120: =IF(Q120="","",Q120*Parametros!$I$28) -> 397 | Z120: =IF(R120="","",R120*Parametros!$I$29) -> 678
B121: 11 | C121: =IF(Padroes!H32="","",Padroes!H32) -> 1000 | D121: =IF(Padroes!I32<>"",Padroes!I32,"") -> 1330 | E121: 1.7 | F121: 9.1 | G121: =IF(Padroes!J32="","",Padroes!J32) -> 0.49 | H121: =IF(E121="","",Padroes!S$8) -> 1.00 | I121: =IF(E121="","",Padroes!S$9) -> 0.20 | J121: =IF(E121="","",Padroes!S$10) -> 0.50 | K121: =IF(Padroes!L32="","",Padroes!L32) -> 0.91 | L121: 2418 | M121: =IF(E121="","",Padroes!$AI$10) -> 0.70 | N121: =IF(E121="","",Padroes!$AL$23) -> 1.00 | O121: 446 | P121: 510 | Q121: 528 | R121: 912 | T121: =IF(Padroes!N32="","",Padroes!N32) -> B-1,5 | W121: =IF(O121="","",O121*Parametros!$I$26) -> 357 | X121: =IF(P121="","",P121*Parametros!$I$27) -> 408 | Y121: =IF(Q121="","",Q121*Parametros!$I$28) -> 422 | Z121: =IF(R121="","",R121*Parametros!$I$29) -> 729
B122: 11 | C122: =IF(Padroes!H33="","",Padroes!H33) ->  | D122: =IF(Padroes!I33<>"",Padroes!I33,"") ->  | G122: =IF(Padroes!J33="","",Padroes!J33) ->  | H122: =IF(E122="","",Padroes!S$8) ->  | I122: =IF(E122="","",Padroes!S$9) ->  | J122: =IF(E122="","",Padroes!S$10) ->  | K122: =IF(Padroes!L33="","",Padroes!L33) ->  | M122: =IF(E122="","",Padroes!$AI$10) ->  | N122: =IF(E122="","",Padroes!$AL$23) ->  | T122: =IF(Padroes!N33="","",Padroes!N33) ->  | W122: =IF(O122="","",O122*Parametros!$I$26) ->  | X122: =IF(P122="","",P122*Parametros!$I$27) ->  | Y122: =IF(Q122="","",Q122*Parametros!$I$28) ->  | Z122: =IF(R122="","",R122*Parametros!$I$29) -> 
B123: 11 | C123: =IF(Padroes!H34="","",Padroes!H34) ->  | D123: =IF(Padroes!I34<>"",Padroes!I34,"") ->  | G123: =IF(Padroes!J34="","",Padroes!J34) ->  | H123: =IF(E123="","",Padroes!S$8) ->  | I123: =IF(E123="","",Padroes!S$9) ->  | J123: =IF(E123="","",Padroes!S$10) ->  | K123: =IF(Padroes!L34="","",Padroes!L34) ->  | M123: =IF(E123="","",Padroes!$AI$10) ->  | N123: =IF(E123="","",Padroes!$AL$23) ->  | T123: =IF(Padroes!N34="","",Padroes!N34) ->  | W123: =IF(O123="","",O123*Parametros!$I$26) ->  | X123: =IF(P123="","",P123*Parametros!$I$27) ->  | Y123: =IF(Q123="","",Q123*Parametros!$I$28) ->  | Z123: =IF(R123="","",R123*Parametros!$I$29) -> 
B124: 11 | C124: =IF(Padroes!H35="","",Padroes!H35) ->  | D124: =IF(Padroes!I35<>"",Padroes!I35,"") ->  | G124: =IF(Padroes!J35="","",Padroes!J35) ->  | H124: =IF(E124="","",Padroes!S$8) ->  | I124: =IF(E124="","",Padroes!S$9) ->  | J124: =IF(E124="","",Padroes!S$10) ->  | K124: =IF(Padroes!L35="","",Padroes!L35) ->  | M124: =IF(E124="","",Padroes!$AI$10) ->  | N124: =IF(E124="","",Padroes!$AL$23) ->  | T124: =IF(Padroes!N35="","",Padroes!N35) ->  | W124: =IF(O124="","",O124*Parametros!$I$26) ->  | X124: =IF(P124="","",P124*Parametros!$I$27) ->  | Y124: =IF(Q124="","",Q124*Parametros!$I$28) ->  | Z124: =IF(R124="","",R124*Parametros!$I$29) -> 
B125: 11 | C125: =IF(Padroes!H36="","",Padroes!H36) ->  | D125: =IF(Padroes!I36<>"",Padroes!I36,"") ->  | G125: =IF(Padroes!J36="","",Padroes!J36) ->  | H125: =IF(E125="","",Padroes!S$8) ->  | I125: =IF(E125="","",Padroes!S$9) ->  | J125: =IF(E125="","",Padroes!S$10) ->  | K125: =IF(Padroes!L36="","",Padroes!L36) ->  | M125: =IF(E125="","",Padroes!$AI$10) ->  | N125: =IF(E125="","",Padroes!$AL$23) ->  | T125: =IF(Padroes!N36="","",Padroes!N36) ->  | W125: =IF(O125="","",O125*Parametros!$I$26) ->  | X125: =IF(P125="","",P125*Parametros!$I$27) ->  | Y125: =IF(Q125="","",Q125*Parametros!$I$28) ->  | Z125: =IF(R125="","",R125*Parametros!$I$29) -> 
A126: 12 | B126: 12 | C126: =IF(Padroes!H37="","",Padroes!H37) -> 200 | D126: =IF(Padroes!I37<>"",Padroes!I37,"") -> 780 | E126: 1.8 | F126: =IF(E126="","",(B126-E126-0.2)) -> 10.0 | G126: =IF(Padroes!J37="","",Padroes!J37) -> 0.31 | H126: =IF(E126="","",Padroes!S$8) -> 1.00 | I126: =IF(E126="","",Padroes!S$9) -> 0.20 | J126: =IF(E126="","",Padroes!S$10) -> 0.50 | K126: =IF(Padroes!L37="","",Padroes!L37) -> 0.66 | L126: 1401 | M126: =IF(E126="","",Padroes!$AI$11) -> 0.75 | N126: =IF(E126="","",Padroes!$AL$23) -> 1.00 | O126: 306 | P126: 392 | Q126: 415 | R126: 688 | S126: 12 | T126: =IF(Padroes!N37="","",Padroes!N37) -> D | W126: =IF(O126="","",O126*Parametros!$I$26) -> 245 | X126: =IF(P126="","",P126*Parametros!$I$27) -> 313 | Y126: =IF(Q126="","",Q126*Parametros!$I$28) -> 332 | Z126: =IF(R126="","",R126*Parametros!$I$29) -> 550
B127: 12 | C127: =IF(Padroes!H38="","",Padroes!H38) -> 300 | D127: =IF(Padroes!I38<>"",Padroes!I38,"") -> 1210 | E127: 1.8 | F127: 10.0 | G127: =IF(Padroes!J38="","",Padroes!J38) -> 0.48 | H127: =IF(E127="","",Padroes!S$8) -> 1.00 | I127: =IF(E127="","",Padroes!S$9) -> 0.20 | J127: =IF(E127="","",Padroes!S$10) -> 0.50 | K127: =IF(Padroes!L38="","",Padroes!L38) -> 0.89 | L127: 2330 | M127: =IF(E127="","",Padroes!$AI$11) -> 0.75 | N127: =IF(E127="","",Padroes!$AL$23) -> 1.00 | O127: 471 | P127: 535 | Q127: 553 | R127: 954 | T127: =IF(Padroes!N38="","",Padroes!N38) -> B | W127: =IF(O127="","",O127*Parametros!$I$26) -> 376 | X127: =IF(P127="","",P127*Parametros!$I$27) -> 428 | Y127: =IF(Q127="","",Q127*Parametros!$I$28) -> 443 | Z127: =IF(R127="","",R127*Parametros!$I$29) -> 763
B128: 12 | C128: =IF(Padroes!H39="","",Padroes!H39) -> 400 | D128: =IF(Padroes!I39<>"",Padroes!I39,"") -> 1210 | E128: 1.8 | F128: 10.0 | G128: =IF(Padroes!J39="","",Padroes!J39) -> 0.48 | H128: =IF(E128="","",Padroes!S$8) -> 1.00 | I128: =IF(E128="","",Padroes!S$9) -> 0.20 | J128: =IF(E128="","",Padroes!S$10) -> 0.50 | K128: =IF(Padroes!L39="","",Padroes!L39) -> 0.89 | L128: 2330 | M128: =IF(E128="","",Padroes!$AI$11) -> 0.75 | N128: =IF(E128="","",Padroes!$AL$23) -> 1.00 | O128: 471 | P128: 535 | Q128: 553 | R128: 954 | T128: =IF(Padroes!N39="","",Padroes!N39) -> B | W128: =IF(O128="","",O128*Parametros!$I$26) -> 376 | X128: =IF(P128="","",P128*Parametros!$I$27) -> 428 | Y128: =IF(Q128="","",Q128*Parametros!$I$28) -> 443 | Z128: =IF(R128="","",R128*Parametros!$I$29) -> 763
B129: 12 | C129: =IF(Padroes!H40="","",Padroes!H40) -> 600 | D129: =IF(Padroes!I40<>"",Padroes!I40,"") -> 1210 | E129: 1.8 | F129: 10.0 | G129: =IF(Padroes!J40="","",Padroes!J40) -> 0.48 | H129: =IF(E129="","",Padroes!S$8) -> 1.00 | I129: =IF(E129="","",Padroes!S$9) -> 0.20 | J129: =IF(E129="","",Padroes!S$10) -> 0.50 | K129: =IF(Padroes!L40="","",Padroes!L40) -> 0.89 | L129: 2330 | M129: =IF(E129="","",Padroes!$AI$11) -> 0.75 | N129: =IF(E129="","",Padroes!$AL$23) -> 1.00 | O129: 471 | P129: 535 | Q129: 553 | R129: 954 | T129: =IF(Padroes!N40="","",Padroes!N40) -> B | W129: =IF(O129="","",O129*Parametros!$I$26) -> 376 | X129: =IF(P129="","",P129*Parametros!$I$27) -> 428 | Y129: =IF(Q129="","",Q129*Parametros!$I$28) -> 443 | Z129: =IF(R129="","",R129*Parametros!$I$29) -> 763
B130: 12 | C130: =IF(Padroes!H41="","",Padroes!H41) -> 1000 | D130: =IF(Padroes!I41<>"",Padroes!I41,"") -> 1520 | E130: 1.8 | F130: 10.0 | G130: =IF(Padroes!J41="","",Padroes!J41) -> 0.52 | H130: =IF(E130="","",Padroes!S$8) -> 1.00 | I130: =IF(E130="","",Padroes!S$9) -> 0.20 | J130: =IF(E130="","",Padroes!S$10) -> 0.50 | K130: =IF(Padroes!L41="","",Padroes!L41) -> 0.94 | L130: 2774 | M130: =IF(E130="","",Padroes!$AI$11) -> 0.75 | N130: =IF(E130="","",Padroes!$AL$23) -> 1.00 | O130: 512 | P130: 571 | Q130: 588 | R130: 1023 | T130: =IF(Padroes!N41="","",Padroes!N41) -> B-1,5 | W130: =IF(O130="","",O130*Parametros!$I$26) -> 410 | X130: =IF(P130="","",P130*Parametros!$I$27) -> 457 | Y130: =IF(Q130="","",Q130*Parametros!$I$28) -> 471 | Z130: =IF(R130="","",R130*Parametros!$I$29) -> 819
B131: 12 | C131: =IF(Padroes!H42="","",Padroes!H42) -> 2000 | D131: =IF(Padroes!I42<>"",Padroes!I42,"") -> 2000 | E131: 1.8 | F131: 10.0 | G131: =IF(Padroes!J42="","",Padroes!J42) -> 0.60 | H131: =IF(E131="","",Padroes!S$8) -> 1.00 | I131: =IF(E131="","",Padroes!S$9) -> 0.20 | J131: =IF(E131="","",Padroes!S$10) -> 0.50 | K131: =IF(Padroes!L42="","",Padroes!L42) -> 1.05 | L131: 3544 | M131: =IF(E131="","",Padroes!$AI$11) -> 0.75 | N131: =IF(E131="","",Padroes!$AL$23) -> 1.00 | O131: 595 | P131: 644 | Q131: 658 | R131: 1163 | T131: =IF(Padroes!N42="","",Padroes!N42) -> B-4,5 | W131: =IF(O131="","",O131*Parametros!$I$26) -> 476 | X131: =IF(P131="","",P131*Parametros!$I$27) -> 515 | Y131: =IF(Q131="","",Q131*Parametros!$I$28) -> 526 | Z131: =IF(R131="","",R131*Parametros!$I$29) -> 930
B132: 12 | C132: =IF(Padroes!H43="","",Padroes!H43) -> 3000 | D132: =IF(Padroes!I43<>"",Padroes!I43,"") -> 2500 | E132: 1.8 | F132: =IF(E132="","",(B132-E132-0.2)) -> 10.0 | G132: =IF(Padroes!J43="","",Padroes!J43) -> 0.64 | H132: =IF(E132="","",Padroes!S$8) -> 1.00 | I132: =IF(E132="","",Padroes!S$9) -> 0.20 | J132: =IF(E132="","",Padroes!S$10) -> 0.50 | K132: =IF(Padroes!L43="","",Padroes!L43) -> 1.12 | L132: 4267 | M132: =IF(E132="","",Padroes!$AI$11) -> 0.75 | N132: =IF(E132="","",Padroes!$AL$23) -> 1.00 | O132: 637 | P132: 680 | Q132: 693 | R132: 1270 | T132: =IF(Padroes!N43="","",Padroes!N43) -> B-6 | W132: =IF(O132="","",O132*Parametros!$I$26) -> 509 | X132: =IF(P132="","",P132*Parametros!$I$27) -> 544 | Y132: =IF(Q132="","",Q132*Parametros!$I$28) -> 554 | Z132: =IF(R132="","",R132*Parametros!$I$29) -> 1016
B133: 12 | C133: =IF(Padroes!H44="","",Padroes!H44) ->  | D133: =IF(Padroes!I44<>"",Padroes!I44,"") ->  | G133: =IF(Padroes!J44="","",Padroes!J44) ->  | H133: =IF(E133="","",Padroes!S$8) ->  | I133: =IF(E133="","",Padroes!S$9) ->  | J133: =IF(E133="","",Padroes!S$10) ->  | K133: =IF(Padroes!L44="","",Padroes!L44) ->  | M133: =IF(E133="","",Padroes!$AI$11) ->  | N133: =IF(E133="","",Padroes!$AL$23) ->  | T133: =IF(Padroes!N44="","",Padroes!N44) ->  | W133: =IF(O133="","",O133*Parametros!$I$26) ->  | X133: =IF(P133="","",P133*Parametros!$I$27) ->  | Y133: =IF(Q133="","",Q133*Parametros!$I$28) ->  | Z133: =IF(R133="","",R133*Parametros!$I$29) -> 
B134: 12 | C134: =IF(Padroes!H45="","",Padroes!H45) ->  | D134: =IF(Padroes!I45<>"",Padroes!I45,"") ->  | G134: =IF(Padroes!J45="","",Padroes!J45) ->  | H134: =IF(E134="","",Padroes!S$8) ->  | I134: =IF(E134="","",Padroes!S$9) ->  | J134: =IF(E134="","",Padroes!S$10) ->  | K134: =IF(Padroes!L45="","",Padroes!L45) ->  | M134: =IF(E134="","",Padroes!$AI$11) ->  | N134: =IF(E134="","",Padroes!$AL$23) ->  | T134: =IF(Padroes!N45="","",Padroes!N45) ->  | W134: =IF(O134="","",O134*Parametros!$I$26) ->  | X134: =IF(P134="","",P134*Parametros!$I$27) ->  | Y134: =IF(Q134="","",Q134*Parametros!$I$28) ->  | Z134: =IF(R134="","",R134*Parametros!$I$29) -> 
A135: 13 | B135: 13 | C135: =IF(Padroes!H46="","",Padroes!H46) -> 300 | D135: =IF(Padroes!I46<>"",Padroes!I46,"") -> 1400 | E135: 1.9 | F135: 10.9 | G135: =IF(Padroes!J46="","",Padroes!J46) -> 0.50 | H135: =IF(E135="","",Padroes!S$8) -> 1.00 | I135: =IF(E135="","",Padroes!S$9) -> 0.20 | J135: =IF(E135="","",Padroes!S$10) -> 0.50 | K135: =IF(Padroes!L46="","",Padroes!L46) -> 0.93 | L135: 2690 | M135: =IF(E135="","",Padroes!$AI$12) -> 0.80 | N135: =IF(E135="","",Padroes!$AL$23) -> 1.00 | O135: 540 | P135: 600 | Q135: 617 | R135: 1072 | S135: 13 | T135: =IF(Padroes!N46="","",Padroes!N46) -> B | W135: =IF(O135="","",O135*Parametros!$I$26) -> 432 | X135: =IF(P135="","",P135*Parametros!$I$27) -> 480 | Y135: =IF(Q135="","",Q135*Parametros!$I$28) -> 494 | Z135: =IF(R135="","",R135*Parametros!$I$29) -> 858
B136: 13 | C136: =IF(Padroes!H47="","",Padroes!H47) -> 400 | D136: =IF(Padroes!I47<>"",Padroes!I47,"") -> 1400 | E136: 1.9 | F136: 10.9 | G136: =IF(Padroes!J47="","",Padroes!J47) -> 0.50 | H136: =IF(E136="","",Padroes!S$8) -> 1.00 | I136: =IF(E136="","",Padroes!S$9) -> 0.20 | J136: =IF(E136="","",Padroes!S$10) -> 0.50 | K136: =IF(Padroes!L47="","",Padroes!L47) -> 0.93 | L136: 2690 | M136: =IF(E136="","",Padroes!$AI$12) -> 0.80 | N136: =IF(E136="","",Padroes!$AL$23) -> 1.00 | O136: 540 | P136: 600 | Q136: 617 | R136: 1072 | T136: =IF(Padroes!N47="","",Padroes!N47) -> B | W136: =IF(O136="","",O136*Parametros!$I$26) -> 432 | X136: =IF(P136="","",P136*Parametros!$I$27) -> 480 | Y136: =IF(Q136="","",Q136*Parametros!$I$28) -> 494 | Z136: =IF(R136="","",R136*Parametros!$I$29) -> 858
B137: 13 | C137: =IF(Padroes!H48="","",Padroes!H48) -> 600 | D137: =IF(Padroes!I48<>"",Padroes!I48,"") -> 1400 | E137: 1.9 | F137: 10.9 | G137: =IF(Padroes!J48="","",Padroes!J48) -> 0.50 | H137: =IF(E137="","",Padroes!S$8) -> 1.00 | I137: =IF(E137="","",Padroes!S$9) -> 0.20 | J137: =IF(E137="","",Padroes!S$10) -> 0.50 | K137: =IF(Padroes!L48="","",Padroes!L48) -> 0.93 | L137: 2690 | M137: =IF(E137="","",Padroes!$AI$12) -> 0.80 | N137: =IF(E137="","",Padroes!$AL$23) -> 1.00 | O137: 540 | P137: 600 | Q137: 617 | R137: 1072 | T137: =IF(Padroes!N48="","",Padroes!N48) -> B | W137: =IF(O137="","",O137*Parametros!$I$26) -> 432 | X137: =IF(P137="","",P137*Parametros!$I$27) -> 480 | Y137: =IF(Q137="","",Q137*Parametros!$I$28) -> 494 | Z137: =IF(R137="","",R137*Parametros!$I$29) -> 858
B138: 13 | C138: =IF(Padroes!H49="","",Padroes!H49) ->  | D138: =IF(Padroes!I49<>"",Padroes!I49,"") ->  | G138: =IF(Padroes!J49="","",Padroes!J49) ->  | H138: =IF(E138="","",Padroes!S$8) ->  | I138: =IF(E138="","",Padroes!S$9) ->  | J138: =IF(E138="","",Padroes!S$10) ->  | K138: =IF(Padroes!L49="","",Padroes!L49) ->  | M138: =IF(E138="","",Padroes!$AI$12) ->  | N138: =IF(E138="","",Padroes!$AL$23) ->  | T138: =IF(Padroes!N49="","",Padroes!N49) ->  | W138: =IF(O138="","",O138*Parametros!$I$26) ->  | X138: =IF(P138="","",P138*Parametros!$I$27) ->  | Y138: =IF(Q138="","",Q138*Parametros!$I$28) ->  | Z138: =IF(R138="","",R138*Parametros!$I$29) -> 
B139: 13 | C139: =IF(Padroes!H50="","",Padroes!H50) ->  | D139: =IF(Padroes!I50<>"",Padroes!I50,"") ->  | G139: =IF(Padroes!J50="","",Padroes!J50) ->  | H139: =IF(E139="","",Padroes!S$8) ->  | I139: =IF(E139="","",Padroes!S$9) ->  | J139: =IF(E139="","",Padroes!S$10) ->  | K139: =IF(Padroes!L50="","",Padroes!L50) ->  | M139: =IF(E139="","",Padroes!$AI$12) ->  | N139: =IF(E139="","",Padroes!$AL$23) ->  | T139: =IF(Padroes!N50="","",Padroes!N50) ->  | W139: =IF(O139="","",O139*Parametros!$I$26) ->  | X139: =IF(P139="","",P139*Parametros!$I$27) ->  | Y139: =IF(Q139="","",Q139*Parametros!$I$28) ->  | Z139: =IF(R139="","",R139*Parametros!$I$29) -> 
B140: 13 | C140: =IF(Padroes!H51="","",Padroes!H51) ->  | D140: =IF(Padroes!I51<>"",Padroes!I51,"") ->  | G140: =IF(Padroes!J51="","",Padroes!J51) ->  | H140: =IF(E140="","",Padroes!S$8) ->  | I140: =IF(E140="","",Padroes!S$9) ->  | J140: =IF(E140="","",Padroes!S$10) ->  | K140: =IF(Padroes!L51="","",Padroes!L51) ->  | M140: =IF(E140="","",Padroes!$AI$12) ->  | N140: =IF(E140="","",Padroes!$AL$23) ->  | T140: =IF(Padroes!N51="","",Padroes!N51) ->  | W140: =IF(O140="","",O140*Parametros!$I$26) ->  | X140: =IF(P140="","",P140*Parametros!$I$27) ->  | Y140: =IF(Q140="","",Q140*Parametros!$I$28) ->  | Z140: =IF(R140="","",R140*Parametros!$I$29) -> 
B141: 13 | C141: =IF(Padroes!H52="","",Padroes!H52) ->  | D141: =IF(Padroes!I52<>"",Padroes!I52,"") ->  | G141: =IF(Padroes!J52="","",Padroes!J52) ->  | H141: =IF(E141="","",Padroes!S$8) ->  | I141: =IF(E141="","",Padroes!S$9) ->  | J141: =IF(E141="","",Padroes!S$10) ->  | K141: =IF(Padroes!L52="","",Padroes!L52) ->  | M141: =IF(E141="","",Padroes!$AI$12) ->  | N141: =IF(E141="","",Padroes!$AL$23) ->  | T141: =IF(Padroes!N52="","",Padroes!N52) ->  | W141: =IF(O141="","",O141*Parametros!$I$26) ->  | X141: =IF(P141="","",P141*Parametros!$I$27) ->  | Y141: =IF(Q141="","",Q141*Parametros!$I$28) ->  | Z141: =IF(R141="","",R141*Parametros!$I$29) -> 
B142: 13 | C142: =IF(Padroes!H53="","",Padroes!H53) ->  | D142: =IF(Padroes!I53<>"",Padroes!I53,"") ->  | G142: =IF(Padroes!J53="","",Padroes!J53) ->  | H142: =IF(E142="","",Padroes!S$8) ->  | I142: =IF(E142="","",Padroes!S$9) ->  | J142: =IF(E142="","",Padroes!S$10) ->  | K142: =IF(Padroes!L53="","",Padroes!L53) ->  | L142: =IF(D142="","",(D142+(3.1416*K142^2*M142/4*2400))) ->  | M142: =IF(E142="","",Padroes!$AI$12) ->  | N142: =IF(E142="","",Padroes!$AL$23) ->  | T142: =IF(Padroes!N53="","",Padroes!N53) ->  | W142: =IF(O142="","",O142*Parametros!$I$26) ->  | X142: =IF(P142="","",P142*Parametros!$I$27) ->  | Y142: =IF(Q142="","",Q142*Parametros!$I$28) ->  | Z142: =IF(R142="","",R142*Parametros!$I$29) -> 
A146: Poste de concreto Duplo T | E146: DADOS DO POSTE | G146: Face B | H146: dados escora | K146: dados da base concretada | O146: VALOR DA TRAÇÃO NO TOPO (daN) | W146: Valores para Critários de Projetos
A147: comprimento | C147: carga | D147: peso | E147: t | F147: h* | G147: b | H147: m | I147: n | J147: c | K147: d | L147: P | M147: q | N147: K | O147: SIMPLES | P147: ESCORA SIMPLES | Q147: ESCORA DUPLA | R147: CONCRETADO | S147: 9 | T147: Tipo Base | W147: SIMPLES | X147: ESCORA SIMPLES | Y147: ESCORA DUPLA | Z147: CONCRETADO
A148: 9 | B148: 9 | C148: =IF(Padroes!H10="","",Padroes!H10) -> 150 | D148: =IF(Padroes!I10="","",Padroes!I10) -> 470 | E148: =IF(D148="","",(0.6+0.1*B148)) -> 1.5 | F148: =IF(E148="","",B148-E148-0.5) -> 7.00 | G148: =IF(Padroes!K10="","",Padroes!K10) -> 0.19 | H148: =IF(E148="","",Padroes!S$8) -> 1.00 | I148: =IF(E148="","",Padroes!S$9) -> 0.20 | J148: =IF(E148="","",Padroes!S$10) -> 0.50 | K148: =IF(Padroes!M10="","",Padroes!M10) -> 0.33 | L148: =IF(D148="","",(D148+(3.1416*((K148+0.3)/2)^2-(3.1416*((Padroes!M10)/2)^2))*M148*2400)) -> 793 | M148: =IF(E148="","",Padroes!$AI$8) -> 0.60 | N148: =IF(E148="","",Padroes!$AL$23) -> 1.00 | O148: =IF(E148="","",($B$63*G148*E148^3)/(F148+E148)) -> 151 | P148: =IF(E148="","",(3*$B$63*(2*J148*I148 - I148^2)*(H148-G148))*(E148-J148+I148/2)/(F148+E148/2) + O148) -> 261 | Q148: =IF(E148="","",(3*$B$63 * (2*E148*I148-I148^2)*(H148-G148) ) * (I148/2) / (F148+E148) + P148) -> 293 | R148: =IF(E148="","",(N148*$B$63*(K148+0.3)*E148^3)/(F148+E148)+((K148+0.3)*L148/(F148+E148))*(0.5-((2*L148*10^-4)/(3*(K148+0.3)^2)))) -> 518 | T148: =IF(Padroes!N10="","",Padroes!N10) -> D | W148: =IF(O148="","",O148*Parametros!$I$26) -> 121 | X148: =IF(P148="","",P148*Parametros!$I$27) -> 209 | Y148: =IF(Q148="","",Q148*Parametros!$I$28) -> 235 | Z148: =IF(R148="","",R148*Parametros!$I$29) -> 414
B149: 9 | C149: =IF(Padroes!H11="","",Padroes!H11) -> 200 | D149: =IF(Padroes!I11="","",Padroes!I11) -> 470 | E149: =IF(D149="","",(0.6+0.1*B149)) -> 1.5 | F149: =IF(E149="","",B149-E149-0.5) -> 7.00 | G149: =IF(Padroes!K11="","",Padroes!K11) -> 0.19 | H149: =IF(E149="","",Padroes!S$8) -> 1.00 | I149: =IF(E149="","",Padroes!S$9) -> 0.20 | J149: =IF(E149="","",Padroes!S$10) -> 0.50 | K149: =IF(Padroes!M11="","",Padroes!M11) -> 0.33 | L149: =IF(D149="","",(D149+(3.1416*((K149+0.3)/2)^2-(3.1416*((Padroes!M11)/2)^2))*M149*2400)) -> 793 | M149: =IF(E149="","",Padroes!$AI$8) -> 0.60 | N149: =IF(E149="","",Padroes!$AL$23) -> 1.00 | O149: =IF(E149="","",($B$63*G149*E149^3)/(F149+E149)) -> 151 | P149: =IF(E149="","",(3*$B$63*(2*J149*I149 - I149^2)*(H149-G149))*(E149-J149+I149/2)/(F149+E149/2) + O149) -> 261 | Q149: 293 | R149: 518 | T149: =IF(Padroes!N11="","",Padroes!N11) -> D | W149: =IF(O149="","",O149*Parametros!$I$26) -> 121 | X149: =IF(P149="","",P149*Parametros!$I$27) -> 209 | Y149: =IF(Q149="","",Q149*Parametros!$I$28) -> 235 | Z149: =IF(R149="","",R149*Parametros!$I$29) -> 414
B150: 9 | C150: =IF(Padroes!H12="","",Padroes!H12) -> 300 | D150: =IF(Padroes!I12="","",Padroes!I12) -> 750 | E150: 1.5 | F150: 7.00 | G150: =IF(Padroes!K12="","",Padroes!K12) -> 0.29 | H150: =IF(E150="","",Padroes!S$8) -> 1.00 | I150: =IF(E150="","",Padroes!S$9) -> 0.20 | J150: =IF(E150="","",Padroes!S$10) -> 0.50 | K150: =IF(Padroes!M12="","",Padroes!M12) -> 0.49 | L150: =IF(D150="","",(D150+(3.1416*((K150+0.3)/2)^2-(3.1416*((Padroes!M12)/2)^2))*M150*2400)) -> 1183 | M150: =IF(E150="","",Padroes!$AI$8) -> 0.60 | N150: =IF(E150="","",Padroes!$AL$23) -> 1.00 | O150: 230 | P150: 327 | Q150: 355 | R150: 666 | T150: =IF(Padroes!N12="","",Padroes!N12) -> B | W150: =IF(O150="","",O150*Parametros!$I$26) -> 184 | X150: =IF(P150="","",P150*Parametros!$I$27) -> 262 | Y150: =IF(Q150="","",Q150*Parametros!$I$28) -> 284 | Z150: =IF(R150="","",R150*Parametros!$I$29) -> 533
B151: 9 | C151: =IF(Padroes!H13="","",Padroes!H13) -> 400 | D151: =IF(Padroes!I13="","",Padroes!I13) -> 750 | E151: 1.5 | F151: 7.00 | G151: =IF(Padroes!K13="","",Padroes!K13) -> 0.29 | H151: =IF(E151="","",Padroes!S$8) -> 1.00 | I151: =IF(E151="","",Padroes!S$9) -> 0.20 | J151: =IF(E151="","",Padroes!S$10) -> 0.50 | K151: =IF(Padroes!M13="","",Padroes!M13) -> 0.49 | L151: =IF(D151="","",(D151+(3.1416*((K151+0.3)/2)^2-(3.1416*((Padroes!M13)/2)^2))*M151*2400)) -> 1183 | M151: =IF(E151="","",Padroes!$AI$8) -> 0.60 | N151: =IF(E151="","",Padroes!$AL$23) -> 1.00 | O151: 230 | P151: 327 | Q151: 355 | R151: 666 | T151: =IF(Padroes!N13="","",Padroes!N13) -> B | W151: =IF(O151="","",O151*Parametros!$I$26) -> 184 | X151: =IF(P151="","",P151*Parametros!$I$27) -> 262 | Y151: =IF(Q151="","",Q151*Parametros!$I$28) -> 284 | Z151: =IF(R151="","",R151*Parametros!$I$29) -> 533
B152: 9 | C152: =IF(Padroes!H14="","",Padroes!H14) -> 600 | D152: =IF(Padroes!I14="","",Padroes!I14) -> 750 | E152: 1.5 | F152: 7.00 | G152: =IF(Padroes!K14="","",Padroes!K14) -> 0.29 | H152: =IF(E152="","",Padroes!S$8) -> 1.00 | I152: =IF(E152="","",Padroes!S$9) -> 0.20 | J152: =IF(E152="","",Padroes!S$10) -> 0.50 | K152: =IF(Padroes!M14="","",Padroes!M14) -> 0.49 | L152: =IF(D152="","",(D152+(3.1416*((K152+0.3)/2)^2-(3.1416*((Padroes!M14)/2)^2))*M152*2400)) -> 1183 | M152: =IF(E152="","",Padroes!$AI$8) -> 0.60 | N152: =IF(E152="","",Padroes!$AL$23) -> 1.00 | O152: 230 | P152: 327 | Q152: 355 | R152: 666 | T152: =IF(Padroes!N14="","",Padroes!N14) -> B | W152: =IF(O152="","",O152*Parametros!$I$26) -> 184 | X152: =IF(P152="","",P152*Parametros!$I$27) -> 262 | Y152: =IF(Q152="","",Q152*Parametros!$I$28) -> 284 | Z152: =IF(R152="","",R152*Parametros!$I$29) -> 533
B153: 9 | C153: =IF(Padroes!H15="","",Padroes!H15) -> 1000 | D153: =IF(Padroes!I15="","",Padroes!I15) -> 1026 | E153: 1.5 | F153: 7.00 | G153: =IF(Padroes!K15="","",Padroes!K15) -> 0.32 | H153: =IF(E153="","",Padroes!S$8) -> 1.00 | I153: =IF(E153="","",Padroes!S$9) -> 0.20 | J153: =IF(E153="","",Padroes!S$10) -> 0.50 | K153: =IF(Padroes!M15="","",Padroes!M15) -> 0.54 | L153: =IF(D153="","",(D153+(3.1416*((K153+0.3)/2)^2-(3.1416*((Padroes!M15)/2)^2))*M153*2400)) -> 1494 | M153: =IF(E153="","",Padroes!$AI$8) -> 0.60 | N153: =IF(E153="","",Padroes!$AL$23) -> 1.00 | O153: 254 | P153: 347 | Q153: 374 | R153: 719 | T153: =IF(Padroes!N15="","",Padroes!N15) -> B-1,5 | W153: =IF(O153="","",O153*Parametros!$I$26) -> 203 | X153: =IF(P153="","",P153*Parametros!$I$27) -> 277 | Y153: =IF(Q153="","",Q153*Parametros!$I$28) -> 299 | Z153: =IF(R153="","",R153*Parametros!$I$29) -> 575
B154: 9 | C154: =IF(Padroes!H16="","",Padroes!H16) ->  | D154: =IF(Padroes!I16="","",Padroes!I16) ->  | G154: =IF(Padroes!K16="","",Padroes!K16) ->  | H154: =IF(E154="","",Padroes!S$8) ->  | I154: =IF(E154="","",Padroes!S$9) ->  | J154: =IF(E154="","",Padroes!S$10) ->  | K154: =IF(Padroes!M16="","",Padroes!M16) ->  | L154: =IF(D154="","",(D154+(3.1416*((K154+0.3)/2)^2-(3.1416*((Padroes!M16)/2)^2))*M154*2400)) ->  | M154: =IF(E154="","",Padroes!$AI$8) ->  | N154: =IF(E154="","",Padroes!$AL$23) ->  | T154: =IF(Padroes!N16="","",Padroes!N16) ->  | W154: =IF(O154="","",O154*Parametros!$I$26) ->  | X154: =IF(P154="","",P154*Parametros!$I$27) ->  | Y154: =IF(Q154="","",Q154*Parametros!$I$28) ->  | Z154: =IF(R154="","",R154*Parametros!$I$29) -> 
B155: 9 | C155: =IF(Padroes!H17="","",Padroes!H17) ->  | D155: =IF(Padroes!I17="","",Padroes!I17) ->  | G155: =IF(Padroes!K17="","",Padroes!K17) ->  | H155: =IF(E155="","",Padroes!S$8) ->  | I155: =IF(E155="","",Padroes!S$9) ->  | J155: =IF(E155="","",Padroes!S$10) ->  | K155: =IF(Padroes!M17="","",Padroes!M17) ->  | L155: =IF(D155="","",(D155+(3.1416*((K155+0.3)/2)^2-(3.1416*((Padroes!M17)/2)^2))*M155*2400)) ->  | M155: =IF(E155="","",Padroes!$AI$8) ->  | N155: =IF(E155="","",Padroes!$AL$23) ->  | Q155: =IF(E155="","",(3*$B$63 * (2*E155*I155-I155^2)*(H155-G155) ) * (I155/2) / (F155+E155) + P155) ->  | R155: =IF(E155="","",(N155*$B$63*(K155+0.3)*E155^3)/(F155+E155)+((K155+0.3)*L155/(F155+E155))*(0.5-((2*L155*10^-4)/(3*(K155+0.3)^2)))) ->  | T155: =IF(Padroes!N17="","",Padroes!N17) ->  | W155: =IF(O155="","",O155*Parametros!$I$26) ->  | X155: =IF(P155="","",P155*Parametros!$I$27) ->  | Y155: =IF(Q155="","",Q155*Parametros!$I$28) ->  | Z155: =IF(R155="","",R155*Parametros!$I$29) -> 
B156: 9 | C156: =IF(Padroes!H18="","",Padroes!H18) ->  | D156: =IF(Padroes!I18="","",Padroes!I18) ->  | G156: =IF(Padroes!K18="","",Padroes!K18) ->  | H156: =IF(E156="","",Padroes!S$8) ->  | I156: =IF(E156="","",Padroes!S$9) ->  | J156: =IF(E156="","",Padroes!S$10) ->  | K156: =IF(Padroes!M18="","",Padroes!M18) ->  | L156: =IF(D156="","",(D156+(3.1416*((K156+0.3)/2)^2-(3.1416*((Padroes!M18)/2)^2))*M156*2400)) ->  | M156: =IF(E156="","",Padroes!$AI$8) ->  | N156: =IF(E156="","",Padroes!$AL$23) ->  | T156: =IF(Padroes!N18="","",Padroes!N18) ->  | W156: =IF(O156="","",O156*Parametros!$I$26) ->  | X156: =IF(P156="","",P156*Parametros!$I$27) ->  | Y156: =IF(Q156="","",Q156*Parametros!$I$28) ->  | Z156: =IF(R156="","",R156*Parametros!$I$29) -> 
A157: 9 | B157: 9 | C157: =IF(Engastamento_Profundo!F$43=9,Engastamento_Profundo!F$44, 0) -> 0 | D157: =IF(Engastamento_Profundo!F$45="",VLOOKUP(C157,Padroes!$H$10:$M$18,2,FALSE),Engastamento_Profundo!$F$45 ) ->  | E157: =IF(Engastamento_Profundo!$F$47="",1.5,Engastamento_Profundo!$F47) -> -335544.3 | F157: =IF(Engastamento_Profundo!F$56="",7,Engastamento_Profundo!F$56) -> 7.00 | G157: =IF(Engastamento_Profundo!F$46="",VLOOKUP(C157,Padroes!H10:M18,4,FALSE),Engastamento_Profundo!F$46) ->  | H157: =IF(Engastamento_Profundo!F$49="",Padroes!$S$8,Engastamento_Profundo!F$49) -> 1.00 | I157: =IF(Engastamento_Profundo!F$50="",Padroes!$S$9,Engastamento_Profundo!F50) -> 0.20 | J157: =IF(Engastamento_Profundo!F$51="",Padroes!$S$10,Engastamento_Profundo!F$51) -> 0.50 | K157: =IF(Engastamento_Profundo!F$53="",VLOOKUP(C157,C148:K156,9,FALSE),Engastamento_Profundo!F$53) ->  | L157: =D157+(3.1416*K157^2*M157/4*2400) ->  | M157: =Padroes!$AL$8 -> 0.60 | N157: 1.00 | O157: =IF(E157="","",($B$63*G157*E157^3)/(F157+E157)) ->  | P157: =IF(E157="","",(3*$B$63*(2*J157*I157 - I157^2)*(H157-G157))*(E157-J157+I157/2)/(F157+E157/2) + O157) ->  | Q157: =IF(E157="","",(3*$B$63 * (2*E157*I157-I157^2)*(H157-G157) ) * (I157/2) / (F157+E157) + P157) ->  | R157: =IF(E157="","",(N157*$B$63*K157*E157^3)/(F157+E157) + (K157*L157/(F157+E157)) * (0.5 - (2*L157/(3*$C$63*K157^2)))) ->  | W157: =IF(O157="","",O157*Parametros!$I$26) ->  | X157: =IF(P157="","",P157*Parametros!$I$27) ->  | Y157: =IF(Q157="","",Q157*Parametros!$I$28) ->  | Z157: =IF(R157="","",R157*Parametros!$I$29) -> 
A158: 10 | B158: 10 | C158: =IF(Padroes!H19="","",Padroes!H19) -> 150 | D158: =IF(Padroes!I19="","",Padroes!I19) -> 550 | E158: 1.6 | F158: =IF(E158="","",B158-E158-0.2) -> 8.2 | G158: =IF(Padroes!K19="","",Padroes!K19) -> 0.20 | H158: =IF(E158="","",Padroes!S$8) -> 1.00 | I158: =IF(E158="","",Padroes!S$9) -> 0.20 | J158: =IF(E158="","",Padroes!S$10) -> 0.50 | K158: =IF(Padroes!M19="","",Padroes!M19) -> 0.34 | L158: =IF(D158="","",(D158+(3.1416*((K158+0.3)/2)^2-(3.1416*((Padroes!M19)/2)^2))*M158*2400)) -> 913 | M158: =IF(E158="","",Padroes!$AI$9) -> 0.65 | N158: =IF(E158="","",Padroes!$AL$23) -> 1.00 | O158: 167 | P158: 270 | Q158: 299 | R158: 560 | S158: 10 | T158: =IF(Padroes!N19="","",Padroes!N19) -> D | W158: =IF(O158="","",O158*Parametros!$I$26) -> 134 | X158: =IF(P158="","",P158*Parametros!$I$27) -> 216 | Y158: =IF(Q158="","",Q158*Parametros!$I$28) -> 239 | Z158: =IF(R158="","",R158*Parametros!$I$29) -> 448
B159: 10 | C159: =IF(Padroes!H20="","",Padroes!H20) -> 200 | D159: =IF(Padroes!I20="","",Padroes!I20) -> 550 | E159: 1.6 | F159: 8.2 | G159: =IF(Padroes!K20="","",Padroes!K20) -> 0.20 | H159: =IF(E159="","",Padroes!S$8) -> 1.00 | I159: =IF(E159="","",Padroes!S$9) -> 0.20 | J159: =IF(E159="","",Padroes!S$10) -> 0.50 | K159: =IF(Padroes!M20="","",Padroes!M20) -> 0.34 | L159: =IF(D159="","",(D159+(3.1416*((K159+0.3)/2)^2-(3.1416*((Padroes!M20)/2)^2))*M159*2400)) -> 913 | M159: =IF(E159="","",Padroes!$AI$9) -> 0.65 | N159: =IF(E159="","",Padroes!$AL$23) -> 1.00 | O159: 167 | P159: 270 | Q159: 299 | R159: 560 | T159: =IF(Padroes!N20="","",Padroes!N20) -> B | W159: =IF(O159="","",O159*Parametros!$I$26) -> 134 | X159: =IF(P159="","",P159*Parametros!$I$27) -> 216 | Y159: =IF(Q159="","",Q159*Parametros!$I$28) -> 239 | Z159: =IF(R159="","",R159*Parametros!$I$29) -> 448
B160: 10 | C160: =IF(Padroes!H21="","",Padroes!H21) -> 300 | D160: =IF(Padroes!I21="","",Padroes!I21) -> 900 | E160: 1.6 | F160: 8.2 | G160: =IF(Padroes!K21="","",Padroes!K21) -> 0.31 | H160: =IF(E160="","",Padroes!S$8) -> 1.00 | I160: =IF(E160="","",Padroes!S$9) -> 0.20 | J160: =IF(E160="","",Padroes!S$10) -> 0.50 | K160: =IF(Padroes!M21="","",Padroes!M21) -> 0.52 | L160: =IF(D160="","",(D160+(3.1416*((K160+0.3)/2)^2-(3.1416*((Padroes!M21)/2)^2))*M160*2400)) -> 1394 | M160: =IF(E160="","",Padroes!$AI$9) -> 0.65 | N160: =IF(E160="","",Padroes!$AL$23) -> 1.00 | O160: 259 | P160: 347 | Q160: 373 | R160: 730 | T160: =IF(Padroes!N21="","",Padroes!N21) -> B | W160: =IF(O160="","",O160*Parametros!$I$26) -> 207 | X160: =IF(P160="","",P160*Parametros!$I$27) -> 278 | Y160: =IF(Q160="","",Q160*Parametros!$I$28) -> 298 | Z160: =IF(R160="","",R160*Parametros!$I$29) -> 584
B161: 10 | C161: =IF(Padroes!H22="","",Padroes!H22) -> 400 | D161: =IF(Padroes!I22="","",Padroes!I22) -> 900 | E161: 1.6 | F161: 8.2 | G161: =IF(Padroes!K22="","",Padroes!K22) -> 0.31 | H161: =IF(E161="","",Padroes!S$8) -> 1.00 | I161: =IF(E161="","",Padroes!S$9) -> 0.20 | J161: =IF(E161="","",Padroes!S$10) -> 0.50 | K161: =IF(Padroes!M22="","",Padroes!M22) -> 0.52 | L161: =IF(D161="","",(D161+(3.1416*((K161+0.3)/2)^2-(3.1416*((Padroes!M22)/2)^2))*M161*2400)) -> 1394 | M161: =IF(E161="","",Padroes!$AI$9) -> 0.65 | N161: =IF(E161="","",Padroes!$AL$23) -> 1.00 | O161: 259 | P161: 347 | Q161: 373 | R161: 730 | T161: =IF(Padroes!N22="","",Padroes!N22) -> B | W161: =IF(O161="","",O161*Parametros!$I$26) -> 207 | X161: =IF(P161="","",P161*Parametros!$I$27) -> 278 | Y161: =IF(Q161="","",Q161*Parametros!$I$28) -> 298 | Z161: =IF(R161="","",R161*Parametros!$I$29) -> 584
B162: 10 | C162: =IF(Padroes!H23="","",Padroes!H23) -> 600 | D162: =IF(Padroes!I23="","",Padroes!I23) -> 900 | E162: 1.6 | F162: 8.2 | G162: =IF(Padroes!K23="","",Padroes!K23) -> 0.31 | H162: =IF(E162="","",Padroes!S$8) -> 1.00 | I162: =IF(E162="","",Padroes!S$9) -> 0.20 | J162: =IF(E162="","",Padroes!S$10) -> 0.50 | K162: =IF(Padroes!M23="","",Padroes!M23) -> 0.52 | L162: =IF(D162="","",(D162+(3.1416*((K162+0.3)/2)^2-(3.1416*((Padroes!M23)/2)^2))*M162*2400)) -> 1394 | M162: =IF(E162="","",Padroes!$AI$9) -> 0.65 | N162: =IF(E162="","",Padroes!$AL$23) -> 1.00 | O162: =IF(E162="","",($B$63*G162*E162^3)/(F162+E162)) -> 259 | P162: 347 | Q162: 373 | R162: 730 | T162: =IF(Padroes!N23="","",Padroes!N23) -> B | W162: =IF(O162="","",O162*Parametros!$I$26) -> 207 | X162: =IF(P162="","",P162*Parametros!$I$27) -> 278 | Y162: =IF(Q162="","",Q162*Parametros!$I$28) -> 298 | Z162: =IF(R162="","",R162*Parametros!$I$29) -> 584
B163: 10 | C163: =IF(Padroes!H24="","",Padroes!H24) -> 1000 | D163: =IF(Padroes!I24="","",Padroes!I24) -> 1150 | E163: 1.6 | F163: 8.2 | G163: =IF(Padroes!K24="","",Padroes!K24) -> 0.34 | H163: =IF(E163="","",Padroes!S$8) -> 1.00 | I163: =IF(E163="","",Padroes!S$9) -> 0.20 | J163: =IF(E163="","",Padroes!S$10) -> 0.50 | K163: =IF(Padroes!M24="","",Padroes!M24) -> 0.57 | L163: =IF(D163="","",(D163+(3.1416*((K163+0.3)/2)^2-(3.1416*((Padroes!M24)/2)^2))*M163*2400)) -> 1682 | M163: =IF(E163="","",Padroes!$AI$9) -> 0.65 | N163: =IF(E163="","",Padroes!$AL$23) -> 1.00 | O163: 284 | P163: 369 | Q163: 393 | R163: 783 | T163: =IF(Padroes!N24="","",Padroes!N24) -> B-1,5 | W163: =IF(O163="","",O163*Parametros!$I$26) -> 227 | X163: =IF(P163="","",P163*Parametros!$I$27) -> 295 | Y163: =IF(Q163="","",Q163*Parametros!$I$28) -> 314 | Z163: =IF(R163="","",R163*Parametros!$I$29) -> 627
B164: 10 | C164: =IF(Padroes!H25="","",Padroes!H25) ->  | D164: =IF(Padroes!I25="","",Padroes!I25) ->  | G164: =IF(Padroes!K25="","",Padroes!K25) ->  | H164: =IF(E164="","",Padroes!S$8) ->  | I164: =IF(E164="","",Padroes!S$9) ->  | J164: =IF(E164="","",Padroes!S$10) ->  | K164: =IF(Padroes!M25="","",Padroes!M25) ->  | L164: =IF(D164="","",(D164+(3.1416*((K164+0.3)/2)^2-(3.1416*((Padroes!M25)/2)^2))*M164*2400)) ->  | M164: =IF(E164="","",Padroes!$AI$9) ->  | N164: =IF(E164="","",Padroes!$AL$23) ->  | T164: =IF(Padroes!N25="","",Padroes!N25) ->  | W164: =IF(O164="","",O164*Parametros!$I$26) ->  | X164: =IF(P164="","",P164*Parametros!$I$27) ->  | Y164: =IF(Q164="","",Q164*Parametros!$I$28) ->  | Z164: =IF(R164="","",R164*Parametros!$I$29) -> 
B165: 10 | C165: =IF(Padroes!H26="","",Padroes!H26) ->  | D165: =IF(Padroes!I26="","",Padroes!I26) ->  | G165: =IF(Padroes!K26="","",Padroes!K26) ->  | H165: =IF(E165="","",Padroes!S$8) ->  | I165: =IF(E165="","",Padroes!S$9) ->  | J165: =IF(E165="","",Padroes!S$10) ->  | K165: =IF(Padroes!M26="","",Padroes!M26) ->  | L165: =IF(D165="","",(D165+(3.1416*((K165+0.3)/2)^2-(3.1416*((Padroes!M26)/2)^2))*M165*2400)) ->  | M165: =IF(E165="","",Padroes!$AI$9) ->  | N165: =IF(E165="","",Padroes!$AL$23) ->  | T165: =IF(Padroes!N26="","",Padroes!N26) ->  | W165: =IF(O165="","",O165*Parametros!$I$26) ->  | X165: =IF(P165="","",P165*Parametros!$I$27) ->  | Y165: =IF(Q165="","",Q165*Parametros!$I$28) ->  | Z165: =IF(R165="","",R165*Parametros!$I$29) -> 
B166: 10 | C166: =IF(Padroes!H27="","",Padroes!H27) ->  | D166: =IF(Padroes!I27="","",Padroes!I27) ->  | G166: =IF(Padroes!K27="","",Padroes!K27) ->  | H166: =IF(E166="","",Padroes!S$8) ->  | I166: =IF(E166="","",Padroes!S$9) ->  | J166: =IF(E166="","",Padroes!S$10) ->  | K166: =IF(Padroes!M27="","",Padroes!M27) ->  | L166: =IF(D166="","",(D166+(3.1416*((K166+0.3)/2)^2-(3.1416*((Padroes!M27)/2)^2))*M166*2400)) ->  | M166: =IF(E166="","",Padroes!$AI$9) ->  | N166: =IF(E166="","",Padroes!$AL$23) ->  | T166: =IF(Padroes!N27="","",Padroes!N27) ->  | W166: =IF(O166="","",O166*Parametros!$I$26) ->  | X166: =IF(P166="","",P166*Parametros!$I$27) ->  | Y166: =IF(Q166="","",Q166*Parametros!$I$28) ->  | Z166: =IF(R166="","",R166*Parametros!$I$29) -> 
A167: 10 | B167: 10 | C167: =IF(Engastamento_Profundo!F$43=10,Engastamento_Profundo!F$44, 0) -> 0 | D167: =IF(Engastamento_Profundo!F$45="",VLOOKUP(C167,Padroes!H19:M27,2,FALSE),Engastamento_Profundo!$F$45 ) ->  | E167: =IF(Engastamento_Profundo!$F$47="",1.6,Engastamento_Profundo!$F47) -> -335544.3 | F167: =IF(Engastamento_Profundo!F$56="",8.2,Engastamento_Profundo!F$56) -> 8.20 | G167: =IF(Engastamento_Profundo!F$46="",VLOOKUP(C167,Padroes!H19:M27,4,FALSE),Engastamento_Profundo!F$46) ->  | H167: =IF(Engastamento_Profundo!F$49="",Padroes!$S$8,Engastamento_Profundo!F$49) -> 1.00 | I167: =IF(Engastamento_Profundo!F$50="",Padroes!$S$9,Engastamento_Profundo!F60) -> 0.20 | J167: =IF(Engastamento_Profundo!F$51="",Padroes!$S$10,Engastamento_Profundo!F$51) -> 0.50 | K167: =IF(Engastamento_Profundo!F$53="",VLOOKUP(C167,C158:K166,9,FALSE),Engastamento_Profundo!F$53) ->  | L167: =D167+(3.1416*K167^2*M167/4*2400) ->  | M167: =Padroes!$AL$8 -> 0.60 | N167: 1.00 | O167: =IF(E167="","",($B$63*G167*E167^3)/(F167+E167)) ->  | P167: =IF(E167="","",(3*$B$63*(2*J167*I167 - I167^2)*(H167-G167))*(E167-J167+I167/2)/(F167+E167/2) + O167) ->  | Q167: =IF(E167="","",(3*$B$63 * (2*E167*I167-I167^2)*(H167-G167) ) * (I167/2) / (F167+E167) + P167) ->  | R167: =IF(E167="","",(N167*$B$63*K167*E167^3)/(F167+E167) + (K167*L167/(F167+E167)) * (0.5 - (2*L167/(3*$C$63*K167^2)))) ->  | W167: =IF(O167="","",O167*Parametros!$I$26) ->  | X167: =IF(P167="","",P167*Parametros!$I$27) ->  | Y167: =IF(Q167="","",Q167*Parametros!$I$28) ->  | Z167: =IF(R167="","",R167*Parametros!$I$29) -> 
A168: 11 | B168: 11 | C168: =IF(Padroes!H28="","",Padroes!H28) -> 200 | D168: =IF(Padroes!I28="","",Padroes!I28) -> 680 | E168: 1.7 | F168: =IF(E168="","",B168-E168-0.2) -> 9.1 | G168: =IF(Padroes!K28="","",Padroes!K28) -> 0.21 | H168: =IF(E168="","",Padroes!S$8) -> 1.00 | I168: =IF(E168="","",Padroes!S$9) -> 0.20 | J168: =IF(E168="","",Padroes!S$10) -> 0.50 | K168: =IF(Padroes!M28="","",Padroes!M28) -> 0.36 | L168: =IF(D168="","",(D168+(3.1416*((K168+0.3)/2)^2-(3.1416*((Padroes!M28)/2)^2))*M168*2400)) -> 1086 | M168: =IF(E168="","",Padroes!$AI$10) -> 0.70 | N168: =IF(E168="","",Padroes!$AL$23) -> 1.00 | O168: 191 | P168: 290 | Q168: 318 | R168: 626 | S168: 11 | T168: =IF(Padroes!N28="","",Padroes!N28) -> D | W168: =IF(O168="","",O168*Parametros!$I$26) -> 153 | X168: =IF(P168="","",P168*Parametros!$I$27) -> 232 | Y168: =IF(Q168="","",Q168*Parametros!$I$28) -> 255 | Z168: =IF(R168="","",R168*Parametros!$I$29) -> 500
B169: 11 | C169: =IF(Padroes!H29="","",Padroes!H29) -> 300 | D169: =IF(Padroes!I29="","",Padroes!I29) -> 1050 | E169: 1.7 | F169: =IF(E169="","",B169-E169-0.2) -> 9.1 | G169: =IF(Padroes!K29="","",Padroes!K29) -> 0.33 | H169: =IF(E169="","",Padroes!S$8) -> 1.00 | I169: =IF(E169="","",Padroes!S$9) -> 0.20 | J169: =IF(E169="","",Padroes!S$10) -> 0.50 | K169: =IF(Padroes!M29="","",Padroes!M29) -> 0.56 | L169: =IF(D169="","",(D169+(3.1416*((K169+0.3)/2)^2-(3.1416*((Padroes!M29)/2)^2))*M169*2400)) -> 1609 | M169: =IF(E169="","",Padroes!$AI$10) -> 0.70 | N169: =IF(E169="","",Padroes!$AL$23) -> 1.00 | O169: 300 | P169: 384 | Q169: =IF(E169="","",(3*$B$63 * (2*E169*I169-I169^2)*(H169-G169) ) * (I169/2) / (F169+E169) + P169) -> 408 | R169: =IF(E169="","",(N169*$B$63*(K169+0.3)*E169^3)/(F169+E169)+((K169+0.3)*L169/(F169+E169))*(0.5-((2*L169*10^-4)/(3*(K169+0.3)^2)))) -> 824 | T169: =IF(Padroes!N29="","",Padroes!N29) -> B | W169: =IF(O169="","",O169*Parametros!$I$26) -> 240 | X169: =IF(P169="","",P169*Parametros!$I$27) -> 307 | Y169: =IF(Q169="","",Q169*Parametros!$I$28) -> 326 | Z169: =IF(R169="","",R169*Parametros!$I$29) -> 659
B170: 11 | C170: =IF(Padroes!H30="","",Padroes!H30) -> 400 | D170: =IF(Padroes!I30="","",Padroes!I30) -> 1050 | E170: 1.7 | F170: 9.1 | G170: =IF(Padroes!K30="","",Padroes!K30) -> 0.33 | H170: =IF(E170="","",Padroes!S$8) -> 1.00 | I170: =IF(E170="","",Padroes!S$9) -> 0.20 | J170: =IF(E170="","",Padroes!S$10) -> 0.50 | K170: =IF(Padroes!M30="","",Padroes!M30) -> 0.56 | L170: =IF(D170="","",(D170+(3.1416*((K170+0.3)/2)^2-(3.1416*((Padroes!M30)/2)^2))*M170*2400)) -> 1609 | M170: =IF(E170="","",Padroes!$AI$10) -> 0.70 | N170: =IF(E170="","",Padroes!$AL$23) -> 1.00 | O170: 300 | P170: 384 | Q170: =IF(E170="","",(3*$B$63 * (2*E170*I170-I170^2)*(H170-G170) ) * (I170/2) / (F170+E170) + P170) -> 408 | R170: =IF(E170="","",(N170*$B$63*(K170+0.3)*E170^3)/(F170+E170)+((K170+0.3)*L170/(F170+E170))*(0.5-((2*L170*10^-4)/(3*(K170+0.3)^2)))) -> 824 | T170: =IF(Padroes!N30="","",Padroes!N30) -> B | W170: =IF(O170="","",O170*Parametros!$I$26) -> 240 | X170: =IF(P170="","",P170*Parametros!$I$27) -> 307 | Y170: =IF(Q170="","",Q170*Parametros!$I$28) -> 326 | Z170: =IF(R170="","",R170*Parametros!$I$29) -> 659
B171: 11 | C171: =IF(Padroes!H31="","",Padroes!H31) -> 600 | D171: =IF(Padroes!I31="","",Padroes!I31) -> 1050 | E171: 1.7 | F171: 9.1 | G171: =IF(Padroes!K31="","",Padroes!K31) -> 0.33 | H171: =IF(E171="","",Padroes!S$8) -> 1.00 | I171: =IF(E171="","",Padroes!S$9) -> 0.20 | J171: =IF(E171="","",Padroes!S$10) -> 0.50 | K171: =IF(Padroes!M31="","",Padroes!M31) -> 0.56 | L171: =IF(D171="","",(D171+(3.1416*((K171+0.3)/2)^2-(3.1416*((Padroes!M31)/2)^2))*M171*2400)) -> 1609 | M171: =IF(E171="","",Padroes!$AI$10) -> 0.70 | N171: =IF(E171="","",Padroes!$AL$23) -> 1.00 | O171: 300 | P171: 384 | Q171: =IF(E171="","",(3*$B$63 * (2*E171*I171-I171^2)*(H171-G171) ) * (I171/2) / (F171+E171) + P171) -> 408 | R171: =IF(E171="","",(N171*$B$63*(K171+0.3)*E171^3)/(F171+E171)+((K171+0.3)*L171/(F171+E171))*(0.5-((2*L171*10^-4)/(3*(K171+0.3)^2)))) -> 824 | T171: =IF(Padroes!N31="","",Padroes!N31) -> B | W171: =IF(O171="","",O171*Parametros!$I$26) -> 240 | X171: =IF(P171="","",P171*Parametros!$I$27) -> 307 | Y171: =IF(Q171="","",Q171*Parametros!$I$28) -> 326 | Z171: =IF(R171="","",R171*Parametros!$I$29) -> 659
B172: 11 | C172: =IF(Padroes!H32="","",Padroes!H32) -> 1000 | D172: =IF(Padroes!I32="","",Padroes!I32) -> 1330 | E172: 1.7 | F172: 9.1 | G172: =IF(Padroes!K32="","",Padroes!K32) -> 0.36 | H172: =IF(E172="","",Padroes!S$8) -> 1.00 | I172: =IF(E172="","",Padroes!S$9) -> 0.20 | J172: =IF(E172="","",Padroes!S$10) -> 0.50 | K172: =IF(Padroes!M32="","",Padroes!M32) -> 0.61 | L172: =IF(D172="","",(D172+(3.1416*((K172+0.3)/2)^2-(3.1416*((Padroes!M32)/2)^2))*M172*2400)) -> 1930 | M172: =IF(E172="","",Padroes!$AI$10) -> 0.70 | N172: =IF(E172="","",Padroes!$AL$23) -> 1.00 | O172: 328 | P172: 408 | Q172: =IF(E172="","",(3*$B$63 * (2*E172*I172-I172^2)*(H172-G172) ) * (I172/2) / (F172+E172) + P172) -> 431 | R172: =IF(E172="","",(N172*$B$63*(K172+0.3)*E172^3)/(F172+E172)+((K172+0.3)*L172/(F172+E172))*(0.5-((2*L172*10^-4)/(3*(K172+0.3)^2)))) -> 882 | T172: =IF(Padroes!N32="","",Padroes!N32) -> B-1,5 | W172: =IF(O172="","",O172*Parametros!$I$26) -> 262 | X172: =IF(P172="","",P172*Parametros!$I$27) -> 326 | Y172: =IF(Q172="","",Q172*Parametros!$I$28) -> 344 | Z172: =IF(R172="","",R172*Parametros!$I$29) -> 706
B173: 11 | C173: =IF(Padroes!H33="","",Padroes!H33) ->  | D173: =IF(Padroes!I33="","",Padroes!I33) ->  | G173: =IF(Padroes!K33="","",Padroes!K33) ->  | H173: =IF(E173="","",Padroes!S$8) ->  | I173: =IF(E173="","",Padroes!S$9) ->  | J173: =IF(E173="","",Padroes!S$10) ->  | K173: =IF(Padroes!M33="","",Padroes!M33) ->  | L173: =IF(D173="","",(D173+(3.1416*((K173+0.3)/2)^2-(3.1416*((Padroes!M33)/2)^2))*M173*2400)) ->  | M173: =IF(E173="","",Padroes!$AI$10) ->  | N173: =IF(E173="","",Padroes!$AL$23) ->  | Q173: =IF(E173="","",(3*$B$63 * (2*E173*I173-I173^2)*(H173-G173) ) * (I173/2) / (F173+E173) + P173) ->  | R173: =IF(E173="","",(N173*$B$63*(K173+0.3)*E173^3)/(F173+E173)+((K173+0.3)*L173/(F173+E173))*(0.5-((2*L173*10^-4)/(3*(K173+0.3)^2)))) ->  | T173: =IF(Padroes!N33="","",Padroes!N33) ->  | W173: =IF(O173="","",O173*Parametros!$I$26) ->  | X173: =IF(P173="","",P173*Parametros!$I$27) ->  | Y173: =IF(Q173="","",Q173*Parametros!$I$28) ->  | Z173: =IF(R173="","",R173*Parametros!$I$29) -> 
B174: 11 | C174: =IF(Padroes!H34="","",Padroes!H34) ->  | D174: =IF(Padroes!I34="","",Padroes!I34) ->  | G174: =IF(Padroes!K34="","",Padroes!K34) ->  | H174: =IF(E174="","",Padroes!S$8) ->  | I174: =IF(E174="","",Padroes!S$9) ->  | J174: =IF(E174="","",Padroes!S$10) ->  | K174: =IF(Padroes!M34="","",Padroes!M34) ->  | L174: =IF(D174="","",(D174+(3.1416*((K174+0.3)/2)^2-(3.1416*((Padroes!M34)/2)^2))*M174*2400)) ->  | M174: =IF(E174="","",Padroes!$AI$10) ->  | N174: =IF(E174="","",Padroes!$AL$23) ->  | O174: =IF(E174="","",($B$63*G174*E174^3)/(F174+E174)) ->  | Q174: =IF(E174="","",(3*$B$63 * (2*E174*I174-I174^2)*(H174-G174) ) * (I174/2) / (F174+E174) + P174) ->  | R174: =IF(E174="","",(N174*$B$63*(K174+0.3)*E174^3)/(F174+E174)+((K174+0.3)*L174/(F174+E174))*(0.5-((2*L174*10^-4)/(3*(K174+0.3)^2)))) ->  | T174: =IF(Padroes!N34="","",Padroes!N34) ->  | W174: =IF(O174="","",O174*Parametros!$I$26) ->  | X174: =IF(P174="","",P174*Parametros!$I$27) ->  | Y174: =IF(Q174="","",Q174*Parametros!$I$28) ->  | Z174: =IF(R174="","",R174*Parametros!$I$29) -> 
B175: 11 | C175: =IF(Padroes!H35="","",Padroes!H35) ->  | D175: =IF(Padroes!I35="","",Padroes!I35) ->  | G175: =IF(Padroes!K35="","",Padroes!K35) ->  | H175: =IF(E175="","",Padroes!S$8) ->  | I175: =IF(E175="","",Padroes!S$9) ->  | J175: =IF(E175="","",Padroes!S$10) ->  | K175: =IF(Padroes!M35="","",Padroes!M35) ->  | L175: =IF(D175="","",(D175+(3.1416*((K175+0.3)/2)^2-(3.1416*((Padroes!M35)/2)^2))*M175*2400)) ->  | M175: =IF(E175="","",Padroes!$AI$10) ->  | N175: =IF(E175="","",Padroes!$AL$23) ->  | T175: =IF(Padroes!N35="","",Padroes!N35) ->  | W175: =IF(O175="","",O175*Parametros!$I$26) ->  | X175: =IF(P175="","",P175*Parametros!$I$27) ->  | Y175: =IF(Q175="","",Q175*Parametros!$I$28) ->  | Z175: =IF(R175="","",R175*Parametros!$I$29) -> 
B176: 11 | C176: =IF(Padroes!H36="","",Padroes!H36) ->  | D176: =IF(Padroes!I36="","",Padroes!I36) ->  | G176: =IF(Padroes!K36="","",Padroes!K36) ->  | H176: =IF(E176="","",Padroes!S$8) ->  | I176: =IF(E176="","",Padroes!S$9) ->  | J176: =IF(E176="","",Padroes!S$10) ->  | K176: =IF(Padroes!M36="","",Padroes!M36) ->  | L176: =IF(D176="","",(D176+(3.1416*((K176+0.3)/2)^2-(3.1416*((Padroes!M36)/2)^2))*M176*2400)) ->  | M176: =IF(E176="","",Padroes!$AI$10) ->  | N176: =IF(E176="","",Padroes!$AL$23) ->  | T176: =IF(Padroes!N36="","",Padroes!N36) ->  | W176: =IF(O176="","",O176*Parametros!$I$26) ->  | X176: =IF(P176="","",P176*Parametros!$I$27) ->  | Y176: =IF(Q176="","",Q176*Parametros!$I$28) ->  | Z176: =IF(R176="","",R176*Parametros!$I$29) -> 
A177: 11 | B177: 11 | C177: =IF(Engastamento_Profundo!F$43=11,Engastamento_Profundo!F$44, 0) -> 0 | D177: =IF(Engastamento_Profundo!F$45="",VLOOKUP(C177,Padroes!H28:M36,2,FALSE),Engastamento_Profundo!$F$45 ) ->  | E177: =IF(Engastamento_Profundo!$F$47="",1.7,Engastamento_Profundo!$F47) -> -335544.3 | F177: =IF(Engastamento_Profundo!F$56="",9.1,Engastamento_Profundo!F$56) -> 9.10 | G177: =IF(Engastamento_Profundo!F$46="",VLOOKUP(C177,Padroes!H28:M36,4,FALSE),Engastamento_Profundo!F$46) ->  | H177: =IF(Engastamento_Profundo!F$49="",Padroes!$S$8,Engastamento_Profundo!F$49) -> 1.00 | I177: =IF(Engastamento_Profundo!F$50="",Padroes!$S$9,Engastamento_Profundo!F70) -> 0.20 | J177: =IF(Engastamento_Profundo!F$51="",Padroes!$S$10,Engastamento_Profundo!F$51) -> 0.50 | K177: =IF(Engastamento_Profundo!F$53="",VLOOKUP(C177,C168:K176,9,FALSE),Engastamento_Profundo!F$53) ->  | L177: =D177+(3.1416*K177^2*M177/4*2400) ->  | M177: =Padroes!$AL$9 -> 0.65 | N177: 1.00 | O177: =IF(E177="","",($B$63*G177*E177^3)/(F177+E177)) ->  | P177: =IF(E177="","",(3*$B$63*(2*J177*I177 - I177^2)*(H177-G177))*(E177-J177+I177/2)/(F177+E177/2) + O177) ->  | Q177: =IF(E177="","",(3*$B$63 * (2*E177*I177-I177^2)*(H177-G177) ) * (I177/2) / (F177+E177) + P177) ->  | R177: =IF(E177="","",(N177*$B$63*K177*E177^3)/(F177+E177) + (K177*L177/(F177+E177)) * (0.5 - (2*L177/(3*$C$63*K177^2)))) ->  | W177: =IF(O177="","",O177*Parametros!$I$26) ->  | X177: =IF(P177="","",P177*Parametros!$I$27) ->  | Y177: =IF(Q177="","",Q177*Parametros!$I$28) ->  | Z177: =IF(R177="","",R177*Parametros!$I$29) -> 
A178: 12 | B178: 12 | C178: =IF(Padroes!H37="","",Padroes!H37) -> 200 | D178: =IF(Padroes!I37="","",Padroes!I37) -> 780 | E178: 1.8 | F178: 10.0 | G178: =IF(Padroes!K37="","",Padroes!K37) -> 0.23 | H178: =IF(E178="","",Padroes!S$8) -> 1.00 | I178: =IF(E178="","",Padroes!S$9) -> 0.20 | J178: =IF(E178="","",Padroes!S$10) -> 0.50 | K178: =IF(Padroes!M37="","",Padroes!M37) -> 0.39 | L178: =IF(D178="","",(D178+(3.1416*((K178+0.3)/2)^2-(3.1416*((Padroes!M37)/2)^2))*M178*2400)) -> 1235 | M178: =IF(E178="","",Padroes!$AI$11) -> 0.75 | N178: =IF(E178="","",Padroes!$AL$23) -> 1.00 | O178: 227 | P178: 322 | Q178: 349 | R178: 701 | S178: 12 | T178: =IF(Padroes!N37="","",Padroes!N37) -> D | W178: =IF(O178="","",O178*Parametros!$I$26) -> 182 | X178: =IF(P178="","",P178*Parametros!$I$27) -> 258 | Y178: =IF(Q178="","",Q178*Parametros!$I$28) -> 279 | Z178: =IF(R178="","",R178*Parametros!$I$29) -> 561
B179: 12 | C179: =IF(Padroes!H38="","",Padroes!H38) -> 300 | D179: =IF(Padroes!I38="","",Padroes!I38) -> 1210 | E179: 1.8 | F179: 10.0 | G179: =IF(Padroes!K38="","",Padroes!K38) -> 0.35 | H179: =IF(E179="","",Padroes!S$8) -> 1.00 | I179: =IF(E179="","",Padroes!S$9) -> 0.20 | J179: =IF(E179="","",Padroes!S$10) -> 0.50 | K179: =IF(Padroes!M38="","",Padroes!M38) -> 0.59 | L179: =IF(D179="","",(D179+(3.1416*((K179+0.3)/2)^2-(3.1416*((Padroes!M38)/2)^2))*M179*2400)) -> 1839 | M179: =IF(E179="","",Padroes!$AI$11) -> 0.75 | N179: =IF(E179="","",Padroes!$AL$23) -> 1.00 | O179: 346 | P179: 426 | Q179: 449 | R179: 929 | T179: =IF(Padroes!N38="","",Padroes!N38) -> B | W179: =IF(O179="","",O179*Parametros!$I$26) -> 277 | X179: =IF(P179="","",P179*Parametros!$I$27) -> 341 | Y179: =IF(Q179="","",Q179*Parametros!$I$28) -> 359 | Z179: =IF(R179="","",R179*Parametros!$I$29) -> 743
B180: 12 | C180: =IF(Padroes!H39="","",Padroes!H39) -> 400 | D180: =IF(Padroes!I39="","",Padroes!I39) -> 1210 | E180: 1.8 | F180: 10.0 | G180: =IF(Padroes!K39="","",Padroes!K39) -> 0.35 | H180: =IF(E180="","",Padroes!S$8) -> 1.00 | I180: =IF(E180="","",Padroes!S$9) -> 0.20 | J180: =IF(E180="","",Padroes!S$10) -> 0.50 | K180: =IF(Padroes!M39="","",Padroes!M39) -> 0.59 | L180: =IF(D180="","",(D180+(3.1416*((K180+0.3)/2)^2-(3.1416*((Padroes!M39)/2)^2))*M180*2400)) -> 1839 | M180: =IF(E180="","",Padroes!$AI$11) -> 0.75 | N180: =IF(E180="","",Padroes!$AL$23) -> 1.00 | O180: 346 | P180: 426 | Q180: 449 | R180: 929 | T180: =IF(Padroes!N39="","",Padroes!N39) -> B | W180: =IF(O180="","",O180*Parametros!$I$26) -> 277 | X180: =IF(P180="","",P180*Parametros!$I$27) -> 341 | Y180: =IF(Q180="","",Q180*Parametros!$I$28) -> 359 | Z180: =IF(R180="","",R180*Parametros!$I$29) -> 743
B181: 12 | C181: =IF(Padroes!H40="","",Padroes!H40) -> 600 | D181: =IF(Padroes!I40="","",Padroes!I40) -> 1210 | E181: 1.8 | F181: 10.0 | G181: =IF(Padroes!K40="","",Padroes!K40) -> 0.35 | H181: =IF(E181="","",Padroes!S$8) -> 1.00 | I181: =IF(E181="","",Padroes!S$9) -> 0.20 | J181: =IF(E181="","",Padroes!S$10) -> 0.50 | K181: =IF(Padroes!M40="","",Padroes!M40) -> 0.59 | L181: =IF(D181="","",(D181+(3.1416*((K181+0.3)/2)^2-(3.1416*((Padroes!M40)/2)^2))*M181*2400)) -> 1839 | M181: =IF(E181="","",Padroes!$AI$11) -> 0.75 | N181: =IF(E181="","",Padroes!$AL$23) -> 1.00 | O181: 346 | P181: 426 | Q181: 449 | R181: 929 | T181: =IF(Padroes!N40="","",Padroes!N40) -> B | W181: =IF(O181="","",O181*Parametros!$I$26) -> 277 | X181: =IF(P181="","",P181*Parametros!$I$27) -> 341 | Y181: =IF(Q181="","",Q181*Parametros!$I$28) -> 359 | Z181: =IF(R181="","",R181*Parametros!$I$29) -> 743
B182: 12 | C182: =IF(Padroes!H41="","",Padroes!H41) -> 1000 | D182: =IF(Padroes!I41="","",Padroes!I41) -> 1520 | E182: 1.8 | F182: 10.0 | G182: =IF(Padroes!K41="","",Padroes!K41) -> 0.38 | H182: =IF(E182="","",Padroes!S$8) -> 1.00 | I182: =IF(E182="","",Padroes!S$9) -> 0.20 | J182: =IF(E182="","",Padroes!S$10) -> 0.50 | K182: =IF(Padroes!M41="","",Padroes!M41) -> 0.64 | L182: =IF(D182="","",(D182+(3.1416*((K182+0.3)/2)^2-(3.1416*((Padroes!M41)/2)^2))*M182*2400)) -> 2192 | M182: =IF(E182="","",Padroes!$AI$11) -> 0.75 | N182: =IF(E182="","",Padroes!$AL$23) -> 1.00 | O182: 376 | P182: 452 | Q182: 474 | R182: 990 | T182: =IF(Padroes!N41="","",Padroes!N41) -> B-1,5 | W182: =IF(O182="","",O182*Parametros!$I$26) -> 300 | X182: =IF(P182="","",P182*Parametros!$I$27) -> 362 | Y182: =IF(Q182="","",Q182*Parametros!$I$28) -> 379 | Z182: =IF(R182="","",R182*Parametros!$I$29) -> 792
B183: 12 | C183: =IF(Padroes!H42="","",Padroes!H42) -> 2000 | D183: =IF(Padroes!I42="","",Padroes!I42) -> 2000 | E183: 1.8 | F183: 10.0 | G183: =IF(Padroes!K42="","",Padroes!K42) -> 0.44 | H183: =IF(E183="","",Padroes!S$8) -> 1.00 | I183: =IF(E183="","",Padroes!S$9) -> 0.20 | J183: =IF(E183="","",Padroes!S$10) -> 0.50 | K183: =IF(Padroes!M42="","",Padroes!M42) -> 0.75 | L183: =IF(D183="","",(D183+(3.1416*((K183+0.3)/2)^2-(3.1416*((Padroes!M42)/2)^2))*M183*2400)) -> 2760 | M183: =IF(E183="","",Padroes!$AI$11) -> 0.75 | N183: =IF(E183="","",Padroes!$AL$23) -> 1.00 | O183: 435 | P183: 504 | Q183: 523 | R183: 1115 | T183: =IF(Padroes!N42="","",Padroes!N42) -> B-4,5 | W183: =IF(O183="","",O183*Parametros!$I$26) -> 348 | X183: =IF(P183="","",P183*Parametros!$I$27) -> 403 | Y183: =IF(Q183="","",Q183*Parametros!$I$28) -> 419 | Z183: =IF(R183="","",R183*Parametros!$I$29) -> 892
B184: 12 | C184: =IF(Padroes!H43="","",Padroes!H43) -> 3000 | D184: =IF(Padroes!I43="","",Padroes!I43) -> 2500 | E184: 1.8 | F184: 10.0 | G184: =IF(Padroes!K43="","",Padroes!K43) -> 0.47 | H184: =IF(E184="","",Padroes!S$8) -> 1.00 | I184: =IF(E184="","",Padroes!S$9) -> 0.20 | J184: =IF(E184="","",Padroes!S$10) -> 0.50 | K184: =IF(Padroes!M43="","",Padroes!M43) -> 0.80 | L184: =IF(D184="","",(D184+(3.1416*((K184+0.3)/2)^2-(3.1416*((Padroes!M43)/2)^2))*M184*2400)) -> 3303 | M184: =IF(E184="","",Padroes!$AI$11) -> 0.75 | N184: =IF(E184="","",Padroes!$AL$23) -> 1.00 | O184: 465 | P184: 530 | Q184: 548 | R184: 1182 | T184: =IF(Padroes!N43="","",Padroes!N43) -> B-6 | W184: =IF(O184="","",O184*Parametros!$I$26) -> 372 | X184: =IF(P184="","",P184*Parametros!$I$27) -> 424 | Y184: =IF(Q184="","",Q184*Parametros!$I$28) -> 439 | Z184: =IF(R184="","",R184*Parametros!$I$29) -> 945
B185: 12 | C185: =IF(Padroes!H44="","",Padroes!H44) ->  | D185: =IF(Padroes!I44="","",Padroes!I44) ->  | G185: =IF(Padroes!K44="","",Padroes!K44) ->  | H185: =IF(E185="","",Padroes!S$8) ->  | I185: =IF(E185="","",Padroes!S$9) ->  | J185: =IF(E185="","",Padroes!S$10) ->  | K185: =IF(Padroes!M44="","",Padroes!M44) ->  | L185: =IF(D185="","",(D185+(3.1416*((K185+0.3)/2)^2-(3.1416*((Padroes!M44)/2)^2))*M185*2400)) ->  | M185: =IF(E185="","",Padroes!$AI$11) ->  | N185: =IF(E185="","",Padroes!$AL$23) ->  | T185: =IF(Padroes!N44="","",Padroes!N44) ->  | W185: =IF(O185="","",O185*Parametros!$I$26) ->  | X185: =IF(P185="","",P185*Parametros!$I$27) ->  | Y185: =IF(Q185="","",Q185*Parametros!$I$28) ->  | Z185: =IF(R185="","",R185*Parametros!$I$29) -> 
B186: 12 | C186: =IF(Padroes!H45="","",Padroes!H45) ->  | D186: =IF(Padroes!I45="","",Padroes!I45) ->  | G186: =IF(Padroes!K45="","",Padroes!K45) ->  | H186: =IF(E186="","",Padroes!S$8) ->  | I186: =IF(E186="","",Padroes!S$9) ->  | J186: =IF(E186="","",Padroes!S$10) ->  | K186: =IF(Padroes!M45="","",Padroes!M45) ->  | L186: =IF(D186="","",(D186+(3.1416*((K186+0.3)/2)^2-(3.1416*((Padroes!M45)/2)^2))*M186*2400)) ->  | M186: =IF(E186="","",Padroes!$AI$11) ->  | N186: =IF(E186="","",Padroes!$AL$23) ->  | O186: =IF(E186="","",($B$63*G186*E186^3)/(F186+E186)) ->  | T186: =IF(Padroes!N45="","",Padroes!N45) ->  | W186: =IF(O186="","",O186*Parametros!$I$26) ->  | X186: =IF(P186="","",P186*Parametros!$I$27) ->  | Y186: =IF(Q186="","",Q186*Parametros!$I$28) ->  | Z186: =IF(R186="","",R186*Parametros!$I$29) -> 
A187: 12 | B187: 12 | C187: =IF(Engastamento_Profundo!F$43=12,Engastamento_Profundo!F$44, 0) -> 0 | D187: =IF(Engastamento_Profundo!F$45="",VLOOKUP(C187,Padroes!H37:M45,2,FALSE),Engastamento_Profundo!$F$45 ) ->  | E187: =IF(Engastamento_Profundo!$F$47="",1.8,Engastamento_Profundo!$F47) -> -335544.3 | F187: =IF(Engastamento_Profundo!F$56="",10,Engastamento_Profundo!F$56) -> 10.00 | G187: =IF(Engastamento_Profundo!F$46="",VLOOKUP(C187,Padroes!H37:M45,4,FALSE),Engastamento_Profundo!F$46) ->  | H187: =IF(Engastamento_Profundo!F$49="",Padroes!$S$8,Engastamento_Profundo!F$49) -> 1.00 | I187: =IF(Engastamento_Profundo!F$50="",Padroes!$S$9,Engastamento_Profundo!F80) -> 0.20 | J187: =IF(Engastamento_Profundo!F$51="",Padroes!$S$10,Engastamento_Profundo!F$51) -> 0.50 | K187: =IF(Engastamento_Profundo!F$53="",VLOOKUP(C187,C178:K186,9,FALSE),Engastamento_Profundo!F$53) ->  | L187: =D187+(3.1416*K187^2*M187/4*2400) ->  | M187: =Padroes!$AL$11 -> 0.75 | N187: 1.00 | O187: =IF(E187="","",($B$63*G187*E187^3)/(F187+E187)) ->  | P187: =IF(E187="","",(3*$B$63*(2*J187*I187 - I187^2)*(H187-G187))*(E187-J187+I187/2)/(F187+E187/2) + O187) ->  | Q187: =IF(E187="","",(3*$B$63 * (2*E187*I187-I187^2)*(H187-G187) ) * (I187/2) / (F187+E187) + P187) ->  | R187: =IF(E187="","",(N187*$B$63*K187*E187^3)/(F187+E187) + (K187*L187/(F187+E187)) * (0.5 - (2*L187/(3*$C$63*K187^2)))) ->  | W187: =IF(O187="","",O187*Parametros!$I$26) ->  | X187: =IF(P187="","",P187*Parametros!$I$27) ->  | Y187: =IF(Q187="","",Q187*Parametros!$I$28) ->  | Z187: =IF(R187="","",R187*Parametros!$I$29) -> 
A188: 13 | B188: 13 | C188: =IF(Padroes!H46="","",Padroes!H46) -> 300 | D188: =IF(Padroes!I46="","",Padroes!I46) -> 1400 | E188: 1.9 | F188: 10.9 | G188: =IF(Padroes!K46="","",Padroes!K46) -> 0.37 | H188: =IF(E188="","",Padroes!S$8) -> 1.00 | I188: =IF(E188="","",Padroes!S$9) -> 0.20 | J188: =IF(E188="","",Padroes!S$10) -> 0.50 | K188: =IF(Padroes!M46="","",Padroes!M46) -> 0.63 | L188: =IF(D188="","",(D188+(3.1416*((K188+0.3)/2)^2-(3.1416*((Padroes!M46)/2)^2))*M188*2400)) -> 2101 | M188: =IF(E188="","",Padroes!$AI$12) -> 0.80 | N188: =IF(E188="","",Padroes!$AL$23) -> 1.00 | O188: 397 | P188: 473 | Q188: 494 | R188: 1042 | S188: 13 | T188: =IF(Padroes!N46="","",Padroes!N46) -> B | W188: =IF(O188="","",O188*Parametros!$I$26) -> 317 | X188: =IF(P188="","",P188*Parametros!$I$27) -> 378 | Y188: =IF(Q188="","",Q188*Parametros!$I$28) -> 395 | Z188: =IF(R188="","",R188*Parametros!$I$29) -> 834
B189: 13 | C189: =IF(Padroes!H47="","",Padroes!H47) -> 400 | D189: =IF(Padroes!I47="","",Padroes!I47) -> 1400 | E189: 1.9 | F189: 10.9 | G189: =IF(Padroes!K47="","",Padroes!K47) -> 0.37 | H189: =IF(E189="","",Padroes!S$8) -> 1.00 | I189: =IF(E189="","",Padroes!S$9) -> 0.20 | J189: =IF(E189="","",Padroes!S$10) -> 0.50 | K189: =IF(Padroes!M47="","",Padroes!M47) -> 0.63 | L189: =IF(D189="","",(D189+(3.1416*((K189+0.3)/2)^2-(3.1416*((Padroes!M47)/2)^2))*M189*2400)) -> 2101 | M189: =IF(E189="","",Padroes!$AI$12) -> 0.80 | N189: =IF(E189="","",Padroes!$AL$23) -> 1.00 | O189: 397 | P189: 473 | Q189: 494 | R189: 1042 | T189: =IF(Padroes!N47="","",Padroes!N47) -> B | W189: =IF(O189="","",O189*Parametros!$I$26) -> 317 | X189: =IF(P189="","",P189*Parametros!$I$27) -> 378 | Y189: =IF(Q189="","",Q189*Parametros!$I$28) -> 395 | Z189: =IF(R189="","",R189*Parametros!$I$29) -> 834
B190: 13 | C190: =IF(Padroes!H48="","",Padroes!H48) -> 600 | D190: =IF(Padroes!I48="","",Padroes!I48) -> 1400 | E190: 1.9 | F190: 10.9 | G190: =IF(Padroes!K48="","",Padroes!K48) -> 0.37 | H190: =IF(E190="","",Padroes!S$8) -> 1.00 | I190: =IF(E190="","",Padroes!S$9) -> 0.20 | J190: =IF(E190="","",Padroes!S$10) -> 0.50 | K190: =IF(Padroes!M48="","",Padroes!M48) -> 0.63 | L190: =IF(D190="","",(D190+(3.1416*((K190+0.3)/2)^2-(3.1416*((Padroes!M48)/2)^2))*M190*2400)) -> 2101 | M190: =IF(E190="","",Padroes!$AI$12) -> 0.80 | N190: =IF(E190="","",Padroes!$AL$23) -> 1.00 | O190: 397 | P190: 473 | Q190: 494 | R190: 1042 | T190: =IF(Padroes!N48="","",Padroes!N48) -> B | W190: =IF(O190="","",O190*Parametros!$I$26) -> 317 | X190: =IF(P190="","",P190*Parametros!$I$27) -> 378 | Y190: =IF(Q190="","",Q190*Parametros!$I$28) -> 395 | Z190: =IF(R190="","",R190*Parametros!$I$29) -> 834
B191: 13 | C191: =IF(Padroes!H49="","",Padroes!H49) ->  | D191: =IF(Padroes!I49="","",Padroes!I49) ->  | G191: =IF(Padroes!K49="","",Padroes!K49) ->  | H191: =IF(E191="","",Padroes!S$8) ->  | I191: =IF(E191="","",Padroes!S$9) ->  | J191: =IF(E191="","",Padroes!S$10) ->  | K191: =IF(Padroes!M49="","",Padroes!M49) ->  | L191: =IF(D191="","",(D191+(3.1416*((K191+0.3)/2)^2-(3.1416*((Padroes!M49)/2)^2))*M191*2400)) ->  | M191: =IF(E191="","",Padroes!$AI$12) ->  | N191: =IF(E191="","",Padroes!$AL$23) ->  | T191: =IF(Padroes!N50="","",Padroes!N49) ->  | W191: =IF(O191="","",O191*Parametros!$I$26) ->  | X191: =IF(P191="","",P191*Parametros!$I$27) ->  | Y191: =IF(Q191="","",Q191*Parametros!$I$28) ->  | Z191: =IF(R191="","",R191*Parametros!$I$29) -> 
B192: 13 | C192: =IF(Padroes!H50="","",Padroes!H50) ->  | D192: =IF(Padroes!I50="","",Padroes!I50) ->  | G192: =IF(Padroes!K50="","",Padroes!K50) ->  | H192: =IF(E192="","",Padroes!S$8) ->  | I192: =IF(E192="","",Padroes!S$9) ->  | J192: =IF(E192="","",Padroes!S$10) ->  | K192: =IF(Padroes!M50="","",Padroes!M50) ->  | L192: =IF(D192="","",(D192+(3.1416*((K192+0.3)/2)^2-(3.1416*((Padroes!M50)/2)^2))*M192*2400)) ->  | M192: =IF(E192="","",Padroes!$AI$12) ->  | N192: =IF(E192="","",Padroes!$AL$23) ->  | T192: =IF(Padroes!N51="","",Padroes!N50) ->  | W192: =IF(O192="","",O192*Parametros!$I$26) ->  | X192: =IF(P192="","",P192*Parametros!$I$27) ->  | Y192: =IF(Q192="","",Q192*Parametros!$I$28) ->  | Z192: =IF(R192="","",R192*Parametros!$I$29) -> 
B193: 13 | C193: =IF(Padroes!H51="","",Padroes!H51) ->  | D193: =IF(Padroes!I51="","",Padroes!I51) ->  | G193: =IF(Padroes!K51="","",Padroes!K51) ->  | H193: =IF(E193="","",Padroes!S$8) ->  | I193: =IF(E193="","",Padroes!S$9) ->  | J193: =IF(E193="","",Padroes!S$10) ->  | K193: =IF(Padroes!M51="","",Padroes!M51) ->  | L193: =IF(D193="","",(D193+(3.1416*((K193+0.3)/2)^2-(3.1416*((Padroes!M51)/2)^2))*M193*2400)) ->  | M193: =IF(E193="","",Padroes!$AI$12) ->  | N193: =IF(E193="","",Padroes!$AL$23) ->  | T193: =IF(Padroes!N52="","",Padroes!N51) ->  | W193: =IF(O193="","",O193*Parametros!$I$26) ->  | X193: =IF(P193="","",P193*Parametros!$I$27) ->  | Y193: =IF(Q193="","",Q193*Parametros!$I$28) ->  | Z193: =IF(R193="","",R193*Parametros!$I$29) -> 
B194: 13 | C194: =IF(Padroes!H52="","",Padroes!H52) ->  | D194: =IF(Padroes!I52="","",Padroes!I52) ->  | G194: =IF(Padroes!K52="","",Padroes!K52) ->  | H194: =IF(E194="","",Padroes!S$8) ->  | I194: =IF(E194="","",Padroes!S$9) ->  | J194: =IF(E194="","",Padroes!S$10) ->  | K194: =IF(Padroes!M52="","",Padroes!M52) ->  | L194: =IF(D194="","",(D194+(3.1416*((K194+0.3)/2)^2-(3.1416*((Padroes!M52)/2)^2))*M194*2400)) ->  | M194: =IF(E194="","",Padroes!$AI$12) ->  | N194: =IF(E194="","",Padroes!$AL$23) ->  | T194: =IF(Padroes!N53="","",Padroes!N52) ->  | W194: =IF(O194="","",O194*Parametros!$I$26) ->  | X194: =IF(P194="","",P194*Parametros!$I$27) ->  | Y194: =IF(Q194="","",Q194*Parametros!$I$28) ->  | Z194: =IF(R194="","",R194*Parametros!$I$29) -> 
B195: 13 | C195: =IF(Padroes!H53="","",Padroes!H53) ->  | D195: =IF(Padroes!I53="","",Padroes!I53) ->  | G195: =IF(Padroes!K53="","",Padroes!K53) ->  | H195: =IF(E195="","",Padroes!S$8) ->  | I195: =IF(E195="","",Padroes!S$9) ->  | J195: =IF(E195="","",Padroes!S$10) ->  | K195: =IF(Padroes!M53="","",Padroes!M53) ->  | L195: =IF(D195="","",(D195+(3.1416*((K195+0.3)/2)^2-(3.1416*((Padroes!M53)/2)^2))*M195*2400)) ->  | M195: =IF(E195="","",Padroes!$AI$12) ->  | N195: =IF(E195="","",Padroes!$AL$23) ->  | T195: =IF(Padroes!N54="","",Padroes!N53) ->  | W195: =IF(O195="","",O195*Parametros!$I$26) ->  | X195: =IF(P195="","",P195*Parametros!$I$27) ->  | Y195: =IF(Q195="","",Q195*Parametros!$I$28) ->  | Z195: =IF(R195="","",R195*Parametros!$I$29) -> 
A196: 13 | B196: 13 | C196: =IF(Engastamento_Profundo!F$43=13,Engastamento_Profundo!F$44, 0) -> 1000 | D196: =IF(Engastamento_Profundo!F$45="",VLOOKUP(C196,Padroes!H46:M53,2,FALSE),Engastamento_Profundo!$F$45 ) ->  | E196: =IF(Engastamento_Profundo!$F$47="",1.9,Engastamento_Profundo!$F47) -> -335544.3 | F196: =IF(Engastamento_Profundo!F$56="",10.9,Engastamento_Profundo!F$56) -> 10.90 | G196: =IF(Engastamento_Profundo!F$46="",VLOOKUP(C196,Padroes!H46:M53,4,FALSE),Engastamento_Profundo!F$46) ->  | H196: =IF(Engastamento_Profundo!F$49="",Padroes!$S$8,Engastamento_Profundo!F$49) -> 1.00 | I196: =IF(Engastamento_Profundo!F$50="",Padroes!$S$9,Engastamento_Profundo!F89) -> 0.20 | J196: =IF(Engastamento_Profundo!F$51="",Padroes!$S$10,Engastamento_Profundo!F$51) -> 0.50 | K196: =IF(Engastamento_Profundo!F$53="",VLOOKUP(C196,C187:K195,9,FALSE),Engastamento_Profundo!F$53) ->  | L196: =D196+(3.1416*K196^2*M196/4*2400) ->  | M196: =Padroes!$AL$12 -> 0.80 | N196: 1.00 | O196: =IF(E196="","",($B$63*G196*E196^3)/(F196+E196)) ->  | P196: =IF(E196="","",(3*$B$63*(2*J196*I196 - I196^2)*(H196-G196))*(E196-J196+I196/2)/(F196+E196/2) + O196) ->  | Q196: =IF(E196="","",(3*$B$63 * (2*E196*I196-I196^2)*(H196-G196) ) * (I196/2) / (F196+E196) + P196) ->  | R196: =IF(E196="","",(N196*$B$63*K196*E196^3)/(F196+E196) + (K196*L196/(F196+E196)) * (0.5 - (2*L196/(3*$C$63*K196^2)))) ->  | W196: =IF(O196="","",O196*Parametros!$I$26) ->  | X196: =IF(P196="","",P196*Parametros!$I$27) ->  | Y196: =IF(Q196="","",Q196*Parametros!$I$28) ->  | Z196: =IF(R196="","",R196*Parametros!$I$29) -> 
A197: 1 | B197: 2 | C197: 3 | D197: 4 | E197: 5 | F197: 6 | G197: 7 | H197: 8 | I197: 9 | J197: 10 | K197: 11 | L197: 12 | M197: 13 | N197: 14 | O197: 15 | P197: 16 | Q197: 17 | R197: 18 | S197: 19 | U197: 21 | V197: 22 | W197: 23 | X197: 24 | Y197: 25 | Z197: 26 | AA197: 27 | AB197: 28 | AC197: 29 | AD197: 30 | AE197: 31 | AF197: 32 | AG197: 33 | AH197: 34 | AI197: 35 | AJ197: 36 | AK197: 37 | AL197: 38 | AM197: 39 | AN197: 40

Sheet Engastamento_Profundo
L1: 9 | M1: 200
F2: Cálculo de Tração Máxima | L2: 10 | M2: 300
B3: Poste de Concreto Tronco Cônico | L3: 11 | M3: 400
E4: comprimento - L | F4: 13 | G4: m | L4: 12 | M4: 600
E5: carga nominal | F5: 1000 | G5: daN | H5: =CONCATENATE(F4,F5) -> 131000 | L5: 13 | M5: 1000
B6: peso | G6: kg | M6: 1500
B7: F da base | G7: m | M7: 2000
B8: engastamento - e | F8: 2.62 | G8: m | M8: 2500
M9: 3000
B10: Escora : | E10: comprimento - c | G10: m
B11: altura (diâmetro) - a | G11: m
B12: profundidade - b | G12: m
B14: Base Concretada : | E14: diâmetro da vala - f | G14: m | L14: =CONCATENATE(L5,M9) -> 133000
B17: Distância do Esforço F ao solo : d
C19: Trações Máximas - daN
C21: ENGASTAMENTO ..................................................... | F21: =IF(F$4=9,Engastamento!O$14,IF(F$4=10,Engastamento!O$23,IF(F$4=11,Engastamento!O$32,IF(F$4=12,Engastamento!O$41,IF(F$4=13,Engastamento!O50))))) -> 1300.00 | G21: <----- | H21: 1300
C22: ESCORA SIMPLES ..................................................... | F22: =IF(F$4=9,Engastamento!P$14,IF(F$4=10,Engastamento!P$23,IF(F$4=11,Engastamento!P$32,IF(F$4=12,Engastamento!P$41,IF(F$4=13,Engastamento!P51))))) -> 0.00
C24: BASE CONCRETADA .................................................. | F24: =IF(F$4=9,Engastamento!R$14,IF(F$4=10,Engastamento!R$23,IF(F$4=11,Engastamento!R$32,IF(F$4=12,Engastamento!R$41,IF(F$4=13,Engastamento!R53))))) -> 0.00
F41: Cálculo de Tração Máxima
B42: Poste de Concreto Duplo T
E43: comprimento - l | F43: 13 | G43: m
E44: carga nominal | F44: 1000 | G44: daN
B45: peso | G45: kg
B46: F da base | G46: m
B47: engastamento - e | F47: -335544.32 | G47: m
B49: Escora : | E49: comprimento - c | G49: m
B50: altura (diâmetro) - a | G50: m
B51: profundidade - b | G51: m
B53: Base Concretada : | E53: diâmetro da vala - f | G53: m
B56: Distância do Esforço F ao solo : d | G56: m
C58: Trações Máximas - daN
C60: ENGASTAMENTO ..................................................... | F60: =IF(F$43=9,Engastamento!O$157,IF(F$43=10,Engastamento!O$167,IF(F$43=11,Engastamento!O$177,IF(F$43=12,Engastamento!O$187,IF(F$43=13,Engastamento!O196))))) ->  | G60: <----- | H60: 1300
C61: ESCORA SIMPLES ..................................................... | F61: =IF(F$43=9,Engastamento!P$157,IF(F$43=10,Engastamento!P$167,IF(F$43=11,Engastamento!P$177,IF(F$43=12,Engastamento!P$187,IF(F$43=13,Engastamento!P197))))) -> 16.00
C63: BASE CONCRETADA .................................................. | F63: =IF(F$43=9,Engastamento!R$157,IF(F$43=10,Engastamento!R$167,IF(F$43=11,Engastamento!R$177,IF(F$43=12,Engastamento!R$187,IF(F$43=13,Engastamento!R199))))) -> 0.00

Sheet Padroes
A1: 1 | B1: 2 | C1: 3 | D1: 4 | E1: 5 | F1: 6 | G1: 7 | H1: 8 | I1: 9 | J1: 10 | K1: 11 | L1: 12 | M1: 13 | N1: 14 | O1: 15 | P1: 16 | Q1: 17 | R1: 18 | S1: 19 | T1: 20 | U1: 21 | V1: 22 | W1: 23 | X1: 24 | Y1: 25 | Z1: 26 | AA1: 27 | AB1: 28 | AC1: 29 | AD1: 30 | AE1: 31 | AF1: 32 | AG1: 33 | AH1: 34 | AI1: 35 | AJ1: 36 | AK1: 37 | AL1: 38 | AM1: 39 | AN1: 40 | AO1: 41 | AP1: 42 | AQ1: 43 | AR1: 44 | AS1: 45 | AT1: 46 | AU1: 47
B7: CARACTERÍSTICA DOS POSTES | G7: CARACTERÍSTICA DOS POSTES | R7: ESCORA DE SUBSOLO | AE7: Compres. do terreno | AH7: BASE CONCRETADA DT | AK7: BASE CONCRETADA CC
B8: Comprimento | C8: Carga Nominal | D8: Peso | E8: base | F8: tipo | G8: Comprimento | H8: Carga Nominal | I8: Peso | J8: base (dimensão) | L8: diagonal (para o cálculo da Base concretada | R8: comprimento - c | S8: 1.00 | V8: MADEIRA | AE8: Banhado | AF8: 1000 | AH8: altura do 9 m | AI8: 0.60 | AK8: altura do 9 m | AL8: 0.60 | AN8: TRANSFORMADORES | AT8: Cruzetas | AX8: Resist. A flexão no Centro (daN
B9: CONCRETO TRONCO CÕNICO | G9: CONCRETO DUPLO T | J9: Face A | K9: Face B | L9: (face A) | M9: (face B) | N9: tipo | R9: diâmetro (altura)- a | S9: 0.20 | V9: Comprimento | W9: Carga | X9: peso | Y9: base | Z9: Topo | AE9: Arenoso | AF9: 2000 | AH9: concreto-g 10 m | AI9: 0.65 | AK9: concreto-g 10 m | AL9: 0.65 | AN9: Potencia | AO9: X (m) | AP9: Y (m) | AQ9: Peso TR | AR9: Dist. TR | AT9: Tipo | AU9: Met. do próprio peso | AV9: Trabalho | AW9: máx. excep. | AX9: Rpup. Mín.
B10: 9 | C10: 150 | D10: 670 | E10: 0.320 | F10: C-14 | G10: 9 | H10: 150 | I10: 470 | J10: 0.264 | K10: 0.190 | L10: 0.625 | M10: 0.325 | N10: D | P10: =SQRT(K10^2+J10^2) -> 0.325 | Q10: =J10/K10 -> 1.389473684 | R10: profundidade - b | S10: 0.50 | V10: 9 | W10: 295 | X10: 210 | Y10: 0.22 | Z10: 0.15 | AE10: Rochoso | AF10: 3000 | AH10: 11 m | AI10: 0.70 | AK10: 11 m | AL10: 0.70 | AN10: 1-1-05 15kV | AO10: 0.8 | AP10: 1.2 | AQ10: 130 | AR10: 0.6 | AT10: Madeira | AU10: 9.5 | AV10: 200 | AW10: 280 | AX10: 600
C11: 200 | D11: 670 | E11: 0.320 | F11: C-14 | H11: 200 | I11: 470 | J11: 0.264 | K11: 0.190 | L11: 0.625 | M11: 0.325 | N11: D | P11: =SQRT(K11^2+J11^2) -> 0.325 | V11: 10 | W11: 255 | X11: 230 | Y11: 0.23 | Z11: 0.15 | AE11: Solo A | AF11: 1600 | AH11: 12 m | AI11: 0.75 | AK11: 12 m | AL11: 0.75 | AN11: 1-1-10 15kV | AO11: 0.8 | AP11: 1.2 | AQ11: 150 | AR11: 0.6 | AT11: Concreto Tipo T | AU11: 25 | AV11: 400 | AW11: 560 | AX11: 800
C12: 300 | D12: 820 | E12: 0.350 | F12: C-17 | H12: 300 | I12: 750 | J12: 0.392 | K12: 0.290 | L12: 0.787 | M12: 0.488 | N12: B | P12: 0.488 | V12: 11 | W12: 300 | X12: 300 | Y12: 0.24 | Z12: 0.15 | AE12: Solo B | AF12: 1400 | AH12: 13 m | AI12: 0.80 | AK12: 13 m | AL12: 0.80 | AN12: 1-1-15 15kV | AO12: 0.8 | AP12: 1.2 | AQ12: 200 | AR12: 0.6 | AT12: Concreto retangular | AU12: 28 | AV12: 400 | AW12: 560 | AX12: 800
C13: 400 | D13: 820 | E13: 0.350 | F13: C-17 | H13: 400 | I13: 750 | J13: 0.392 | K13: 0.290 | L13: 0.787 | M13: 0.488 | N13: B | P13: 0.488 | R13: CORDOALHA DO ESTAI | V13: 12 | W13: 265 | X13: 325 | Y13: 0.24 | Z13: 0.15 | AH13: diâmetro da 200 | AI13: 0.66 | AK13: diâmetro da 200 | AL13: 0.60 | AN13: 1-1-25 15kV | AO13: 0.8 | AP13: 1.2 | AQ13: 260 | AR13: 0.6 | AT13: Aço Tubular | AU13: 26.7 | AV13: 400 | AW13: 560 | AX13: 800
C14: 600 | D14: 1000 | E14: 0.370 | F14: C-19 | H14: 600 | I14: 750 | J14: 0.392 | K14: 0.290 | L14: 0.787 | M14: 0.488 | N14: B | P14: 0.488 | V14: 13 | W14: 230 | X14: 370 | Y14: 0.25 | Z14: 0.15 | AH14: vala - f 300 | AI14: 0.90 | AK14: 300 | AL14: 0.70 | AN14: 1-2-05 15kV | AO14: 0.8 | AP14: 1.2 | AQ14: 130 | AR14: 0.6
C15: 1000 | D15: 1160 | E15: 0.410 | F15: C-23 | H15: 1000 | I15: 1026 | J15: 0.434 | K15: 0.320 | L15: 0.868 | M15: 0.539 | N15: B-1,5 | O15: =L15/J15 -> 2 | P15: 0.539 | AH15: 400 | AI15: 0.90 | AK15: vala - f 400 | AL15: 0.70 | AN15: 1-2-10 15kV | AO15: 0.8 | AP15: 1.2 | AQ15: 150 | AR15: 0.6
P16: 0 | R16: f (mm2) | S16: Carga Ruptura | AH16: 600 | AI16: 0.90 | AK16: 600 | AL16: 0.90 | AN16: 1-2-15 15kV | AO16: 0.8 | AP16: 1.2 | AQ16: 200 | AR16: 0.6
P17: 0 | R17: 6.35 | S17: 2150 | AH17: 1000 | AI17: 1.10 | AK17: 1000 | AL17: 1.30 | AN17: 1-3-15 15kV | AO17: 1.3 | AP17: 1.3 | AQ17: 280 | AR17: 0.6
B18: 10 | C18: 150 | D18: 750 | E18: 0.340 | F18: C-14 | P18: 0 | R18: 7.94 | S18: 3620 | AE18: Ângulo Montagem | AF18: 45 | AH18: 1500 | AI18: 1.95 | AK18: 1500 | AL18: 1.60 | AN18: 1-3-30 15kV | AO18: 1.3 | AP18: 1.3 | AQ18: 402 | AR18: 0.6
C19: 300 | D19: 910 | E19: 0.370 | F19: C-17 | G19: 10 | H19: 150 | I19: 550 | J19: 0.280 | K19: 0.200 | L19: 0.663 | M19: 0.344 | N19: D | P19: 0.344 | Q19: =L19/M19 -> 1.93 | R19: 9.53 | S19: 4900 | AE19: TERRENO | AH19: 2000 | AI19: 1.95 | AK19: 2000 | AL19: 1.6 | AN19: 1-3-45 15kV | AO19: 1.3 | AP19: 1.3 | AQ19: 500 | AR19: 0.6
C20: 400 | D20: 910 | E20: 0.370 | F20: C-17 | H20: 200 | I20: 550 | J20: 0.280 | K20: 0.200 | L20: 0.663 | M20: 0.344 | N20: B | P20: 0.344 | Q20: =L20/M20 -> 1.93 | R20: Coef. segurança | S20: 1.50 | AE20: Coeficiente | AF20: 2000 | AH20: 2500 | AI20: 1.95 | AK20: 2500 | AL20: 1.8 | AN20: 1-3-75 15kV | AO20: 1.3 | AP20: 1.3 | AQ20: 550 | AR20: 0.6
C21: 600 | D21: 1090 | E21: 0.390 | F21: C-19 | H21: 300 | I21: 900 | J21: 0.420 | K21: 0.310 | L21: 0.856 | M21: 0.522 | N21: B | P21: 0.522 | Q21: 1.64 | AH21: 3000 | AI21: 1.95 | AK21: 3000 | AL21: 1.8 | AN21: 1-3-112,5 15kV | AO21: 1.3 | AP21: 1.3 | AQ21: 670 | AR21: 0.6
C22: 1000 | D22: 1350 | E22: 0.430 | F22: C-23 | H22: 400 | I22: 900 | J22: 0.420 | K22: 0.310 | L22: 0.856 | M22: 0.522 | N22: B | P22: 0.522 | Q22: 1.64 | AN22: 1-3-150 15kV | AO22: 1.3 | AP22: 1.3 | AQ22: 890 | AR22: 0.6
C23: 1500 | D23: 1900 | E23: 0.490 | F23: C-29 | H23: 600 | I23: 900 | J23: 0.420 | K23: 0.310 | L23: 0.856 | M23: 0.522 | N23: B | P23: 0.522 | Q23: =L23/M23 -> 1.64 | AK23: Constante | AL23: 1.00 | AN23: 1-3-225 15kV | AO23: 1.3 | AP23: 1.3 | AQ23: 920 | AR23: 0.65
H24: 1000 | I24: 1150 | J24: 0.462 | K24: 0.340 | L24: 0.856 | M24: 0.574 | N24: B-1,5 | O24: =L24/J24 -> 1.852813853 | P24: 0.574 | Q24: 1.49 | AN24: 1-3-300 15kV | AO24: 1.3 | AP24: 1.3 | AQ24: 1000 | AR24: 0.65
P25: 0 | Q25: =L25/M25 ->  | AN25: 1-1-05 25kV | AO25: 0.8 | AP25: 1.2 | AQ25: 130 | AR25: 0.6
B26: 11 | C26: 200 | D26: 870 | E26: 0.360 | F26: C-14 | P26: 0 | AN26: 1-1-10 25kV | AO26: 0.8 | AP26: 1.2 | AQ26: 150 | AR26: 0.6
C27: 300 | D27: 1030 | E27: 0.390 | F27: C-17 | P27: 0 | AN27: 1-1-15 25kV | AO27: 0.8 | AP27: 1.2 | AQ27: 200 | AR27: 0.6
C28: 400 | D28: 1030 | E28: 0.390 | F28: C-17 | G28: 11 | H28: 200 | I28: 680 | J28: 0.296 | K28: 0.210 | L28: 0.663 | M28: 0.363 | N28: D | P28: 0.363 | Q28: 1.83 | AN28: 1-1-25 25kV | AO28: 0.8 | AP28: 1.2 | AQ28: 260 | AR28: 0.6
C29: 600 | D29: 1260 | E29: 0.410 | F29: C-19 | H29: 300 | I29: 1050 | J29: 0.448 | K29: 0.330 | L29: 0.856 | M29: 0.556 | N29: B | P29: 0.556 | Q29: =L29/M29 -> 1.54 | AN29: 1-2-05 25kV | AO29: 0.8 | AP29: 1.2 | AQ29: 130 | AR29: 0.6
C30: 1000 | D30: 1600 | E30: 0.450 | F30: C-23 | H30: 400 | I30: 1050 | J30: 0.448 | K30: 0.330 | L30: 0.856 | M30: 0.556 | N30: B | P30: 0.556 | Q30: 1.54 | AN30: 1-2-10 25kV | AO30: 0.8 | AP30: 1.2 | AQ30: 150 | AR30: 0.6
C31: 1500 | D31: 2100 | E31: 0.510 | F31: C-29 | H31: 600 | I31: 1050 | J31: 0.448 | K31: 0.330 | L31: 0.856 | M31: 0.556 | N31: B | P31: 0.556 | Q31: 1.54 | AN31: 1-2-15 25kV | AO31: 0.8 | AP31: 1.2 | AQ31: 200 | AR31: 0.6
H32: 1000 | I32: 1330 | J32: 0.490 | K32: 0.360 | L32: 0.908 | M32: 0.608 | N32: B-1,5 | P32: 0.608 | Q32: 1.49 | AN32: 1-3-15 25kV | AO32: 1.3 | AP32: 1.3 | AQ32: 280 | AR32: 0.6
P33: 0 | AN33: 1-3-30 25kV | AO33: 1.3 | AP33: 1.3 | AQ33: 402 | AR33: 0.6
B34: 12 | C34: 300 | D34: 1130 | E34: 0.410 | F34: C-17 | P34: 0 | AN34: 1-3-45 25kV | AO34: 1.3 | AP34: 1.3 | AQ34: 500 | AR34: 0.6
C35: 400 | D35: 1130 | E35: 0.410 | F35: C-17 | P35: 0 | AN35: 1-3-75 25kV | AO35: 1.3 | AP35: 1.3 | AQ35: 550 | AR35: 0.6
C36: 600 | D36: 1440 | E36: 0.430 | F36: C-19 | P36: 0 | AN36: 1-3-112,5 25kV | AO36: 1.3 | AP36: 1.3 | AQ36: 670 | AR36: 0.6
C37: 1000 | D37: 1770 | E37: 0.470 | F37: C-23 | G37: 12 | H37: 200 | I37: 780 | J37: 0.310 | K37: 0.230 | L37: 0.663 | M37: 0.386 | N37: D | P37: 0.386 | Q37: 1.72 | AN37: 1-3-150 25kV | AO37: 1.3 | AP37: 1.3 | AQ37: 890 | AR37: 0.6
C38: 1500 | D38: 2450 | E38: 0.530 | F38: C-29 | H38: 300 | I38: 1210 | J38: 0.476 | K38: 0.350 | L38: 0.890 | M38: 0.591 | N38: B | P38: 0.591 | Q38: 1.51 | AN38: 1-3-225 25kV | AO38: 1.3 | AP38: 1.3 | AQ38: 920 | AR38: 0.65
C39: 2000 | D39: 3000 | E39: 0.570 | F39: C-33 | H39: 400 | I39: 1210 | J39: 0.476 | K39: 0.350 | L39: 0.890 | M39: 0.591 | N39: B | P39: 0.591 | Q39: 1.51 | AN39: 1-3-300 25kV | AO39: 1.3 | AP39: 1.3 | AQ39: 1000 | AR39: 0.65
C40: 3000 | D40: 4150 | E40: 0.670 | F40: C-43 | H40: 600 | I40: 1210 | J40: 0.476 | K40: 0.350 | L40: 0.890 | M40: 0.591 | N40: B | P40: 0.591 | Q40: 1.51
H41: 1000 | I41: 1520 | J41: 0.518 | K41: 0.380 | L41: 0.942 | M41: 0.642 | N41: B-1,5 | O41: =L41/J41 -> 1.818532819 | P41: 0.642 | Q41: 1.47
B42: 13 | C42: 300 | D42: 1280 | E42: 0.430 | F42: C-17 | H42: 2000 | I42: 2000 | J42: 0.602 | K42: 0.440 | L42: 1.045 | M42: 0.746 | N42: B-4,5 | O42: =L42/J42 -> 1.735880399 | P42: 0.746 | Q42: 1.40
C43: 400 | D43: 1280 | E43: 0.430 | F43: C-17 | H43: 3000 | I43: 2500 | J43: 0.644 | K43: 0.470 | L43: 1.118 | M43: 0.797 | N43: B-6 | P43: 0.797 | Q43: 1.40
C44: 600 | D44: 1680 | E44: 0.450 | F44: C-19 | P44: 0
C45: 1000 | D45: 1920 | E45: 0.490 | F45: C-23 | P45: 0
C46: 1500 | D46: 2700 | E46: 0.550 | F46: C-29 | G46: 13 | H46: 300 | I46: 1400 | J46: 0.504 | K46: 0.370 | L46: 0.925 | M46: 0.625 | N46: B | P46: 0.625
C47: 2000 | D47: 3500 | E47: 0.590 | F47: C-33 | H47: 400 | I47: 1400 | J47: 0.504 | K47: 0.370 | L47: 0.925 | M47: 0.625 | N47: B | P47: 0.625
H48: 600 | I48: 1400 | J48: 0.504 | K48: 0.370 | L48: 0.925 | M48: 0.625 | N48: B | P48: 0.625
P49: 0
P50: 0

Sheet Tipo_Estai (hidden)
O1: 15 | T1: 20 | Y1: 25
L5: TIPO DE ESTAI A USAR
K6: Poste | S6: Esforço = | T6: 109 | U6: kgf | W6: Valores de segurança para os estais | Z6: Valores para o cálculo dos estais | AC6: Altura | AD6: daN | AE6: Seção | AF6: Tipo | AG6: Estai
K7: TIPO DE ESTAI A USAR | L7: 9 | M7: 10 | N7: 11 | O7: 12 | P7: 13 | S7: Esforço (MD): | T7: Topo | U7: =VLOOKUP(T7,Parametros!$H$18:$I$197,2,FALSE) -> 100% | AC7: =$AA$10 -> 11 | AD7: - | AE7: - | AF7: - | AG7: =L8 -> ea1
L8: =IF($T$6<U15,T15,IF(AND($T$6>U15,$T$6<U16),T16,IF(AND($T$6>U16,$T$6<U17),T17,IF(AND($T$6>U17,$T$6<U18),T18,IF(AND($T$6>U18,$T$6<U19),T19,""))))) -> ea1 | M8: =L8 -> ea1 | N8: =L8 -> ea1 | O8: =L8 -> ea1 | P8: =L8 -> ea1 | S8: Esforço (DT): | T8: Topo | U8: =VLOOKUP(T8,Parametros!$E$18:$F$19,2,FALSE) -> 80% | W8: SIMPLES | X8: =VLOOKUP(W8,Parametros!$H$26:$I$29,2,FALSE) -> 80% | Z8: Tamanho do braço do estai EV | AA8: 2 | AC8: 11 | AD8: - | AE8: - | AF8: - | AG8: =L9 -> ev1
L9: =IF($T$6<W15,$W$14,IF(AND($T$6>W15,$T$6<X15),$X$14,IF(AND($T$6>X15,$T$6<Y15),$Y$14,""))) -> ev1 | M9: =IF($T$6<W16,$W$14,IF(AND($T$6>W16,$T$6<X16),$X$14,IF(AND($T$6>X16,$T$6<Y16),$Y$14,""))) -> ev1 | N9: =IF($T$6<W17,$W$14,IF(AND($T$6>W17,$T$6<X17),$X$14,IF(AND($T$6>X17,$T$6<Y17),$Y$14,""))) -> ev1 | O9: =IF($T$6<W18,$W$14,IF(AND($T$6>W18,$T$6<X18),$X$14,IF(AND($T$6>X18,$T$6<Y18),$Y$14,""))) -> ev1 | P9: =IF($T$6<W19,$W$14,IF(AND($T$6>W19,$T$6<X19),$X$14,IF(AND($T$6>X19,$T$6<Y19),$Y$14,""))) -> ev1 | S9: Esforço (CC): | T9: Topo | U9: =VLOOKUP(T9,Parametros!$E$26:$F$27,2,FALSE) -> 80% | W9: ESS | X9: =VLOOKUP(W9,Parametros!$H$26:$I$29,2,FALSE) -> 80% | Z9: Terreno utilizado | AA9: 2000 | AC9: 11 | AD9: - | AE9: - | AF9: - | AG9: =L10 -> epp1
L10: =IF($T$6<$U$20,$T$20,IF(AND($T$6>$U$20,$T$6<$U$21),$T$21,IF(AND($T$6>$U$21,$T$6<$U$22),$T$22,""))) -> epp1 | M10: =IF($T$6<$U$20,$T$20,IF(AND($T$6>$U$20,$T$6<$U$21),$T$21,IF(AND($T$6>$U$21,$T$6<$U$22),$T$22,""))) -> epp1 | N10: =IF($T$6<$U$20,$T$20,IF(AND($T$6>$U$20,$T$6<$U$21),$T$21,IF(AND($T$6>$U$21,$T$6<$U$22),$T$22,""))) -> epp1 | O10: =IF($T$6<$U$20,$T$20,IF(AND($T$6>$U$20,$T$6<$U$21),$T$21,IF(AND($T$6>$U$21,$T$6<$U$22),$T$22,""))) -> epp1 | P10: =IF($T$6<$U$20,$T$20,IF(AND($T$6>$U$20,$T$6<$U$21),$T$21,IF(AND($T$6>$U$21,$T$6<$U$22),$T$22,""))) -> epp1 | S10: Face 'A" | U10: =Parametros!L18 -> 50% | W10: ESD | X10: =VLOOKUP(W10,Parametros!$H$26:$I$29,2,FALSE) -> 80% | Z10: Poste | AA10: 11 | AC10: 11 | AD10: - | AE10: - | AF10: - | AG10: =L11 -> ecpy1
L11: =IF($T$6<$U$23,$T$23,IF(AND($T$6>$U$23,$T$6<$U$24),$T$24,IF(AND($T$6>$U$24,$T$6<$U$25),$T$25,""))) -> ecpy1 | M11: =IF($T$6<$U$23,$T$23,IF(AND($T$6>$U$23,$T$6<$U$24),$T$24,IF(AND($T$6>$U$24,$T$6<$U$25),$T$25,""))) -> ecpy1 | N11: =IF($T$6<$U$23,$T$23,IF(AND($T$6>$U$23,$T$6<$U$24),$T$24,IF(AND($T$6>$U$24,$T$6<$U$25),$T$25,""))) -> ecpy1 | O11: =IF($T$6<$U$23,$T$23,IF(AND($T$6>$U$23,$T$6<$U$24),$T$24,IF(AND($T$6>$U$24,$T$6<$U$25),$T$25,""))) -> ecpy1 | P11: =IF($T$6<$U$23,$T$23,IF(AND($T$6>$U$23,$T$6<$U$24),$T$24,IF(AND($T$6>$U$24,$T$6<$U$25),$T$25,""))) -> ecpy1 | W11: BC | X11: =VLOOKUP(W11,Parametros!$H$26:$I$29,2,FALSE) -> 80% | AC11: 11 | AD11: - | AE11: - | AF11: - | AG11: =L12 -> ecpv1
L12: =IF($T$6<$U$26,$T$26,IF(AND($T$6>$U$26,$T$6<$U$27),$T$27,IF(AND($T$6>$U$27,$T$6<$U$28),$T$28,""))) -> ecpv1 | M12: =IF($T$6<$U$26,$T$26,IF(AND($T$6>$U$26,$T$6<$U$27),$T$27,IF(AND($T$6>$U$27,$T$6<$U$28),$T$28,""))) -> ecpv1 | N12: =IF($T$6<$U$26,$T$26,IF(AND($T$6>$U$26,$T$6<$U$27),$T$27,IF(AND($T$6>$U$27,$T$6<$U$28),$T$28,""))) -> ecpv1 | O12: =IF($T$6<$U$26,$T$26,IF(AND($T$6>$U$26,$T$6<$U$27),$T$27,IF(AND($T$6>$U$27,$T$6<$U$28),$T$28,""))) -> ecpv1 | P12: =IF($T$6<$U$26,$T$26,IF(AND($T$6>$U$26,$T$6<$U$27),$T$27,IF(AND($T$6>$U$27,$T$6<$U$28),$T$28,""))) -> ecpv1 | AC12: 11 | AD12: =IF($AA$10=9,C19,IF($AA$10=10,C27,IF($AA$10=11,C35,IF($AA$10=12,C43,IF($AA$10=13,C51))))) -> 11200 | AE12: =IF($AA$10=9,D19,IF($AA$10=10,D27,IF($AA$10=11,D35,IF($AA$10=12,D43,IF($AA$10=13,D51))))) -> CC | AF12: =IF($AA$10=9,K19,IF($AA$10=10,K27,IF($AA$10=11,K35,IF($AA$10=12,K43,IF($AA$10=13,K51))))) -> C-14 | AG12: =IF($AA$10=9,J19,IF($AA$10=10,J27,IF($AA$10=11,J35,IF($AA$10=12,J43,IF($AA$10=13,J51))))) -> Simples
L13: =IF(J19="","",CONCATENATE(E19," ",J19)) -> 9 150 CC 'C-14' Simples | M13: =IF(J27="","",CONCATENATE(E27," ",J27)) -> 10 150 CC 'C-14' Simples | N13: =IF(J35="","",CONCATENATE(E35," ",J35)) -> 11 11200 CC 'C-14' Simples | O13: =IF(J43="","",CONCATENATE(E43," ",J43)) -> 12 12200 CC 'C-17' Simples | P13: =IF(J51="","",CONCATENATE(E51," ",J51)) -> 13 13200 CC 'C-17' Simples | V13: Poste | W13: Tipo de estai | AC13: =$AA$10 -> 11 | AD13: =IF($AA$10=9,C20,IF($AA$10=10,C28,IF($AA$10=11,C36,IF($AA$10=12,C44,IF($AA$10=13,C52))))) -> 300 | AE13: =IF($AA$10=9,D20,IF($AA$10=10,D28,IF($AA$10=11,D36,IF($AA$10=12,D44,IF($AA$10=13,D52))))) -> CC | AF13: =IF($AA$10=9,K20,IF($AA$10=10,K28,IF($AA$10=11,K36,IF($AA$10=12,K44,IF($AA$10=13,K52))))) -> C-17 | AG13: =IF($AA$10=9,J20,IF($AA$10=10,J28,IF($AA$10=11,J36,IF($AA$10=12,J44,IF($AA$10=13,J52))))) -> Simples
L14: =IF(J20="","",CONCATENATE(E20," ",J20)) -> 9 200 CC 'C-14' Simples | M14: =IF(J28="","",CONCATENATE(E28," ",J28)) -> 10 300 CC 'C-17' Simples | N14: =IF(J36="","",CONCATENATE(E36," ",J36)) -> 11 300 CC 'C-17' Simples | O14: =IF(J44="","",CONCATENATE(E44," ",J44)) -> 12 400 CC 'C-17' Simples | P14: =IF(J52="","",CONCATENATE(E52," ",J52)) -> 13 400 CC 'C-17' Simples | S14: Cabo | T14: Estai | U14: Esforço | W14: ev1 | X14: ev2 | Y14: ev3 | AC14: 11 | AD14: =IF($AA$10=9,C21,IF($AA$10=10,C29,IF($AA$10=11,C37,IF($AA$10=12,C45,IF($AA$10=13,C53))))) -> 400 | AE14: CC | AF14: C-17 | AG14: Simples
L15: 9 300 CC 'C-17' Simples | M15: 10 400 CC 'C-17' Simples | N15: 11 400 CC 'C-17' Simples | O15: 12 600 CC 'C-19' Simples | P15: 13 600 CC 'C-19' Simples | S15: =Tabela_Esforco!V10 -> 6.35 | T15: ea1 | U15: =Tabela_Esforco!Z10 -> 1,014 | V15: 9 | W15: =Engastamento!AQ67 -> 482 | X15: =Engastamento!AR67 -> 811 | Y15: =Engastamento!AS67 -> 1098 | AC15: 11 | AD15: =IF($AA$10=9,C22,IF($AA$10=10,C30,IF($AA$10=11,C38,IF($AA$10=12,C46,IF($AA$10=13,C54))))) -> 600 | AE15: CC | AF15: C-19 | AG15: Simples
A16: CÁLCULO DO ENGASTAMENTO | L16: 9 400 CC 'C-17' Simples | M16: 10 600 CC 'C-19' Simples | N16: 11 600 CC 'C-19' Simples | O16: 12 1000 CC 'C-23' Simples | P16: 13 1000 CC 'C-23' Simples | S16: =Tabela_Esforco!V11 -> 7.94 | T16: =Tabela_Esforco!X11 -> ea2 | U16: =Tabela_Esforco!Z11 -> 1,706 | V16: 10 | W16: =Engastamento!AQ70 -> 434 | X16: =Engastamento!AR70 -> 730 | Y16: =Engastamento!AS70 -> 988 | AC16: 11 | AD16: =IF($AA$10=9,C23,IF($AA$10=10,C31,IF($AA$10=11,C39,IF($AA$10=12,C47,IF($AA$10=13,C55))))) -> 1000 | AE16: CC | AF16: C-23 | AG16: Simples
A17: Dados do poste | F17: VALOR DA TRAÇÃO NO TOPO (daN) | L17: 9 600 CC 'C-19' Simples | M17: 10 1000 CC 'C-23' Simples | N17: 11 1000 CC 'C-23' Simples | O17: 12 1500 CC 'C-29' Simples | P17: 13 1500 CC 'C-29' Simples | S17: =Tabela_Esforco!V12 -> 9.53 | T17: =Tabela_Esforco!X12 -> ea3 | U17: =Tabela_Esforco!Z12 -> 2,310 | V17: 11 | W17: =Engastamento!AQ74 -> 396 | X17: =Engastamento!AR74 -> 666 | Y17: =Engastamento!AS74 -> 902 | AC17: 11 | AE17: CC | AF17: C-29 | AG17: Simples
A18: Face do poste | B18: Altura | C18: dan | D18: Tipo | E18: concatenar | F18: =Engastamento!O5 -> SIMPLES | G18: =Engastamento!P5 -> ESCORA SIMPLES | H18: =Engastamento!Q5 -> ESCORA DUPLA | I18: =Engastamento!R5 -> CONCRETADO | J18: Estai sugerido | L18: 9 1000 CC 'C-23' Simples | M18: 10 1500 CC 'C-29' Simples | N18: 11 1500 CC 'C-29' Simples | O18: 12 2000 CC 'C-33' Simples | P18: 13 2000 CC 'C-33' Simples | S18: 7.94 | T18: =Tabela_Esforco!AA11 -> ea2+ea2 | U18: =Tabela_Esforco!AB11 -> 2,913 | V18: 12 | W18: =Engastamento!AQ78 -> 364 | X18: =Engastamento!AR78 -> 613 | Y18: =Engastamento!AS78 -> 830 | AC18: 11 | AE18: CC
B19: =IF(Engastamento!B6="","",Engastamento!B6) -> 9 | C19: =IF(Engastamento!C6="","",Engastamento!C6) -> 150 | D19: CC | E19: =IF(C19="","",CONCATENATE(B19," ",C19," ",D19," ",A19,"'",K19,"'")) -> 9 150 CC 'C-14' | F19: =Engastamento!O6 -> 254 | G19: =Engastamento!P6 -> 347 | H19: =Engastamento!Q6 -> 374 | I19: =Engastamento!R6 -> 508 | J19: =IF(C19="","",IF((C19*$U$9)<$T$6,"",IF(AND((C19*$U$9)>$T$6,$T$6<(F19*$X$8)),"Simples",IF(AND(($T$6>(F19*$X$8)),$T$6<(G19*$X$9)),"ESS",IF(AND(($T$6>(G19*$X$9)),$T$6<(H19*$X$10)),"ESD",IF(AND(($T$6>(H19*$X$10)),$T$6<(I19*$X$11)),"BC","")))))) -> Simples | K19: =Engastamento!T6 -> C-14 | O19: 12 3000 CC 'C-43' Simples | S19: 9.53 | T19: =Tabela_Esforco!AA12 -> ea3+ea3 | U19: =Tabela_Esforco!AB12 -> 3,943 | V19: 13 | W19: =Engastamento!AQ82 -> 337 | X19: =Engastamento!AR82 -> 567 | Y19: =Engastamento!AS82 -> 768 | AC19: 11 | AE19: CC
B20: =IF(Engastamento!B7="","",Engastamento!B7) -> 9 | C20: =IF(Engastamento!C7="","",Engastamento!C7) -> 200 | D20: CC | E20: =IF(C20="","",CONCATENATE(B20," ",C20," ",D20," ",A20,"'",K20,"'")) -> 9 200 CC 'C-14' | F20: =Engastamento!O7 -> 254 | G20: =Engastamento!P7 -> 347 | H20: =Engastamento!Q7 -> 374 | I20: =Engastamento!R7 -> 600 | J20: Simples | K20: =Engastamento!T7 -> C-14 | S20: 6.35 | T20: epp1 | U20: =VLOOKUP(T20,Tabela_Esforco!$X$20:$Z$22,3,FALSE) -> 1412
B21: =IF(Engastamento!B8="","",Engastamento!B8) -> 9 | C21: =IF(Engastamento!C8="","",Engastamento!C8) -> 300 | D21: CC | E21: 9 300 CC 'C-17' | F21: =Engastamento!O8 -> 278 | G21: =Engastamento!P8 -> 367 | H21: =Engastamento!Q8 -> 392 | I21: =Engastamento!R8 -> 796 | J21: Simples | K21: =Engastamento!T8 -> C-17 | L21: =IF(J64="","",CONCATENATE(E64," "," ",J64)) ->  | M21: =IF(J73="","",CONCATENATE(E73," ",J73)) ->  | N21: =IF(J82="","",CONCATENATE(E82," ",J82)) ->  | O21: =IF(J91="","",CONCATENATE(E91," ",J91)) ->  | P21: =IF(J100="","",CONCATENATE(E100," ",J100)) -> 13 300 DT Face 'A' 'B' Simples | S21: 7.94 | T21: epp2 | U21: =VLOOKUP(T21,Tabela_Esforco!$X$20:$Z$22,3,FALSE) -> 2377
B22: =IF(Engastamento!B9="","",Engastamento!B9) -> 9 | C22: =IF(Engastamento!C9="","",Engastamento!C9) -> 400 | D22: CC | E22: 9 400 CC 'C-17' | F22: =Engastamento!O9 -> 278 | G22: =Engastamento!P9 -> 367 | H22: =Engastamento!Q9 -> 392 | I22: =Engastamento!R9 -> 1223 | J22: Simples | K22: =Engastamento!T9 -> C-17 | L22: =IF(J65="","",CONCATENATE(E65," "," ",J65)) ->  | M22: =IF(J74="","",CONCATENATE(E74," ",J74)) ->  | N22: =IF(J83="","",CONCATENATE(E83," ",J83)) -> 11 300 DT Face 'A' 'B' Simples | O22: =IF(J92="","",CONCATENATE(E92," ",J92)) -> 12 300 DT Face 'A' 'B' Simples | P22: =IF(J101="","",CONCATENATE(E101," ",J101)) -> 13 400 DT Face 'A' 'B' Simples | S22: 9.53 | T22: epp3 | U22: =VLOOKUP(T22,Tabela_Esforco!$X$20:$Z$22,3,FALSE) -> 3217
B23: =IF(Engastamento!B10="","",Engastamento!B10) -> 9 | C23: =IF(Engastamento!C10="","",Engastamento!C10) -> 600 | D23: CC | E23: 9 600 CC 'C-19' | F23: =Engastamento!O10 -> 294 | G23: =Engastamento!P10 -> 380 | H23: =Engastamento!Q10 -> 405 | I23: =Engastamento!R10 -> 1607 | J23: Simples | K23: =Engastamento!T10 -> C-19 | L23: 9 300 DT Face 'A' 'B' Simples | M23: 10 300 DT Face 'A' 'B' Simples | N23: 11 400 DT Face 'A' 'B' Simples | O23: 12 400 DT Face 'A' 'B' Simples | P23: 13 600 DT Face 'A' 'B' Simples | S23: 6.35 | T23: ecpy1 | U23: =VLOOKUP(T23,Tabela_Esforco!$X$28:$Z$33,3,FALSE) -> 1412
B24: =IF(Engastamento!B11="","",Engastamento!B11) -> 9 | C24: =IF(Engastamento!C11="","",Engastamento!C11) -> 1000 | D24: CC | E24: 9 1000 CC 'C-23' | F24: =Engastamento!O11 -> 326 | G24: =Engastamento!P11 -> 406 | H24: =Engastamento!Q11 -> 429 | I24: =Engastamento!R11 -> 1620 | J24: Simples | K24: =Engastamento!T11 -> C-23 | L24: 9 400 DT Face 'A' 'B' Simples | M24: 10 400 DT Face 'A' 'B' Simples | N24: 11 600 DT Face 'A' 'B' Simples | O24: 12 600 DT Face 'A' 'B' Simples | S24: 7.94 | T24: ecpy2 | U24: =VLOOKUP(T24,Tabela_Esforco!$X$28:$Z$33,3,FALSE) -> 2377
B25: =IF(Engastamento!B12="","",Engastamento!B12) ->  | C25: =IF(Engastamento!C12="","",Engastamento!C12) ->  | D25: CC | F25: =Engastamento!O12 ->  | G25: =Engastamento!P12 ->  | H25: =Engastamento!Q12 ->  | I25: =Engastamento!R12 ->  | K25: =Engastamento!T12 ->  | L25: 9 600 DT Face 'A' 'B' Simples | M25: 10 600 DT Face 'A' 'B' Simples | N25: 11 1000 DT Face 'A' 'B-1,5' Simples | O25: 12 1000 DT Face 'A' 'B-1,5' Simples | S25: 9.53 | T25: ecpy3 | U25: =VLOOKUP(T25,Tabela_Esforco!$X$28:$Z$33,3,FALSE) -> 3217
B26: =IF(Engastamento!B13="","",Engastamento!B13) ->  | C26: =IF(Engastamento!C13="","",Engastamento!C13) ->  | D26: CC | F26: =Engastamento!O13 ->  | G26: =Engastamento!P13 ->  | H26: =Engastamento!Q13 ->  | I26: =Engastamento!R13 ->  | K26: =Engastamento!T13 ->  | L26: 9 1000 DT Face 'A' 'B-1,5' Simples | M26: 10 1000 DT Face 'A' 'B-1,5' Simples | O26: 12 2000 DT Face 'A' 'B-4,5' Simples | S26: 6.35 | T26: ecpv1 | U26: =VLOOKUP(T26,Tabela_Esforco!$X$28:$Z$33,3,FALSE) -> 2860
B27: =Engastamento!B15 -> 10 | C27: =Engastamento!C15 -> 150 | D27: CC | E27: 10 150 CC 'C-14' | F27: =Engastamento!O15 -> 284 | G27: =Engastamento!P15 -> 369 | H27: =Engastamento!Q15 -> 393 | I27: =Engastamento!R15 -> 532 | J27: Simples | K27: =Engastamento!T14 -> C-14 | O27: 12 3000 DT Face 'A' 'B-6' Simples | S27: 7.94 | T27: ecpv2 | U27: =VLOOKUP(T27,Tabela_Esforco!$X$28:$Z$33,3,FALSE) -> 4820
B28: =Engastamento!B16 -> 10 | C28: =Engastamento!C16 -> 300 | D28: CC | E28: 10 300 CC 'C-17' | F28: =Engastamento!O16 -> 309 | G28: =Engastamento!P16 -> 390 | H28: =Engastamento!Q16 -> 413 | I28: =Engastamento!R16 -> 630 | J28: Simples | K28: =Engastamento!T15 -> C-17 | S28: 9.53 | T28: ecpv3 | U28: =VLOOKUP(T28,Tabela_Esforco!$X$28:$Z$33,3,FALSE) -> 6320
B29: =Engastamento!B17 -> 10 | C29: =Engastamento!C17 -> 400 | D29: CC | E29: 10 400 CC 'C-17' | F29: =Engastamento!O17 -> 309 | G29: =Engastamento!P17 -> 390 | H29: =Engastamento!Q17 -> 413 | I29: =Engastamento!R17 -> 829 | J29: Simples | K29: =Engastamento!T16 -> C-17 | P29: =IF(J144="","",CONCATENATE(E144," ",J144)) -> 13 300 DT Face 'B' 'B' Simples
B30: =Engastamento!B18 -> 10 | C30: =Engastamento!C18 -> 600 | D30: CC | E30: 10 600 CC 'C-19' | F30: =Engastamento!O18 -> 326 | G30: =Engastamento!P18 -> 404 | H30: =Engastamento!Q18 -> 426 | I30: =Engastamento!R18 -> 1275 | J30: Simples | K30: =Engastamento!T17 -> C-19 | L30: =IF(J108="","",CONCATENATE(E108," ",J108)) -> 9 150 DT Face 'B' 'D' Simples | M30: =IF(J117="","",CONCATENATE(E117," ",J117)) -> 10 150 DT Face 'B' 'D' Simples | N30: =IF(J126="","",CONCATENATE(E126," ",J126)) -> 11 200 DT Face 'B' 'D' Simples | O30: =IF(J135="","",CONCATENATE(E135," ",J135)) -> 12 200 DT Face 'B' 'D' Simples | P30: =IF(J145="","",CONCATENATE(E145," ",J145)) -> 13 400 DT Face 'B' 'B' Simples
B31: =Engastamento!B19 -> 10 | C31: =Engastamento!C19 -> 1000 | D31: CC | E31: 10 1000 CC 'C-23' | F31: =Engastamento!O19 -> 359 | G31: =Engastamento!P19 -> 432 | H31: =Engastamento!Q19 -> 453 | I31: =Engastamento!R19 -> 1669 | J31: Simples | K31: =Engastamento!T18 -> C-23 | L31: =IF(J109="","",CONCATENATE(E109," ",J109)) -> 9 200 DT Face 'B' 'D' Simples | M31: =IF(J118="","",CONCATENATE(E118," ",J118)) -> 10 200 DT Face 'B' 'B' Simples | N31: =IF(J127="","",CONCATENATE(E127," ",J127)) -> 11 300 DT Face 'B' 'B' Simples | O31: =IF(J136="","",CONCATENATE(E136," ",J136)) -> 12 300 DT Face 'B' 'B' Simples | P31: 13 600 DT Face 'B' 'B' Simples
B32: =Engastamento!B20 -> 10 | C32: =Engastamento!C20 -> 1500 | D32: CC | E32: 10 1500 CC 'C-29' | F32: =Engastamento!O20 -> 410 | G32: =Engastamento!P20 -> 475 | H32: =Engastamento!Q20 -> 494 | I32: =Engastamento!R20 -> 1705 | J32: Simples | K32: =Engastamento!T19 -> C-29 | L32: 9 300 DT Face 'B' 'B' Simples | M32: 10 300 DT Face 'B' 'B' Simples | N32: 11 400 DT Face 'B' 'B' Simples | O32: 12 400 DT Face 'B' 'B' Simples
B33: =Engastamento!B21 -> 0 | C33: =Engastamento!C21 ->  | D33: CC | F33: =Engastamento!O21 ->  | G33: =Engastamento!P21 ->  | H33: =Engastamento!Q21 ->  | I33: =Engastamento!R21 ->  | K33: =Engastamento!T20 ->  | L33: 9 400 DT Face 'B' 'B' Simples | M33: 10 400 DT Face 'B' 'B' Simples | N33: 11 600 DT Face 'B' 'B' Simples | O33: 12 600 DT Face 'B' 'B' Simples
B34: =Engastamento!B22 -> 0 | C34: =Engastamento!C22 ->  | D34: CC | F34: =Engastamento!O22 ->  | G34: =Engastamento!P22 ->  | H34: =Engastamento!Q22 ->  | I34: =Engastamento!R22 ->  | K34: =Engastamento!T21 ->  | L34: 9 600 DT Face 'B' 'B' Simples | M34: 10 600 DT Face 'B' 'B' Simples | N34: 11 1000 DT Face 'B' 'B-1,5' Simples | O34: 12 1000 DT Face 'B' 'B-1,5' Simples
B35: =Engastamento!B24 -> 11 | C35: 11200 | D35: CC | E35: 11 11200 CC 'C-14' | F35: =Engastamento!O24 -> 328 | G35: =Engastamento!P24 -> 408 | H35: =Engastamento!Q24 -> 431 | I35: =Engastamento!R24 -> 576 | J35: Simples | K35: =Engastamento!T22 -> C-14 | L35: 9 1000 DT Face 'B' 'B-1,5' Simples | M35: 10 1000 DT Face 'B' 'B-1,5' Simples | O35: 12 2000 DT Face 'B' 'B-4,5' Simples
B36: =Engastamento!B25 -> 11 | C36: =Engastamento!C25 -> 300 | D36: CC | E36: 11 300 CC 'C-17' | F36: =Engastamento!O25 -> 355 | G36: =Engastamento!P25 -> 431 | H36: =Engastamento!Q25 -> 453 | I36: =Engastamento!R25 -> 681 | J36: Simples | K36: =Engastamento!T23 -> C-17 | O36: 12 3000 DT Face 'B' 'B-6' Simples
B37: =Engastamento!B26 -> 11 | C37: =Engastamento!C26 -> 400 | D37: CC | E37: 11 400 CC 'C-17' | F37: =Engastamento!O26 -> 355 | G37: =Engastamento!P26 -> 431 | H37: =Engastamento!Q26 -> 453 | I37: =Engastamento!R26 -> 894 | J37: Simples | K37: =Engastamento!T24 -> C-17 | P37: =IF(J62="","",CONCATENATE(E62," ",J62)) -> 12 MD Simples
B38: =Engastamento!B27 -> 11 | C38: =Engastamento!C27 -> 600 | D38: CC | E38: 11 600 CC 'C-19' | F38: =Engastamento!O27 -> 373 | G38: =Engastamento!P27 -> 447 | H38: =Engastamento!Q27 -> 468 | I38: =Engastamento!R27 -> 1370 | J38: Simples | K38: =Engastamento!T25 -> C-19
B39: =Engastamento!B28 -> 11 | C39: =Engastamento!C28 -> 1000 | D39: CC | E39: 11 1000 CC 'C-23' | F39: =Engastamento!O28 -> 409 | G39: =Engastamento!P28 -> 478 | H39: =Engastamento!Q28 -> 498 | I39: =Engastamento!R28 -> 1786 | J39: Simples | K39: =Engastamento!T26 -> C-23 | L39: =IF(J59="","",CONCATENATE(E59," ",J59)) -> 9 MD Simples | M39: =IF(J60="","",CONCATENATE(E60," ",J60)) -> 10 MD Simples | N39: =IF(J61="","",CONCATENATE(E61," ",J61)) -> 11 MD Simples | O39: =IF(J62="","",CONCATENATE(E62," ",J62)) -> 12 MD Simples
B40: =Engastamento!B29 -> 11 | C40: =Engastamento!C29 -> 1500 | D40: CC | E40: 11 1500 CC 'C-29' | F40: =Engastamento!O29 -> 464 | G40: =Engastamento!P29 -> 525 | H40: =Engastamento!Q29 -> 543 | I40: =Engastamento!R29 -> 1815 | J40: Simples | K40: =Engastamento!T27 -> C-29
B41: =Engastamento!B30 -> 0 | C41: =Engastamento!C30 ->  | D41: CC | F41: =Engastamento!O30 ->  | G41: =Engastamento!P30 ->  | H41: =Engastamento!Q30 ->  | I41: =Engastamento!R30 ->  | K41: =Engastamento!T28 -> 
B42: =Engastamento!B31 -> 0 | C42: =Engastamento!C31 ->  | D42: CC | F42: =Engastamento!O31 ->  | G42: =Engastamento!P31 ->  | H42: =Engastamento!Q31 ->  | I42: =Engastamento!R31 ->  | K42: =Engastamento!T29 -> 
B43: =Engastamento!B33 -> 12 | C43: 12200 | D43: CC | E43: 12 12200 CC 'C-17' | F43: =Engastamento!O33 -> 405 | G43: =Engastamento!P33 -> 478 | H43: =Engastamento!Q33 -> 498 | I43: =Engastamento!R33 -> 625 | J43: Simples | K43: =Engastamento!T30 -> C-17
B44: =Engastamento!B34 -> 12 | C44: =Engastamento!C34 -> 400 | D44: CC | E44: 12 400 CC 'C-17' | F44: =Engastamento!O34 -> 405 | G44: =Engastamento!P34 -> 478 | H44: =Engastamento!Q34 -> 498 | I44: =Engastamento!R34 -> 735 | J44: Simples | K44: =Engastamento!T31 -> C-17
B45: =Engastamento!B35 -> 12 | C45: =Engastamento!C35 -> 600 | D45: CC | E45: 12 600 CC 'C-19' | F45: =Engastamento!O35 -> 425 | G45: =Engastamento!P35 -> 495 | H45: =Engastamento!Q35 -> 515 | I45: =Engastamento!R35 -> 971 | J45: Simples | K45: =Engastamento!T32 -> C-19
B46: =Engastamento!B36 -> 12 | C46: =Engastamento!C36 -> 1000 | D46: CC | E46: 12 1000 CC 'C-23' | F46: =Engastamento!O36 -> 465 | G46: =Engastamento!P36 -> 530 | H46: =Engastamento!Q36 -> 548 | I46: =Engastamento!R36 -> 1484 | J46: Simples | K46: =Engastamento!T33 -> C-23
